{"text_format":"1","workbook":"xlsx","n_sheets":10,"sheets":["How To Use","RawData(Input)","WOMEN","OPEN","Global by division","Global by country","BY","FeedBack Template","Ranking Template","Lists"],"not_rendered":{"charts":0,"images":0,"macros":1,"external_links":0,"defined_names":30,"comments":0,"pivot_tables":5},"unopened":[],"bounds":{"document_bytes":16777216,"sheet_cells":100000,"rows_first":2000,"rows_last":500,"rows_between":2000,"halvings":0,"cell_chars":16384,"cell_head_chars":4096},"cells_cut":0,"cells_raw":0,"read":"whole","date_system":"1900"}

{"sheet":"How To Use","index":0,"n_rows":63,"n_cols":10,"rows_kept":63,"cut":false,"hidden":true,"merged":[]}
[]
[null,"HOW TO USE",null,null,"FYI : "," - cut&paste is deactivated. (it can screw up formulas). Copy still works."]
[]
["Step 1","Enter the Division & team names (countries or clubs) on the \"Lists\" Sheet."]
[null," ?  * \\ / [ ]  :","are not allowed. They'll be replaced by underscore \"_\""]
[]
["Step 2","Optional :","Tailor the \"FeedBack template\" and \"Ranking Template\" look."]
[]
[null,"Ranking Template","Template sheet for the SOTG division ranking. You can tailor the top of this sheet. "]
[null,null,"The PivotTable will start on the cell named \"PIVOTLOCATION\" and also use the 2 rows above."]
[]
[null,"FeedBack Template","Template sheet for team feeback"]
[null,null,"The macro will fill the info based on cell names. So just be sure to keep the original cell names."]
[null,null,"Cell names to keep : DIVISION, TEAM, NBGAMES,RULE,RULE0,FOUL,FOUL0,FAIR,FAIR0,POS,POS0,OUR,OUR0"]
[]
[]
[]
["Step 3","Click on the \"Prepare the SOTG Tool\". It will : "]
[null,"- generate a new sheet by division based on \"Ranking Template\" containing the SOTG Rating for it"]
[null,"- tailor the feedback sheets "]
[null,"- delete all data on the \"RawData(Input)\" sheet"]
[null,"- Lock the Division & Teams lists."]
[]
["Step 4","Enter the results on the \"RawData(Input)\" sheet."]
[]
[null,"If you prefill the sheet from the game schedules, you can "]
[null,"Use the filters to select the day/team you want to input. Filter on the division and BY columns and you easly input the day games of a team."]
[]
[null,"colums explanation"]
[null,"Division","division :-)","You must 1st select a division before selecting team names"]
[null,"Day","Optional. only here to help selection. Not used for the Tables"]
[null,"Field ","Optional. only here to help selection. Not used for the Tables"]
[null,"Time","Optional. only here to help selection. Not used for the Tables"]
[null,"Game info","Optional. only here to help selection. Not used for the Tables"]
[null,"by","team voting (\"Your team/Our team name\" on the SOTG sheets)"]
[null,"Team evaluated","team evaluated (\"opponent\"/their team name\" on the SOTG sheets)"]
[null,"Rules","rating for : 1. Rules Knowledge and Use"]
[null,"Fouls","rating for : 2. Fouls and Body Contact"]
[null,"Fair","rating for : 3. Fair-Mindedness"]
[null,"Positive","rating for : 4. Positive Attitude and Self-Control"]
[null,"Com","rating for : 5. Communication"]
[null,"TOTAL","Calculated Total. Don't forget to compare it with the one on the SOTG sheet as a validation control."]
[null,"game with 0","Calculated. \"Zero !\"  if ther's a  0 on at least one category. "]
[]
[]
[null,"The tables won't update automaticaly as you input data. You'll have to use the ",null,null,null,null,null,null,null,"button on any of the sheets."]
[]
["Step 5","You can generate a team feeback"]
[null,"Just click on the button it will generate a new Workbook whith a feedback sheet for each team."]
[]
[]
[]
[null,"There's also a lot of usefull information on this sheets : "]
[null,"Global by country","average scores & nb of 0/category received by the teams.   Sorted by team/division. Only meaningfull when teams = Countries"]
[null,"Global by division","average scores & nb of 0/category received by the teams.   Sorted by division/team"]
[null,"BY","average scores & nb of 0/category given by the teams.  Helps finding team giving always high or low scores"]
[]
[]
[]
["Reset All : ",null,null,null,"- delete ALL DATA "]
[null,null,null,null,"- clear the division & team list"]
[null,null,null,null,"- delete the ranking sheets"]
[null,null,null,null,"- unlock the division & country list"]

{"sheet":"RawData(Input)","index":1,"n_rows":6002,"n_cols":19,"rows_kept":4500,"cut":true,"hidden":false,"merged":[[6001,0,6001,18]],"bounds":{"rows_first":2000,"rows_last":500,"rows_between":2000,"halvings":0}}
["WOMEN","Day","Field ","Time","Game info","by","Team evaluated","Rules","Fouls","Fair","Positive","Com","TOTAL","0 @ rules","0 @ fouls","0 @ Fair","0 @ Positive","0 @ Com","game with 0"]
["WOMEN","Day1",null,null,null,"Космик Гёрлс","Бриллианс",2,2,2,3,2,{"$f":"IF(ISBLANK(H2),\"\",SUM(H2:L2))","v":11},{"$f":"IF(ISBLANK(H2),0,IF(H2=0,1,0))","v":0},{"$f":"IF(ISBLANK(I2),0,IF(I2=0,1,0))","v":0},{"$f":"IF(ISBLANK(J2),0,IF(J2=0,1,0))","v":0},{"$f":"IF(ISBLANK(K2),0,IF(K2=0,1,0))","v":0},{"$f":"IF(ISBLANK(L2),0,IF(L2=0,1,0))","v":0},{"$f":"IF(SUM(N2:R2)<>0,\"Zero!\",\"\")","v":""}]
["WOMEN","Day1",null,null,null,"Бриллианс","Космик Гёрлс",2,2,2,3,2,{"$f":"IF(ISBLANK(H3),\"\",SUM(H3:L3))","v":11},{"$f":"IF(ISBLANK(H3),0,IF(H3=0,1,0))","v":0},{"$f":"IF(ISBLANK(I3),0,IF(I3=0,1,0))","v":0},{"$f":"IF(ISBLANK(J3),0,IF(J3=0,1,0))","v":0},{"$f":"IF(ISBLANK(K3),0,IF(K3=0,1,0))","v":0},{"$f":"IF(ISBLANK(L3),0,IF(L3=0,1,0))","v":0},{"$f":"IF(SUM(N3:R3)<>0,\"Zero!\",\"\")","v":""}]
["WOMEN","Day1",null,null,null,"Бриллианс","СаусВест",2,2,1,2,2,{"$f":"IF(ISBLANK(H4),\"\",SUM(H4:L4))","v":9},{"$f":"IF(ISBLANK(H4),0,IF(H4=0,1,0))","v":0},{"$f":"IF(ISBLANK(I4),0,IF(I4=0,1,0))","v":0},{"$f":"IF(ISBLANK(J4),0,IF(J4=0,1,0))","v":0},{"$f":"IF(ISBLANK(K4),0,IF(K4=0,1,0))","v":0},{"$f":"IF(ISBLANK(L4),0,IF(L4=0,1,0))","v":0},{"$f":"IF(SUM(N4:R4)<>0,\"Zero!\",\"\")","v":""}]
["WOMEN","Day1",null,null,null,"СаусВест","Бриллианс",2,2,2,2,2,{"$f":"IF(ISBLANK(H5),\"\",SUM(H5:L5))","v":10},{"$f":"IF(ISBLANK(H5),0,IF(H5=0,1,0))","v":0},{"$f":"IF(ISBLANK(I5),0,IF(I5=0,1,0))","v":0},{"$f":"IF(ISBLANK(J5),0,IF(J5=0,1,0))","v":0},{"$f":"IF(ISBLANK(K5),0,IF(K5=0,1,0))","v":0},{"$f":"IF(ISBLANK(L5),0,IF(L5=0,1,0))","v":0},{"$f":"IF(SUM(N5:R5)<>0,\"Zero!\",\"\")","v":""}]
["OPEN","Day1",null,null,null,"Тени","Сани",2,3,2,1,2,{"$f":"IF(ISBLANK(H6),\"\",SUM(H6:L6))","v":10},{"$f":"IF(ISBLANK(H6),0,IF(H6=0,1,0))","v":0},{"$f":"IF(ISBLANK(I6),0,IF(I6=0,1,0))","v":0},{"$f":"IF(ISBLANK(J6),0,IF(J6=0,1,0))","v":0},{"$f":"IF(ISBLANK(K6),0,IF(K6=0,1,0))","v":0},{"$f":"IF(ISBLANK(L6),0,IF(L6=0,1,0))","v":0},{"$f":"IF(SUM(N6:R6)<>0,\"Zero!\",\"\")","v":""}]
["OPEN","Day1",null,null,null,"Сани","Тени",2,1,2,2,3,{"$f":"IF(ISBLANK(H7),\"\",SUM(H7:L7))","v":10},{"$f":"IF(ISBLANK(H7),0,IF(H7=0,1,0))","v":0},{"$f":"IF(ISBLANK(I7),0,IF(I7=0,1,0))","v":0},{"$f":"IF(ISBLANK(J7),0,IF(J7=0,1,0))","v":0},{"$f":"IF(ISBLANK(K7),0,IF(K7=0,1,0))","v":0},{"$f":"IF(ISBLANK(L7),0,IF(L7=0,1,0))","v":0},{"$f":"IF(SUM(N7:R7)<>0,\"Zero!\",\"\")","v":""}]
["OPEN","Day1",null,null,null,"ЮПитер","АтомСвифт",1,2,1,2,2,8,0,0,0,0,0,""]
["OPEN","Day1",null,null,null,"АтомСвифт","ЮПитер",2,2,2,3,2,11,0,0,0,0,0,""]
["OPEN","Day1",null,null,null,"РеалФайв","ЮПитер-2",2,2,2,2,2,10,0,0,0,0,0,""]
["OPEN","Day1",null,null,null,"ЮПитер-2","РеалФайв",2,2,2,2,2,10,0,0,0,0,0,""]
["OPEN","Day1",null,null,null,"Нижний Новгород","Сокол",2,1,2,2,2,9,0,0,0,0,0,""]
["OPEN","Day1",null,null,null,"Сокол","Нижний Новгород",2,2,2,2,2,10,0,0,0,0,0,""]
["OPEN","Day1",null,null,null,"Ми энд май манки","Саласпилс",2,2,2,3,2,11,0,0,0,0,0,""]
["OPEN","Day1",null,null,null,"Саласпилс","Ми энд май манки",2,3,2,2,2,11,0,0,0,0,0,""]
["WOMEN","Day1",null,null,null,"Лемон Грасс","СаусВест",2,2,2,2,2,10,0,0,0,0,0,""]
["WOMEN","Day1",null,null,null,"СаусВест","Лемон Грасс",2,2,3,2,2,11,0,0,0,0,0,""]
["WOMEN","Day1",null,null,null,"Космик Гёрлс","Элвис Пресли",2,1,1,2,2,8,0,0,0,0,0,""]
["WOMEN","Day1",null,null,null,"Элвис Пресли","Космик Гёрлс",2,1,1,2,2,8,0,0,0,0,0,""]
["OPEN","Day1",null,null,null,"Рэмпейдж","Тени",2,2,2,3,2,11,0,0,0,0,0,""]
["OPEN","Day1",null,null,null,"Тени","Рэмпейдж",2,2,3,2,3,12,0,0,0,0,0,""]
["OPEN","Day1",null,null,null,"Сани","АтомСвифт",1,1,2,2,2,8,0,0,0,0,0,""]
["OPEN","Day1",null,null,null,"АтомСвифт","Сани",2,2,2,1,2,9,0,0,0,0,0,""]
["OPEN","Day1",null,null,null,"Саласпилс","ЮПитер-2",2,2,2,2,2,10,0,0,0,0,0,""]
["OPEN","Day1",null,null,null,"ЮПитер-2","Саласпилс",3,2,2,2,2,11,0,0,0,0,0,""]
["OPEN","Day1",null,null,null,"Рэмпейдж","ФлайнгСтепс",2,2,2,2,1,9,0,0,0,0,0,""]
["OPEN","Day1",null,null,null,"ФлайнгСтепс","Рэмпейдж",2,1,2,2,2,9,0,0,0,0,0,""]
["OPEN","Day1",null,null,null,"ЮПитер","ФлайнгСтепс",3,2,2,2,2,11,0,0,0,0,0,""]
["OPEN","Day1",null,null,null,"ФлайнгСтепс","ЮПитер",2,2,2,2,2,10,0,0,0,0,0,""]
["WOMEN","Day1",null,null,null,"Лемон Грасс","Элвис Пресли",1,2,2,2,1,8,0,0,0,0,0,""]
["WOMEN","Day1",null,null,null,"Элвис Пресли","Лемон Грасс",2,2,1,2,2,9,0,0,0,0,0,""]
["OPEN","Day1",null,null,null,"Нижний Новгород","Ми энд май манки",1,1,2,2,3,9,0,0,0,0,0,""]
["OPEN","Day1",null,null,null,"Ми энд май манки","Нижний Новгород",2,2,2,1,0,7,0,0,0,0,1,"Zero!"]
["OPEN","Day1",null,null,null,"РеалФайв","Сокол",2,2,3,2,3,12,0,0,0,0,0,""]
["OPEN","Day1",null,null,null,"Сокол","РеалФайв",1,2,2,2,1,8,0,0,0,0,0,""]
["OPEN","Day1",null,null,null,"ЮПитер","Рэмпейдж",2,2,2,3,3,12,0,0,0,0,0,""]
["OPEN","Day1",null,null,null,"Рэмпейдж","ЮПитер",1,1,2,3,2,9,0,0,0,0,0,""]
["OPEN","Day1",null,null,null,"АтомСвифт","Тени",3,2,3,3,2,13,0,0,0,0,0,""]
["OPEN","Day1",null,null,null,"Тени","АтомСвифт",2,2,2,1,2,9,0,0,0,0,0,""]
["OPEN","Day1",null,null,null,"Ми энд май манки","РеалФайв",2,2,2,3,2,11,0,0,0,0,0,""]
["OPEN","Day1",null,null,null,"РеалФайв","Ми энд май манки",2,2,2,3,2,11,0,0,0,0,0,""]
["OPEN","Day1",null,null,null,"ЮПитер-2","Сокол",2,2,2,2,2,10,0,0,0,0,0,""]
["OPEN","Day1",null,null,null,"Сокол","ЮПитер-2",2,2,2,2,2,10,0,0,0,0,0,""]
["OPEN","Day1",null,null,null,"ФлайнгСтепс","Сани",2,2,2,3,2,11,0,0,0,0,0,""]
["OPEN","Day1",null,null,null,"Сани","ФлайнгСтепс",2,3,3,3,2,13,0,0,0,0,0,""]
["OPEN","Day1",null,null,null,"Нижний Новгород","Саласпилс",2,2,2,3,3,12,0,0,0,0,0,""]
["OPEN","Day1",null,null,null,"Саласпилс","Нижний Новгород",2,2,3,2,3,12,0,0,0,0,0,""]
["WOMEN","Day1",null,null,null,"СаусВест","Элвис Пресли",2,2,2,1,2,9,0,0,0,0,0,""]
["WOMEN","Day1",null,null,null,"Элвис Пресли","СаусВест",2,2,1,2,2,9,0,0,0,0,0,""]
[null,null,null,null,null,null,null,null,null,null,null,null,"",0,0,0,0,0,""]
["OPEN","Day2",null,null,null,"Сокол","Ми энд май манки",2,2,2,2,2,10,0,0,0,0,0,""]
["OPEN","Day2",null,null,null,"Ми энд май манки","Сокол",2,2,2,2,3,11,0,0,0,0,0,""]
["OPEN","Day2",null,null,null,"Нижний Новгород","ЮПитер-2",2,2,2,2,2,10,0,0,0,0,0,""]
["OPEN","Day2",null,null,null,"ЮПитер-2","Нижний Новгород",2,1,3,2,2,10,0,0,0,0,0,""]
["OPEN","Day2",null,null,null,"ФлайнгСтепс","АтомСвифт",2,2,2,1,2,9,0,0,0,0,0,""]
["OPEN","Day2",null,null,null,"АтомСвифт","ФлайнгСтепс",2,2,2,3,2,11,0,0,0,0,0,""]
["OPEN","Day2",null,null,null,"Рэмпейдж","Сани",2,3,2,1,2,10,0,0,0,0,0,""]
["OPEN","Day2",null,null,null,"Сани","Рэмпейдж",2,2,2,2,3,11,0,0,0,0,0,""]
["OPEN","Day2",null,null,null,"ЮПитер","Сани",2,2,2,3,2,11,0,0,0,0,0,""]
["OPEN","Day2",null,null,null,"Сани","ЮПитер",2,2,2,3,2,11,0,0,0,0,0,""]
["OPEN","Day2",null,null,null,"Рэмпейдж","АтомСвифт",2,2,2,1,2,9,0,0,0,0,0,""]
["OPEN","Day2",null,null,null,"АтомСвифт","Рэмпейдж",2,2,3,2,2,11,0,0,0,0,0,""]
["OPEN","Day2",null,null,null,"Нижний Новгород","РеалФайв",3,3,3,3,3,15,0,0,0,0,0,""]
["OPEN","Day2",null,null,null,"РеалФайв","Нижний Новгород",3,3,3,3,3,15,0,0,0,0,0,""]
["OPEN","Day2",null,null,null,"Ми энд май манки","ЮПитер-2",2,2,2,2,3,11,0,0,0,0,0,""]
["OPEN","Day2",null,null,null,"ЮПитер-2","Ми энд май манки",2,2,2,2,3,{"$f":"IF(ISBLANK(H66),\"\",SUM(H66:L66))","v":11},{"$f":"IF(ISBLANK(H66),0,IF(H66=0,1,0))","v":0},{"$f":"IF(ISBLANK(I66),0,IF(I66=0,1,0))","v":0},{"$f":"IF(ISBLANK(J66),0,IF(J66=0,1,0))","v":0},{"$f":"IF(ISBLANK(K66),0,IF(K66=0,1,0))","v":0},{"$f":"IF(ISBLANK(L66),0,IF(L66=0,1,0))","v":0},{"$f":"IF(SUM(N66:R66)<>0,\"Zero!\",\"\")","v":""}]
["OPEN","Day2",null,null,null,"Тени","ФлайнгСтепс",2,2,3,2,3,12,0,0,0,0,0,""]
["OPEN","Day2",null,null,null,"ФлайнгСтепс","Тени",2,1,3,2,3,11,0,0,0,0,0,""]
["OPEN","Day2",null,null,null,"Саласпилс","Сокол",2,1,3,2,2,10,0,0,0,0,0,""]
["OPEN","Day2",null,null,null,"Сокол","Саласпилс",2,2,2,2,2,10,0,0,0,0,0,""]
["OPEN","Day2",null,null,null,"Саласпилс","РеалФайв",2,3,3,2,3,13,0,0,0,0,0,""]
["OPEN","Day2",null,null,null,"РеалФайв","Саласпилс",2,3,2,2,3,12,0,0,0,0,0,""]
["OPEN","Day2",null,null,null,"ЮПитер","Тени",2,2,3,3,2,12,0,0,0,0,0,""]
["OPEN","Day2",null,null,null,"Тени","ЮПитер",2,2,2,2,2,10,0,0,0,0,0,""]
["OPEN","Day2",null,null,null,"Рэмпейдж","Сокол",2,3,2,2,1,10,0,0,0,0,0,""]
["OPEN","Day2",null,null,null,"Сокол","Рэмпейдж",2,2,2,2,2,10,0,0,0,0,0,""]
["OPEN","Day2",null,null,null,"РеалФайв","ФлайнгСтепс",2,2,1,2,2,9,0,0,0,0,0,""]
["OPEN","Day2",null,null,null,"ФлайнгСтепс","РеалФайв",2,1,2,1,1,7,0,0,0,0,0,""]
["OPEN","Day2",null,null,null,"Ми энд май манки","Тени",2,1,3,2,3,11,0,0,0,0,0,""]
["OPEN","Day2",null,null,null,"Тени","Ми энд май манки",2,3,2,3,2,12,0,0,0,0,0,""]
["OPEN","Day2",null,null,null,"Нижний Новгород","АтомСвифт",2,2,2,1,2,9,0,0,0,0,0,""]
["OPEN","Day2",null,null,null,"АтомСвифт","Нижний Новгород",2,2,2,2,2,10,0,0,0,0,0,""]
["WOMEN","Day2",null,null,null,"Бриллианс","Лемон Грасс",2,2,2,3,2,11,0,0,0,0,0,""]
["WOMEN","Day2",null,null,null,"Лемон Грасс","Бриллианс",2,2,3,2,2,11,0,0,0,0,0,""]
["WOMEN","Day2",null,null,null,"СаусВест","Космик Гёрлс",2,2,2,2,2,10,0,0,0,0,0,""]
["WOMEN","Day2",null,null,null,"Космик Гёрлс","СаусВест",2,2,3,3,2,12,0,0,0,0,0,""]
["WOMEN","Day2",null,null,null,"Лемон Грасс","Космик Гёрлс",2,2,2,3,3,12,0,0,0,0,0,""]
["WOMEN","Day2",null,null,null,"Космик Гёрлс","Лемон Грасс",2,1,3,3,2,11,0,0,0,0,0,""]
["WOMEN","Day2",null,null,null,"Элвис Пресли","Бриллианс",2,2,2,1,3,10,0,0,0,0,0,""]
["WOMEN","Day2",null,null,null,"Бриллианс","Элвис Пресли",2,2,2,2,2,10,0,0,0,0,0,""]
["WOMEN","Day2",null,null,null,"Лемон Грасс","СаусВест",2,2,2,3,2,11,0,0,0,0,0,""]
["WOMEN","Day2",null,null,null,"СаусВест","Лемон Грасс",2,2,2,2,2,10,0,0,0,0,0,""]
["WOMEN","Day2",null,null,null,"Бриллианс","Элвис Пресли",2,2,1,2,2,9,0,0,0,0,0,""]
["WOMEN","Day2",null,null,null,"Элвис Пресли","Бриллианс",2,2,2,1,2,9,0,0,0,0,0,""]
[null,null,null,null,null,null,null,null,null,null,null,null,"",0,0,0,0,0,""]
["WOMEN","Day3",null,null,null,"СаусВест","Элвис Пресли",2,2,1,2,2,9,0,0,0,0,0,""]
["WOMEN","Day3",null,null,null,"Элвис Пресли","СаусВест",2,2,2,2,2,10,0,0,0,0,0,""]
["WOMEN","Day3",null,null,null,"Космик Гёрлс","Лемон Грасс",2,1,2,3,2,10,0,0,0,0,0,""]
["WOMEN","Day3",null,null,null,"Лемон Грасс","Космик Гёрлс",2,2,2,3,2,11,0,0,0,0,0,""]
["OPEN","Day3",null,null,null,"Тени","АтомСвифт",2,2,3,1,4,12,0,0,0,0,0,""]
["OPEN","Day3",null,null,null,"АтомСвифт","Тени",2,2,2,3,2,11,0,0,0,0,0,""]
["OPEN","Day3",null,null,null,"Сани","ЮПитер-2",2,1,2,2,2,9,0,0,0,0,0,""]
["OPEN","Day3",null,null,null,"ЮПитер-2","Сани",1,2,1,2,2,8,0,0,0,0,0,""]
["OPEN","Day3",null,null,null,"Ми энд май манки","Нижний Новгород",2,2,2,2,3,11,0,0,0,0,0,""]
["OPEN","Day3",null,null,null,"Нижний Новгород","Ми энд май манки",2,2,3,2,3,12,0,0,0,0,0,""]
["OPEN","Day3",null,null,null,"Рэмпейдж","ФлайнгСтепс",2,2,1,2,2,9,0,0,0,0,0,""]
["OPEN","Day3",null,null,null,"ФлайнгСтепс","Рэмпейдж",1,2,2,2,3,10,0,0,0,0,0,""]
["OPEN","Day3",null,null,null,"Саласпилс","Сокол",2,1,3,2,3,11,0,0,0,0,0,""]
["OPEN","Day3",null,null,null,"Сокол","Саласпилс",2,2,2,2,2,10,0,0,0,0,0,""]
["OPEN","Day3",null,null,null,"РеалФайв","ЮПитер",3,2,2,3,3,13,0,0,0,0,0,""]
["OPEN","Day3",null,null,null,"ЮПитер","РеалФайв",2,2,2,3,2,11,0,0,0,0,0,""]
["OPEN","Day3",null,null,null,"ЮПитер","Сокол",2,2,2,3,3,12,0,0,0,0,0,""]
["OPEN","Day3",null,null,null,"Сокол","ЮПитер",2,2,2,2,2,10,0,0,0,0,0,""]
["OPEN","Day3",null,null,null,"РеалФайв","Саласпилс",3,3,2,3,3,14,0,0,0,0,0,""]
["OPEN","Day3",null,null,null,"Саласпилс","РеалФайв",2,3,3,3,3,14,0,0,0,0,0,""]
[null,null,null,null,null,null,null,null,null,null,null,null,"",0,0,0,0,0,""]
[null,null,null,null,null,null,null,null,null,null,null,null,"",0,0,0,0,0,""]
[null,null,null,null,null,null,null,null,null,null,null,null,"",0,0,0,0,0,""]
[null,null,null,null,null,null,null,null,null,null,null,null,"",0,0,0,0,0,""]
[null,null,null,null,null,null,null,null,null,null,null,null,"",0,0,0,0,0,""]
[null,null,null,null,null,null,null,null,null,null,null,null,"",0,0,0,0,0,""]
[null,null,null,null,null,null,null,null,null,null,null,null,"",0,0,0,0,0,""]
[null,null,null,null,null,null,null,null,null,null,null,null,"",0,0,0,0,0,""]
[null,null,null,null,null,null,null,null,null,null,null,null,"",0,0,0,0,0,""]
[null,null,null,null,null,null,null,null,null,null,null,null,"",0,0,0,0,0,""]
[null,null,null,null,null,null,null,null,null,null,null,null,"",0,0,0,0,0,""]
[null,null,null,null,null,null,null,null,null,null,null,null,"",0,0,0,0,0,""]
[null,null,null,null,null,null,null,null,null,null,null,null,"",0,0,0,0,0,""]
[null,null,null,null,null,null,null,null,null,null,null,null,"",0,0,0,0,0,""]
[null,null,null,null,null,null,null,null,null,null,null,null,{"$f":"IF(ISBLANK(H130),\"\",SUM(H130:L130))","v":""},{"$f":"IF(ISBLANK(H130),0,IF(H130=0,1,0))","v":0},{"$f":"IF(ISBLANK(I130),0,IF(I130=0,1,0))","v":0},{"$f":"IF(ISBLANK(J130),0,IF(J130=0,1,0))","v":0},{"$f":"IF(ISBLANK(K130),0,IF(K130=0,1,0))","v":0},{"$f":"IF(ISBLANK(L130),0,IF(L130=0,1,0))","v":0},{"$f":"IF(SUM(N130:R130)<>0,\"Zero!\",\"\")","v":""}]
[null,null,null,null,null,null,null,null,null,null,null,null,"",0,0,0,0,0,""]
[null,null,null,null,null,null,null,null,null,null,null,null,"",0,0,0,0,0,""]
[null,null,null,null,null,null,null,null,null,null,null,null,"",0,0,0,0,0,""]
[null,null,null,null,null,null,null,null,null,null,null,null,"",0,0,0,0,0,""]
[null,null,null,null,null,null,null,null,null,null,null,null,"",0,0,0,0,0,""]
[null,null,null,null,null,null,null,null,null,null,null,null,"",0,0,0,0,0,""]
[null,null,null,null,null,null,null,null,null,null,null,null,"",0,0,0,0,0,""]
[null,null,null,null,null,null,null,null,null,null,null,null,"",0,0,0,0,0,""]
[null,null,null,null,null,null,null,null,null,null,null,null,"",0,0,0,0,0,""]
[null,null,null,null,null,null,null,null,null,null,null,null,"",0,0,0,0,0,""]
[null,null,null,null,null,null,null,null,null,null,null,null,"",0,0,0,0,0,""]
[null,null,null,null,null,null,null,null,null,null,null,null,"",0,0,0,0,0,""]
[null,null,null,null,null,null,null,null,null,null,null,null,"",0,0,0,0,0,""]
[null,null,null,null,null,null,null,null,null,null,null,null,"",0,0,0,0,0,""]
[null,null,null,null,null,null,null,null,null,null,null,null,"",0,0,0,0,0,""]
[null,null,null,null,null,null,null,null,null,null,null,null,"",0,0,0,0,0,""]
[null,null,null,null,null,null,null,null,null,null,null,null,"",0,0,0,0,0,""]
[null,null,null,null,null,null,null,null,null,null,null,null,"",0,0,0,0,0,""]
[null,null,null,null,null,null,null,null,null,null,null,null,"",0,0,0,0,0,""]
[null,null,null,null,null,null,null,null,null,null,null,null,"",0,0,0,0,0,""]
[null,null,null,null,null,null,null,null,null,null,null,null,"",0,0,0,0,0,""]
[null,null,null,null,null,null,null,null,null,null,null,null,"",0,0,0,0,0,""]
[null,null,null,null,null,null,null,null,null,null,null,null,"",0,0,0,0,0,""]
[null,null,null,null,null,null,null,null,null,null,null,null,"",0,0,0,0,0,""]
[null,null,null,null,null,null,null,null,null,null,null,null,"",0,0,0,0,0,""]
[null,null,null,null,null,null,null,null,null,null,null,null,"",0,0,0,0,0,""]
[null,null,null,null,null,null,null,null,null,null,null,null,"",0,0,0,0,0,""]
[null,null,null,null,null,null,null,null,null,null,null,null,"",0,0,0,0,0,""]
[null,null,null,null,null,null,null,null,null,null,null,null,"",0,0,0,0,0,""]
[null,null,null,null,null,null,null,null,null,null,null,null,"",0,0,0,0,0,""]
[null,null,null,null,null,null,null,null,null,null,null,null,"",0,0,0,0,0,""]
[null,null,null,null,null,null,null,null,null,null,null,null,"",0,0,0,0,0,""]
[null,null,null,null,null,null,null,null,null,null,null,null,"",0,0,0,0,0,""]
[null,null,null,null,null,null,null,null,null,null,null,null,"",0,0,0,0,0,""]
[null,null,null,null,null,null,null,null,null,null,null,null,"",0,0,0,0,0,""]
[null,null,null,null,null,null,null,null,null,null,null,null,"",0,0,0,0,0,""]
[null,null,null,null,null,null,null,null,null,null,null,null,"",0,0,0,0,0,""]
[null,null,null,null,null,null,null,null,null,null,null,null,"",0,0,0,0,0,""]
[null,null,null,null,null,null,null,null,null,null,null,null,"",0,0,0,0,0,""]
[null,null,null,null,null,null,null,null,null,null,null,null,"",0,0,0,0,0,""]
[null,null,null,null,null,null,null,null,null,null,null,null,"",0,0,0,0,0,""]
[null,null,null,null,null,null,null,null,null,null,null,null,"",0,0,0,0,0,""]
[null,null,null,null,null,null,null,null,null,null,null,null,"",0,0,0,0,0,""]
[null,null,null,null,null,null,null,null,null,null,null,null,"",0,0,0,0,0,""]
[null,null,null,null,null,null,null,null,null,null,null,null,"",0,0,0,0,0,""]
[null,null,null,null,null,null,null,null,null,null,null,null,"",0,0,0,0,0,""]
[null,null,null,null,null,null,null,null,null,null,null,null,"",0,0,0,0,0,""]
[null,null,null,null,null,null,null,null,null,null,null,null,"",0,0,0,0,0,""]
[null,null,null,null,null,null,null,null,null,null,null,null,"",0,0,0,0,0,""]
[null,null,null,null,null,null,null,null,null,null,null,null,"",0,0,0,0,0,""]
[null,null,null,null,null,null,null,null,null,null,null,null,"",0,0,0,0,0,""]
[null,null,null,null,null,null,null,null,null,null,null,null,"",0,0,0,0,0,""]
[null,null,null,null,null,null,null,null,null,null,null,null,"",0,0,0,0,0,""]
[null,null,null,null,null,null,null,null,null,null,null,null,"",0,0,0,0,0,""]
[null,null,null,null,null,null,null,null,null,null,null,null,"",0,0,0,0,0,""]
[null,null,null,null,null,null,null,null,null,null,null,null,"",0,0,0,0,0,""]
[null,null,null,null,null,null,null,null,null,null,null,null,"",0,0,0,0,0,""]
[null,null,null,null,null,null,null,null,null,null,null,null,"",0,0,0,0,0,""]
[null,null,null,null,null,null,null,null,null,null,null,null,"",0,0,0,0,0,""]
[null,null,null,null,null,null,null,null,null,null,null,null,"",0,0,0,0,0,""]
[null,null,null,null,null,null,null,null,null,null,null,null,"",0,0,0,0,0,""]
[null,null,null,null,null,null,null,null,null,null,null,null,"",0,0,0,0,0,""]
[null,null,null,null,null,null,null,null,null,null,null,null,"",0,0,0,0,0,""]
[null,null,null,null,null,null,null,null,null,null,null,null,{"$f":"IF(ISBLANK(H194),\"\",SUM(H194:L194))","v":""},{"$f":"IF(ISBLANK(H194),0,IF(H194=0,1,0))","v":0},{"$f":"IF(ISBLANK(I194),0,IF(I194=0,1,0))","v":0},{"$f":"IF(ISBLANK(J194),0,IF(J194=0,1,0))","v":0},{"$f":"IF(ISBLANK(K194),0,IF(K194=0,1,0))","v":0},{"$f":"IF(ISBLANK(L194),0,IF(L194=0,1,0))","v":0},{"$f":"IF(SUM(N194:R194)<>0,\"Zero!\",\"\")","v":""}]
[null,null,null,null,null,null,null,null,null,null,null,null,"",0,0,0,0,0,""]
[null,null,null,null,null,null,null,null,null,null,null,null,"",0,0,0,0,0,""]
[null,null,null,null,null,null,null,null,null,null,null,null,"",0,0,0,0,0,""]
[null,null,null,null,null,null,null,null,null,null,null,null,"",0,0,0,0,0,""]
[null,null,null,null,null,null,null,null,null,null,null,null,"",0,0,0,0,0,""]
[null,null,null,null,null,null,null,null,null,null,null,null,"",0,0,0,0,0,""]
[null,null,null,null,null,null,null,null,null,null,null,null,"",0,0,0,0,0,""]
[null,null,null,null,null,null,null,null,null,null,null,null,"",0,0,0,0,0,""]
[null,null,null,null,null,null,null,null,null,null,null,null,"",0,0,0,0,0,""]
[null,null,null,null,null,null,null,null,null,null,null,null,"",0,0,0,0,0,""]
[null,null,null,null,null,null,null,null,null,null,null,null,"",0,0,0,0,0,""]
[null,null,null,null,null,null,null,null,null,null,null,null,"",0,0,0,0,0,""]
[null,null,null,null,null,null,null,null,null,null,null,null,"",0,0,0,0,0,""]
[null,null,null,null,null,null,null,null,null,null,null,null,"",0,0,0,0,0,""]
[null,null,null,null,null,null,null,null,null,null,null,null,"",0,0,0,0,0,""]
[null,null,null,null,null,null,null,null,null,null,null,null,"",0,0,0,0,0,""]
[null,null,null,null,null,null,null,null,null,null,null,null,"",0,0,0,0,0,""]
[null,null,null,null,null,null,null,null,null,null,null,null,"",0,0,0,0,0,""]
[null,null,null,null,null,null,null,null,null,null,null,null,"",0,0,0,0,0,""]
[null,null,null,null,null,null,null,null,null,null,null,null,"",0,0,0,0,0,""]
[null,null,null,null,null,null,null,null,null,null,null,null,"",0,0,0,0,0,""]
[null,null,null,null,null,null,null,null,null,null,null,null,"",0,0,0,0,0,""]
[null,null,null,null,null,null,null,null,null,null,null,null,"",0,0,0,0,0,""]
[null,null,null,null,null,null,null,null,null,null,null,null,"",0,0,0,0,0,""]
[null,null,null,null,null,null,null,null,null,null,null,null,"",0,0,0,0,0,""]
[null,null,null,null,null,null,null,null,null,null,null,null,"",0,0,0,0,0,""]
[null,null,null,null,null,null,null,null,null,null,null,null,"",0,0,0,0,0,""]
[null,null,null,null,null,null,null,null,null,null,null,null,"",0,0,0,0,0,""]
[null,null,null,null,null,null,null,null,null,null,null,null,"",0,0,0,0,0,""]
[null,null,null,null,null,null,null,null,null,null,null,null,"",0,0,0,0,0,""]
[null,null,null,null,null,null,null,null,null,null,null,null,"",0,0,0,0,0,""]
[null,null,null,null,null,null,null,null,null,null,null,null,"",0,0,0,0,0,""]
[null,null,null,null,null,null,null,null,null,null,null,null,"",0,0,0,0,0,""]
[null,null,null,null,null,null,null,null,null,null,null,null,"",0,0,0,0,0,""]
[null,null,null,null,null,null,null,null,null,null,null,null,"",0,0,0,0,0,""]
[null,null,null,null,null,null,null,null,null,null,null,null,"",0,0,0,0,0,""]
[null,null,null,null,null,null,null,null,null,null,null,null,"",0,0,0,0,0,""]
[null,null,null,null,null,null,null,null,null,null,null,null,"",0,0,0,0,0,""]
[null,null,null,null,null,null,null,null,null,null,null,null,"",0,0,0,0,0,""]
[null,null,null,null,null,null,null,null,null,null,null,null,"",0,0,0,0,0,""]
[null,null,null,null,null,null,null,null,null,null,null,null,"",0,0,0,0,0,""]
[null,null,null,null,null,null,null,null,null,null,null,null,"",0,0,0,0,0,""]
[null,null,null,null,null,null,null,null,null,null,null,null,"",0,0,0,0,0,""]
[null,null,null,null,null,null,null,null,null,null,null,null,"",0,0,0,0,0,""]
[null,null,null,null,null,null,null,null,null,null,null,null,"",0,0,0,0,0,""]
[null,null,null,null,null,null,null,null,null,null,null,null,"",0,0,0,0,0,""]
[null,null,null,null,null,null,null,null,null,null,null,null,"",0,0,0,0,0,""]
[null,null,null,null,null,null,null,null,null,null,null,null,"",0,0,0,0,0,""]
[null,null,null,null,null,null,null,null,null,null,null,null,"",0,0,0,0,0,""]
[null,null,null,null,null,null,null,null,null,null,null,null,"",0,0,0,0,0,""]
[null,null,null,null,null,null,null,null,null,null,null,null,"",0,0,0,0,0,""]
[null,null,null,null,null,null,null,null,null,null,null,null,"",0,0,0,0,0,""]
[null,null,null,null,null,null,null,null,null,null,null,null,"",0,0,0,0,0,""]
[null,null,null,null,null,null,null,null,null,null,null,null,"",0,0,0,0,0,""]
[null,null,null,null,null,null,null,null,null,null,null,null,"",0,0,0,0,0,""]
[null,null,null,null,null,null,null,null,null,null,null,null,"",0,0,0,0,0,""]
[null,null,null,null,null,null,null,null,null,null,null,null,"",0,0,0,0,0,""]
[null,null,null,null,null,null,null,null,null,null,null,null,"",0,0,0,0,0,""]
[null,null,null,null,null,null,null,null,null,null,null,null,"",0,0,0,0,0,""]
[null,null,null,null,null,null,null,null,null,null,null,null,"",0,0,0,0,0,""]
[null,null,null,null,null,null,null,null,null,null,null,null,"",0,0,0,0,0,""]
[null,null,null,null,null,null,null,null,null,null,null,null,"",0,0,0,0,0,""]
[null,null,null,null,null,null,null,null,null,null,null,null,"",0,0,0,0,0,""]
[null,null,null,null,null,null,null,null,null,null,null,null,{"$f":"IF(ISBLANK(H258),\"\",SUM(H258:L258))","v":""},{"$f":"IF(ISBLANK(H258),0,IF(H258=0,1,0))","v":0},{"$f":"IF(ISBLANK(I258),0,IF(I258=0,1,0))","v":0},{"$f":"IF(ISBLANK(J258),0,IF(J258=0,1,0))","v":0},{"$f":"IF(ISBLANK(K258),0,IF(K258=0,1,0))","v":0},{"$f":"IF(ISBLANK(L258),0,IF(L258=0,1,0))","v":0},{"$f":"IF(SUM(N258:R258)<>0,\"Zero!\",\"\")","v":""}]
[null,null,null,null,null,null,null,null,null,null,null,null,"",0,0,0,0,0,""]
[null,null,null,null,null,null,null,null,null,null,null,null,"",0,0,0,0,0,""]
[null,null,null,null,null,null,null,null,null,null,null,null,"",0,0,0,0,0,""]
[null,null,null,null,null,null,null,null,null,null,null,null,"",0,0,0,0,0,""]
[null,null,null,null,null,null,null,null,null,null,null,null,"",0,0,0,0,0,""]
[null,null,null,null,null,null,null,null,null,null,null,null,"",0,0,0,0,0,""]
[null,null,null,null,null,null,null,null,null,null,null,null,"",0,0,0,0,0,""]
[null,null,null,null,null,null,null,null,null,null,null,null,"",0,0,0,0,0,""]
[null,null,null,null,null,null,null,null,null,null,null,null,"",0,0,0,0,0,""]
[null,null,null,null,null,null,null,null,null,null,null,null,"",0,0,0,0,0,""]
[null,null,null,null,null,null,null,null,null,null,null,null,"",0,0,0,0,0,""]
[null,null,null,null,null,null,null,null,null,null,null,null,"",0,0,0,0,0,""]
[null,null,null,null,null,null,null,null,null,null,null,null,"",0,0,0,0,0,""]
[null,null,null,null,null,null,null,null,null,null,null,null,"",0,0,0,0,0,""]
[null,null,null,null,null,null,null,null,null,null,null,null,"",0,0,0,0,0,""]
[null,null,null,null,null,null,null,null,null,null,null,null,"",0,0,0,0,0,""]
[null,null,null,null,null,null,null,null,null,null,null,null,"",0,0,0,0,0,""]
[null,null,null,null,null,null,null,null,null,null,null,null,"",0,0,0,0,0,""]
[null,null,null,null,null,null,null,null,null,null,null,null,"",0,0,0,0,0,""]
[null,null,null,null,null,null,null,null,null,null,null,null,"",0,0,0,0,0,""]
[null,null,null,null,null,null,null,null,null,null,null,null,"",0,0,0,0,0,""]
[null,null,null,null,null,null,null,null,null,null,null,null,"",0,0,0,0,0,""]
[null,null,null,null,null,null,null,null,null,null,null,null,"",0,0,0,0,0,""]
[null,null,null,null,null,null,null,null,null,null,null,null,"",0,0,0,0,0,""]
[null,null,null,null,null,null,null,null,null,null,null,null,"",0,0,0,0,0,""]
[null,null,null,null,null,null,null,null,null,null,null,null,"",0,0,0,0,0,""]
[null,null,null,null,null,null,null,null,null,null,null,null,"",0,0,0,0,0,""]
[null,null,null,null,null,null,null,null,null,null,null,null,"",0,0,0,0,0,""]
[null,null,null,null,null,null,null,null,null,null,null,null,"",0,0,0,0,0,""]
[null,null,null,null,null,null,null,null,null,null,null,null,"",0,0,0,0,0,""]
[null,null,null,null,null,null,null,null,null,null,null,null,"",0,0,0,0,0,""]
[null,null,null,null,null,null,null,null,null,null,null,null,"",0,0,0,0,0,""]
[null,null,null,null,null,null,null,null,null,null,null,null,"",0,0,0,0,0,""]
[null,null,null,null,null,null,null,null,null,null,null,null,"",0,0,0,0,0,""]
[null,null,null,null,null,null,null,null,null,null,null,null,"",0,0,0,0,0,""]
[null,null,null,null,null,null,null,null,null,null,null,null,"",0,0,0,0,0,""]
[null,null,null,null,null,null,null,null,null,null,null,null,"",0,0,0,0,0,""]
[null,null,null,null,null,null,null,null,null,null,null,null,"",0,0,0,0,0,""]
[null,null,null,null,null,null,null,null,null,null,null,null,"",0,0,0,0,0,""]
[null,null,null,null,null,null,null,null,null,null,null,null,"",0,0,0,0,0,""]
[null,null,null,null,null,null,null,null,null,null,null,null,"",0,0,0,0,0,""]
[null,null,null,null,null,null,null,null,null,null,null,null,"",0,0,0,0,0,""]
[null,null,null,null,null,null,null,null,null,null,null,null,"",0,0,0,0,0,""]
[null,null,null,null,null,null,null,null,null,null,null,null,"",0,0,0,0,0,""]
[null,null,null,null,null,null,null,null,null,null,null,null,"",0,0,0,0,0,""]
[null,null,null,null,null,null,null,null,null,null,null,null,"",0,0,0,0,0,""]
[null,null,null,null,null,null,null,null,null,null,null,null,"",0,0,0,0,0,""]
[null,null,null,null,null,null,null,null,null,null,null,null,"",0,0,0,0,0,""]
[null,null,null,null,null,null,null,null,null,null,null,null,"",0,0,0,0,0,""]
[null,null,null,null,null,null,null,null,null,null,null,null,"",0,0,0,0,0,""]
[null,null,null,null,null,null,null,null,null,null,null,null,"",0,0,0,0,0,""]
[null,null,null,null,null,null,null,null,null,null,null,null,"",0,0,0,0,0,""]
[null,null,null,null,null,null,null,null,null,null,null,null,"",0,0,0,0,0,""]
[null,null,null,null,null,null,null,null,null,null,null,null,"",0,0,0,0,0,""]
[null,null,null,null,null,null,null,null,null,null,null,null,"",0,0,0,0,0,""]
[null,null,null,null,null,null,null,null,null,null,null,null,"",0,0,0,0,0,""]
[null,null,null,null,null,null,null,null,null,null,null,null,"",0,0,0,0,0,""]
[null,null,null,null,null,null,null,null,null,null,null,null,"",0,0,0,0,0,""]
[null,null,null,null,null,null,null,null,null,null,null,null,"",0,0,0,0,0,""]
[null,null,null,null,null,null,null,null,null,null,null,null,"",0,0,0,0,0,""]
[null,null,null,null,null,null,null,null,null,null,null,null,"",0,0,0,0,0,""]
[null,null,null,null,null,null,null,null,null,null,null,null,"",0,0,0,0,0,""]
[null,null,null,null,null,null,null,null,null,null,null,null,"",0,0,0,0,0,""]
[null,null,null,null,null,null,null,null,null,null,null,null,{"$f":"IF(ISBLANK(H322),\"\",SUM(H322:L322))","v":""},{"$f":"IF(ISBLANK(H322),0,IF(H322=0,1,0))","v":0},{"$f":"IF(ISBLANK(I322),0,IF(I322=0,1,0))","v":0},{"$f":"IF(ISBLANK(J322),0,IF(J322=0,1,0))","v":0},{"$f":"IF(ISBLANK(K322),0,IF(K322=0,1,0))","v":0},{"$f":"IF(ISBLANK(L322),0,IF(L322=0,1,0))","v":0},{"$f":"IF(SUM(N322:R322)<>0,\"Zero!\",\"\")","v":""}]
[null,null,null,null,null,null,null,null,null,null,null,null,"",0,0,0,0,0,""]
[null,null,null,null,null,null,null,null,null,null,null,null,"",0,0,0,0,0,""]
[null,null,null,null,null,null,null,null,null,null,null,null,"",0,0,0,0,0,""]
[null,null,null,null,null,null,null,null,null,null,null,null,"",0,0,0,0,0,""]
[null,null,null,null,null,null,null,null,null,null,null,null,"",0,0,0,0,0,""]
[null,null,null,null,null,null,null,null,null,null,null,null,"",0,0,0,0,0,""]
[null,null,null,null,null,null,null,null,null,null,null,null,"",0,0,0,0,0,""]
[null,null,null,null,null,null,null,null,null,null,null,null,"",0,0,0,0,0,""]
[null,null,null,null,null,null,null,null,null,null,null,null,"",0,0,0,0,0,""]
[null,null,null,null,null,null,null,null,null,null,null,null,"",0,0,0,0,0,""]
[null,null,null,null,null,null,null,null,null,null,null,null,"",0,0,0,0,0,""]
[null,null,null,null,null,null,null,null,null,null,null,null,"",0,0,0,0,0,""]
[null,null,null,null,null,null,null,null,null,null,null,null,"",0,0,0,0,0,""]
[null,null,null,null,null,null,null,null,null,null,null,null,"",0,0,0,0,0,""]
[null,null,null,null,null,null,null,null,null,null,null,null,"",0,0,0,0,0,""]
[null,null,null,null,null,null,null,null,null,null,null,null,"",0,0,0,0,0,""]
[null,null,null,null,null,null,null,null,null,null,null,null,"",0,0,0,0,0,""]
[null,null,null,null,null,null,null,null,null,null,null,null,"",0,0,0,0,0,""]
[null,null,null,null,null,null,null,null,null,null,null,null,"",0,0,0,0,0,""]
[null,null,null,null,null,null,null,null,null,null,null,null,"",0,0,0,0,0,""]
[null,null,null,null,null,null,null,null,null,null,null,null,"",0,0,0,0,0,""]
[null,null,null,null,null,null,null,null,null,null,null,null,"",0,0,0,0,0,""]
[null,null,null,null,null,null,null,null,null,null,null,null,"",0,0,0,0,0,""]
[null,null,null,null,null,null,null,null,null,null,null,null,"",0,0,0,0,0,""]
[null,null,null,null,null,null,null,null,null,null,null,null,"",0,0,0,0,0,""]
[null,null,null,null,null,null,null,null,null,null,null,null,"",0,0,0,0,0,""]
[null,null,null,null,null,null,null,null,null,null,null,null,"",0,0,0,0,0,""]
[null,null,null,null,null,null,null,null,null,null,null,null,"",0,0,0,0,0,""]
[null,null,null,null,null,null,null,null,null,null,null,null,"",0,0,0,0,0,""]
[null,null,null,null,null,null,null,null,null,null,null,null,"",0,0,0,0,0,""]
[null,null,null,null,null,null,null,null,null,null,null,null,"",0,0,0,0,0,""]
[null,null,null,null,null,null,null,null,null,null,null,null,"",0,0,0,0,0,""]
[null,null,null,null,null,null,null,null,null,null,null,null,"",0,0,0,0,0,""]
[null,null,null,null,null,null,null,null,null,null,null,null,"",0,0,0,0,0,""]
[null,null,null,null,null,null,null,null,null,null,null,null,"",0,0,0,0,0,""]
[null,null,null,null,null,null,null,null,null,null,null,null,"",0,0,0,0,0,""]
[null,null,null,null,null,null,null,null,null,null,null,null,"",0,0,0,0,0,""]
[null,null,null,null,null,null,null,null,null,null,null,null,"",0,0,0,0,0,""]
[null,null,null,null,null,null,null,null,null,null,null,null,"",0,0,0,0,0,""]
[null,null,null,null,null,null,null,null,null,null,null,null,"",0,0,0,0,0,""]
[null,null,null,null,null,null,null,null,null,null,null,null,"",0,0,0,0,0,""]
[null,null,null,null,null,null,null,null,null,null,null,null,"",0,0,0,0,0,""]
[null,null,null,null,null,null,null,null,null,null,null,null,"",0,0,0,0,0,""]
[null,null,null,null,null,null,null,null,null,null,null,null,"",0,0,0,0,0,""]
[null,null,null,null,null,null,null,null,null,null,null,null,"",0,0,0,0,0,""]
[null,null,null,null,null,null,null,null,null,null,null,null,"",0,0,0,0,0,""]
[null,null,null,null,null,null,null,null,null,null,null,null,"",0,0,0,0,0,""]
[null,null,null,null,null,null,null,null,null,null,null,null,"",0,0,0,0,0,""]
[null,null,null,null,null,null,null,null,null,null,null,null,"",0,0,0,0,0,""]
[null,null,null,null,null,null,null,null,null,null,null,null,"",0,0,0,0,0,""]
[null,null,null,null,null,null,null,null,null,null,null,null,"",0,0,0,0,0,""]
[null,null,null,null,null,null,null,null,null,null,null,null,"",0,0,0,0,0,""]
[null,null,null,null,null,null,null,null,null,null,null,null,"",0,0,0,0,0,""]
[null,null,null,null,null,null,null,null,null,null,null,null,"",0,0,0,0,0,""]
[null,null,null,null,null,null,null,null,null,null,null,null,"",0,0,0,0,0,""]
[null,null,null,null,null,null,null,null,null,null,null,null,"",0,0,0,0,0,""]
[null,null,null,null,null,null,null,null,null,null,null,null,"",0,0,0,0,0,""]
[null,null,null,null,null,null,null,null,null,null,null,null,"",0,0,0,0,0,""]
[null,null,null,null,null,null,null,null,null,null,null,null,"",0,0,0,0,0,""]
[null,null,null,null,null,null,null,null,null,null,null,null,"",0,0,0,0,0,""]
[null,null,null,null,null,null,null,null,null,null,null,null,"",0,0,0,0,0,""]
[null,null,null,null,null,null,null,null,null,null,null,null,"",0,0,0,0,0,""]
[null,null,null,null,null,null,null,null,null,null,null,null,"",0,0,0,0,0,""]
[null,null,null,null,null,null,null,null,null,null,null,null,{"$f":"IF(ISBLANK(H386),\"\",SUM(H386:L386))","v":""},{"$f":"IF(ISBLANK(H386),0,IF(H386=0,1,0))","v":0},{"$f":"IF(ISBLANK(I386),0,IF(I386=0,1,0))","v":0},{"$f":"IF(ISBLANK(J386),0,IF(J386=0,1,0))","v":0},{"$f":"IF(ISBLANK(K386),0,IF(K386=0,1,0))","v":0},{"$f":"IF(ISBLANK(L386),0,IF(L386=0,1,0))","v":0},{"$f":"IF(SUM(N386:R386)<>0,\"Zero!\",\"\")","v":""}]
[null,null,null,null,null,null,null,null,null,null,null,null,"",0,0,0,0,0,""]
[null,null,null,null,null,null,null,null,null,null,null,null,"",0,0,0,0,0,""]
[null,null,null,null,null,null,null,null,null,null,null,null,"",0,0,0,0,0,""]
[null,null,null,null,null,null,null,null,null,null,null,null,"",0,0,0,0,0,""]
[null,null,null,null,null,null,null,null,null,null,null,null,"",0,0,0,0,0,""]
[null,null,null,null,null,null,null,null,null,null,null,null,"",0,0,0,0,0,""]
[null,null,null,null,null,null,null,null,null,null,null,null,"",0,0,0,0,0,""]
[null,null,null,null,null,null,null,null,null,null,null,null,"",0,0,0,0,0,""]
[null,null,null,null,null,null,null,null,null,null,null,null,"",0,0,0,0,0,""]
[null,null,null,null,null,null,null,null,null,null,null,null,"",0,0,0,0,0,""]
[null,null,null,null,null,null,null,null,null,null,null,null,"",0,0,0,0,0,""]
[null,null,null,null,null,null,null,null,null,null,null,null,"",0,0,0,0,0,""]
[null,null,null,null,null,null,null,null,null,null,null,null,"",0,0,0,0,0,""]
[null,null,null,null,null,null,null,null,null,null,null,null,"",0,0,0,0,0,""]
[null,null,null,null,null,null,null,null,null,null,null,null,"",0,0,0,0,0,""]
[null,null,null,null,null,null,null,null,null,null,null,null,"",0,0,0,0,0,""]
[null,null,null,null,null,null,null,null,null,null,null,null,"",0,0,0,0,0,""]
[null,null,null,null,null,null,null,null,null,null,null,null,"",0,0,0,0,0,""]
[null,null,null,null,null,null,null,null,null,null,null,null,"",0,0,0,0,0,""]
[null,null,null,null,null,null,null,null,null,null,null,null,"",0,0,0,0,0,""]
[null,null,null,null,null,null,null,null,null,null,null,null,"",0,0,0,0,0,""]
[null,null,null,null,null,null,null,null,null,null,null,null,"",0,0,0,0,0,""]
[null,null,null,null,null,null,null,null,null,null,null,null,"",0,0,0,0,0,""]
[null,null,null,null,null,null,null,null,null,null,null,null,"",0,0,0,0,0,""]
[null,null,null,null,null,null,null,null,null,null,null,null,"",0,0,0,0,0,""]
[null,null,null,null,null,null,null,null,null,null,null,null,"",0,0,0,0,0,""]
[null,null,null,null,null,null,null,null,null,null,null,null,"",0,0,0,0,0,""]
[null,null,null,null,null,null,null,null,null,null,null,null,"",0,0,0,0,0,""]
[null,null,null,null,null,null,null,null,null,null,null,null,"",0,0,0,0,0,""]
[null,null,null,null,null,null,null,null,null,null,null,null,"",0,0,0,0,0,""]
[null,null,null,null,null,null,null,null,null,null,null,null,"",0,0,0,0,0,""]
[null,null,null,null,null,null,null,null,null,null,null,null,"",0,0,0,0,0,""]
[null,null,null,null,null,null,null,null,null,null,null,null,"",0,0,0,0,0,""]
[null,null,null,null,null,null,null,null,null,null,null,null,"",0,0,0,0,0,""]
[null,null,null,null,null,null,null,null,null,null,null,null,"",0,0,0,0,0,""]
[null,null,null,null,null,null,null,null,null,null,null,null,"",0,0,0,0,0,""]
[null,null,null,null,null,null,null,null,null,null,null,null,"",0,0,0,0,0,""]
[null,null,null,null,null,null,null,null,null,null,null,null,"",0,0,0,0,0,""]
[null,null,null,null,null,null,null,null,null,null,null,null,"",0,0,0,0,0,""]
[null,null,null,null,null,null,null,null,null,null,null,null,"",0,0,0,0,0,""]
[null,null,null,null,null,null,null,null,null,null,null,null,"",0,0,0,0,0,""]
[null,null,null,null,null,null,null,null,null,null,null,null,"",0,0,0,0,0,""]
[null,null,null,null,null,null,null,null,null,null,null,null,"",0,0,0,0,0,""]
[null,null,null,null,null,null,null,null,null,null,null,null,"",0,0,0,0,0,""]
[null,null,null,null,null,null,null,null,null,null,null,null,"",0,0,0,0,0,""]
[null,null,null,null,null,null,null,null,null,null,null,null,"",0,0,0,0,0,""]
[null,null,null,null,null,null,null,null,null,null,null,null,"",0,0,0,0,0,""]
[null,null,null,null,null,null,null,null,null,null,null,null,"",0,0,0,0,0,""]
[null,null,null,null,null,null,null,null,null,null,null,null,"",0,0,0,0,0,""]
[null,null,null,null,null,null,null,null,null,null,null,null,"",0,0,0,0,0,""]
[null,null,null,null,null,null,null,null,null,null,null,null,"",0,0,0,0,0,""]
[null,null,null,null,null,null,null,null,null,null,null,null,"",0,0,0,0,0,""]
[null,null,null,null,null,null,null,null,null,null,null,null,"",0,0,0,0,0,""]
[null,null,null,null,null,null,null,null,null,null,null,null,"",0,0,0,0,0,""]
[null,null,null,null,null,null,null,null,null,null,null,null,"",0,0,0,0,0,""]
[null,null,null,null,null,null,null,null,null,null,null,null,"",0,0,0,0,0,""]
[null,null,null,null,null,null,null,null,null,null,null,null,"",0,0,0,0,0,""]
[null,null,null,null,null,null,null,null,null,null,null,null,"",0,0,0,0,0,""]
[null,null,null,null,null,null,null,null,null,null,null,null,"",0,0,0,0,0,""]
[null,null,null,null,null,null,null,null,null,null,null,null,"",0,0,0,0,0,""]
[null,null,null,null,null,null,null,null,null,null,null,null,"",0,0,0,0,0,""]
[null,null,null,null,null,null,null,null,null,null,null,null,"",0,0,0,0,0,""]
[null,null,null,null,null,null,null,null,null,null,null,null,"",0,0,0,0,0,""]
[null,null,null,null,null,null,null,null,null,null,null,null,{"$f":"IF(ISBLANK(H450),\"\",SUM(H450:L450))","v":""},{"$f":"IF(ISBLANK(H450),0,IF(H450=0,1,0))","v":0},{"$f":"IF(ISBLANK(I450),0,IF(I450=0,1,0))","v":0},{"$f":"IF(ISBLANK(J450),0,IF(J450=0,1,0))","v":0},{"$f":"IF(ISBLANK(K450),0,IF(K450=0,1,0))","v":0},{"$f":"IF(ISBLANK(L450),0,IF(L450=0,1,0))","v":0},{"$f":"IF(SUM(N450:R450)<>0,\"Zero!\",\"\")","v":""}]
[null,null,null,null,null,null,null,null,null,null,null,null,"",0,0,0,0,0,""]
[null,null,null,null,null,null,null,null,null,null,null,null,"",0,0,0,0,0,""]
[null,null,null,null,null,null,null,null,null,null,null,null,"",0,0,0,0,0,""]
[null,null,null,null,null,null,null,null,null,null,null,null,"",0,0,0,0,0,""]
[null,null,null,null,null,null,null,null,null,null,null,null,"",0,0,0,0,0,""]
[null,null,null,null,null,null,null,null,null,null,null,null,"",0,0,0,0,0,""]
[null,null,null,null,null,null,null,null,null,null,null,null,"",0,0,0,0,0,""]
[null,null,null,null,null,null,null,null,null,null,null,null,"",0,0,0,0,0,""]
[null,null,null,null,null,null,null,null,null,null,null,null,"",0,0,0,0,0,""]
[null,null,null,null,null,null,null,null,null,null,null,null,"",0,0,0,0,0,""]
[null,null,null,null,null,null,null,null,null,null,null,null,"",0,0,0,0,0,""]
[null,null,null,null,null,null,null,null,null,null,null,null,"",0,0,0,0,0,""]
[null,null,null,null,null,null,null,null,null,null,null,null,"",0,0,0,0,0,""]
[null,null,null,null,null,null,null,null,null,null,null,null,"",0,0,0,0,0,""]
[null,null,null,null,null,null,null,null,null,null,null,null,"",0,0,0,0,0,""]
[null,null,null,null,null,null,null,null,null,null,null,null,"",0,0,0,0,0,""]
[null,null,null,null,null,null,null,null,null,null,null,null,"",0,0,0,0,0,""]
[null,null,null,null,null,null,null,null,null,null,null,null,"",0,0,0,0,0,""]
[null,null,null,null,null,null,null,null,null,null,null,null,"",0,0,0,0,0,""]
[null,null,null,null,null,null,null,null,null,null,null,null,"",0,0,0,0,0,""]
[null,null,null,null,null,null,null,null,null,null,null,null,"",0,0,0,0,0,""]
[null,null,null,null,null,null,null,null,null,null,null,null,"",0,0,0,0,0,""]
[null,null,null,null,null,null,null,null,null,null,null,null,"",0,0,0,0,0,""]
[null,null,null,null,null,null,null,null,null,null,null,null,"",0,0,0,0,0,""]
[null,null,null,null,null,null,null,null,null,null,null,null,"",0,0,0,0,0,""]
[null,null,null,null,null,null,null,null,null,null,null,null,"",0,0,0,0,0,""]
[null,null,null,null,null,null,null,null,null,null,null,null,"",0,0,0,0,0,""]
[null,null,null,null,null,null,null,null,null,null,null,null,"",0,0,0,0,0,""]
[null,null,null,null,null,null,null,null,null,null,null,null,"",0,0,0,0,0,""]
[null,null,null,null,null,null,null,null,null,null,null,null,"",0,0,0,0,0,""]
[null,null,null,null,null,null,null,null,null,null,null,null,"",0,0,0,0,0,""]
[null,null,null,null,null,null,null,null,null,null,null,null,"",0,0,0,0,0,""]
[null,null,null,null,null,null,null,null,null,null,null,null,"",0,0,0,0,0,""]
[null,null,null,null,null,null,null,null,null,null,null,null,"",0,0,0,0,0,""]
[null,null,null,null,null,null,null,null,null,null,null,null,"",0,0,0,0,0,""]
[null,null,null,null,null,null,null,null,null,null,null,null,"",0,0,0,0,0,""]
[null,null,null,null,null,null,null,null,null,null,null,null,"",0,0,0,0,0,""]
[null,null,null,null,null,null,null,null,null,null,null,null,"",0,0,0,0,0,""]
[null,null,null,null,null,null,null,null,null,null,null,null,"",0,0,0,0,0,""]
[null,null,null,null,null,null,null,null,null,null,null,null,"",0,0,0,0,0,""]
[null,null,null,null,null,null,null,null,null,null,null,null,"",0,0,0,0,0,""]
[null,null,null,null,null,null,null,null,null,null,null,null,"",0,0,0,0,0,""]
[null,null,null,null,null,null,null,null,null,null,null,null,"",0,0,0,0,0,""]
[null,null,null,null,null,null,null,null,null,null,null,null,"",0,0,0,0,0,""]
[null,null,null,null,null,null,null,null,null,null,null,null,"",0,0,0,0,0,""]
[null,null,null,null,null,null,null,null,null,null,null,null,"",0,0,0,0,0,""]
[null,null,null,null,null,null,null,null,null,null,null,null,"",0,0,0,0,0,""]
[null,null,null,null,null,null,null,null,null,null,null,null,"",0,0,0,0,0,""]
[null,null,null,null,null,null,null,null,null,null,null,null,"",0,0,0,0,0,""]
[null,null,null,null,null,null,null,null,null,null,null,null,"",0,0,0,0,0,""]
[null,null,null,null,null,null,null,null,null,null,null,null,"",0,0,0,0,0,""]
[null,null,null,null,null,null,null,null,null,null,null,null,"",0,0,0,0,0,""]
[null,null,null,null,null,null,null,null,null,null,null,null,"",0,0,0,0,0,""]
[null,null,null,null,null,null,null,null,null,null,null,null,"",0,0,0,0,0,""]
[null,null,null,null,null,null,null,null,null,null,null,null,"",0,0,0,0,0,""]
[null,null,null,null,null,null,null,null,null,null,null,null,"",0,0,0,0,0,""]
[null,null,null,null,null,null,null,null,null,null,null,null,"",0,0,0,0,0,""]
[null,null,null,null,null,null,null,null,null,null,null,null,"",0,0,0,0,0,""]
[null,null,null,null,null,null,null,null,null,null,null,null,"",0,0,0,0,0,""]
[null,null,null,null,null,null,null,null,null,null,null,null,"",0,0,0,0,0,""]
[null,null,null,null,null,null,null,null,null,null,null,null,"",0,0,0,0,0,""]
[null,null,null,null,null,null,null,null,null,null,null,null,"",0,0,0,0,0,""]
[null,null,null,null,null,null,null,null,null,null,null,null,"",0,0,0,0,0,""]
[null,null,null,null,null,null,null,null,null,null,null,null,{"$f":"IF(ISBLANK(H514),\"\",SUM(H514:L514))","v":""},{"$f":"IF(ISBLANK(H514),0,IF(H514=0,1,0))","v":0},{"$f":"IF(ISBLANK(I514),0,IF(I514=0,1,0))","v":0},{"$f":"IF(ISBLANK(J514),0,IF(J514=0,1,0))","v":0},{"$f":"IF(ISBLANK(K514),0,IF(K514=0,1,0))","v":0},{"$f":"IF(ISBLANK(L514),0,IF(L514=0,1,0))","v":0},{"$f":"IF(SUM(N514:R514)<>0,\"Zero!\",\"\")","v":""}]
[null,null,null,null,null,null,null,null,null,null,null,null,"",0,0,0,0,0,""]
[null,null,null,null,null,null,null,null,null,null,null,null,"",0,0,0,0,0,""]
[null,null,null,null,null,null,null,null,null,null,null,null,"",0,0,0,0,0,""]
[null,null,null,null,null,null,null,null,null,null,null,null,"",0,0,0,0,0,""]
[null,null,null,null,null,null,null,null,null,null,null,null,"",0,0,0,0,0,""]
[null,null,null,null,null,null,null,null,null,null,null,null,"",0,0,0,0,0,""]
[null,null,null,null,null,null,null,null,null,null,null,null,"",0,0,0,0,0,""]
[null,null,null,null,null,null,null,null,null,null,null,null,"",0,0,0,0,0,""]
[null,null,null,null,null,null,null,null,null,null,null,null,"",0,0,0,0,0,""]
[null,null,null,null,null,null,null,null,null,null,null,null,"",0,0,0,0,0,""]
[null,null,null,null,null,null,null,null,null,null,null,null,"",0,0,0,0,0,""]
[null,null,null,null,null,null,null,null,null,null,null,null,"",0,0,0,0,0,""]
[null,null,null,null,null,null,null,null,null,null,null,null,"",0,0,0,0,0,""]
[null,null,null,null,null,null,null,null,null,null,null,null,"",0,0,0,0,0,""]
[null,null,null,null,null,null,null,null,null,null,null,null,"",0,0,0,0,0,""]
[null,null,null,null,null,null,null,null,null,null,null,null,"",0,0,0,0,0,""]
[null,null,null,null,null,null,null,null,null,null,null,null,"",0,0,0,0,0,""]
[null,null,null,null,null,null,null,null,null,null,null,null,"",0,0,0,0,0,""]
[null,null,null,null,null,null,null,null,null,null,null,null,"",0,0,0,0,0,""]
[null,null,null,null,null,null,null,null,null,null,null,null,"",0,0,0,0,0,""]
[null,null,null,null,null,null,null,null,null,null,null,null,"",0,0,0,0,0,""]
[null,null,null,null,null,null,null,null,null,null,null,null,"",0,0,0,0,0,""]
[null,null,null,null,null,null,null,null,null,null,null,null,"",0,0,0,0,0,""]
[null,null,null,null,null,null,null,null,null,null,null,null,"",0,0,0,0,0,""]
[null,null,null,null,null,null,null,null,null,null,null,null,"",0,0,0,0,0,""]
[null,null,null,null,null,null,null,null,null,null,null,null,"",0,0,0,0,0,""]
[null,null,null,null,null,null,null,null,null,null,null,null,"",0,0,0,0,0,""]
[null,null,null,null,null,null,null,null,null,null,null,null,"",0,0,0,0,0,""]
[null,null,null,null,null,null,null,null,null,null,null,null,"",0,0,0,0,0,""]
[null,null,null,null,null,null,null,null,null,null,null,null,"",0,0,0,0,0,""]
[null,null,null,null,null,null,null,null,null,null,null,null,"",0,0,0,0,0,""]
[null,null,null,null,null,null,null,null,null,null,null,null,"",0,0,0,0,0,""]
[null,null,null,null,null,null,null,null,null,null,null,null,"",0,0,0,0,0,""]
[null,null,null,null,null,null,null,null,null,null,null,null,"",0,0,0,0,0,""]
[null,null,null,null,null,null,null,null,null,null,null,null,"",0,0,0,0,0,""]
[null,null,null,null,null,null,null,null,null,null,null,null,"",0,0,0,0,0,""]
[null,null,null,null,null,null,null,null,null,null,null,null,"",0,0,0,0,0,""]
[null,null,null,null,null,null,null,null,null,null,null,null,"",0,0,0,0,0,""]
[null,null,null,null,null,null,null,null,null,null,null,null,"",0,0,0,0,0,""]
[null,null,null,null,null,null,null,null,null,null,null,null,"",0,0,0,0,0,""]
[null,null,null,null,null,null,null,null,null,null,null,null,"",0,0,0,0,0,""]
[null,null,null,null,null,null,null,null,null,null,null,null,"",0,0,0,0,0,""]
[null,null,null,null,null,null,null,null,null,null,null,null,"",0,0,0,0,0,""]
[null,null,null,null,null,null,null,null,null,null,null,null,"",0,0,0,0,0,""]
[null,null,null,null,null,null,null,null,null,null,null,null,"",0,0,0,0,0,""]
[null,null,null,null,null,null,null,null,null,null,null,null,"",0,0,0,0,0,""]
[null,null,null,null,null,null,null,null,null,null,null,null,"",0,0,0,0,0,""]
[null,null,null,null,null,null,null,null,null,null,null,null,"",0,0,0,0,0,""]
[null,null,null,null,null,null,null,null,null,null,null,null,"",0,0,0,0,0,""]
[null,null,null,null,null,null,null,null,null,null,null,null,"",0,0,0,0,0,""]
[null,null,null,null,null,null,null,null,null,null,null,null,"",0,0,0,0,0,""]
[null,null,null,null,null,null,null,null,null,null,null,null,"",0,0,0,0,0,""]
[null,null,null,null,null,null,null,null,null,null,null,null,"",0,0,0,0,0,""]
[null,null,null,null,null,null,null,null,null,null,null,null,"",0,0,0,0,0,""]
[null,null,null,null,null,null,null,null,null,null,null,null,"",0,0,0,0,0,""]
[null,null,null,null,null,null,null,null,null,null,null,null,"",0,0,0,0,0,""]
[null,null,null,null,null,null,null,null,null,null,null,null,"",0,0,0,0,0,""]
[null,null,null,null,null,null,null,null,null,null,null,null,"",0,0,0,0,0,""]
[null,null,null,null,null,null,null,null,null,null,null,null,"",0,0,0,0,0,""]
[null,null,null,null,null,null,null,null,null,null,null,null,"",0,0,0,0,0,""]
[null,null,null,null,null,null,null,null,null,null,null,null,"",0,0,0,0,0,""]
[null,null,null,null,null,null,null,null,null,null,null,null,"",0,0,0,0,0,""]
[null,null,null,null,null,null,null,null,null,null,null,null,"",0,0,0,0,0,""]
[null,null,null,null,null,null,null,null,null,null,null,null,{"$f":"IF(ISBLANK(H578),\"\",SUM(H578:L578))","v":""},{"$f":"IF(ISBLANK(H578),0,IF(H578=0,1,0))","v":0},{"$f":"IF(ISBLANK(I578),0,IF(I578=0,1,0))","v":0},{"$f":"IF(ISBLANK(J578),0,IF(J578=0,1,0))","v":0},{"$f":"IF(ISBLANK(K578),0,IF(K578=0,1,0))","v":0},{"$f":"IF(ISBLANK(L578),0,IF(L578=0,1,0))","v":0},{"$f":"IF(SUM(N578:R578)<>0,\"Zero!\",\"\")","v":""}]
[null,null,null,null,null,null,null,null,null,null,null,null,"",0,0,0,0,0,""]
[null,null,null,null,null,null,null,null,null,null,null,null,"",0,0,0,0,0,""]
[null,null,null,null,null,null,null,null,null,null,null,null,"",0,0,0,0,0,""]
[null,null,null,null,null,null,null,null,null,null,null,null,"",0,0,0,0,0,""]
[null,null,null,null,null,null,null,null,null,null,null,null,"",0,0,0,0,0,""]
[null,null,null,null,null,null,null,null,null,null,null,null,"",0,0,0,0,0,""]
[null,null,null,null,null,null,null,null,null,null,null,null,"",0,0,0,0,0,""]
[null,null,null,null,null,null,null,null,null,null,null,null,"",0,0,0,0,0,""]
[null,null,null,null,null,null,null,null,null,null,null,null,"",0,0,0,0,0,""]
[null,null,null,null,null,null,null,null,null,null,null,null,"",0,0,0,0,0,""]
[null,null,null,null,null,null,null,null,null,null,null,null,"",0,0,0,0,0,""]
[null,null,null,null,null,null,null,null,null,null,null,null,"",0,0,0,0,0,""]
[null,null,null,null,null,null,null,null,null,null,null,null,"",0,0,0,0,0,""]
[null,null,null,null,null,null,null,null,null,null,null,null,"",0,0,0,0,0,""]
[null,null,null,null,null,null,null,null,null,null,null,null,"",0,0,0,0,0,""]
[null,null,null,null,null,null,null,null,null,null,null,null,"",0,0,0,0,0,""]
[null,null,null,null,null,null,null,null,null,null,null,null,"",0,0,0,0,0,""]
[null,null,null,null,null,null,null,null,null,null,null,null,"",0,0,0,0,0,""]
[null,null,null,null,null,null,null,null,null,null,null,null,"",0,0,0,0,0,""]
[null,null,null,null,null,null,null,null,null,null,null,null,"",0,0,0,0,0,""]
[null,null,null,null,null,null,null,null,null,null,null,null,"",0,0,0,0,0,""]
[null,null,null,null,null,null,null,null,null,null,null,null,"",0,0,0,0,0,""]
[null,null,null,null,null,null,null,null,null,null,null,null,"",0,0,0,0,0,""]
[null,null,null,null,null,null,null,null,null,null,null,null,"",0,0,0,0,0,""]
[null,null,null,null,null,null,null,null,null,null,null,null,"",0,0,0,0,0,""]
[null,null,null,null,null,null,null,null,null,null,null,null,"",0,0,0,0,0,""]
[null,null,null,null,null,null,null,null,null,null,null,null,"",0,0,0,0,0,""]
[null,null,null,null,null,null,null,null,null,null,null,null,"",0,0,0,0,0,""]
[null,null,null,null,null,null,null,null,null,null,null,null,"",0,0,0,0,0,""]
[null,null,null,null,null,null,null,null,null,null,null,null,"",0,0,0,0,0,""]
[null,null,null,null,null,null,null,null,null,null,null,null,"",0,0,0,0,0,""]
[null,null,null,null,null,null,null,null,null,null,null,null,"",0,0,0,0,0,""]
[null,null,null,null,null,null,null,null,null,null,null,null,"",0,0,0,0,0,""]
[null,null,null,null,null,null,null,null,null,null,null,null,"",0,0,0,0,0,""]
[null,null,null,null,null,null,null,null,null,null,null,null,"",0,0,0,0,0,""]
[null,null,null,null,null,null,null,null,null,null,null,null,"",0,0,0,0,0,""]
[null,null,null,null,null,null,null,null,null,null,null,null,"",0,0,0,0,0,""]
[null,null,null,null,null,null,null,null,null,null,null,null,"",0,0,0,0,0,""]
[null,null,null,null,null,null,null,null,null,null,null,null,"",0,0,0,0,0,""]
[null,null,null,null,null,null,null,null,null,null,null,null,"",0,0,0,0,0,""]
[null,null,null,null,null,null,null,null,null,null,null,null,"",0,0,0,0,0,""]
[null,null,null,null,null,null,null,null,null,null,null,null,"",0,0,0,0,0,""]
[null,null,null,null,null,null,null,null,null,null,null,null,"",0,0,0,0,0,""]
[null,null,null,null,null,null,null,null,null,null,null,null,"",0,0,0,0,0,""]
[null,null,null,null,null,null,null,null,null,null,null,null,"",0,0,0,0,0,""]
[null,null,null,null,null,null,null,null,null,null,null,null,"",0,0,0,0,0,""]
[null,null,null,null,null,null,null,null,null,null,null,null,"",0,0,0,0,0,""]
[null,null,null,null,null,null,null,null,null,null,null,null,"",0,0,0,0,0,""]
[null,null,null,null,null,null,null,null,null,null,null,null,"",0,0,0,0,0,""]
[null,null,null,null,null,null,null,null,null,null,null,null,"",0,0,0,0,0,""]
[null,null,null,null,null,null,null,null,null,null,null,null,"",0,0,0,0,0,""]
[null,null,null,null,null,null,null,null,null,null,null,null,"",0,0,0,0,0,""]
[null,null,null,null,null,null,null,null,null,null,null,null,"",0,0,0,0,0,""]
[null,null,null,null,null,null,null,null,null,null,null,null,"",0,0,0,0,0,""]
[null,null,null,null,null,null,null,null,null,null,null,null,"",0,0,0,0,0,""]
[null,null,null,null,null,null,null,null,null,null,null,null,"",0,0,0,0,0,""]
[null,null,null,null,null,null,null,null,null,null,null,null,"",0,0,0,0,0,""]
[null,null,null,null,null,null,null,null,null,null,null,null,"",0,0,0,0,0,""]
[null,null,null,null,null,null,null,null,null,null,null,null,"",0,0,0,0,0,""]
[null,null,null,null,null,null,null,null,null,null,null,null,"",0,0,0,0,0,""]
[null,null,null,null,null,null,null,null,null,null,null,null,"",0,0,0,0,0,""]
[null,null,null,null,null,null,null,null,null,null,null,null,"",0,0,0,0,0,""]
[null,null,null,null,null,null,null,null,null,null,null,null,"",0,0,0,0,0,""]
[null,null,null,null,null,null,null,null,null,null,null,null,{"$f":"IF(ISBLANK(H642),\"\",SUM(H642:L642))","v":""},{"$f":"IF(ISBLANK(H642),0,IF(H642=0,1,0))","v":0},{"$f":"IF(ISBLANK(I642),0,IF(I642=0,1,0))","v":0},{"$f":"IF(ISBLANK(J642),0,IF(J642=0,1,0))","v":0},{"$f":"IF(ISBLANK(K642),0,IF(K642=0,1,0))","v":0},{"$f":"IF(ISBLANK(L642),0,IF(L642=0,1,0))","v":0},{"$f":"IF(SUM(N642:R642)<>0,\"Zero!\",\"\")","v":""}]
[null,null,null,null,null,null,null,null,null,null,null,null,"",0,0,0,0,0,""]
[null,null,null,null,null,null,null,null,null,null,null,null,"",0,0,0,0,0,""]
[null,null,null,null,null,null,null,null,null,null,null,null,"",0,0,0,0,0,""]
[null,null,null,null,null,null,null,null,null,null,null,null,"",0,0,0,0,0,""]
[null,null,null,null,null,null,null,null,null,null,null,null,"",0,0,0,0,0,""]
[null,null,null,null,null,null,null,null,null,null,null,null,"",0,0,0,0,0,""]
[null,null,null,null,null,null,null,null,null,null,null,null,"",0,0,0,0,0,""]
[null,null,null,null,null,null,null,null,null,null,null,null,"",0,0,0,0,0,""]
[null,null,null,null,null,null,null,null,null,null,null,null,"",0,0,0,0,0,""]
[null,null,null,null,null,null,null,null,null,null,null,null,"",0,0,0,0,0,""]
[null,null,null,null,null,null,null,null,null,null,null,null,"",0,0,0,0,0,""]
[null,null,null,null,null,null,null,null,null,null,null,null,"",0,0,0,0,0,""]
[null,null,null,null,null,null,null,null,null,null,null,null,"",0,0,0,0,0,""]
[null,null,null,null,null,null,null,null,null,null,null,null,"",0,0,0,0,0,""]
[null,null,null,null,null,null,null,null,null,null,null,null,"",0,0,0,0,0,""]
[null,null,null,null,null,null,null,null,null,null,null,null,"",0,0,0,0,0,""]
[null,null,null,null,null,null,null,null,null,null,null,null,"",0,0,0,0,0,""]
[null,null,null,null,null,null,null,null,null,null,null,null,"",0,0,0,0,0,""]
[null,null,null,null,null,null,null,null,null,null,null,null,"",0,0,0,0,0,""]
[null,null,null,null,null,null,null,null,null,null,null,null,"",0,0,0,0,0,""]
[null,null,null,null,null,null,null,null,null,null,null,null,"",0,0,0,0,0,""]
[null,null,null,null,null,null,null,null,null,null,null,null,"",0,0,0,0,0,""]
[null,null,null,null,null,null,null,null,null,null,null,null,"",0,0,0,0,0,""]
[null,null,null,null,null,null,null,null,null,null,null,null,"",0,0,0,0,0,""]
[null,null,null,null,null,null,null,null,null,null,null,null,"",0,0,0,0,0,""]
[null,null,null,null,null,null,null,null,null,null,null,null,"",0,0,0,0,0,""]
[null,null,null,null,null,null,null,null,null,null,null,null,"",0,0,0,0,0,""]
[null,null,null,null,null,null,null,null,null,null,null,null,"",0,0,0,0,0,""]
[null,null,null,null,null,null,null,null,null,null,null,null,"",0,0,0,0,0,""]
[null,null,null,null,null,null,null,null,null,null,null,null,"",0,0,0,0,0,""]
[null,null,null,null,null,null,null,null,null,null,null,null,"",0,0,0,0,0,""]
[null,null,null,null,null,null,null,null,null,null,null,null,"",0,0,0,0,0,""]
[null,null,null,null,null,null,null,null,null,null,null,null,"",0,0,0,0,0,""]
[null,null,null,null,null,null,null,null,null,null,null,null,"",0,0,0,0,0,""]
[null,null,null,null,null,null,null,null,null,null,null,null,"",0,0,0,0,0,""]
[null,null,null,null,null,null,null,null,null,null,null,null,"",0,0,0,0,0,""]
[null,null,null,null,null,null,null,null,null,null,null,null,"",0,0,0,0,0,""]
[null,null,null,null,null,null,null,null,null,null,null,null,"",0,0,0,0,0,""]
[null,null,null,null,null,null,null,null,null,null,null,null,"",0,0,0,0,0,""]
[null,null,null,null,null,null,null,null,null,null,null,null,"",0,0,0,0,0,""]
[null,null,null,null,null,null,null,null,null,null,null,null,"",0,0,0,0,0,""]
[null,null,null,null,null,null,null,null,null,null,null,null,"",0,0,0,0,0,""]
[null,null,null,null,null,null,null,null,null,null,null,null,"",0,0,0,0,0,""]
[null,null,null,null,null,null,null,null,null,null,null,null,"",0,0,0,0,0,""]
[null,null,null,null,null,null,null,null,null,null,null,null,"",0,0,0,0,0,""]
[null,null,null,null,null,null,null,null,null,null,null,null,"",0,0,0,0,0,""]
[null,null,null,null,null,null,null,null,null,null,null,null,"",0,0,0,0,0,""]
[null,null,null,null,null,null,null,null,null,null,null,null,"",0,0,0,0,0,""]
[null,null,null,null,null,null,null,null,null,null,null,null,"",0,0,0,0,0,""]
[null,null,null,null,null,null,null,null,null,null,null,null,"",0,0,0,0,0,""]
[null,null,null,null,null,null,null,null,null,null,null,null,"",0,0,0,0,0,""]
[null,null,null,null,null,null,null,null,null,null,null,null,"",0,0,0,0,0,""]
[null,null,null,null,null,null,null,null,null,null,null,null,"",0,0,0,0,0,""]
[null,null,null,null,null,null,null,null,null,null,null,null,"",0,0,0,0,0,""]
[null,null,null,null,null,null,null,null,null,null,null,null,"",0,0,0,0,0,""]
[null,null,null,null,null,null,null,null,null,null,null,null,"",0,0,0,0,0,""]
[null,null,null,null,null,null,null,null,null,null,null,null,"",0,0,0,0,0,""]
[null,null,null,null,null,null,null,null,null,null,null,null,"",0,0,0,0,0,""]
[null,null,null,null,null,null,null,null,null,null,null,null,"",0,0,0,0,0,""]
[null,null,null,null,null,null,null,null,null,null,null,null,"",0,0,0,0,0,""]
[null,null,null,null,null,null,null,null,null,null,null,null,"",0,0,0,0,0,""]
[null,null,null,null,null,null,null,null,null,null,null,null,"",0,0,0,0,0,""]
[null,null,null,null,null,null,null,null,null,null,null,null,"",0,0,0,0,0,""]
[null,null,null,null,null,null,null,null,null,null,null,null,{"$f":"IF(ISBLANK(H706),\"\",SUM(H706:L706))","v":""},{"$f":"IF(ISBLANK(H706),0,IF(H706=0,1,0))","v":0},{"$f":"IF(ISBLANK(I706),0,IF(I706=0,1,0))","v":0},{"$f":"IF(ISBLANK(J706),0,IF(J706=0,1,0))","v":0},{"$f":"IF(ISBLANK(K706),0,IF(K706=0,1,0))","v":0},{"$f":"IF(ISBLANK(L706),0,IF(L706=0,1,0))","v":0},{"$f":"IF(SUM(N706:R706)<>0,\"Zero!\",\"\")","v":""}]
[null,null,null,null,null,null,null,null,null,null,null,null,"",0,0,0,0,0,""]
[null,null,null,null,null,null,null,null,null,null,null,null,"",0,0,0,0,0,""]
[null,null,null,null,null,null,null,null,null,null,null,null,"",0,0,0,0,0,""]
[null,null,null,null,null,null,null,null,null,null,null,null,"",0,0,0,0,0,""]
[null,null,null,null,null,null,null,null,null,null,null,null,"",0,0,0,0,0,""]
[null,null,null,null,null,null,null,null,null,null,null,null,"",0,0,0,0,0,""]
[null,null,null,null,null,null,null,null,null,null,null,null,"",0,0,0,0,0,""]
[null,null,null,null,null,null,null,null,null,null,null,null,"",0,0,0,0,0,""]
[null,null,null,null,null,null,null,null,null,null,null,null,"",0,0,0,0,0,""]
[null,null,null,null,null,null,null,null,null,null,null,null,"",0,0,0,0,0,""]
[null,null,null,null,null,null,null,null,null,null,null,null,"",0,0,0,0,0,""]
[null,null,null,null,null,null,null,null,null,null,null,null,"",0,0,0,0,0,""]
[null,null,null,null,null,null,null,null,null,null,null,null,"",0,0,0,0,0,""]
[null,null,null,null,null,null,null,null,null,null,null,null,"",0,0,0,0,0,""]
[null,null,null,null,null,null,null,null,null,null,null,null,"",0,0,0,0,0,""]
[null,null,null,null,null,null,null,null,null,null,null,null,"",0,0,0,0,0,""]
[null,null,null,null,null,null,null,null,null,null,null,null,"",0,0,0,0,0,""]
[null,null,null,null,null,null,null,null,null,null,null,null,"",0,0,0,0,0,""]
[null,null,null,null,null,null,null,null,null,null,null,null,"",0,0,0,0,0,""]
[null,null,null,null,null,null,null,null,null,null,null,null,"",0,0,0,0,0,""]
[null,null,null,null,null,null,null,null,null,null,null,null,"",0,0,0,0,0,""]
[null,null,null,null,null,null,null,null,null,null,null,null,"",0,0,0,0,0,""]
[null,null,null,null,null,null,null,null,null,null,null,null,"",0,0,0,0,0,""]
[null,null,null,null,null,null,null,null,null,null,null,null,"",0,0,0,0,0,""]
[null,null,null,null,null,null,null,null,null,null,null,null,"",0,0,0,0,0,""]
[null,null,null,null,null,null,null,null,null,null,null,null,"",0,0,0,0,0,""]
[null,null,null,null,null,null,null,null,null,null,null,null,"",0,0,0,0,0,""]
[null,null,null,null,null,null,null,null,null,null,null,null,"",0,0,0,0,0,""]
[null,null,null,null,null,null,null,null,null,null,null,null,"",0,0,0,0,0,""]
[null,null,null,null,null,null,null,null,null,null,null,null,"",0,0,0,0,0,""]
[null,null,null,null,null,null,null,null,null,null,null,null,"",0,0,0,0,0,""]
[null,null,null,null,null,null,null,null,null,null,null,null,"",0,0,0,0,0,""]
[null,null,null,null,null,null,null,null,null,null,null,null,"",0,0,0,0,0,""]
[null,null,null,null,null,null,null,null,null,null,null,null,"",0,0,0,0,0,""]
[null,null,null,null,null,null,null,null,null,null,null,null,"",0,0,0,0,0,""]
[null,null,null,null,null,null,null,null,null,null,null,null,"",0,0,0,0,0,""]
[null,null,null,null,null,null,null,null,null,null,null,null,"",0,0,0,0,0,""]
[null,null,null,null,null,null,null,null,null,null,null,null,"",0,0,0,0,0,""]
[null,null,null,null,null,null,null,null,null,null,null,null,"",0,0,0,0,0,""]
[null,null,null,null,null,null,null,null,null,null,null,null,"",0,0,0,0,0,""]
[null,null,null,null,null,null,null,null,null,null,null,null,"",0,0,0,0,0,""]
[null,null,null,null,null,null,null,null,null,null,null,null,"",0,0,0,0,0,""]
[null,null,null,null,null,null,null,null,null,null,null,null,"",0,0,0,0,0,""]
[null,null,null,null,null,null,null,null,null,null,null,null,"",0,0,0,0,0,""]
[null,null,null,null,null,null,null,null,null,null,null,null,"",0,0,0,0,0,""]
[null,null,null,null,null,null,null,null,null,null,null,null,"",0,0,0,0,0,""]
[null,null,null,null,null,null,null,null,null,null,null,null,"",0,0,0,0,0,""]
[null,null,null,null,null,null,null,null,null,null,null,null,"",0,0,0,0,0,""]
[null,null,null,null,null,null,null,null,null,null,null,null,"",0,0,0,0,0,""]
[null,null,null,null,null,null,null,null,null,null,null,null,"",0,0,0,0,0,""]
[null,null,null,null,null,null,null,null,null,null,null,null,"",0,0,0,0,0,""]
[null,null,null,null,null,null,null,null,null,null,null,null,"",0,0,0,0,0,""]
[null,null,null,null,null,null,null,null,null,null,null,null,"",0,0,0,0,0,""]
[null,null,null,null,null,null,null,null,null,null,null,null,"",0,0,0,0,0,""]
[null,null,null,null,null,null,null,null,null,null,null,null,"",0,0,0,0,0,""]
[null,null,null,null,null,null,null,null,null,null,null,null,"",0,0,0,0,0,""]
[null,null,null,null,null,null,null,null,null,null,null,null,"",0,0,0,0,0,""]
[null,null,null,null,null,null,null,null,null,null,null,null,"",0,0,0,0,0,""]
[null,null,null,null,null,null,null,null,null,null,null,null,"",0,0,0,0,0,""]
[null,null,null,null,null,null,null,null,null,null,null,null,"",0,0,0,0,0,""]
[null,null,null,null,null,null,null,null,null,null,null,null,"",0,0,0,0,0,""]
[null,null,null,null,null,null,null,null,null,null,null,null,"",0,0,0,0,0,""]
[null,null,null,null,null,null,null,null,null,null,null,null,"",0,0,0,0,0,""]
[null,null,null,null,null,null,null,null,null,null,null,null,{"$f":"IF(ISBLANK(H770),\"\",SUM(H770:L770))","v":""},{"$f":"IF(ISBLANK(H770),0,IF(H770=0,1,0))","v":0},{"$f":"IF(ISBLANK(I770),0,IF(I770=0,1,0))","v":0},{"$f":"IF(ISBLANK(J770),0,IF(J770=0,1,0))","v":0},{"$f":"IF(ISBLANK(K770),0,IF(K770=0,1,0))","v":0},{"$f":"IF(ISBLANK(L770),0,IF(L770=0,1,0))","v":0},{"$f":"IF(SUM(N770:R770)<>0,\"Zero!\",\"\")","v":""}]
[null,null,null,null,null,null,null,null,null,null,null,null,"",0,0,0,0,0,""]
[null,null,null,null,null,null,null,null,null,null,null,null,"",0,0,0,0,0,""]
[null,null,null,null,null,null,null,null,null,null,null,null,"",0,0,0,0,0,""]
[null,null,null,null,null,null,null,null,null,null,null,null,"",0,0,0,0,0,""]
[null,null,null,null,null,null,null,null,null,null,null,null,"",0,0,0,0,0,""]
[null,null,null,null,null,null,null,null,null,null,null,null,"",0,0,0,0,0,""]
[null,null,null,null,null,null,null,null,null,null,null,null,"",0,0,0,0,0,""]
[null,null,null,null,null,null,null,null,null,null,null,null,"",0,0,0,0,0,""]
[null,null,null,null,null,null,null,null,null,null,null,null,"",0,0,0,0,0,""]
[null,null,null,null,null,null,null,null,null,null,null,null,"",0,0,0,0,0,""]
[null,null,null,null,null,null,null,null,null,null,null,null,"",0,0,0,0,0,""]
[null,null,null,null,null,null,null,null,null,null,null,null,"",0,0,0,0,0,""]
[null,null,null,null,null,null,null,null,null,null,null,null,"",0,0,0,0,0,""]
[null,null,null,null,null,null,null,null,null,null,null,null,"",0,0,0,0,0,""]
[null,null,null,null,null,null,null,null,null,null,null,null,"",0,0,0,0,0,""]
[null,null,null,null,null,null,null,null,null,null,null,null,"",0,0,0,0,0,""]
[null,null,null,null,null,null,null,null,null,null,null,null,"",0,0,0,0,0,""]
[null,null,null,null,null,null,null,null,null,null,null,null,"",0,0,0,0,0,""]
[null,null,null,null,null,null,null,null,null,null,null,null,"",0,0,0,0,0,""]
[null,null,null,null,null,null,null,null,null,null,null,null,"",0,0,0,0,0,""]
[null,null,null,null,null,null,null,null,null,null,null,null,"",0,0,0,0,0,""]
[null,null,null,null,null,null,null,null,null,null,null,null,"",0,0,0,0,0,""]
[null,null,null,null,null,null,null,null,null,null,null,null,"",0,0,0,0,0,""]
[null,null,null,null,null,null,null,null,null,null,null,null,"",0,0,0,0,0,""]
[null,null,null,null,null,null,null,null,null,null,null,null,"",0,0,0,0,0,""]
[null,null,null,null,null,null,null,null,null,null,null,null,"",0,0,0,0,0,""]
[null,null,null,null,null,null,null,null,null,null,null,null,"",0,0,0,0,0,""]
[null,null,null,null,null,null,null,null,null,null,null,null,"",0,0,0,0,0,""]
[null,null,null,null,null,null,null,null,null,null,null,null,"",0,0,0,0,0,""]
[null,null,null,null,null,null,null,null,null,null,null,null,"",0,0,0,0,0,""]
[null,null,null,null,null,null,null,null,null,null,null,null,"",0,0,0,0,0,""]
[null,null,null,null,null,null,null,null,null,null,null,null,"",0,0,0,0,0,""]
[null,null,null,null,null,null,null,null,null,null,null,null,"",0,0,0,0,0,""]
[null,null,null,null,null,null,null,null,null,null,null,null,"",0,0,0,0,0,""]
[null,null,null,null,null,null,null,null,null,null,null,null,"",0,0,0,0,0,""]
[null,null,null,null,null,null,null,null,null,null,null,null,"",0,0,0,0,0,""]
[null,null,null,null,null,null,null,null,null,null,null,null,"",0,0,0,0,0,""]
[null,null,null,null,null,null,null,null,null,null,null,null,"",0,0,0,0,0,""]
[null,null,null,null,null,null,null,null,null,null,null,null,"",0,0,0,0,0,""]
[null,null,null,null,null,null,null,null,null,null,null,null,"",0,0,0,0,0,""]
[null,null,null,null,null,null,null,null,null,null,null,null,"",0,0,0,0,0,""]
[null,null,null,null,null,null,null,null,null,null,null,null,"",0,0,0,0,0,""]
[null,null,null,null,null,null,null,null,null,null,null,null,"",0,0,0,0,0,""]
[null,null,null,null,null,null,null,null,null,null,null,null,"",0,0,0,0,0,""]
[null,null,null,null,null,null,null,null,null,null,null,null,"",0,0,0,0,0,""]
[null,null,null,null,null,null,null,null,null,null,null,null,"",0,0,0,0,0,""]
[null,null,null,null,null,null,null,null,null,null,null,null,"",0,0,0,0,0,""]
[null,null,null,null,null,null,null,null,null,null,null,null,"",0,0,0,0,0,""]
[null,null,null,null,null,null,null,null,null,null,null,null,"",0,0,0,0,0,""]
[null,null,null,null,null,null,null,null,null,null,null,null,"",0,0,0,0,0,""]
[null,null,null,null,null,null,null,null,null,null,null,null,"",0,0,0,0,0,""]
[null,null,null,null,null,null,null,null,null,null,null,null,"",0,0,0,0,0,""]
[null,null,null,null,null,null,null,null,null,null,null,null,"",0,0,0,0,0,""]
[null,null,null,null,null,null,null,null,null,null,null,null,"",0,0,0,0,0,""]
[null,null,null,null,null,null,null,null,null,null,null,null,"",0,0,0,0,0,""]
[null,null,null,null,null,null,null,null,null,null,null,null,"",0,0,0,0,0,""]
[null,null,null,null,null,null,null,null,null,null,null,null,"",0,0,0,0,0,""]
[null,null,null,null,null,null,null,null,null,null,null,null,"",0,0,0,0,0,""]
[null,null,null,null,null,null,null,null,null,null,null,null,"",0,0,0,0,0,""]
[null,null,null,null,null,null,null,null,null,null,null,null,"",0,0,0,0,0,""]
[null,null,null,null,null,null,null,null,null,null,null,null,"",0,0,0,0,0,""]
[null,null,null,null,null,null,null,null,null,null,null,null,"",0,0,0,0,0,""]
[null,null,null,null,null,null,null,null,null,null,null,null,"",0,0,0,0,0,""]
[null,null,null,null,null,null,null,null,null,null,null,null,{"$f":"IF(ISBLANK(H834),\"\",SUM(H834:L834))","v":""},{"$f":"IF(ISBLANK(H834),0,IF(H834=0,1,0))","v":0},{"$f":"IF(ISBLANK(I834),0,IF(I834=0,1,0))","v":0},{"$f":"IF(ISBLANK(J834),0,IF(J834=0,1,0))","v":0},{"$f":"IF(ISBLANK(K834),0,IF(K834=0,1,0))","v":0},{"$f":"IF(ISBLANK(L834),0,IF(L834=0,1,0))","v":0},{"$f":"IF(SUM(N834:R834)<>0,\"Zero!\",\"\")","v":""}]
[null,null,null,null,null,null,null,null,null,null,null,null,"",0,0,0,0,0,""]
[null,null,null,null,null,null,null,null,null,null,null,null,"",0,0,0,0,0,""]
[null,null,null,null,null,null,null,null,null,null,null,null,"",0,0,0,0,0,""]
[null,null,null,null,null,null,null,null,null,null,null,null,"",0,0,0,0,0,""]
[null,null,null,null,null,null,null,null,null,null,null,null,"",0,0,0,0,0,""]
[null,null,null,null,null,null,null,null,null,null,null,null,"",0,0,0,0,0,""]
[null,null,null,null,null,null,null,null,null,null,null,null,"",0,0,0,0,0,""]
[null,null,null,null,null,null,null,null,null,null,null,null,"",0,0,0,0,0,""]
[null,null,null,null,null,null,null,null,null,null,null,null,"",0,0,0,0,0,""]
[null,null,null,null,null,null,null,null,null,null,null,null,"",0,0,0,0,0,""]
[null,null,null,null,null,null,null,null,null,null,null,null,"",0,0,0,0,0,""]
[null,null,null,null,null,null,null,null,null,null,null,null,"",0,0,0,0,0,""]
[null,null,null,null,null,null,null,null,null,null,null,null,"",0,0,0,0,0,""]
[null,null,null,null,null,null,null,null,null,null,null,null,"",0,0,0,0,0,""]
[null,null,null,null,null,null,null,null,null,null,null,null,"",0,0,0,0,0,""]
[null,null,null,null,null,null,null,null,null,null,null,null,"",0,0,0,0,0,""]
[null,null,null,null,null,null,null,null,null,null,null,null,"",0,0,0,0,0,""]
[null,null,null,null,null,null,null,null,null,null,null,null,"",0,0,0,0,0,""]
[null,null,null,null,null,null,null,null,null,null,null,null,"",0,0,0,0,0,""]
[null,null,null,null,null,null,null,null,null,null,null,null,"",0,0,0,0,0,""]
[null,null,null,null,null,null,null,null,null,null,null,null,"",0,0,0,0,0,""]
[null,null,null,null,null,null,null,null,null,null,null,null,"",0,0,0,0,0,""]
[null,null,null,null,null,null,null,null,null,null,null,null,"",0,0,0,0,0,""]
[null,null,null,null,null,null,null,null,null,null,null,null,"",0,0,0,0,0,""]
[null,null,null,null,null,null,null,null,null,null,null,null,"",0,0,0,0,0,""]
[null,null,null,null,null,null,null,null,null,null,null,null,"",0,0,0,0,0,""]
[null,null,null,null,null,null,null,null,null,null,null,null,"",0,0,0,0,0,""]
[null,null,null,null,null,null,null,null,null,null,null,null,"",0,0,0,0,0,""]
[null,null,null,null,null,null,null,null,null,null,null,null,"",0,0,0,0,0,""]
[null,null,null,null,null,null,null,null,null,null,null,null,"",0,0,0,0,0,""]
[null,null,null,null,null,null,null,null,null,null,null,null,"",0,0,0,0,0,""]
[null,null,null,null,null,null,null,null,null,null,null,null,"",0,0,0,0,0,""]
[null,null,null,null,null,null,null,null,null,null,null,null,"",0,0,0,0,0,""]
[null,null,null,null,null,null,null,null,null,null,null,null,"",0,0,0,0,0,""]
[null,null,null,null,null,null,null,null,null,null,null,null,"",0,0,0,0,0,""]
[null,null,null,null,null,null,null,null,null,null,null,null,"",0,0,0,0,0,""]
[null,null,null,null,null,null,null,null,null,null,null,null,"",0,0,0,0,0,""]
[null,null,null,null,null,null,null,null,null,null,null,null,"",0,0,0,0,0,""]
[null,null,null,null,null,null,null,null,null,null,null,null,"",0,0,0,0,0,""]
[null,null,null,null,null,null,null,null,null,null,null,null,"",0,0,0,0,0,""]
[null,null,null,null,null,null,null,null,null,null,null,null,"",0,0,0,0,0,""]
[null,null,null,null,null,null,null,null,null,null,null,null,"",0,0,0,0,0,""]
[null,null,null,null,null,null,null,null,null,null,null,null,"",0,0,0,0,0,""]
[null,null,null,null,null,null,null,null,null,null,null,null,"",0,0,0,0,0,""]
[null,null,null,null,null,null,null,null,null,null,null,null,"",0,0,0,0,0,""]
[null,null,null,null,null,null,null,null,null,null,null,null,"",0,0,0,0,0,""]
[null,null,null,null,null,null,null,null,null,null,null,null,"",0,0,0,0,0,""]
[null,null,null,null,null,null,null,null,null,null,null,null,"",0,0,0,0,0,""]
[null,null,null,null,null,null,null,null,null,null,null,null,"",0,0,0,0,0,""]
[null,null,null,null,null,null,null,null,null,null,null,null,"",0,0,0,0,0,""]
[null,null,null,null,null,null,null,null,null,null,null,null,"",0,0,0,0,0,""]
[null,null,null,null,null,null,null,null,null,null,null,null,"",0,0,0,0,0,""]
[null,null,null,null,null,null,null,null,null,null,null,null,"",0,0,0,0,0,""]
[null,null,null,null,null,null,null,null,null,null,null,null,"",0,0,0,0,0,""]
[null,null,null,null,null,null,null,null,null,null,null,null,"",0,0,0,0,0,""]
[null,null,null,null,null,null,null,null,null,null,null,null,"",0,0,0,0,0,""]
[null,null,null,null,null,null,null,null,null,null,null,null,"",0,0,0,0,0,""]
[null,null,null,null,null,null,null,null,null,null,null,null,"",0,0,0,0,0,""]
[null,null,null,null,null,null,null,null,null,null,null,null,"",0,0,0,0,0,""]
[null,null,null,null,null,null,null,null,null,null,null,null,"",0,0,0,0,0,""]
[null,null,null,null,null,null,null,null,null,null,null,null,"",0,0,0,0,0,""]
[null,null,null,null,null,null,null,null,null,null,null,null,"",0,0,0,0,0,""]
[null,null,null,null,null,null,null,null,null,null,null,null,"",0,0,0,0,0,""]
[null,null,null,null,null,null,null,null,null,null,null,null,{"$f":"IF(ISBLANK(H898),\"\",SUM(H898:L898))","v":""},{"$f":"IF(ISBLANK(H898),0,IF(H898=0,1,0))","v":0},{"$f":"IF(ISBLANK(I898),0,IF(I898=0,1,0))","v":0},{"$f":"IF(ISBLANK(J898),0,IF(J898=0,1,0))","v":0},{"$f":"IF(ISBLANK(K898),0,IF(K898=0,1,0))","v":0},{"$f":"IF(ISBLANK(L898),0,IF(L898=0,1,0))","v":0},{"$f":"IF(SUM(N898:R898)<>0,\"Zero!\",\"\")","v":""}]
[null,null,null,null,null,null,null,null,null,null,null,null,"",0,0,0,0,0,""]
[null,null,null,null,null,null,null,null,null,null,null,null,"",0,0,0,0,0,""]
[null,null,null,null,null,null,null,null,null,null,null,null,"",0,0,0,0,0,""]
[null,null,null,null,null,null,null,null,null,null,null,null,"",0,0,0,0,0,""]
[null,null,null,null,null,null,null,null,null,null,null,null,"",0,0,0,0,0,""]
[null,null,null,null,null,null,null,null,null,null,null,null,"",0,0,0,0,0,""]
[null,null,null,null,null,null,null,null,null,null,null,null,"",0,0,0,0,0,""]
[null,null,null,null,null,null,null,null,null,null,null,null,"",0,0,0,0,0,""]
[null,null,null,null,null,null,null,null,null,null,null,null,"",0,0,0,0,0,""]
[null,null,null,null,null,null,null,null,null,null,null,null,"",0,0,0,0,0,""]
[null,null,null,null,null,null,null,null,null,null,null,null,"",0,0,0,0,0,""]
[null,null,null,null,null,null,null,null,null,null,null,null,"",0,0,0,0,0,""]
[null,null,null,null,null,null,null,null,null,null,null,null,"",0,0,0,0,0,""]
[null,null,null,null,null,null,null,null,null,null,null,null,"",0,0,0,0,0,""]
[null,null,null,null,null,null,null,null,null,null,null,null,"",0,0,0,0,0,""]
[null,null,null,null,null,null,null,null,null,null,null,null,"",0,0,0,0,0,""]
[null,null,null,null,null,null,null,null,null,null,null,null,"",0,0,0,0,0,""]
[null,null,null,null,null,null,null,null,null,null,null,null,"",0,0,0,0,0,""]
[null,null,null,null,null,null,null,null,null,null,null,null,"",0,0,0,0,0,""]
[null,null,null,null,null,null,null,null,null,null,null,null,"",0,0,0,0,0,""]
[null,null,null,null,null,null,null,null,null,null,null,null,"",0,0,0,0,0,""]
[null,null,null,null,null,null,null,null,null,null,null,null,"",0,0,0,0,0,""]
[null,null,null,null,null,null,null,null,null,null,null,null,"",0,0,0,0,0,""]
[null,null,null,null,null,null,null,null,null,null,null,null,"",0,0,0,0,0,""]
[null,null,null,null,null,null,null,null,null,null,null,null,"",0,0,0,0,0,""]
[null,null,null,null,null,null,null,null,null,null,null,null,"",0,0,0,0,0,""]
[null,null,null,null,null,null,null,null,null,null,null,null,"",0,0,0,0,0,""]
[null,null,null,null,null,null,null,null,null,null,null,null,"",0,0,0,0,0,""]
[null,null,null,null,null,null,null,null,null,null,null,null,"",0,0,0,0,0,""]
[null,null,null,null,null,null,null,null,null,null,null,null,"",0,0,0,0,0,""]
[null,null,null,null,null,null,null,null,null,null,null,null,"",0,0,0,0,0,""]
[null,null,null,null,null,null,null,null,null,null,null,null,"",0,0,0,0,0,""]
[null,null,null,null,null,null,null,null,null,null,null,null,"",0,0,0,0,0,""]
[null,null,null,null,null,null,null,null,null,null,null,null,"",0,0,0,0,0,""]
[null,null,null,null,null,null,null,null,null,null,null,null,"",0,0,0,0,0,""]
[null,null,null,null,null,null,null,null,null,null,null,null,"",0,0,0,0,0,""]
[null,null,null,null,null,null,null,null,null,null,null,null,"",0,0,0,0,0,""]
[null,null,null,null,null,null,null,null,null,null,null,null,"",0,0,0,0,0,""]
[null,null,null,null,null,null,null,null,null,null,null,null,"",0,0,0,0,0,""]
[null,null,null,null,null,null,null,null,null,null,null,null,"",0,0,0,0,0,""]
[null,null,null,null,null,null,null,null,null,null,null,null,"",0,0,0,0,0,""]
[null,null,null,null,null,null,null,null,null,null,null,null,"",0,0,0,0,0,""]
[null,null,null,null,null,null,null,null,null,null,null,null,"",0,0,0,0,0,""]
[null,null,null,null,null,null,null,null,null,null,null,null,"",0,0,0,0,0,""]
[null,null,null,null,null,null,null,null,null,null,null,null,"",0,0,0,0,0,""]
[null,null,null,null,null,null,null,null,null,null,null,null,"",0,0,0,0,0,""]
[null,null,null,null,null,null,null,null,null,null,null,null,"",0,0,0,0,0,""]
[null,null,null,null,null,null,null,null,null,null,null,null,"",0,0,0,0,0,""]
[null,null,null,null,null,null,null,null,null,null,null,null,"",0,0,0,0,0,""]
[null,null,null,null,null,null,null,null,null,null,null,null,"",0,0,0,0,0,""]
[null,null,null,null,null,null,null,null,null,null,null,null,"",0,0,0,0,0,""]
[null,null,null,null,null,null,null,null,null,null,null,null,"",0,0,0,0,0,""]
[null,null,null,null,null,null,null,null,null,null,null,null,"",0,0,0,0,0,""]
[null,null,null,null,null,null,null,null,null,null,null,null,"",0,0,0,0,0,""]
[null,null,null,null,null,null,null,null,null,null,null,null,"",0,0,0,0,0,""]
[null,null,null,null,null,null,null,null,null,null,null,null,"",0,0,0,0,0,""]
[null,null,null,null,null,null,null,null,null,null,null,null,"",0,0,0,0,0,""]
[null,null,null,null,null,null,null,null,null,null,null,null,"",0,0,0,0,0,""]
[null,null,null,null,null,null,null,null,null,null,null,null,"",0,0,0,0,0,""]
[null,null,null,null,null,null,null,null,null,null,null,null,"",0,0,0,0,0,""]
[null,null,null,null,null,null,null,null,null,null,null,null,"",0,0,0,0,0,""]
[null,null,null,null,null,null,null,null,null,null,null,null,"",0,0,0,0,0,""]
[null,null,null,null,null,null,null,null,null,null,null,null,"",0,0,0,0,0,""]
[null,null,null,null,null,null,null,null,null,null,null,null,{"$f":"IF(ISBLANK(H962),\"\",SUM(H962:L962))","v":""},{"$f":"IF(ISBLANK(H962),0,IF(H962=0,1,0))","v":0},{"$f":"IF(ISBLANK(I962),0,IF(I962=0,1,0))","v":0},{"$f":"IF(ISBLANK(J962),0,IF(J962=0,1,0))","v":0},{"$f":"IF(ISBLANK(K962),0,IF(K962=0,1,0))","v":0},{"$f":"IF(ISBLANK(L962),0,IF(L962=0,1,0))","v":0},{"$f":"IF(SUM(N962:R962)<>0,\"Zero!\",\"\")","v":""}]
[null,null,null,null,null,null,null,null,null,null,null,null,"",0,0,0,0,0,""]
[null,null,null,null,null,null,null,null,null,null,null,null,"",0,0,0,0,0,""]
[null,null,null,null,null,null,null,null,null,null,null,null,"",0,0,0,0,0,""]
[null,null,null,null,null,null,null,null,null,null,null,null,"",0,0,0,0,0,""]
[null,null,null,null,null,null,null,null,null,null,null,null,"",0,0,0,0,0,""]
[null,null,null,null,null,null,null,null,null,null,null,null,"",0,0,0,0,0,""]
[null,null,null,null,null,null,null,null,null,null,null,null,"",0,0,0,0,0,""]
[null,null,null,null,null,null,null,null,null,null,null,null,"",0,0,0,0,0,""]
[null,null,null,null,null,null,null,null,null,null,null,null,"",0,0,0,0,0,""]
[null,null,null,null,null,null,null,null,null,null,null,null,"",0,0,0,0,0,""]
[null,null,null,null,null,null,null,null,null,null,null,null,"",0,0,0,0,0,""]
[null,null,null,null,null,null,null,null,null,null,null,null,"",0,0,0,0,0,""]
[null,null,null,null,null,null,null,null,null,null,null,null,"",0,0,0,0,0,""]
[null,null,null,null,null,null,null,null,null,null,null,null,"",0,0,0,0,0,""]
[null,null,null,null,null,null,null,null,null,null,null,null,"",0,0,0,0,0,""]
[null,null,null,null,null,null,null,null,null,null,null,null,"",0,0,0,0,0,""]
[null,null,null,null,null,null,null,null,null,null,null,null,"",0,0,0,0,0,""]
[null,null,null,null,null,null,null,null,null,null,null,null,"",0,0,0,0,0,""]
[null,null,null,null,null,null,null,null,null,null,null,null,"",0,0,0,0,0,""]
[null,null,null,null,null,null,null,null,null,null,null,null,"",0,0,0,0,0,""]
[null,null,null,null,null,null,null,null,null,null,null,null,"",0,0,0,0,0,""]
[null,null,null,null,null,null,null,null,null,null,null,null,"",0,0,0,0,0,""]
[null,null,null,null,null,null,null,null,null,null,null,null,"",0,0,0,0,0,""]
[null,null,null,null,null,null,null,null,null,null,null,null,"",0,0,0,0,0,""]
[null,null,null,null,null,null,null,null,null,null,null,null,"",0,0,0,0,0,""]
[null,null,null,null,null,null,null,null,null,null,null,null,"",0,0,0,0,0,""]
[null,null,null,null,null,null,null,null,null,null,null,null,"",0,0,0,0,0,""]
[null,null,null,null,null,null,null,null,null,null,null,null,"",0,0,0,0,0,""]
[null,null,null,null,null,null,null,null,null,null,null,null,"",0,0,0,0,0,""]
[null,null,null,null,null,null,null,null,null,null,null,null,"",0,0,0,0,0,""]
[null,null,null,null,null,null,null,null,null,null,null,null,"",0,0,0,0,0,""]
[null,null,null,null,null,null,null,null,null,null,null,null,"",0,0,0,0,0,""]
[null,null,null,null,null,null,null,null,null,null,null,null,"",0,0,0,0,0,""]
[null,null,null,null,null,null,null,null,null,null,null,null,"",0,0,0,0,0,""]
[null,null,null,null,null,null,null,null,null,null,null,null,"",0,0,0,0,0,""]
[null,null,null,null,null,null,null,null,null,null,null,null,"",0,0,0,0,0,""]
[null,null,null,null,null,null,null,null,null,null,null,null,"",0,0,0,0,0,""]
[null,null,null,null,null,null,null,null,null,null,null,null,"",0,0,0,0,0,""]
[null,null,null,null,null,null,null,null,null,null,null,null,"",0,0,0,0,0,""]
[null,null,null,null,null,null,null,null,null,null,null,null,"",0,0,0,0,0,""]
[null,null,null,null,null,null,null,null,null,null,null,null,"",0,0,0,0,0,""]
[null,null,null,null,null,null,null,null,null,null,null,null,"",0,0,0,0,0,""]
[null,null,null,null,null,null,null,null,null,null,null,null,"",0,0,0,0,0,""]
[null,null,null,null,null,null,null,null,null,null,null,null,"",0,0,0,0,0,""]
[null,null,null,null,null,null,null,null,null,null,null,null,"",0,0,0,0,0,""]
[null,null,null,null,null,null,null,null,null,null,null,null,"",0,0,0,0,0,""]
[null,null,null,null,null,null,null,null,null,null,null,null,"",0,0,0,0,0,""]
[null,null,null,null,null,null,null,null,null,null,null,null,"",0,0,0,0,0,""]
[null,null,null,null,null,null,null,null,null,null,null,null,"",0,0,0,0,0,""]
[null,null,null,null,null,null,null,null,null,null,null,null,"",0,0,0,0,0,""]
[null,null,null,null,null,null,null,null,null,null,null,null,"",0,0,0,0,0,""]
[null,null,null,null,null,null,null,null,null,null,null,null,"",0,0,0,0,0,""]
[null,null,null,null,null,null,null,null,null,null,null,null,"",0,0,0,0,0,""]
[null,null,null,null,null,null,null,null,null,null,null,null,"",0,0,0,0,0,""]
[null,null,null,null,null,null,null,null,null,null,null,null,"",0,0,0,0,0,""]
[null,null,null,null,null,null,null,null,null,null,null,null,"",0,0,0,0,0,""]
[null,null,null,null,null,null,null,null,null,null,null,null,"",0,0,0,0,0,""]
[null,null,null,null,null,null,null,null,null,null,null,null,"",0,0,0,0,0,""]
[null,null,null,null,null,null,null,null,null,null,null,null,"",0,0,0,0,0,""]
[null,null,null,null,null,null,null,null,null,null,null,null,"",0,0,0,0,0,""]
[null,null,null,null,null,null,null,null,null,null,null,null,"",0,0,0,0,0,""]
[null,null,null,null,null,null,null,null,null,null,null,null,"",0,0,0,0,0,""]
[null,null,null,null,null,null,null,null,null,null,null,null,"",0,0,0,0,0,""]
[null,null,null,null,null,null,null,null,null,null,null,null,{"$f":"IF(ISBLANK(H1026),\"\",SUM(H1026:L1026))","v":""},{"$f":"IF(ISBLANK(H1026),0,IF(H1026=0,1,0))","v":0},{"$f":"IF(ISBLANK(I1026),0,IF(I1026=0,1,0))","v":0},{"$f":"IF(ISBLANK(J1026),0,IF(J1026=0,1,0))","v":0},{"$f":"IF(ISBLANK(K1026),0,IF(K1026=0,1,0))","v":0},{"$f":"IF(ISBLANK(L1026),0,IF(L1026=0,1,0))","v":0},{"$f":"IF(SUM(N1026:R1026)<>0,\"Zero!\",\"\")","v":""}]
[null,null,null,null,null,null,null,null,null,null,null,null,"",0,0,0,0,0,""]
[null,null,null,null,null,null,null,null,null,null,null,null,"",0,0,0,0,0,""]
[null,null,null,null,null,null,null,null,null,null,null,null,"",0,0,0,0,0,""]
[null,null,null,null,null,null,null,null,null,null,null,null,"",0,0,0,0,0,""]
[null,null,null,null,null,null,null,null,null,null,null,null,"",0,0,0,0,0,""]
[null,null,null,null,null,null,null,null,null,null,null,null,"",0,0,0,0,0,""]
[null,null,null,null,null,null,null,null,null,null,null,null,"",0,0,0,0,0,""]
[null,null,null,null,null,null,null,null,null,null,null,null,"",0,0,0,0,0,""]
[null,null,null,null,null,null,null,null,null,null,null,null,"",0,0,0,0,0,""]
[null,null,null,null,null,null,null,null,null,null,null,null,"",0,0,0,0,0,""]
[null,null,null,null,null,null,null,null,null,null,null,null,"",0,0,0,0,0,""]
[null,null,null,null,null,null,null,null,null,null,null,null,"",0,0,0,0,0,""]
[null,null,null,null,null,null,null,null,null,null,null,null,"",0,0,0,0,0,""]
[null,null,null,null,null,null,null,null,null,null,null,null,"",0,0,0,0,0,""]
[null,null,null,null,null,null,null,null,null,null,null,null,"",0,0,0,0,0,""]
[null,null,null,null,null,null,null,null,null,null,null,null,"",0,0,0,0,0,""]
[null,null,null,null,null,null,null,null,null,null,null,null,"",0,0,0,0,0,""]
[null,null,null,null,null,null,null,null,null,null,null,null,"",0,0,0,0,0,""]
[null,null,null,null,null,null,null,null,null,null,null,null,"",0,0,0,0,0,""]
[null,null,null,null,null,null,null,null,null,null,null,null,"",0,0,0,0,0,""]
[null,null,null,null,null,null,null,null,null,null,null,null,"",0,0,0,0,0,""]
[null,null,null,null,null,null,null,null,null,null,null,null,"",0,0,0,0,0,""]
[null,null,null,null,null,null,null,null,null,null,null,null,"",0,0,0,0,0,""]
[null,null,null,null,null,null,null,null,null,null,null,null,"",0,0,0,0,0,""]
[null,null,null,null,null,null,null,null,null,null,null,null,"",0,0,0,0,0,""]
[null,null,null,null,null,null,null,null,null,null,null,null,"",0,0,0,0,0,""]
[null,null,null,null,null,null,null,null,null,null,null,null,"",0,0,0,0,0,""]
[null,null,null,null,null,null,null,null,null,null,null,null,"",0,0,0,0,0,""]
[null,null,null,null,null,null,null,null,null,null,null,null,"",0,0,0,0,0,""]
[null,null,null,null,null,null,null,null,null,null,null,null,"",0,0,0,0,0,""]
[null,null,null,null,null,null,null,null,null,null,null,null,"",0,0,0,0,0,""]
[null,null,null,null,null,null,null,null,null,null,null,null,"",0,0,0,0,0,""]
[null,null,null,null,null,null,null,null,null,null,null,null,"",0,0,0,0,0,""]
[null,null,null,null,null,null,null,null,null,null,null,null,"",0,0,0,0,0,""]
[null,null,null,null,null,null,null,null,null,null,null,null,"",0,0,0,0,0,""]
[null,null,null,null,null,null,null,null,null,null,null,null,"",0,0,0,0,0,""]
[null,null,null,null,null,null,null,null,null,null,null,null,"",0,0,0,0,0,""]
[null,null,null,null,null,null,null,null,null,null,null,null,"",0,0,0,0,0,""]
[null,null,null,null,null,null,null,null,null,null,null,null,"",0,0,0,0,0,""]
[null,null,null,null,null,null,null,null,null,null,null,null,"",0,0,0,0,0,""]
[null,null,null,null,null,null,null,null,null,null,null,null,"",0,0,0,0,0,""]
[null,null,null,null,null,null,null,null,null,null,null,null,"",0,0,0,0,0,""]
[null,null,null,null,null,null,null,null,null,null,null,null,"",0,0,0,0,0,""]
[null,null,null,null,null,null,null,null,null,null,null,null,"",0,0,0,0,0,""]
[null,null,null,null,null,null,null,null,null,null,null,null,"",0,0,0,0,0,""]
[null,null,null,null,null,null,null,null,null,null,null,null,"",0,0,0,0,0,""]
[null,null,null,null,null,null,null,null,null,null,null,null,"",0,0,0,0,0,""]
[null,null,null,null,null,null,null,null,null,null,null,null,"",0,0,0,0,0,""]
[null,null,null,null,null,null,null,null,null,null,null,null,"",0,0,0,0,0,""]
[null,null,null,null,null,null,null,null,null,null,null,null,"",0,0,0,0,0,""]
[null,null,null,null,null,null,null,null,null,null,null,null,"",0,0,0,0,0,""]
[null,null,null,null,null,null,null,null,null,null,null,null,"",0,0,0,0,0,""]
[null,null,null,null,null,null,null,null,null,null,null,null,"",0,0,0,0,0,""]
[null,null,null,null,null,null,null,null,null,null,null,null,"",0,0,0,0,0,""]
[null,null,null,null,null,null,null,null,null,null,null,null,"",0,0,0,0,0,""]
[null,null,null,null,null,null,null,null,null,null,null,null,"",0,0,0,0,0,""]
[null,null,null,null,null,null,null,null,null,null,null,null,"",0,0,0,0,0,""]
[null,null,null,null,null,null,null,null,null,null,null,null,"",0,0,0,0,0,""]
[null,null,null,null,null,null,null,null,null,null,null,null,"",0,0,0,0,0,""]
[null,null,null,null,null,null,null,null,null,null,null,null,"",0,0,0,0,0,""]
[null,null,null,null,null,null,null,null,null,null,null,null,"",0,0,0,0,0,""]
[null,null,null,null,null,null,null,null,null,null,null,null,"",0,0,0,0,0,""]
[null,null,null,null,null,null,null,null,null,null,null,null,"",0,0,0,0,0,""]
[null,null,null,null,null,null,null,null,null,null,null,null,{"$f":"IF(ISBLANK(H1090),\"\",SUM(H1090:L1090))","v":""},{"$f":"IF(ISBLANK(H1090),0,IF(H1090=0,1,0))","v":0},{"$f":"IF(ISBLANK(I1090),0,IF(I1090=0,1,0))","v":0},{"$f":"IF(ISBLANK(J1090),0,IF(J1090=0,1,0))","v":0},{"$f":"IF(ISBLANK(K1090),0,IF(K1090=0,1,0))","v":0},{"$f":"IF(ISBLANK(L1090),0,IF(L1090=0,1,0))","v":0},{"$f":"IF(SUM(N1090:R1090)<>0,\"Zero!\",\"\")","v":""}]
[null,null,null,null,null,null,null,null,null,null,null,null,"",0,0,0,0,0,""]
[null,null,null,null,null,null,null,null,null,null,null,null,"",0,0,0,0,0,""]
[null,null,null,null,null,null,null,null,null,null,null,null,"",0,0,0,0,0,""]
[null,null,null,null,null,null,null,null,null,null,null,null,"",0,0,0,0,0,""]
[null,null,null,null,null,null,null,null,null,null,null,null,"",0,0,0,0,0,""]
[null,null,null,null,null,null,null,null,null,null,null,null,"",0,0,0,0,0,""]
[null,null,null,null,null,null,null,null,null,null,null,null,"",0,0,0,0,0,""]
[null,null,null,null,null,null,null,null,null,null,null,null,"",0,0,0,0,0,""]
[null,null,null,null,null,null,null,null,null,null,null,null,"",0,0,0,0,0,""]
[null,null,null,null,null,null,null,null,null,null,null,null,"",0,0,0,0,0,""]
[null,null,null,null,null,null,null,null,null,null,null,null,"",0,0,0,0,0,""]
[null,null,null,null,null,null,null,null,null,null,null,null,"",0,0,0,0,0,""]
[null,null,null,null,null,null,null,null,null,null,null,null,"",0,0,0,0,0,""]
[null,null,null,null,null,null,null,null,null,null,null,null,"",0,0,0,0,0,""]
[null,null,null,null,null,null,null,null,null,null,null,null,"",0,0,0,0,0,""]
[null,null,null,null,null,null,null,null,null,null,null,null,"",0,0,0,0,0,""]
[null,null,null,null,null,null,null,null,null,null,null,null,"",0,0,0,0,0,""]
[null,null,null,null,null,null,null,null,null,null,null,null,"",0,0,0,0,0,""]
[null,null,null,null,null,null,null,null,null,null,null,null,"",0,0,0,0,0,""]
[null,null,null,null,null,null,null,null,null,null,null,null,"",0,0,0,0,0,""]
[null,null,null,null,null,null,null,null,null,null,null,null,"",0,0,0,0,0,""]
[null,null,null,null,null,null,null,null,null,null,null,null,"",0,0,0,0,0,""]
[null,null,null,null,null,null,null,null,null,null,null,null,"",0,0,0,0,0,""]
[null,null,null,null,null,null,null,null,null,null,null,null,"",0,0,0,0,0,""]
[null,null,null,null,null,null,null,null,null,null,null,null,"",0,0,0,0,0,""]
[null,null,null,null,null,null,null,null,null,null,null,null,"",0,0,0,0,0,""]
[null,null,null,null,null,null,null,null,null,null,null,null,"",0,0,0,0,0,""]
[null,null,null,null,null,null,null,null,null,null,null,null,"",0,0,0,0,0,""]
[null,null,null,null,null,null,null,null,null,null,null,null,"",0,0,0,0,0,""]
[null,null,null,null,null,null,null,null,null,null,null,null,"",0,0,0,0,0,""]
[null,null,null,null,null,null,null,null,null,null,null,null,"",0,0,0,0,0,""]
[null,null,null,null,null,null,null,null,null,null,null,null,"",0,0,0,0,0,""]
[null,null,null,null,null,null,null,null,null,null,null,null,"",0,0,0,0,0,""]
[null,null,null,null,null,null,null,null,null,null,null,null,"",0,0,0,0,0,""]
[null,null,null,null,null,null,null,null,null,null,null,null,"",0,0,0,0,0,""]
[null,null,null,null,null,null,null,null,null,null,null,null,"",0,0,0,0,0,""]
[null,null,null,null,null,null,null,null,null,null,null,null,"",0,0,0,0,0,""]
[null,null,null,null,null,null,null,null,null,null,null,null,"",0,0,0,0,0,""]
[null,null,null,null,null,null,null,null,null,null,null,null,"",0,0,0,0,0,""]
[null,null,null,null,null,null,null,null,null,null,null,null,"",0,0,0,0,0,""]
[null,null,null,null,null,null,null,null,null,null,null,null,"",0,0,0,0,0,""]
[null,null,null,null,null,null,null,null,null,null,null,null,"",0,0,0,0,0,""]
[null,null,null,null,null,null,null,null,null,null,null,null,"",0,0,0,0,0,""]
[null,null,null,null,null,null,null,null,null,null,null,null,"",0,0,0,0,0,""]
[null,null,null,null,null,null,null,null,null,null,null,null,"",0,0,0,0,0,""]
[null,null,null,null,null,null,null,null,null,null,null,null,"",0,0,0,0,0,""]
[null,null,null,null,null,null,null,null,null,null,null,null,"",0,0,0,0,0,""]
[null,null,null,null,null,null,null,null,null,null,null,null,"",0,0,0,0,0,""]
[null,null,null,null,null,null,null,null,null,null,null,null,"",0,0,0,0,0,""]
[null,null,null,null,null,null,null,null,null,null,null,null,"",0,0,0,0,0,""]
[null,null,null,null,null,null,null,null,null,null,null,null,"",0,0,0,0,0,""]
[null,null,null,null,null,null,null,null,null,null,null,null,"",0,0,0,0,0,""]
[null,null,null,null,null,null,null,null,null,null,null,null,"",0,0,0,0,0,""]
[null,null,null,null,null,null,null,null,null,null,null,null,"",0,0,0,0,0,""]
[null,null,null,null,null,null,null,null,null,null,null,null,"",0,0,0,0,0,""]
[null,null,null,null,null,null,null,null,null,null,null,null,"",0,0,0,0,0,""]
[null,null,null,null,null,null,null,null,null,null,null,null,"",0,0,0,0,0,""]
[null,null,null,null,null,null,null,null,null,null,null,null,"",0,0,0,0,0,""]
[null,null,null,null,null,null,null,null,null,null,null,null,"",0,0,0,0,0,""]
[null,null,null,null,null,null,null,null,null,null,null,null,"",0,0,0,0,0,""]
[null,null,null,null,null,null,null,null,null,null,null,null,"",0,0,0,0,0,""]
[null,null,null,null,null,null,null,null,null,null,null,null,"",0,0,0,0,0,""]
[null,null,null,null,null,null,null,null,null,null,null,null,"",0,0,0,0,0,""]
[null,null,null,null,null,null,null,null,null,null,null,null,{"$f":"IF(ISBLANK(H1154),\"\",SUM(H1154:L1154))","v":""},{"$f":"IF(ISBLANK(H1154),0,IF(H1154=0,1,0))","v":0},{"$f":"IF(ISBLANK(I1154),0,IF(I1154=0,1,0))","v":0},{"$f":"IF(ISBLANK(J1154),0,IF(J1154=0,1,0))","v":0},{"$f":"IF(ISBLANK(K1154),0,IF(K1154=0,1,0))","v":0},{"$f":"IF(ISBLANK(L1154),0,IF(L1154=0,1,0))","v":0},{"$f":"IF(SUM(N1154:R1154)<>0,\"Zero!\",\"\")","v":""}]
[null,null,null,null,null,null,null,null,null,null,null,null,"",0,0,0,0,0,""]
[null,null,null,null,null,null,null,null,null,null,null,null,"",0,0,0,0,0,""]
[null,null,null,null,null,null,null,null,null,null,null,null,"",0,0,0,0,0,""]
[null,null,null,null,null,null,null,null,null,null,null,null,"",0,0,0,0,0,""]
[null,null,null,null,null,null,null,null,null,null,null,null,"",0,0,0,0,0,""]
[null,null,null,null,null,null,null,null,null,null,null,null,"",0,0,0,0,0,""]
[null,null,null,null,null,null,null,null,null,null,null,null,"",0,0,0,0,0,""]
[null,null,null,null,null,null,null,null,null,null,null,null,"",0,0,0,0,0,""]
[null,null,null,null,null,null,null,null,null,null,null,null,"",0,0,0,0,0,""]
[null,null,null,null,null,null,null,null,null,null,null,null,"",0,0,0,0,0,""]
[null,null,null,null,null,null,null,null,null,null,null,null,"",0,0,0,0,0,""]
[null,null,null,null,null,null,null,null,null,null,null,null,"",0,0,0,0,0,""]
[null,null,null,null,null,null,null,null,null,null,null,null,"",0,0,0,0,0,""]
[null,null,null,null,null,null,null,null,null,null,null,null,"",0,0,0,0,0,""]
[null,null,null,null,null,null,null,null,null,null,null,null,"",0,0,0,0,0,""]
[null,null,null,null,null,null,null,null,null,null,null,null,"",0,0,0,0,0,""]
[null,null,null,null,null,null,null,null,null,null,null,null,"",0,0,0,0,0,""]
[null,null,null,null,null,null,null,null,null,null,null,null,"",0,0,0,0,0,""]
[null,null,null,null,null,null,null,null,null,null,null,null,"",0,0,0,0,0,""]
[null,null,null,null,null,null,null,null,null,null,null,null,"",0,0,0,0,0,""]
[null,null,null,null,null,null,null,null,null,null,null,null,"",0,0,0,0,0,""]
[null,null,null,null,null,null,null,null,null,null,null,null,"",0,0,0,0,0,""]
[null,null,null,null,null,null,null,null,null,null,null,null,"",0,0,0,0,0,""]
[null,null,null,null,null,null,null,null,null,null,null,null,"",0,0,0,0,0,""]
[null,null,null,null,null,null,null,null,null,null,null,null,"",0,0,0,0,0,""]
[null,null,null,null,null,null,null,null,null,null,null,null,"",0,0,0,0,0,""]
[null,null,null,null,null,null,null,null,null,null,null,null,"",0,0,0,0,0,""]
[null,null,null,null,null,null,null,null,null,null,null,null,"",0,0,0,0,0,""]
[null,null,null,null,null,null,null,null,null,null,null,null,"",0,0,0,0,0,""]
[null,null,null,null,null,null,null,null,null,null,null,null,"",0,0,0,0,0,""]
[null,null,null,null,null,null,null,null,null,null,null,null,"",0,0,0,0,0,""]
[null,null,null,null,null,null,null,null,null,null,null,null,"",0,0,0,0,0,""]
[null,null,null,null,null,null,null,null,null,null,null,null,"",0,0,0,0,0,""]
[null,null,null,null,null,null,null,null,null,null,null,null,"",0,0,0,0,0,""]
[null,null,null,null,null,null,null,null,null,null,null,null,"",0,0,0,0,0,""]
[null,null,null,null,null,null,null,null,null,null,null,null,"",0,0,0,0,0,""]
[null,null,null,null,null,null,null,null,null,null,null,null,"",0,0,0,0,0,""]
[null,null,null,null,null,null,null,null,null,null,null,null,"",0,0,0,0,0,""]
[null,null,null,null,null,null,null,null,null,null,null,null,"",0,0,0,0,0,""]
[null,null,null,null,null,null,null,null,null,null,null,null,"",0,0,0,0,0,""]
[null,null,null,null,null,null,null,null,null,null,null,null,"",0,0,0,0,0,""]
[null,null,null,null,null,null,null,null,null,null,null,null,"",0,0,0,0,0,""]
[null,null,null,null,null,null,null,null,null,null,null,null,"",0,0,0,0,0,""]
[null,null,null,null,null,null,null,null,null,null,null,null,"",0,0,0,0,0,""]
[null,null,null,null,null,null,null,null,null,null,null,null,"",0,0,0,0,0,""]
[null,null,null,null,null,null,null,null,null,null,null,null,"",0,0,0,0,0,""]
[null,null,null,null,null,null,null,null,null,null,null,null,"",0,0,0,0,0,""]
[null,null,null,null,null,null,null,null,null,null,null,null,"",0,0,0,0,0,""]
[null,null,null,null,null,null,null,null,null,null,null,null,"",0,0,0,0,0,""]
[null,null,null,null,null,null,null,null,null,null,null,null,"",0,0,0,0,0,""]
[null,null,null,null,null,null,null,null,null,null,null,null,"",0,0,0,0,0,""]
[null,null,null,null,null,null,null,null,null,null,null,null,"",0,0,0,0,0,""]
[null,null,null,null,null,null,null,null,null,null,null,null,"",0,0,0,0,0,""]
[null,null,null,null,null,null,null,null,null,null,null,null,"",0,0,0,0,0,""]
[null,null,null,null,null,null,null,null,null,null,null,null,"",0,0,0,0,0,""]
[null,null,null,null,null,null,null,null,null,null,null,null,"",0,0,0,0,0,""]
[null,null,null,null,null,null,null,null,null,null,null,null,"",0,0,0,0,0,""]
[null,null,null,null,null,null,null,null,null,null,null,null,"",0,0,0,0,0,""]
[null,null,null,null,null,null,null,null,null,null,null,null,"",0,0,0,0,0,""]
[null,null,null,null,null,null,null,null,null,null,null,null,"",0,0,0,0,0,""]
[null,null,null,null,null,null,null,null,null,null,null,null,"",0,0,0,0,0,""]
[null,null,null,null,null,null,null,null,null,null,null,null,"",0,0,0,0,0,""]
[null,null,null,null,null,null,null,null,null,null,null,null,"",0,0,0,0,0,""]
[null,null,null,null,null,null,null,null,null,null,null,null,{"$f":"IF(ISBLANK(H1218),\"\",SUM(H1218:L1218))","v":""},{"$f":"IF(ISBLANK(H1218),0,IF(H1218=0,1,0))","v":0},{"$f":"IF(ISBLANK(I1218),0,IF(I1218=0,1,0))","v":0},{"$f":"IF(ISBLANK(J1218),0,IF(J1218=0,1,0))","v":0},{"$f":"IF(ISBLANK(K1218),0,IF(K1218=0,1,0))","v":0},{"$f":"IF(ISBLANK(L1218),0,IF(L1218=0,1,0))","v":0},{"$f":"IF(SUM(N1218:R1218)<>0,\"Zero!\",\"\")","v":""}]
[null,null,null,null,null,null,null,null,null,null,null,null,"",0,0,0,0,0,""]
[null,null,null,null,null,null,null,null,null,null,null,null,"",0,0,0,0,0,""]
[null,null,null,null,null,null,null,null,null,null,null,null,"",0,0,0,0,0,""]
[null,null,null,null,null,null,null,null,null,null,null,null,"",0,0,0,0,0,""]
[null,null,null,null,null,null,null,null,null,null,null,null,"",0,0,0,0,0,""]
[null,null,null,null,null,null,null,null,null,null,null,null,"",0,0,0,0,0,""]
[null,null,null,null,null,null,null,null,null,null,null,null,"",0,0,0,0,0,""]
[null,null,null,null,null,null,null,null,null,null,null,null,"",0,0,0,0,0,""]
[null,null,null,null,null,null,null,null,null,null,null,null,"",0,0,0,0,0,""]
[null,null,null,null,null,null,null,null,null,null,null,null,"",0,0,0,0,0,""]
[null,null,null,null,null,null,null,null,null,null,null,null,"",0,0,0,0,0,""]
[null,null,null,null,null,null,null,null,null,null,null,null,"",0,0,0,0,0,""]
[null,null,null,null,null,null,null,null,null,null,null,null,"",0,0,0,0,0,""]
[null,null,null,null,null,null,null,null,null,null,null,null,"",0,0,0,0,0,""]
[null,null,null,null,null,null,null,null,null,null,null,null,"",0,0,0,0,0,""]
[null,null,null,null,null,null,null,null,null,null,null,null,"",0,0,0,0,0,""]
[null,null,null,null,null,null,null,null,null,null,null,null,"",0,0,0,0,0,""]
[null,null,null,null,null,null,null,null,null,null,null,null,"",0,0,0,0,0,""]
[null,null,null,null,null,null,null,null,null,null,null,null,"",0,0,0,0,0,""]
[null,null,null,null,null,null,null,null,null,null,null,null,"",0,0,0,0,0,""]
[null,null,null,null,null,null,null,null,null,null,null,null,"",0,0,0,0,0,""]
[null,null,null,null,null,null,null,null,null,null,null,null,"",0,0,0,0,0,""]
[null,null,null,null,null,null,null,null,null,null,null,null,"",0,0,0,0,0,""]
[null,null,null,null,null,null,null,null,null,null,null,null,"",0,0,0,0,0,""]
[null,null,null,null,null,null,null,null,null,null,null,null,"",0,0,0,0,0,""]
[null,null,null,null,null,null,null,null,null,null,null,null,"",0,0,0,0,0,""]
[null,null,null,null,null,null,null,null,null,null,null,null,"",0,0,0,0,0,""]
[null,null,null,null,null,null,null,null,null,null,null,null,"",0,0,0,0,0,""]
[null,null,null,null,null,null,null,null,null,null,null,null,"",0,0,0,0,0,""]
[null,null,null,null,null,null,null,null,null,null,null,null,"",0,0,0,0,0,""]
[null,null,null,null,null,null,null,null,null,null,null,null,"",0,0,0,0,0,""]
[null,null,null,null,null,null,null,null,null,null,null,null,"",0,0,0,0,0,""]
[null,null,null,null,null,null,null,null,null,null,null,null,"",0,0,0,0,0,""]
[null,null,null,null,null,null,null,null,null,null,null,null,"",0,0,0,0,0,""]
[null,null,null,null,null,null,null,null,null,null,null,null,"",0,0,0,0,0,""]
[null,null,null,null,null,null,null,null,null,null,null,null,"",0,0,0,0,0,""]
[null,null,null,null,null,null,null,null,null,null,null,null,"",0,0,0,0,0,""]
[null,null,null,null,null,null,null,null,null,null,null,null,"",0,0,0,0,0,""]
[null,null,null,null,null,null,null,null,null,null,null,null,"",0,0,0,0,0,""]
[null,null,null,null,null,null,null,null,null,null,null,null,"",0,0,0,0,0,""]
[null,null,null,null,null,null,null,null,null,null,null,null,"",0,0,0,0,0,""]
[null,null,null,null,null,null,null,null,null,null,null,null,"",0,0,0,0,0,""]
[null,null,null,null,null,null,null,null,null,null,null,null,"",0,0,0,0,0,""]
[null,null,null,null,null,null,null,null,null,null,null,null,"",0,0,0,0,0,""]
[null,null,null,null,null,null,null,null,null,null,null,null,"",0,0,0,0,0,""]
[null,null,null,null,null,null,null,null,null,null,null,null,"",0,0,0,0,0,""]
[null,null,null,null,null,null,null,null,null,null,null,null,"",0,0,0,0,0,""]
[null,null,null,null,null,null,null,null,null,null,null,null,"",0,0,0,0,0,""]
[null,null,null,null,null,null,null,null,null,null,null,null,"",0,0,0,0,0,""]
[null,null,null,null,null,null,null,null,null,null,null,null,"",0,0,0,0,0,""]
[null,null,null,null,null,null,null,null,null,null,null,null,"",0,0,0,0,0,""]
[null,null,null,null,null,null,null,null,null,null,null,null,"",0,0,0,0,0,""]
[null,null,null,null,null,null,null,null,null,null,null,null,"",0,0,0,0,0,""]
[null,null,null,null,null,null,null,null,null,null,null,null,"",0,0,0,0,0,""]
[null,null,null,null,null,null,null,null,null,null,null,null,"",0,0,0,0,0,""]
[null,null,null,null,null,null,null,null,null,null,null,null,"",0,0,0,0,0,""]
[null,null,null,null,null,null,null,null,null,null,null,null,"",0,0,0,0,0,""]
[null,null,null,null,null,null,null,null,null,null,null,null,"",0,0,0,0,0,""]
[null,null,null,null,null,null,null,null,null,null,null,null,"",0,0,0,0,0,""]
[null,null,null,null,null,null,null,null,null,null,null,null,"",0,0,0,0,0,""]
[null,null,null,null,null,null,null,null,null,null,null,null,"",0,0,0,0,0,""]
[null,null,null,null,null,null,null,null,null,null,null,null,"",0,0,0,0,0,""]
[null,null,null,null,null,null,null,null,null,null,null,null,"",0,0,0,0,0,""]
[null,null,null,null,null,null,null,null,null,null,null,null,{"$f":"IF(ISBLANK(H1282),\"\",SUM(H1282:L1282))","v":""},{"$f":"IF(ISBLANK(H1282),0,IF(H1282=0,1,0))","v":0},{"$f":"IF(ISBLANK(I1282),0,IF(I1282=0,1,0))","v":0},{"$f":"IF(ISBLANK(J1282),0,IF(J1282=0,1,0))","v":0},{"$f":"IF(ISBLANK(K1282),0,IF(K1282=0,1,0))","v":0},{"$f":"IF(ISBLANK(L1282),0,IF(L1282=0,1,0))","v":0},{"$f":"IF(SUM(N1282:R1282)<>0,\"Zero!\",\"\")","v":""}]
[null,null,null,null,null,null,null,null,null,null,null,null,"",0,0,0,0,0,""]
[null,null,null,null,null,null,null,null,null,null,null,null,"",0,0,0,0,0,""]
[null,null,null,null,null,null,null,null,null,null,null,null,"",0,0,0,0,0,""]
[null,null,null,null,null,null,null,null,null,null,null,null,"",0,0,0,0,0,""]
[null,null,null,null,null,null,null,null,null,null,null,null,"",0,0,0,0,0,""]
[null,null,null,null,null,null,null,null,null,null,null,null,"",0,0,0,0,0,""]
[null,null,null,null,null,null,null,null,null,null,null,null,"",0,0,0,0,0,""]
[null,null,null,null,null,null,null,null,null,null,null,null,"",0,0,0,0,0,""]
[null,null,null,null,null,null,null,null,null,null,null,null,"",0,0,0,0,0,""]
[null,null,null,null,null,null,null,null,null,null,null,null,"",0,0,0,0,0,""]
[null,null,null,null,null,null,null,null,null,null,null,null,"",0,0,0,0,0,""]
[null,null,null,null,null,null,null,null,null,null,null,null,"",0,0,0,0,0,""]
[null,null,null,null,null,null,null,null,null,null,null,null,"",0,0,0,0,0,""]
[null,null,null,null,null,null,null,null,null,null,null,null,"",0,0,0,0,0,""]
[null,null,null,null,null,null,null,null,null,null,null,null,"",0,0,0,0,0,""]
[null,null,null,null,null,null,null,null,null,null,null,null,"",0,0,0,0,0,""]
[null,null,null,null,null,null,null,null,null,null,null,null,"",0,0,0,0,0,""]
[null,null,null,null,null,null,null,null,null,null,null,null,"",0,0,0,0,0,""]
[null,null,null,null,null,null,null,null,null,null,null,null,"",0,0,0,0,0,""]
[null,null,null,null,null,null,null,null,null,null,null,null,"",0,0,0,0,0,""]
[null,null,null,null,null,null,null,null,null,null,null,null,"",0,0,0,0,0,""]
[null,null,null,null,null,null,null,null,null,null,null,null,"",0,0,0,0,0,""]
[null,null,null,null,null,null,null,null,null,null,null,null,"",0,0,0,0,0,""]
[null,null,null,null,null,null,null,null,null,null,null,null,"",0,0,0,0,0,""]
[null,null,null,null,null,null,null,null,null,null,null,null,"",0,0,0,0,0,""]
[null,null,null,null,null,null,null,null,null,null,null,null,"",0,0,0,0,0,""]
[null,null,null,null,null,null,null,null,null,null,null,null,"",0,0,0,0,0,""]
[null,null,null,null,null,null,null,null,null,null,null,null,"",0,0,0,0,0,""]
[null,null,null,null,null,null,null,null,null,null,null,null,"",0,0,0,0,0,""]
[null,null,null,null,null,null,null,null,null,null,null,null,"",0,0,0,0,0,""]
[null,null,null,null,null,null,null,null,null,null,null,null,"",0,0,0,0,0,""]
[null,null,null,null,null,null,null,null,null,null,null,null,"",0,0,0,0,0,""]
[null,null,null,null,null,null,null,null,null,null,null,null,"",0,0,0,0,0,""]
[null,null,null,null,null,null,null,null,null,null,null,null,"",0,0,0,0,0,""]
[null,null,null,null,null,null,null,null,null,null,null,null,"",0,0,0,0,0,""]
[null,null,null,null,null,null,null,null,null,null,null,null,"",0,0,0,0,0,""]
[null,null,null,null,null,null,null,null,null,null,null,null,"",0,0,0,0,0,""]
[null,null,null,null,null,null,null,null,null,null,null,null,"",0,0,0,0,0,""]
[null,null,null,null,null,null,null,null,null,null,null,null,"",0,0,0,0,0,""]
[null,null,null,null,null,null,null,null,null,null,null,null,"",0,0,0,0,0,""]
[null,null,null,null,null,null,null,null,null,null,null,null,"",0,0,0,0,0,""]
[null,null,null,null,null,null,null,null,null,null,null,null,"",0,0,0,0,0,""]
[null,null,null,null,null,null,null,null,null,null,null,null,"",0,0,0,0,0,""]
[null,null,null,null,null,null,null,null,null,null,null,null,"",0,0,0,0,0,""]
[null,null,null,null,null,null,null,null,null,null,null,null,"",0,0,0,0,0,""]
[null,null,null,null,null,null,null,null,null,null,null,null,"",0,0,0,0,0,""]
[null,null,null,null,null,null,null,null,null,null,null,null,"",0,0,0,0,0,""]
[null,null,null,null,null,null,null,null,null,null,null,null,"",0,0,0,0,0,""]
[null,null,null,null,null,null,null,null,null,null,null,null,"",0,0,0,0,0,""]
[null,null,null,null,null,null,null,null,null,null,null,null,"",0,0,0,0,0,""]
[null,null,null,null,null,null,null,null,null,null,null,null,"",0,0,0,0,0,""]
[null,null,null,null,null,null,null,null,null,null,null,null,"",0,0,0,0,0,""]
[null,null,null,null,null,null,null,null,null,null,null,null,"",0,0,0,0,0,""]
[null,null,null,null,null,null,null,null,null,null,null,null,"",0,0,0,0,0,""]
[null,null,null,null,null,null,null,null,null,null,null,null,"",0,0,0,0,0,""]
[null,null,null,null,null,null,null,null,null,null,null,null,"",0,0,0,0,0,""]
[null,null,null,null,null,null,null,null,null,null,null,null,"",0,0,0,0,0,""]
[null,null,null,null,null,null,null,null,null,null,null,null,"",0,0,0,0,0,""]
[null,null,null,null,null,null,null,null,null,null,null,null,"",0,0,0,0,0,""]
[null,null,null,null,null,null,null,null,null,null,null,null,"",0,0,0,0,0,""]
[null,null,null,null,null,null,null,null,null,null,null,null,"",0,0,0,0,0,""]
[null,null,null,null,null,null,null,null,null,null,null,null,"",0,0,0,0,0,""]
[null,null,null,null,null,null,null,null,null,null,null,null,"",0,0,0,0,0,""]
[null,null,null,null,null,null,null,null,null,null,null,null,{"$f":"IF(ISBLANK(H1346),\"\",SUM(H1346:L1346))","v":""},{"$f":"IF(ISBLANK(H1346),0,IF(H1346=0,1,0))","v":0},{"$f":"IF(ISBLANK(I1346),0,IF(I1346=0,1,0))","v":0},{"$f":"IF(ISBLANK(J1346),0,IF(J1346=0,1,0))","v":0},{"$f":"IF(ISBLANK(K1346),0,IF(K1346=0,1,0))","v":0},{"$f":"IF(ISBLANK(L1346),0,IF(L1346=0,1,0))","v":0},{"$f":"IF(SUM(N1346:R1346)<>0,\"Zero!\",\"\")","v":""}]
[null,null,null,null,null,null,null,null,null,null,null,null,"",0,0,0,0,0,""]
[null,null,null,null,null,null,null,null,null,null,null,null,"",0,0,0,0,0,""]
[null,null,null,null,null,null,null,null,null,null,null,null,"",0,0,0,0,0,""]
[null,null,null,null,null,null,null,null,null,null,null,null,"",0,0,0,0,0,""]
[null,null,null,null,null,null,null,null,null,null,null,null,"",0,0,0,0,0,""]
[null,null,null,null,null,null,null,null,null,null,null,null,"",0,0,0,0,0,""]
[null,null,null,null,null,null,null,null,null,null,null,null,"",0,0,0,0,0,""]
[null,null,null,null,null,null,null,null,null,null,null,null,"",0,0,0,0,0,""]
[null,null,null,null,null,null,null,null,null,null,null,null,"",0,0,0,0,0,""]
[null,null,null,null,null,null,null,null,null,null,null,null,"",0,0,0,0,0,""]
[null,null,null,null,null,null,null,null,null,null,null,null,"",0,0,0,0,0,""]
[null,null,null,null,null,null,null,null,null,null,null,null,"",0,0,0,0,0,""]
[null,null,null,null,null,null,null,null,null,null,null,null,"",0,0,0,0,0,""]
[null,null,null,null,null,null,null,null,null,null,null,null,"",0,0,0,0,0,""]
[null,null,null,null,null,null,null,null,null,null,null,null,"",0,0,0,0,0,""]
[null,null,null,null,null,null,null,null,null,null,null,null,"",0,0,0,0,0,""]
[null,null,null,null,null,null,null,null,null,null,null,null,"",0,0,0,0,0,""]
[null,null,null,null,null,null,null,null,null,null,null,null,"",0,0,0,0,0,""]
[null,null,null,null,null,null,null,null,null,null,null,null,"",0,0,0,0,0,""]
[null,null,null,null,null,null,null,null,null,null,null,null,"",0,0,0,0,0,""]
[null,null,null,null,null,null,null,null,null,null,null,null,"",0,0,0,0,0,""]
[null,null,null,null,null,null,null,null,null,null,null,null,"",0,0,0,0,0,""]
[null,null,null,null,null,null,null,null,null,null,null,null,"",0,0,0,0,0,""]
[null,null,null,null,null,null,null,null,null,null,null,null,"",0,0,0,0,0,""]
[null,null,null,null,null,null,null,null,null,null,null,null,"",0,0,0,0,0,""]
[null,null,null,null,null,null,null,null,null,null,null,null,"",0,0,0,0,0,""]
[null,null,null,null,null,null,null,null,null,null,null,null,"",0,0,0,0,0,""]
[null,null,null,null,null,null,null,null,null,null,null,null,"",0,0,0,0,0,""]
[null,null,null,null,null,null,null,null,null,null,null,null,"",0,0,0,0,0,""]
[null,null,null,null,null,null,null,null,null,null,null,null,"",0,0,0,0,0,""]
[null,null,null,null,null,null,null,null,null,null,null,null,"",0,0,0,0,0,""]
[null,null,null,null,null,null,null,null,null,null,null,null,"",0,0,0,0,0,""]
[null,null,null,null,null,null,null,null,null,null,null,null,"",0,0,0,0,0,""]
[null,null,null,null,null,null,null,null,null,null,null,null,"",0,0,0,0,0,""]
[null,null,null,null,null,null,null,null,null,null,null,null,"",0,0,0,0,0,""]
[null,null,null,null,null,null,null,null,null,null,null,null,"",0,0,0,0,0,""]
[null,null,null,null,null,null,null,null,null,null,null,null,"",0,0,0,0,0,""]
[null,null,null,null,null,null,null,null,null,null,null,null,"",0,0,0,0,0,""]
[null,null,null,null,null,null,null,null,null,null,null,null,"",0,0,0,0,0,""]
[null,null,null,null,null,null,null,null,null,null,null,null,"",0,0,0,0,0,""]
[null,null,null,null,null,null,null,null,null,null,null,null,"",0,0,0,0,0,""]
[null,null,null,null,null,null,null,null,null,null,null,null,"",0,0,0,0,0,""]
[null,null,null,null,null,null,null,null,null,null,null,null,"",0,0,0,0,0,""]
[null,null,null,null,null,null,null,null,null,null,null,null,"",0,0,0,0,0,""]
[null,null,null,null,null,null,null,null,null,null,null,null,"",0,0,0,0,0,""]
[null,null,null,null,null,null,null,null,null,null,null,null,"",0,0,0,0,0,""]
[null,null,null,null,null,null,null,null,null,null,null,null,"",0,0,0,0,0,""]
[null,null,null,null,null,null,null,null,null,null,null,null,"",0,0,0,0,0,""]
[null,null,null,null,null,null,null,null,null,null,null,null,"",0,0,0,0,0,""]
[null,null,null,null,null,null,null,null,null,null,null,null,"",0,0,0,0,0,""]
[null,null,null,null,null,null,null,null,null,null,null,null,"",0,0,0,0,0,""]
[null,null,null,null,null,null,null,null,null,null,null,null,"",0,0,0,0,0,""]
[null,null,null,null,null,null,null,null,null,null,null,null,"",0,0,0,0,0,""]
[null,null,null,null,null,null,null,null,null,null,null,null,"",0,0,0,0,0,""]
[null,null,null,null,null,null,null,null,null,null,null,null,"",0,0,0,0,0,""]
[null,null,null,null,null,null,null,null,null,null,null,null,"",0,0,0,0,0,""]
[null,null,null,null,null,null,null,null,null,null,null,null,"",0,0,0,0,0,""]
[null,null,null,null,null,null,null,null,null,null,null,null,"",0,0,0,0,0,""]
[null,null,null,null,null,null,null,null,null,null,null,null,"",0,0,0,0,0,""]
[null,null,null,null,null,null,null,null,null,null,null,null,"",0,0,0,0,0,""]
[null,null,null,null,null,null,null,null,null,null,null,null,"",0,0,0,0,0,""]
[null,null,null,null,null,null,null,null,null,null,null,null,"",0,0,0,0,0,""]
[null,null,null,null,null,null,null,null,null,null,null,null,"",0,0,0,0,0,""]
[null,null,null,null,null,null,null,null,null,null,null,null,{"$f":"IF(ISBLANK(H1410),\"\",SUM(H1410:L1410))","v":""},{"$f":"IF(ISBLANK(H1410),0,IF(H1410=0,1,0))","v":0},{"$f":"IF(ISBLANK(I1410),0,IF(I1410=0,1,0))","v":0},{"$f":"IF(ISBLANK(J1410),0,IF(J1410=0,1,0))","v":0},{"$f":"IF(ISBLANK(K1410),0,IF(K1410=0,1,0))","v":0},{"$f":"IF(ISBLANK(L1410),0,IF(L1410=0,1,0))","v":0},{"$f":"IF(SUM(N1410:R1410)<>0,\"Zero!\",\"\")","v":""}]
[null,null,null,null,null,null,null,null,null,null,null,null,"",0,0,0,0,0,""]
[null,null,null,null,null,null,null,null,null,null,null,null,"",0,0,0,0,0,""]
[null,null,null,null,null,null,null,null,null,null,null,null,"",0,0,0,0,0,""]
[null,null,null,null,null,null,null,null,null,null,null,null,"",0,0,0,0,0,""]
[null,null,null,null,null,null,null,null,null,null,null,null,"",0,0,0,0,0,""]
[null,null,null,null,null,null,null,null,null,null,null,null,"",0,0,0,0,0,""]
[null,null,null,null,null,null,null,null,null,null,null,null,"",0,0,0,0,0,""]
[null,null,null,null,null,null,null,null,null,null,null,null,"",0,0,0,0,0,""]
[null,null,null,null,null,null,null,null,null,null,null,null,"",0,0,0,0,0,""]
[null,null,null,null,null,null,null,null,null,null,null,null,"",0,0,0,0,0,""]
[null,null,null,null,null,null,null,null,null,null,null,null,"",0,0,0,0,0,""]
[null,null,null,null,null,null,null,null,null,null,null,null,"",0,0,0,0,0,""]
[null,null,null,null,null,null,null,null,null,null,null,null,"",0,0,0,0,0,""]
[null,null,null,null,null,null,null,null,null,null,null,null,"",0,0,0,0,0,""]
[null,null,null,null,null,null,null,null,null,null,null,null,"",0,0,0,0,0,""]
[null,null,null,null,null,null,null,null,null,null,null,null,"",0,0,0,0,0,""]
[null,null,null,null,null,null,null,null,null,null,null,null,"",0,0,0,0,0,""]
[null,null,null,null,null,null,null,null,null,null,null,null,"",0,0,0,0,0,""]
[null,null,null,null,null,null,null,null,null,null,null,null,"",0,0,0,0,0,""]
[null,null,null,null,null,null,null,null,null,null,null,null,"",0,0,0,0,0,""]
[null,null,null,null,null,null,null,null,null,null,null,null,"",0,0,0,0,0,""]
[null,null,null,null,null,null,null,null,null,null,null,null,"",0,0,0,0,0,""]
[null,null,null,null,null,null,null,null,null,null,null,null,"",0,0,0,0,0,""]
[null,null,null,null,null,null,null,null,null,null,null,null,"",0,0,0,0,0,""]
[null,null,null,null,null,null,null,null,null,null,null,null,"",0,0,0,0,0,""]
[null,null,null,null,null,null,null,null,null,null,null,null,"",0,0,0,0,0,""]
[null,null,null,null,null,null,null,null,null,null,null,null,"",0,0,0,0,0,""]
[null,null,null,null,null,null,null,null,null,null,null,null,"",0,0,0,0,0,""]
[null,null,null,null,null,null,null,null,null,null,null,null,"",0,0,0,0,0,""]
[null,null,null,null,null,null,null,null,null,null,null,null,"",0,0,0,0,0,""]
[null,null,null,null,null,null,null,null,null,null,null,null,"",0,0,0,0,0,""]
[null,null,null,null,null,null,null,null,null,null,null,null,"",0,0,0,0,0,""]
[null,null,null,null,null,null,null,null,null,null,null,null,"",0,0,0,0,0,""]
[null,null,null,null,null,null,null,null,null,null,null,null,"",0,0,0,0,0,""]
[null,null,null,null,null,null,null,null,null,null,null,null,"",0,0,0,0,0,""]
[null,null,null,null,null,null,null,null,null,null,null,null,"",0,0,0,0,0,""]
[null,null,null,null,null,null,null,null,null,null,null,null,"",0,0,0,0,0,""]
[null,null,null,null,null,null,null,null,null,null,null,null,"",0,0,0,0,0,""]
[null,null,null,null,null,null,null,null,null,null,null,null,"",0,0,0,0,0,""]
[null,null,null,null,null,null,null,null,null,null,null,null,"",0,0,0,0,0,""]
[null,null,null,null,null,null,null,null,null,null,null,null,"",0,0,0,0,0,""]
[null,null,null,null,null,null,null,null,null,null,null,null,"",0,0,0,0,0,""]
[null,null,null,null,null,null,null,null,null,null,null,null,"",0,0,0,0,0,""]
[null,null,null,null,null,null,null,null,null,null,null,null,"",0,0,0,0,0,""]
[null,null,null,null,null,null,null,null,null,null,null,null,"",0,0,0,0,0,""]
[null,null,null,null,null,null,null,null,null,null,null,null,"",0,0,0,0,0,""]
[null,null,null,null,null,null,null,null,null,null,null,null,"",0,0,0,0,0,""]
[null,null,null,null,null,null,null,null,null,null,null,null,"",0,0,0,0,0,""]
[null,null,null,null,null,null,null,null,null,null,null,null,"",0,0,0,0,0,""]
[null,null,null,null,null,null,null,null,null,null,null,null,"",0,0,0,0,0,""]
[null,null,null,null,null,null,null,null,null,null,null,null,"",0,0,0,0,0,""]
[null,null,null,null,null,null,null,null,null,null,null,null,"",0,0,0,0,0,""]
[null,null,null,null,null,null,null,null,null,null,null,null,"",0,0,0,0,0,""]
[null,null,null,null,null,null,null,null,null,null,null,null,"",0,0,0,0,0,""]
[null,null,null,null,null,null,null,null,null,null,null,null,"",0,0,0,0,0,""]
[null,null,null,null,null,null,null,null,null,null,null,null,"",0,0,0,0,0,""]
[null,null,null,null,null,null,null,null,null,null,null,null,"",0,0,0,0,0,""]
[null,null,null,null,null,null,null,null,null,null,null,null,"",0,0,0,0,0,""]
[null,null,null,null,null,null,null,null,null,null,null,null,"",0,0,0,0,0,""]
[null,null,null,null,null,null,null,null,null,null,null,null,"",0,0,0,0,0,""]
[null,null,null,null,null,null,null,null,null,null,null,null,"",0,0,0,0,0,""]
[null,null,null,null,null,null,null,null,null,null,null,null,"",0,0,0,0,0,""]
[null,null,null,null,null,null,null,null,null,null,null,null,"",0,0,0,0,0,""]
[null,null,null,null,null,null,null,null,null,null,null,null,{"$f":"IF(ISBLANK(H1474),\"\",SUM(H1474:L1474))","v":""},{"$f":"IF(ISBLANK(H1474),0,IF(H1474=0,1,0))","v":0},{"$f":"IF(ISBLANK(I1474),0,IF(I1474=0,1,0))","v":0},{"$f":"IF(ISBLANK(J1474),0,IF(J1474=0,1,0))","v":0},{"$f":"IF(ISBLANK(K1474),0,IF(K1474=0,1,0))","v":0},{"$f":"IF(ISBLANK(L1474),0,IF(L1474=0,1,0))","v":0},{"$f":"IF(SUM(N1474:R1474)<>0,\"Zero!\",\"\")","v":""}]
[null,null,null,null,null,null,null,null,null,null,null,null,"",0,0,0,0,0,""]
[null,null,null,null,null,null,null,null,null,null,null,null,"",0,0,0,0,0,""]
[null,null,null,null,null,null,null,null,null,null,null,null,"",0,0,0,0,0,""]
[null,null,null,null,null,null,null,null,null,null,null,null,"",0,0,0,0,0,""]
[null,null,null,null,null,null,null,null,null,null,null,null,"",0,0,0,0,0,""]
[null,null,null,null,null,null,null,null,null,null,null,null,"",0,0,0,0,0,""]
[null,null,null,null,null,null,null,null,null,null,null,null,"",0,0,0,0,0,""]
[null,null,null,null,null,null,null,null,null,null,null,null,"",0,0,0,0,0,""]
[null,null,null,null,null,null,null,null,null,null,null,null,"",0,0,0,0,0,""]
[null,null,null,null,null,null,null,null,null,null,null,null,"",0,0,0,0,0,""]
[null,null,null,null,null,null,null,null,null,null,null,null,"",0,0,0,0,0,""]
[null,null,null,null,null,null,null,null,null,null,null,null,"",0,0,0,0,0,""]
[null,null,null,null,null,null,null,null,null,null,null,null,"",0,0,0,0,0,""]
[null,null,null,null,null,null,null,null,null,null,null,null,"",0,0,0,0,0,""]
[null,null,null,null,null,null,null,null,null,null,null,null,"",0,0,0,0,0,""]
[null,null,null,null,null,null,null,null,null,null,null,null,"",0,0,0,0,0,""]
[null,null,null,null,null,null,null,null,null,null,null,null,"",0,0,0,0,0,""]
[null,null,null,null,null,null,null,null,null,null,null,null,"",0,0,0,0,0,""]
[null,null,null,null,null,null,null,null,null,null,null,null,"",0,0,0,0,0,""]
[null,null,null,null,null,null,null,null,null,null,null,null,"",0,0,0,0,0,""]
[null,null,null,null,null,null,null,null,null,null,null,null,"",0,0,0,0,0,""]
[null,null,null,null,null,null,null,null,null,null,null,null,"",0,0,0,0,0,""]
[null,null,null,null,null,null,null,null,null,null,null,null,"",0,0,0,0,0,""]
[null,null,null,null,null,null,null,null,null,null,null,null,"",0,0,0,0,0,""]
[null,null,null,null,null,null,null,null,null,null,null,null,"",0,0,0,0,0,""]
[null,null,null,null,null,null,null,null,null,null,null,null,"",0,0,0,0,0,""]
[null,null,null,null,null,null,null,null,null,null,null,null,"",0,0,0,0,0,""]
[null,null,null,null,null,null,null,null,null,null,null,null,"",0,0,0,0,0,""]
[null,null,null,null,null,null,null,null,null,null,null,null,"",0,0,0,0,0,""]
[null,null,null,null,null,null,null,null,null,null,null,null,"",0,0,0,0,0,""]
[null,null,null,null,null,null,null,null,null,null,null,null,"",0,0,0,0,0,""]
[null,null,null,null,null,null,null,null,null,null,null,null,"",0,0,0,0,0,""]
[null,null,null,null,null,null,null,null,null,null,null,null,"",0,0,0,0,0,""]
[null,null,null,null,null,null,null,null,null,null,null,null,"",0,0,0,0,0,""]
[null,null,null,null,null,null,null,null,null,null,null,null,{"$f":"IF(ISBLANK(H1509),\"\",SUM(H1509:L1509))","v":""},{"$f":"IF(ISBLANK(H1509),0,IF(H1509=0,1,0))","v":0},{"$f":"IF(ISBLANK(I1509),0,IF(I1509=0,1,0))","v":0},{"$f":"IF(ISBLANK(J1509),0,IF(J1509=0,1,0))","v":0},{"$f":"IF(ISBLANK(K1509),0,IF(K1509=0,1,0))","v":0},{"$f":"IF(ISBLANK(L1509),0,IF(L1509=0,1,0))","v":0},{"$f":"IF(SUM(N1509:R1509)<>0,\"Zero!\",\"\")","v":""}]
[null,null,null,null,null,null,null,null,null,null,null,null,"",0,0,0,0,0,""]
[null,null,null,null,null,null,null,null,null,null,null,null,"",0,0,0,0,0,""]
[null,null,null,null,null,null,null,null,null,null,null,null,"",0,0,0,0,0,""]
[null,null,null,null,null,null,null,null,null,null,null,null,"",0,0,0,0,0,""]
[null,null,null,null,null,null,null,null,null,null,null,null,"",0,0,0,0,0,""]
[null,null,null,null,null,null,null,null,null,null,null,null,"",0,0,0,0,0,""]
[null,null,null,null,null,null,null,null,null,null,null,null,"",0,0,0,0,0,""]
[null,null,null,null,null,null,null,null,null,null,null,null,"",0,0,0,0,0,""]
[null,null,null,null,null,null,null,null,null,null,null,null,"",0,0,0,0,0,""]
[null,null,null,null,null,null,null,null,null,null,null,null,"",0,0,0,0,0,""]
[null,null,null,null,null,null,null,null,null,null,null,null,"",0,0,0,0,0,""]
[null,null,null,null,null,null,null,null,null,null,null,null,"",0,0,0,0,0,""]
[null,null,null,null,null,null,null,null,null,null,null,null,"",0,0,0,0,0,""]
[null,null,null,null,null,null,null,null,null,null,null,null,"",0,0,0,0,0,""]
[null,null,null,null,null,null,null,null,null,null,null,null,"",0,0,0,0,0,""]
[null,null,null,null,null,null,null,null,null,null,null,null,"",0,0,0,0,0,""]
[null,null,null,null,null,null,null,null,null,null,null,null,"",0,0,0,0,0,""]
[null,null,null,null,null,null,null,null,null,null,null,null,"",0,0,0,0,0,""]
[null,null,null,null,null,null,null,null,null,null,null,null,"",0,0,0,0,0,""]
[null,null,null,null,null,null,null,null,null,null,null,null,"",0,0,0,0,0,""]
[null,null,null,null,null,null,null,null,null,null,null,null,"",0,0,0,0,0,""]
[null,null,null,null,null,null,null,null,null,null,null,null,"",0,0,0,0,0,""]
[null,null,null,null,null,null,null,null,null,null,null,null,"",0,0,0,0,0,""]
[null,null,null,null,null,null,null,null,null,null,null,null,"",0,0,0,0,0,""]
[null,null,null,null,null,null,null,null,null,null,null,null,"",0,0,0,0,0,""]
[null,null,null,null,null,null,null,null,null,null,null,null,"",0,0,0,0,0,""]
[null,null,null,null,null,null,null,null,null,null,null,null,"",0,0,0,0,0,""]
[null,null,null,null,null,null,null,null,null,null,null,null,"",0,0,0,0,0,""]
[null,null,null,null,null,null,null,null,null,null,null,null,"",0,0,0,0,0,""]
[null,null,null,null,null,null,null,null,null,null,null,null,"",0,0,0,0,0,""]
[null,null,null,null,null,null,null,null,null,null,null,null,"",0,0,0,0,0,""]
[null,null,null,null,null,null,null,null,null,null,null,null,"",0,0,0,0,0,""]
[null,null,null,null,null,null,null,null,null,null,null,null,"",0,0,0,0,0,""]
[null,null,null,null,null,null,null,null,null,null,null,null,"",0,0,0,0,0,""]
[null,null,null,null,null,null,null,null,null,null,null,null,"",0,0,0,0,0,""]
[null,null,null,null,null,null,null,null,null,null,null,null,"",0,0,0,0,0,""]
[null,null,null,null,null,null,null,null,null,null,null,null,"",0,0,0,0,0,""]
[null,null,null,null,null,null,null,null,null,null,null,null,"",0,0,0,0,0,""]
[null,null,null,null,null,null,null,null,null,null,null,null,"",0,0,0,0,0,""]
[null,null,null,null,null,null,null,null,null,null,null,null,"",0,0,0,0,0,""]
[null,null,null,null,null,null,null,null,null,null,null,null,"",0,0,0,0,0,""]
[null,null,null,null,null,null,null,null,null,null,null,null,"",0,0,0,0,0,""]
[null,null,null,null,null,null,null,null,null,null,null,null,"",0,0,0,0,0,""]
[null,null,null,null,null,null,null,null,null,null,null,null,"",0,0,0,0,0,""]
[null,null,null,null,null,null,null,null,null,null,null,null,"",0,0,0,0,0,""]
[null,null,null,null,null,null,null,null,null,null,null,null,"",0,0,0,0,0,""]
[null,null,null,null,null,null,null,null,null,null,null,null,"",0,0,0,0,0,""]
[null,null,null,null,null,null,null,null,null,null,null,null,"",0,0,0,0,0,""]
[null,null,null,null,null,null,null,null,null,null,null,null,"",0,0,0,0,0,""]
[null,null,null,null,null,null,null,null,null,null,null,null,"",0,0,0,0,0,""]
[null,null,null,null,null,null,null,null,null,null,null,null,"",0,0,0,0,0,""]
[null,null,null,null,null,null,null,null,null,null,null,null,"",0,0,0,0,0,""]
[null,null,null,null,null,null,null,null,null,null,null,null,"",0,0,0,0,0,""]
[null,null,null,null,null,null,null,null,null,null,null,null,"",0,0,0,0,0,""]
[null,null,null,null,null,null,null,null,null,null,null,null,"",0,0,0,0,0,""]
[null,null,null,null,null,null,null,null,null,null,null,null,"",0,0,0,0,0,""]
[null,null,null,null,null,null,null,null,null,null,null,null,"",0,0,0,0,0,""]
[null,null,null,null,null,null,null,null,null,null,null,null,"",0,0,0,0,0,""]
[null,null,null,null,null,null,null,null,null,null,null,null,{"$f":"IF(ISBLANK(H1568),\"\",SUM(H1568:L1568))","v":""},0,0,0,0,0,""]
[null,null,null,null,null,null,null,null,null,null,null,null,"",0,0,0,0,0,""]
[null,null,null,null,null,null,null,null,null,null,null,null,"",0,0,0,0,0,""]
[null,null,null,null,null,null,null,null,null,null,null,null,"",{"$f":"IF(ISBLANK(H1571),0,IF(H1571=0,1,0))","v":0},{"$f":"IF(ISBLANK(I1571),0,IF(I1571=0,1,0))","v":0},{"$f":"IF(ISBLANK(J1571),0,IF(J1571=0,1,0))","v":0},{"$f":"IF(ISBLANK(K1571),0,IF(K1571=0,1,0))","v":0},{"$f":"IF(ISBLANK(L1571),0,IF(L1571=0,1,0))","v":0},{"$f":"IF(SUM(N1571:R1571)<>0,\"Zero!\",\"\")","v":""}]
[null,null,null,null,null,null,null,null,null,null,null,null,"",0,0,0,0,0,""]
[null,null,null,null,null,null,null,null,null,null,null,null,"",0,0,0,0,0,""]
[null,null,null,null,null,null,null,null,null,null,null,null,"",0,0,0,0,0,""]
[null,null,null,null,null,null,null,null,null,null,null,null,"",0,0,0,0,0,""]
[null,null,null,null,null,null,null,null,null,null,null,null,"",0,0,0,0,0,""]
[null,null,null,null,null,null,null,null,null,null,null,null,"",0,0,0,0,0,""]
[null,null,null,null,null,null,null,null,null,null,null,null,"",0,0,0,0,0,""]
[null,null,null,null,null,null,null,null,null,null,null,null,"",0,0,0,0,0,""]
[null,null,null,null,null,null,null,null,null,null,null,null,"",0,0,0,0,0,""]
[null,null,null,null,null,null,null,null,null,null,null,null,"",0,0,0,0,0,""]
[null,null,null,null,null,null,null,null,null,null,null,null,"",0,0,0,0,0,""]
[null,null,null,null,null,null,null,null,null,null,null,null,"",0,0,0,0,0,""]
[null,null,null,null,null,null,null,null,null,null,null,null,"",0,0,0,0,0,""]
[null,null,null,null,null,null,null,null,null,null,null,null,"",0,0,0,0,0,""]
[null,null,null,null,null,null,null,null,null,null,null,null,"",0,0,0,0,0,""]
[null,null,null,null,null,null,null,null,null,null,null,null,"",0,0,0,0,0,""]
[null,null,null,null,null,null,null,null,null,null,null,null,"",0,0,0,0,0,""]
[null,null,null,null,null,null,null,null,null,null,null,null,"",0,0,0,0,0,""]
[null,null,null,null,null,null,null,null,null,null,null,null,"",0,0,0,0,0,""]
[null,null,null,null,null,null,null,null,null,null,null,null,"",0,0,0,0,0,""]
[null,null,null,null,null,null,null,null,null,null,null,null,"",0,0,0,0,0,""]
[null,null,null,null,null,null,null,null,null,null,null,null,"",0,0,0,0,0,""]
[null,null,null,null,null,null,null,null,null,null,null,null,"",0,0,0,0,0,""]
[null,null,null,null,null,null,null,null,null,null,null,null,"",0,0,0,0,0,""]
[null,null,null,null,null,null,null,null,null,null,null,null,"",0,0,0,0,0,""]
[null,null,null,null,null,null,null,null,null,null,null,null,"",0,0,0,0,0,""]
[null,null,null,null,null,null,null,null,null,null,null,null,"",0,0,0,0,0,""]
[null,null,null,null,null,null,null,null,null,null,null,null,"",0,0,0,0,0,""]
[null,null,null,null,null,null,null,null,null,null,null,null,"",0,0,0,0,0,""]
[null,null,null,null,null,null,null,null,null,null,null,null,"",0,0,0,0,0,""]
[null,null,null,null,null,null,null,null,null,null,null,null,"",0,0,0,0,0,""]
[null,null,null,null,null,null,null,null,null,null,null,null,"",0,0,0,0,0,""]
[null,null,null,null,null,null,null,null,null,null,null,null,"",0,0,0,0,0,""]
[null,null,null,null,null,null,null,null,null,null,null,null,"",0,0,0,0,0,""]
[null,null,null,null,null,null,null,null,null,null,null,null,"",0,0,0,0,0,""]
[null,null,null,null,null,null,null,null,null,null,null,null,"",0,0,0,0,0,""]
[null,null,null,null,null,null,null,null,null,null,null,null,"",0,0,0,0,0,""]
[null,null,null,null,null,null,null,null,null,null,null,null,"",0,0,0,0,0,""]
[null,null,null,null,null,null,null,null,null,null,null,null,"",0,0,0,0,0,""]
[null,null,null,null,null,null,null,null,null,null,null,null,"",0,0,0,0,0,""]
[null,null,null,null,null,null,null,null,null,null,null,null,"",0,0,0,0,0,""]
[null,null,null,null,null,null,null,null,null,null,null,null,"",0,0,0,0,0,""]
[null,null,null,null,null,null,null,null,null,null,null,null,"",0,0,0,0,0,""]
[null,null,null,null,null,null,null,null,null,null,null,null,"",0,0,0,0,0,""]
[null,null,null,null,null,null,null,null,null,null,null,null,"",0,0,0,0,0,""]
[null,null,null,null,null,null,null,null,null,null,null,null,"",0,0,0,0,0,""]
[null,null,null,null,null,null,null,null,null,null,null,null,"",0,0,0,0,0,""]
[null,null,null,null,null,null,null,null,null,null,null,null,"",0,0,0,0,0,""]
[null,null,null,null,null,null,null,null,null,null,null,null,"",0,0,0,0,0,""]
[null,null,null,null,null,null,null,null,null,null,null,null,"",0,0,0,0,0,""]
[null,null,null,null,null,null,null,null,null,null,null,null,"",0,0,0,0,0,""]
[null,null,null,null,null,null,null,null,null,null,null,null,"",0,0,0,0,0,""]
[null,null,null,null,null,null,null,null,null,null,null,null,"",0,0,0,0,0,""]
[null,null,null,null,null,null,null,null,null,null,null,null,"",0,0,0,0,0,""]
[null,null,null,null,null,null,null,null,null,null,null,null,"",0,0,0,0,0,""]
[null,null,null,null,null,null,null,null,null,null,null,null,"",0,0,0,0,0,""]
[null,null,null,null,null,null,null,null,null,null,null,null,"",0,0,0,0,0,""]
[null,null,null,null,null,null,null,null,null,null,null,null,"",0,0,0,0,0,""]
[null,null,null,null,null,null,null,null,null,null,null,null,"",0,0,0,0,0,""]
[null,null,null,null,null,null,null,null,null,null,null,null,"",0,0,0,0,0,""]
[null,null,null,null,null,null,null,null,null,null,null,null,{"$f":"IF(ISBLANK(H1632),\"\",SUM(H1632:L1632))","v":""},0,0,0,0,0,""]
[null,null,null,null,null,null,null,null,null,null,null,null,"",0,0,0,0,0,""]
[null,null,null,null,null,null,null,null,null,null,null,null,"",0,0,0,0,0,""]
[null,null,null,null,null,null,null,null,null,null,null,null,"",{"$f":"IF(ISBLANK(H1635),0,IF(H1635=0,1,0))","v":0},{"$f":"IF(ISBLANK(I1635),0,IF(I1635=0,1,0))","v":0},{"$f":"IF(ISBLANK(J1635),0,IF(J1635=0,1,0))","v":0},{"$f":"IF(ISBLANK(K1635),0,IF(K1635=0,1,0))","v":0},{"$f":"IF(ISBLANK(L1635),0,IF(L1635=0,1,0))","v":0},{"$f":"IF(SUM(N1635:R1635)<>0,\"Zero!\",\"\")","v":""}]
[null,null,null,null,null,null,null,null,null,null,null,null,"",0,0,0,0,0,""]
[null,null,null,null,null,null,null,null,null,null,null,null,"",0,0,0,0,0,""]
[null,null,null,null,null,null,null,null,null,null,null,null,"",0,0,0,0,0,""]
[null,null,null,null,null,null,null,null,null,null,null,null,"",0,0,0,0,0,""]
[null,null,null,null,null,null,null,null,null,null,null,null,"",0,0,0,0,0,""]
[null,null,null,null,null,null,null,null,null,null,null,null,"",0,0,0,0,0,""]
[null,null,null,null,null,null,null,null,null,null,null,null,"",0,0,0,0,0,""]
[null,null,null,null,null,null,null,null,null,null,null,null,"",0,0,0,0,0,""]
[null,null,null,null,null,null,null,null,null,null,null,null,"",0,0,0,0,0,""]
[null,null,null,null,null,null,null,null,null,null,null,null,"",0,0,0,0,0,""]
[null,null,null,null,null,null,null,null,null,null,null,null,"",0,0,0,0,0,""]
[null,null,null,null,null,null,null,null,null,null,null,null,"",0,0,0,0,0,""]
[null,null,null,null,null,null,null,null,null,null,null,null,"",0,0,0,0,0,""]
[null,null,null,null,null,null,null,null,null,null,null,null,"",0,0,0,0,0,""]
[null,null,null,null,null,null,null,null,null,null,null,null,"",0,0,0,0,0,""]
[null,null,null,null,null,null,null,null,null,null,null,null,"",0,0,0,0,0,""]
[null,null,null,null,null,null,null,null,null,null,null,null,"",0,0,0,0,0,""]
[null,null,null,null,null,null,null,null,null,null,null,null,"",0,0,0,0,0,""]
[null,null,null,null,null,null,null,null,null,null,null,null,"",0,0,0,0,0,""]
[null,null,null,null,null,null,null,null,null,null,null,null,"",0,0,0,0,0,""]
[null,null,null,null,null,null,null,null,null,null,null,null,"",0,0,0,0,0,""]
[null,null,null,null,null,null,null,null,null,null,null,null,"",0,0,0,0,0,""]
[null,null,null,null,null,null,null,null,null,null,null,null,"",0,0,0,0,0,""]
[null,null,null,null,null,null,null,null,null,null,null,null,"",0,0,0,0,0,""]
[null,null,null,null,null,null,null,null,null,null,null,null,"",0,0,0,0,0,""]
[null,null,null,null,null,null,null,null,null,null,null,null,"",0,0,0,0,0,""]
[null,null,null,null,null,null,null,null,null,null,null,null,"",0,0,0,0,0,""]
[null,null,null,null,null,null,null,null,null,null,null,null,"",0,0,0,0,0,""]
[null,null,null,null,null,null,null,null,null,null,null,null,"",0,0,0,0,0,""]
[null,null,null,null,null,null,null,null,null,null,null,null,"",0,0,0,0,0,""]
[null,null,null,null,null,null,null,null,null,null,null,null,"",0,0,0,0,0,""]
[null,null,null,null,null,null,null,null,null,null,null,null,"",0,0,0,0,0,""]
[null,null,null,null,null,null,null,null,null,null,null,null,"",0,0,0,0,0,""]
[null,null,null,null,null,null,null,null,null,null,null,null,"",0,0,0,0,0,""]
[null,null,null,null,null,null,null,null,null,null,null,null,"",0,0,0,0,0,""]
[null,null,null,null,null,null,null,null,null,null,null,null,"",0,0,0,0,0,""]
[null,null,null,null,null,null,null,null,null,null,null,null,"",0,0,0,0,0,""]
[null,null,null,null,null,null,null,null,null,null,null,null,"",0,0,0,0,0,""]
[null,null,null,null,null,null,null,null,null,null,null,null,"",0,0,0,0,0,""]
[null,null,null,null,null,null,null,null,null,null,null,null,"",0,0,0,0,0,""]
[null,null,null,null,null,null,null,null,null,null,null,null,"",0,0,0,0,0,""]
[null,null,null,null,null,null,null,null,null,null,null,null,"",0,0,0,0,0,""]
[null,null,null,null,null,null,null,null,null,null,null,null,"",0,0,0,0,0,""]
[null,null,null,null,null,null,null,null,null,null,null,null,"",0,0,0,0,0,""]
[null,null,null,null,null,null,null,null,null,null,null,null,"",0,0,0,0,0,""]
[null,null,null,null,null,null,null,null,null,null,null,null,"",0,0,0,0,0,""]
[null,null,null,null,null,null,null,null,null,null,null,null,"",0,0,0,0,0,""]
[null,null,null,null,null,null,null,null,null,null,null,null,"",0,0,0,0,0,""]
[null,null,null,null,null,null,null,null,null,null,null,null,"",0,0,0,0,0,""]
[null,null,null,null,null,null,null,null,null,null,null,null,"",0,0,0,0,0,""]
[null,null,null,null,null,null,null,null,null,null,null,null,"",0,0,0,0,0,""]
[null,null,null,null,null,null,null,null,null,null,null,null,"",0,0,0,0,0,""]
[null,null,null,null,null,null,null,null,null,null,null,null,"",0,0,0,0,0,""]
[null,null,null,null,null,null,null,null,null,null,null,null,"",0,0,0,0,0,""]
[null,null,null,null,null,null,null,null,null,null,null,null,"",0,0,0,0,0,""]
[null,null,null,null,null,null,null,null,null,null,null,null,"",0,0,0,0,0,""]
[null,null,null,null,null,null,null,null,null,null,null,null,"",0,0,0,0,0,""]
[null,null,null,null,null,null,null,null,null,null,null,null,"",0,0,0,0,0,""]
[null,null,null,null,null,null,null,null,null,null,null,null,"",0,0,0,0,0,""]
[null,null,null,null,null,null,null,null,null,null,null,null,"",0,0,0,0,0,""]
[null,null,null,null,null,null,null,null,null,null,null,null,{"$f":"IF(ISBLANK(H1696),\"\",SUM(H1696:L1696))","v":""},0,0,0,0,0,""]
[null,null,null,null,null,null,null,null,null,null,null,null,"",0,0,0,0,0,""]
[null,null,null,null,null,null,null,null,null,null,null,null,"",0,0,0,0,0,""]
[null,null,null,null,null,null,null,null,null,null,null,null,"",{"$f":"IF(ISBLANK(H1699),0,IF(H1699=0,1,0))","v":0},{"$f":"IF(ISBLANK(I1699),0,IF(I1699=0,1,0))","v":0},{"$f":"IF(ISBLANK(J1699),0,IF(J1699=0,1,0))","v":0},{"$f":"IF(ISBLANK(K1699),0,IF(K1699=0,1,0))","v":0},{"$f":"IF(ISBLANK(L1699),0,IF(L1699=0,1,0))","v":0},{"$f":"IF(SUM(N1699:R1699)<>0,\"Zero!\",\"\")","v":""}]
[null,null,null,null,null,null,null,null,null,null,null,null,"",0,0,0,0,0,""]
[null,null,null,null,null,null,null,null,null,null,null,null,"",0,0,0,0,0,""]
[null,null,null,null,null,null,null,null,null,null,null,null,"",0,0,0,0,0,""]
[null,null,null,null,null,null,null,null,null,null,null,null,"",0,0,0,0,0,""]
[null,null,null,null,null,null,null,null,null,null,null,null,"",0,0,0,0,0,""]
[null,null,null,null,null,null,null,null,null,null,null,null,"",0,0,0,0,0,""]
[null,null,null,null,null,null,null,null,null,null,null,null,"",0,0,0,0,0,""]
[null,null,null,null,null,null,null,null,null,null,null,null,"",0,0,0,0,0,""]
[null,null,null,null,null,null,null,null,null,null,null,null,"",0,0,0,0,0,""]
[null,null,null,null,null,null,null,null,null,null,null,null,"",0,0,0,0,0,""]
[null,null,null,null,null,null,null,null,null,null,null,null,"",0,0,0,0,0,""]
[null,null,null,null,null,null,null,null,null,null,null,null,"",0,0,0,0,0,""]
[null,null,null,null,null,null,null,null,null,null,null,null,"",0,0,0,0,0,""]
[null,null,null,null,null,null,null,null,null,null,null,null,"",0,0,0,0,0,""]
[null,null,null,null,null,null,null,null,null,null,null,null,"",0,0,0,0,0,""]
[null,null,null,null,null,null,null,null,null,null,null,null,"",0,0,0,0,0,""]
[null,null,null,null,null,null,null,null,null,null,null,null,"",0,0,0,0,0,""]
[null,null,null,null,null,null,null,null,null,null,null,null,"",0,0,0,0,0,""]
[null,null,null,null,null,null,null,null,null,null,null,null,"",0,0,0,0,0,""]
[null,null,null,null,null,null,null,null,null,null,null,null,"",0,0,0,0,0,""]
[null,null,null,null,null,null,null,null,null,null,null,null,"",0,0,0,0,0,""]
[null,null,null,null,null,null,null,null,null,null,null,null,"",0,0,0,0,0,""]
[null,null,null,null,null,null,null,null,null,null,null,null,"",0,0,0,0,0,""]
[null,null,null,null,null,null,null,null,null,null,null,null,"",0,0,0,0,0,""]
[null,null,null,null,null,null,null,null,null,null,null,null,"",0,0,0,0,0,""]
[null,null,null,null,null,null,null,null,null,null,null,null,"",0,0,0,0,0,""]
[null,null,null,null,null,null,null,null,null,null,null,null,"",0,0,0,0,0,""]
[null,null,null,null,null,null,null,null,null,null,null,null,"",0,0,0,0,0,""]
[null,null,null,null,null,null,null,null,null,null,null,null,"",0,0,0,0,0,""]
[null,null,null,null,null,null,null,null,null,null,null,null,"",0,0,0,0,0,""]
[null,null,null,null,null,null,null,null,null,null,null,null,"",0,0,0,0,0,""]
[null,null,null,null,null,null,null,null,null,null,null,null,"",0,0,0,0,0,""]
[null,null,null,null,null,null,null,null,null,null,null,null,"",0,0,0,0,0,""]
[null,null,null,null,null,null,null,null,null,null,null,null,"",0,0,0,0,0,""]
[null,null,null,null,null,null,null,null,null,null,null,null,"",0,0,0,0,0,""]
[null,null,null,null,null,null,null,null,null,null,null,null,"",0,0,0,0,0,""]
[null,null,null,null,null,null,null,null,null,null,null,null,"",0,0,0,0,0,""]
[null,null,null,null,null,null,null,null,null,null,null,null,"",0,0,0,0,0,""]
[null,null,null,null,null,null,null,null,null,null,null,null,"",0,0,0,0,0,""]
[null,null,null,null,null,null,null,null,null,null,null,null,"",0,0,0,0,0,""]
[null,null,null,null,null,null,null,null,null,null,null,null,"",0,0,0,0,0,""]
[null,null,null,null,null,null,null,null,null,null,null,null,"",0,0,0,0,0,""]
[null,null,null,null,null,null,null,null,null,null,null,null,"",0,0,0,0,0,""]
[null,null,null,null,null,null,null,null,null,null,null,null,"",0,0,0,0,0,""]
[null,null,null,null,null,null,null,null,null,null,null,null,"",0,0,0,0,0,""]
[null,null,null,null,null,null,null,null,null,null,null,null,"",0,0,0,0,0,""]
[null,null,null,null,null,null,null,null,null,null,null,null,"",0,0,0,0,0,""]
[null,null,null,null,null,null,null,null,null,null,null,null,"",0,0,0,0,0,""]
[null,null,null,null,null,null,null,null,null,null,null,null,"",0,0,0,0,0,""]
[null,null,null,null,null,null,null,null,null,null,null,null,"",0,0,0,0,0,""]
[null,null,null,null,null,null,null,null,null,null,null,null,"",0,0,0,0,0,""]
[null,null,null,null,null,null,null,null,null,null,null,null,"",0,0,0,0,0,""]
[null,null,null,null,null,null,null,null,null,null,null,null,"",0,0,0,0,0,""]
[null,null,null,null,null,null,null,null,null,null,null,null,"",0,0,0,0,0,""]
[null,null,null,null,null,null,null,null,null,null,null,null,"",0,0,0,0,0,""]
[null,null,null,null,null,null,null,null,null,null,null,null,"",0,0,0,0,0,""]
[null,null,null,null,null,null,null,null,null,null,null,null,"",0,0,0,0,0,""]
[null,null,null,null,null,null,null,null,null,null,null,null,"",0,0,0,0,0,""]
[null,null,null,null,null,null,null,null,null,null,null,null,"",0,0,0,0,0,""]
[null,null,null,null,null,null,null,null,null,null,null,null,"",0,0,0,0,0,""]
[null,null,null,null,null,null,null,null,null,null,null,null,{"$f":"IF(ISBLANK(H1760),\"\",SUM(H1760:L1760))","v":""},0,0,0,0,0,""]
[null,null,null,null,null,null,null,null,null,null,null,null,"",0,0,0,0,0,""]
[null,null,null,null,null,null,null,null,null,null,null,null,"",0,0,0,0,0,""]
[null,null,null,null,null,null,null,null,null,null,null,null,"",{"$f":"IF(ISBLANK(H1763),0,IF(H1763=0,1,0))","v":0},{"$f":"IF(ISBLANK(I1763),0,IF(I1763=0,1,0))","v":0},{"$f":"IF(ISBLANK(J1763),0,IF(J1763=0,1,0))","v":0},{"$f":"IF(ISBLANK(K1763),0,IF(K1763=0,1,0))","v":0},{"$f":"IF(ISBLANK(L1763),0,IF(L1763=0,1,0))","v":0},{"$f":"IF(SUM(N1763:R1763)<>0,\"Zero!\",\"\")","v":""}]
[null,null,null,null,null,null,null,null,null,null,null,null,"",0,0,0,0,0,""]
[null,null,null,null,null,null,null,null,null,null,null,null,"",0,0,0,0,0,""]
[null,null,null,null,null,null,null,null,null,null,null,null,"",0,0,0,0,0,""]
[null,null,null,null,null,null,null,null,null,null,null,null,"",0,0,0,0,0,""]
[null,null,null,null,null,null,null,null,null,null,null,null,"",0,0,0,0,0,""]
[null,null,null,null,null,null,null,null,null,null,null,null,"",0,0,0,0,0,""]
[null,null,null,null,null,null,null,null,null,null,null,null,"",0,0,0,0,0,""]
[null,null,null,null,null,null,null,null,null,null,null,null,"",0,0,0,0,0,""]
[null,null,null,null,null,null,null,null,null,null,null,null,"",0,0,0,0,0,""]
[null,null,null,null,null,null,null,null,null,null,null,null,"",0,0,0,0,0,""]
[null,null,null,null,null,null,null,null,null,null,null,null,"",0,0,0,0,0,""]
[null,null,null,null,null,null,null,null,null,null,null,null,"",0,0,0,0,0,""]
[null,null,null,null,null,null,null,null,null,null,null,null,"",0,0,0,0,0,""]
[null,null,null,null,null,null,null,null,null,null,null,null,"",0,0,0,0,0,""]
[null,null,null,null,null,null,null,null,null,null,null,null,"",0,0,0,0,0,""]
[null,null,null,null,null,null,null,null,null,null,null,null,"",0,0,0,0,0,""]
[null,null,null,null,null,null,null,null,null,null,null,null,"",0,0,0,0,0,""]
[null,null,null,null,null,null,null,null,null,null,null,null,"",0,0,0,0,0,""]
[null,null,null,null,null,null,null,null,null,null,null,null,"",0,0,0,0,0,""]
[null,null,null,null,null,null,null,null,null,null,null,null,"",0,0,0,0,0,""]
[null,null,null,null,null,null,null,null,null,null,null,null,"",0,0,0,0,0,""]
[null,null,null,null,null,null,null,null,null,null,null,null,"",0,0,0,0,0,""]
[null,null,null,null,null,null,null,null,null,null,null,null,"",0,0,0,0,0,""]
[null,null,null,null,null,null,null,null,null,null,null,null,"",0,0,0,0,0,""]
[null,null,null,null,null,null,null,null,null,null,null,null,"",0,0,0,0,0,""]
[null,null,null,null,null,null,null,null,null,null,null,null,"",0,0,0,0,0,""]
[null,null,null,null,null,null,null,null,null,null,null,null,"",0,0,0,0,0,""]
[null,null,null,null,null,null,null,null,null,null,null,null,"",0,0,0,0,0,""]
[null,null,null,null,null,null,null,null,null,null,null,null,"",0,0,0,0,0,""]
[null,null,null,null,null,null,null,null,null,null,null,null,"",0,0,0,0,0,""]
[null,null,null,null,null,null,null,null,null,null,null,null,"",0,0,0,0,0,""]
[null,null,null,null,null,null,null,null,null,null,null,null,"",0,0,0,0,0,""]
[null,null,null,null,null,null,null,null,null,null,null,null,"",0,0,0,0,0,""]
[null,null,null,null,null,null,null,null,null,null,null,null,"",0,0,0,0,0,""]
[null,null,null,null,null,null,null,null,null,null,null,null,"",0,0,0,0,0,""]
[null,null,null,null,null,null,null,null,null,null,null,null,"",0,0,0,0,0,""]
[null,null,null,null,null,null,null,null,null,null,null,null,"",0,0,0,0,0,""]
[null,null,null,null,null,null,null,null,null,null,null,null,"",0,0,0,0,0,""]
[null,null,null,null,null,null,null,null,null,null,null,null,"",0,0,0,0,0,""]
[null,null,null,null,null,null,null,null,null,null,null,null,"",0,0,0,0,0,""]
[null,null,null,null,null,null,null,null,null,null,null,null,"",0,0,0,0,0,""]
[null,null,null,null,null,null,null,null,null,null,null,null,"",0,0,0,0,0,""]
[null,null,null,null,null,null,null,null,null,null,null,null,"",0,0,0,0,0,""]
[null,null,null,null,null,null,null,null,null,null,null,null,"",0,0,0,0,0,""]
[null,null,null,null,null,null,null,null,null,null,null,null,"",0,0,0,0,0,""]
[null,null,null,null,null,null,null,null,null,null,null,null,"",0,0,0,0,0,""]
[null,null,null,null,null,null,null,null,null,null,null,null,"",0,0,0,0,0,""]
[null,null,null,null,null,null,null,null,null,null,null,null,"",0,0,0,0,0,""]
[null,null,null,null,null,null,null,null,null,null,null,null,"",0,0,0,0,0,""]
[null,null,null,null,null,null,null,null,null,null,null,null,"",0,0,0,0,0,""]
[null,null,null,null,null,null,null,null,null,null,null,null,"",0,0,0,0,0,""]
[null,null,null,null,null,null,null,null,null,null,null,null,"",0,0,0,0,0,""]
[null,null,null,null,null,null,null,null,null,null,null,null,"",0,0,0,0,0,""]
[null,null,null,null,null,null,null,null,null,null,null,null,"",0,0,0,0,0,""]
[null,null,null,null,null,null,null,null,null,null,null,null,"",0,0,0,0,0,""]
[null,null,null,null,null,null,null,null,null,null,null,null,"",0,0,0,0,0,""]
[null,null,null,null,null,null,null,null,null,null,null,null,"",0,0,0,0,0,""]
[null,null,null,null,null,null,null,null,null,null,null,null,"",0,0,0,0,0,""]
[null,null,null,null,null,null,null,null,null,null,null,null,"",0,0,0,0,0,""]
[null,null,null,null,null,null,null,null,null,null,null,null,"",0,0,0,0,0,""]
[null,null,null,null,null,null,null,null,null,null,null,null,{"$f":"IF(ISBLANK(H1824),\"\",SUM(H1824:L1824))","v":""},0,0,0,0,0,""]
[null,null,null,null,null,null,null,null,null,null,null,null,"",0,0,0,0,0,""]
[null,null,null,null,null,null,null,null,null,null,null,null,"",0,0,0,0,0,""]
[null,null,null,null,null,null,null,null,null,null,null,null,"",{"$f":"IF(ISBLANK(H1827),0,IF(H1827=0,1,0))","v":0},{"$f":"IF(ISBLANK(I1827),0,IF(I1827=0,1,0))","v":0},{"$f":"IF(ISBLANK(J1827),0,IF(J1827=0,1,0))","v":0},{"$f":"IF(ISBLANK(K1827),0,IF(K1827=0,1,0))","v":0},{"$f":"IF(ISBLANK(L1827),0,IF(L1827=0,1,0))","v":0},{"$f":"IF(SUM(N1827:R1827)<>0,\"Zero!\",\"\")","v":""}]
[null,null,null,null,null,null,null,null,null,null,null,null,"",0,0,0,0,0,""]
[null,null,null,null,null,null,null,null,null,null,null,null,"",0,0,0,0,0,""]
[null,null,null,null,null,null,null,null,null,null,null,null,"",0,0,0,0,0,""]
[null,null,null,null,null,null,null,null,null,null,null,null,"",0,0,0,0,0,""]
[null,null,null,null,null,null,null,null,null,null,null,null,"",0,0,0,0,0,""]
[null,null,null,null,null,null,null,null,null,null,null,null,"",0,0,0,0,0,""]
[null,null,null,null,null,null,null,null,null,null,null,null,"",0,0,0,0,0,""]
[null,null,null,null,null,null,null,null,null,null,null,null,"",0,0,0,0,0,""]
[null,null,null,null,null,null,null,null,null,null,null,null,"",0,0,0,0,0,""]
[null,null,null,null,null,null,null,null,null,null,null,null,"",0,0,0,0,0,""]
[null,null,null,null,null,null,null,null,null,null,null,null,"",0,0,0,0,0,""]
[null,null,null,null,null,null,null,null,null,null,null,null,"",0,0,0,0,0,""]
[null,null,null,null,null,null,null,null,null,null,null,null,"",0,0,0,0,0,""]
[null,null,null,null,null,null,null,null,null,null,null,null,"",0,0,0,0,0,""]
[null,null,null,null,null,null,null,null,null,null,null,null,"",0,0,0,0,0,""]
[null,null,null,null,null,null,null,null,null,null,null,null,"",0,0,0,0,0,""]
[null,null,null,null,null,null,null,null,null,null,null,null,"",0,0,0,0,0,""]
[null,null,null,null,null,null,null,null,null,null,null,null,"",0,0,0,0,0,""]
[null,null,null,null,null,null,null,null,null,null,null,null,"",0,0,0,0,0,""]
[null,null,null,null,null,null,null,null,null,null,null,null,"",0,0,0,0,0,""]
[null,null,null,null,null,null,null,null,null,null,null,null,"",0,0,0,0,0,""]
[null,null,null,null,null,null,null,null,null,null,null,null,"",0,0,0,0,0,""]
[null,null,null,null,null,null,null,null,null,null,null,null,"",0,0,0,0,0,""]
[null,null,null,null,null,null,null,null,null,null,null,null,"",0,0,0,0,0,""]
[null,null,null,null,null,null,null,null,null,null,null,null,"",0,0,0,0,0,""]
[null,null,null,null,null,null,null,null,null,null,null,null,"",0,0,0,0,0,""]
[null,null,null,null,null,null,null,null,null,null,null,null,"",0,0,0,0,0,""]
[null,null,null,null,null,null,null,null,null,null,null,null,"",0,0,0,0,0,""]
[null,null,null,null,null,null,null,null,null,null,null,null,"",0,0,0,0,0,""]
[null,null,null,null,null,null,null,null,null,null,null,null,"",0,0,0,0,0,""]
[null,null,null,null,null,null,null,null,null,null,null,null,"",0,0,0,0,0,""]
[null,null,null,null,null,null,null,null,null,null,null,null,"",0,0,0,0,0,""]
[null,null,null,null,null,null,null,null,null,null,null,null,"",0,0,0,0,0,""]
[null,null,null,null,null,null,null,null,null,null,null,null,"",0,0,0,0,0,""]
[null,null,null,null,null,null,null,null,null,null,null,null,"",0,0,0,0,0,""]
[null,null,null,null,null,null,null,null,null,null,null,null,"",0,0,0,0,0,""]
[null,null,null,null,null,null,null,null,null,null,null,null,"",0,0,0,0,0,""]
[null,null,null,null,null,null,null,null,null,null,null,null,"",0,0,0,0,0,""]
[null,null,null,null,null,null,null,null,null,null,null,null,"",0,0,0,0,0,""]
[null,null,null,null,null,null,null,null,null,null,null,null,"",0,0,0,0,0,""]
[null,null,null,null,null,null,null,null,null,null,null,null,"",0,0,0,0,0,""]
[null,null,null,null,null,null,null,null,null,null,null,null,"",0,0,0,0,0,""]
[null,null,null,null,null,null,null,null,null,null,null,null,"",0,0,0,0,0,""]
[null,null,null,null,null,null,null,null,null,null,null,null,"",0,0,0,0,0,""]
[null,null,null,null,null,null,null,null,null,null,null,null,"",0,0,0,0,0,""]
[null,null,null,null,null,null,null,null,null,null,null,null,"",0,0,0,0,0,""]
[null,null,null,null,null,null,null,null,null,null,null,null,"",0,0,0,0,0,""]
[null,null,null,null,null,null,null,null,null,null,null,null,"",0,0,0,0,0,""]
[null,null,null,null,null,null,null,null,null,null,null,null,"",0,0,0,0,0,""]
[null,null,null,null,null,null,null,null,null,null,null,null,"",0,0,0,0,0,""]
[null,null,null,null,null,null,null,null,null,null,null,null,"",0,0,0,0,0,""]
[null,null,null,null,null,null,null,null,null,null,null,null,"",0,0,0,0,0,""]
[null,null,null,null,null,null,null,null,null,null,null,null,"",0,0,0,0,0,""]
[null,null,null,null,null,null,null,null,null,null,null,null,"",0,0,0,0,0,""]
[null,null,null,null,null,null,null,null,null,null,null,null,"",0,0,0,0,0,""]
[null,null,null,null,null,null,null,null,null,null,null,null,"",0,0,0,0,0,""]
[null,null,null,null,null,null,null,null,null,null,null,null,"",0,0,0,0,0,""]
[null,null,null,null,null,null,null,null,null,null,null,null,"",0,0,0,0,0,""]
[null,null,null,null,null,null,null,null,null,null,null,null,"",0,0,0,0,0,""]
[null,null,null,null,null,null,null,null,null,null,null,null,"",0,0,0,0,0,""]
[null,null,null,null,null,null,null,null,null,null,null,null,{"$f":"IF(ISBLANK(H1888),\"\",SUM(H1888:L1888))","v":""},0,0,0,0,0,""]
[null,null,null,null,null,null,null,null,null,null,null,null,"",0,0,0,0,0,""]
[null,null,null,null,null,null,null,null,null,null,null,null,"",0,0,0,0,0,""]
[null,null,null,null,null,null,null,null,null,null,null,null,"",{"$f":"IF(ISBLANK(H1891),0,IF(H1891=0,1,0))","v":0},{"$f":"IF(ISBLANK(I1891),0,IF(I1891=0,1,0))","v":0},{"$f":"IF(ISBLANK(J1891),0,IF(J1891=0,1,0))","v":0},{"$f":"IF(ISBLANK(K1891),0,IF(K1891=0,1,0))","v":0},{"$f":"IF(ISBLANK(L1891),0,IF(L1891=0,1,0))","v":0},{"$f":"IF(SUM(N1891:R1891)<>0,\"Zero!\",\"\")","v":""}]
[null,null,null,null,null,null,null,null,null,null,null,null,"",0,0,0,0,0,""]
[null,null,null,null,null,null,null,null,null,null,null,null,"",0,0,0,0,0,""]
[null,null,null,null,null,null,null,null,null,null,null,null,"",0,0,0,0,0,""]
[null,null,null,null,null,null,null,null,null,null,null,null,"",0,0,0,0,0,""]
[null,null,null,null,null,null,null,null,null,null,null,null,"",0,0,0,0,0,""]
[null,null,null,null,null,null,null,null,null,null,null,null,"",0,0,0,0,0,""]
[null,null,null,null,null,null,null,null,null,null,null,null,"",0,0,0,0,0,""]
[null,null,null,null,null,null,null,null,null,null,null,null,"",0,0,0,0,0,""]
[null,null,null,null,null,null,null,null,null,null,null,null,"",0,0,0,0,0,""]
[null,null,null,null,null,null,null,null,null,null,null,null,"",0,0,0,0,0,""]
[null,null,null,null,null,null,null,null,null,null,null,null,"",0,0,0,0,0,""]
[null,null,null,null,null,null,null,null,null,null,null,null,"",0,0,0,0,0,""]
[null,null,null,null,null,null,null,null,null,null,null,null,"",0,0,0,0,0,""]
[null,null,null,null,null,null,null,null,null,null,null,null,"",0,0,0,0,0,""]
[null,null,null,null,null,null,null,null,null,null,null,null,"",0,0,0,0,0,""]
[null,null,null,null,null,null,null,null,null,null,null,null,"",0,0,0,0,0,""]
[null,null,null,null,null,null,null,null,null,null,null,null,"",0,0,0,0,0,""]
[null,null,null,null,null,null,null,null,null,null,null,null,"",0,0,0,0,0,""]
[null,null,null,null,null,null,null,null,null,null,null,null,"",0,0,0,0,0,""]
[null,null,null,null,null,null,null,null,null,null,null,null,"",0,0,0,0,0,""]
[null,null,null,null,null,null,null,null,null,null,null,null,"",0,0,0,0,0,""]
[null,null,null,null,null,null,null,null,null,null,null,null,"",0,0,0,0,0,""]
[null,null,null,null,null,null,null,null,null,null,null,null,"",0,0,0,0,0,""]
[null,null,null,null,null,null,null,null,null,null,null,null,"",0,0,0,0,0,""]
[null,null,null,null,null,null,null,null,null,null,null,null,"",0,0,0,0,0,""]
[null,null,null,null,null,null,null,null,null,null,null,null,"",0,0,0,0,0,""]
[null,null,null,null,null,null,null,null,null,null,null,null,"",0,0,0,0,0,""]
[null,null,null,null,null,null,null,null,null,null,null,null,"",0,0,0,0,0,""]
[null,null,null,null,null,null,null,null,null,null,null,null,"",0,0,0,0,0,""]
[null,null,null,null,null,null,null,null,null,null,null,null,"",0,0,0,0,0,""]
[null,null,null,null,null,null,null,null,null,null,null,null,"",0,0,0,0,0,""]
[null,null,null,null,null,null,null,null,null,null,null,null,"",0,0,0,0,0,""]
[null,null,null,null,null,null,null,null,null,null,null,null,"",0,0,0,0,0,""]
[null,null,null,null,null,null,null,null,null,null,null,null,"",0,0,0,0,0,""]
[null,null,null,null,null,null,null,null,null,null,null,null,"",0,0,0,0,0,""]
[null,null,null,null,null,null,null,null,null,null,null,null,"",0,0,0,0,0,""]
[null,null,null,null,null,null,null,null,null,null,null,null,"",0,0,0,0,0,""]
[null,null,null,null,null,null,null,null,null,null,null,null,"",0,0,0,0,0,""]
[null,null,null,null,null,null,null,null,null,null,null,null,"",0,0,0,0,0,""]
[null,null,null,null,null,null,null,null,null,null,null,null,"",0,0,0,0,0,""]
[null,null,null,null,null,null,null,null,null,null,null,null,"",0,0,0,0,0,""]
[null,null,null,null,null,null,null,null,null,null,null,null,"",0,0,0,0,0,""]
[null,null,null,null,null,null,null,null,null,null,null,null,"",0,0,0,0,0,""]
[null,null,null,null,null,null,null,null,null,null,null,null,"",0,0,0,0,0,""]
[null,null,null,null,null,null,null,null,null,null,null,null,"",0,0,0,0,0,""]
[null,null,null,null,null,null,null,null,null,null,null,null,"",0,0,0,0,0,""]
[null,null,null,null,null,null,null,null,null,null,null,null,"",0,0,0,0,0,""]
[null,null,null,null,null,null,null,null,null,null,null,null,"",0,0,0,0,0,""]
[null,null,null,null,null,null,null,null,null,null,null,null,"",0,0,0,0,0,""]
[null,null,null,null,null,null,null,null,null,null,null,null,"",0,0,0,0,0,""]
[null,null,null,null,null,null,null,null,null,null,null,null,"",0,0,0,0,0,""]
[null,null,null,null,null,null,null,null,null,null,null,null,"",0,0,0,0,0,""]
[null,null,null,null,null,null,null,null,null,null,null,null,"",0,0,0,0,0,""]
[null,null,null,null,null,null,null,null,null,null,null,null,"",0,0,0,0,0,""]
[null,null,null,null,null,null,null,null,null,null,null,null,"",0,0,0,0,0,""]
[null,null,null,null,null,null,null,null,null,null,null,null,"",0,0,0,0,0,""]
[null,null,null,null,null,null,null,null,null,null,null,null,"",0,0,0,0,0,""]
[null,null,null,null,null,null,null,null,null,null,null,null,"",0,0,0,0,0,""]
[null,null,null,null,null,null,null,null,null,null,null,null,{"$f":"IF(ISBLANK(H1950),\"\",SUM(H1950:L1950))","v":""},{"$f":"IF(ISBLANK(H1950),0,IF(H1950=0,1,0))","v":0},{"$f":"IF(ISBLANK(I1950),0,IF(I1950=0,1,0))","v":0},{"$f":"IF(ISBLANK(J1950),0,IF(J1950=0,1,0))","v":0},{"$f":"IF(ISBLANK(K1950),0,IF(K1950=0,1,0))","v":0},{"$f":"IF(ISBLANK(L1950),0,IF(L1950=0,1,0))","v":0},{"$f":"IF(SUM(N1950:R1950)<>0,\"Zero!\",\"\")","v":""}]
[null,null,null,null,null,null,null,null,null,null,null,null,"",0,0,0,0,0,""]
[null,null,null,null,null,null,null,null,null,null,null,null,"",0,0,0,0,0,""]
[null,null,null,null,null,null,null,null,null,null,null,null,"",0,0,0,0,0,""]
[null,null,null,null,null,null,null,null,null,null,null,null,"",0,0,0,0,0,""]
[null,null,null,null,null,null,null,null,null,null,null,null,"",0,0,0,0,0,""]
[null,null,null,null,null,null,null,null,null,null,null,null,"",0,0,0,0,0,""]
[null,null,null,null,null,null,null,null,null,null,null,null,"",0,0,0,0,0,""]
[null,null,null,null,null,null,null,null,null,null,null,null,"",0,0,0,0,0,""]
[null,null,null,null,null,null,null,null,null,null,null,null,"",0,0,0,0,0,""]
[null,null,null,null,null,null,null,null,null,null,null,null,"",0,0,0,0,0,""]
[null,null,null,null,null,null,null,null,null,null,null,null,"",0,0,0,0,0,""]
[null,null,null,null,null,null,null,null,null,null,null,null,"",0,0,0,0,0,""]
[null,null,null,null,null,null,null,null,null,null,null,null,"",0,0,0,0,0,""]
[null,null,null,null,null,null,null,null,null,null,null,null,"",0,0,0,0,0,""]
[null,null,null,null,null,null,null,null,null,null,null,null,"",0,0,0,0,0,""]
[null,null,null,null,null,null,null,null,null,null,null,null,"",0,0,0,0,0,""]
[null,null,null,null,null,null,null,null,null,null,null,null,"",0,0,0,0,0,""]
[null,null,null,null,null,null,null,null,null,null,null,null,"",0,0,0,0,0,""]
[null,null,null,null,null,null,null,null,null,null,null,null,"",0,0,0,0,0,""]
[null,null,null,null,null,null,null,null,null,null,null,null,"",0,0,0,0,0,""]
[null,null,null,null,null,null,null,null,null,null,null,null,"",0,0,0,0,0,""]
[null,null,null,null,null,null,null,null,null,null,null,null,"",0,0,0,0,0,""]
[null,null,null,null,null,null,null,null,null,null,null,null,"",0,0,0,0,0,""]
[null,null,null,null,null,null,null,null,null,null,null,null,"",0,0,0,0,0,""]
[null,null,null,null,null,null,null,null,null,null,null,null,"",0,0,0,0,0,""]
[null,null,null,null,null,null,null,null,null,null,null,null,"",0,0,0,0,0,""]
[null,null,null,null,null,null,null,null,null,null,null,null,"",0,0,0,0,0,""]
[null,null,null,null,null,null,null,null,null,null,null,null,"",0,0,0,0,0,""]
[null,null,null,null,null,null,null,null,null,null,null,null,"",0,0,0,0,0,""]
[null,null,null,null,null,null,null,null,null,null,null,null,"",0,0,0,0,0,""]
[null,null,null,null,null,null,null,null,null,null,null,null,"",0,0,0,0,0,""]
[null,null,null,null,null,null,null,null,null,null,null,null,"",0,0,0,0,0,""]
[null,null,null,null,null,null,null,null,null,null,null,null,"",0,0,0,0,0,""]
[null,null,null,null,null,null,null,null,null,null,null,null,"",0,0,0,0,0,""]
[null,null,null,null,null,null,null,null,null,null,null,null,"",0,0,0,0,0,""]
[null,null,null,null,null,null,null,null,null,null,null,null,"",0,0,0,0,0,""]
[null,null,null,null,null,null,null,null,null,null,null,null,"",0,0,0,0,0,""]
[null,null,null,null,null,null,null,null,null,null,null,null,"",0,0,0,0,0,""]
[null,null,null,null,null,null,null,null,null,null,null,null,"",0,0,0,0,0,""]
[null,null,null,null,null,null,null,null,null,null,null,null,"",0,0,0,0,0,""]
[null,null,null,null,null,null,null,null,null,null,null,null,"",0,0,0,0,0,""]
[null,null,null,null,null,null,null,null,null,null,null,null,"",0,0,0,0,0,""]
[null,null,null,null,null,null,null,null,null,null,null,null,"",0,0,0,0,0,""]
[null,null,null,null,null,null,null,null,null,null,null,null,"",0,0,0,0,0,""]
[null,null,null,null,null,null,null,null,null,null,null,null,"",0,0,0,0,0,""]
[null,null,null,null,null,null,null,null,null,null,null,null,"",0,0,0,0,0,""]
[null,null,null,null,null,null,null,null,null,null,null,null,"",0,0,0,0,0,""]
[null,null,null,null,null,null,null,null,null,null,null,null,"",0,0,0,0,0,""]
[null,null,null,null,null,null,null,null,null,null,null,null,"",0,0,0,0,0,""]
[null,null,null,null,null,null,null,null,null,null,null,null,"",0,0,0,0,0,""]
[null,null,null,null,null,null,null,null,null,null,null,null,{"$f":"IF(ISBLANK(H2001),\"\",SUM(H2001:L2001))","v":""},{"$f":"IF(ISBLANK(H2001),0,IF(H2001=0,1,0))","v":0},{"$f":"IF(ISBLANK(I2001),0,IF(I2001=0,1,0))","v":0},{"$f":"IF(ISBLANK(J2001),0,IF(J2001=0,1,0))","v":0},{"$f":"IF(ISBLANK(K2001),0,IF(K2001=0,1,0))","v":0},{"$f":"IF(ISBLANK(L2001),0,IF(L2001=0,1,0))","v":0},{"$f":"IF(SUM(N2001:R2001)<>0,\"Zero!\",\"\")","v":""}]
[null,null,null,null,null,null,null,null,null,null,null,null,"",0,0,0,0,0,""]
[null,null,null,null,null,null,null,null,null,null,null,null,"",0,0,0,0,0,""]
[null,null,null,null,null,null,null,null,null,null,null,null,"",0,0,0,0,0,""]
[null,null,null,null,null,null,null,null,null,null,null,null,"",0,0,0,0,0,""]
[null,null,null,null,null,null,null,null,null,null,null,null,"",0,0,0,0,0,""]
[null,null,null,null,null,null,null,null,null,null,null,null,"",0,0,0,0,0,""]
[null,null,null,null,null,null,null,null,null,null,null,null,"",0,0,0,0,0,""]
[null,null,null,null,null,null,null,null,null,null,null,null,"",0,0,0,0,0,""]
[null,null,null,null,null,null,null,null,null,null,null,null,"",0,0,0,0,0,""]
[null,null,null,null,null,null,null,null,null,null,null,null,"",0,0,0,0,0,""]
[null,null,null,null,null,null,null,null,null,null,null,null,"",0,0,0,0,0,""]
[null,null,null,null,null,null,null,null,null,null,null,null,"",0,0,0,0,0,""]
[null,null,null,null,null,null,null,null,null,null,null,null,"",0,0,0,0,0,""]
[null,null,null,null,null,null,null,null,null,null,null,null,"",0,0,0,0,0,""]
[null,null,null,null,null,null,null,null,null,null,null,null,"",0,0,0,0,0,""]
[null,null,null,null,null,null,null,null,null,null,null,null,"",0,0,0,0,0,""]
[null,null,null,null,null,null,null,null,null,null,null,null,"",0,0,0,0,0,""]
[null,null,null,null,null,null,null,null,null,null,null,null,"",0,0,0,0,0,""]
[null,null,null,null,null,null,null,null,null,null,null,null,"",0,0,0,0,0,""]
[null,null,null,null,null,null,null,null,null,null,null,null,"",0,0,0,0,0,""]
[null,null,null,null,null,null,null,null,null,null,null,null,"",0,0,0,0,0,""]
[null,null,null,null,null,null,null,null,null,null,null,null,"",0,0,0,0,0,""]
[null,null,null,null,null,null,null,null,null,null,null,null,"",0,0,0,0,0,""]
[null,null,null,null,null,null,null,null,null,null,null,null,"",0,0,0,0,0,""]
[null,null,null,null,null,null,null,null,null,null,null,null,"",0,0,0,0,0,""]
[null,null,null,null,null,null,null,null,null,null,null,null,"",0,0,0,0,0,""]
[null,null,null,null,null,null,null,null,null,null,null,null,"",0,0,0,0,0,""]
[null,null,null,null,null,null,null,null,null,null,null,null,"",0,0,0,0,0,""]
[null,null,null,null,null,null,null,null,null,null,null,null,"",0,0,0,0,0,""]
[null,null,null,null,null,null,null,null,null,null,null,null,"",0,0,0,0,0,""]
[null,null,null,null,null,null,null,null,null,null,null,null,"",0,0,0,0,0,""]
[null,null,null,null,null,null,null,null,null,null,null,null,"",0,0,0,0,0,""]
[null,null,null,null,null,null,null,null,null,null,null,null,"",0,0,0,0,0,""]
[null,null,null,null,null,null,null,null,null,null,null,null,"",0,0,0,0,0,""]
[null,null,null,null,null,null,null,null,null,null,null,null,"",0,0,0,0,0,""]
[null,null,null,null,null,null,null,null,null,null,null,null,"",0,0,0,0,0,""]
[null,null,null,null,null,null,null,null,null,null,null,null,{"$f":"IF(ISBLANK(H2065),\"\",SUM(H2065:L2065))","v":""},{"$f":"IF(ISBLANK(H2065),0,IF(H2065=0,1,0))","v":0},{"$f":"IF(ISBLANK(I2065),0,IF(I2065=0,1,0))","v":0},{"$f":"IF(ISBLANK(J2065),0,IF(J2065=0,1,0))","v":0},{"$f":"IF(ISBLANK(K2065),0,IF(K2065=0,1,0))","v":0},{"$f":"IF(ISBLANK(L2065),0,IF(L2065=0,1,0))","v":0},{"$f":"IF(SUM(N2065:R2065)<>0,\"Zero!\",\"\")","v":""}]
[null,null,null,null,null,null,null,null,null,null,null,null,"",0,0,0,0,0,""]
[null,null,null,null,null,null,null,null,null,null,null,null,"",0,0,0,0,0,""]
[null,null,null,null,null,null,null,null,null,null,null,null,"",0,0,0,0,0,""]
[null,null,null,null,null,null,null,null,null,null,null,null,"",0,0,0,0,0,""]
[null,null,null,null,null,null,null,null,null,null,null,null,"",0,0,0,0,0,""]
[null,null,null,null,null,null,null,null,null,null,null,null,"",0,0,0,0,0,""]
[null,null,null,null,null,null,null,null,null,null,null,null,"",0,0,0,0,0,""]
[null,null,null,null,null,null,null,null,null,null,null,null,"",0,0,0,0,0,""]
[null,null,null,null,null,null,null,null,null,null,null,null,"",0,0,0,0,0,""]
[null,null,null,null,null,null,null,null,null,null,null,null,"",0,0,0,0,0,""]
[null,null,null,null,null,null,null,null,null,null,null,null,"",0,0,0,0,0,""]
[null,null,null,null,null,null,null,null,null,null,null,null,"",0,0,0,0,0,""]
[null,null,null,null,null,null,null,null,null,null,null,null,"",0,0,0,0,0,""]
[null,null,null,null,null,null,null,null,null,null,null,null,"",0,0,0,0,0,""]
[null,null,null,null,null,null,null,null,null,null,null,null,"",0,0,0,0,0,""]
[null,null,null,null,null,null,null,null,null,null,null,null,"",0,0,0,0,0,""]
[null,null,null,null,null,null,null,null,null,null,null,null,"",0,0,0,0,0,""]
[null,null,null,null,null,null,null,null,null,null,null,null,"",0,0,0,0,0,""]
[null,null,null,null,null,null,null,null,null,null,null,null,"",0,0,0,0,0,""]
[null,null,null,null,null,null,null,null,null,null,null,null,"",0,0,0,0,0,""]
[null,null,null,null,null,null,null,null,null,null,null,null,"",0,0,0,0,0,""]
[null,null,null,null,null,null,null,null,null,null,null,null,"",0,0,0,0,0,""]
[null,null,null,null,null,null,null,null,null,null,null,null,"",0,0,0,0,0,""]
[null,null,null,null,null,null,null,null,null,null,null,null,"",0,0,0,0,0,""]
[null,null,null,null,null,null,null,null,null,null,null,null,"",0,0,0,0,0,""]
[null,null,null,null,null,null,null,null,null,null,null,null,"",0,0,0,0,0,""]
[null,null,null,null,null,null,null,null,null,null,null,null,"",0,0,0,0,0,""]
[null,null,null,null,null,null,null,null,null,null,null,null,"",0,0,0,0,0,""]
[null,null,null,null,null,null,null,null,null,null,null,null,"",0,0,0,0,0,""]
[null,null,null,null,null,null,null,null,null,null,null,null,"",0,0,0,0,0,""]
[null,null,null,null,null,null,null,null,null,null,null,null,"",0,0,0,0,0,""]
[null,null,null,null,null,null,null,null,null,null,null,null,"",0,0,0,0,0,""]
[null,null,null,null,null,null,null,null,null,null,null,null,"",0,0,0,0,0,""]
[null,null,null,null,null,null,null,null,null,null,null,null,"",0,0,0,0,0,""]
[null,null,null,null,null,null,null,null,null,null,null,null,"",0,0,0,0,0,""]
[null,null,null,null,null,null,null,null,null,null,null,null,"",0,0,0,0,0,""]
[null,null,null,null,null,null,null,null,null,null,null,null,"",0,0,0,0,0,""]
[null,null,null,null,null,null,null,null,null,null,null,null,"",0,0,0,0,0,""]
[null,null,null,null,null,null,null,null,null,null,null,null,"",0,0,0,0,0,""]
[null,null,null,null,null,null,null,null,null,null,null,null,"",0,0,0,0,0,""]
[null,null,null,null,null,null,null,null,null,null,null,null,"",0,0,0,0,0,""]
[null,null,null,null,null,null,null,null,null,null,null,null,"",0,0,0,0,0,""]
[null,null,null,null,null,null,null,null,null,null,null,null,"",0,0,0,0,0,""]
[null,null,null,null,null,null,null,null,null,null,null,null,"",0,0,0,0,0,""]
[null,null,null,null,null,null,null,null,null,null,null,null,"",0,0,0,0,0,""]
[null,null,null,null,null,null,null,null,null,null,null,null,"",0,0,0,0,0,""]
[null,null,null,null,null,null,null,null,null,null,null,null,"",0,0,0,0,0,""]
[null,null,null,null,null,null,null,null,null,null,null,null,"",0,0,0,0,0,""]
[null,null,null,null,null,null,null,null,null,null,null,null,"",0,0,0,0,0,""]
[null,null,null,null,null,null,null,null,null,null,null,null,"",0,0,0,0,0,""]
[null,null,null,null,null,null,null,null,null,null,null,null,"",0,0,0,0,0,""]
[null,null,null,null,null,null,null,null,null,null,null,null,"",0,0,0,0,0,""]
[null,null,null,null,null,null,null,null,null,null,null,null,"",0,0,0,0,0,""]
[null,null,null,null,null,null,null,null,null,null,null,null,"",0,0,0,0,0,""]
[null,null,null,null,null,null,null,null,null,null,null,null,"",0,0,0,0,0,""]
[null,null,null,null,null,null,null,null,null,null,null,null,"",0,0,0,0,0,""]
[null,null,null,null,null,null,null,null,null,null,null,null,"",0,0,0,0,0,""]
[null,null,null,null,null,null,null,null,null,null,null,null,"",0,0,0,0,0,""]
[null,null,null,null,null,null,null,null,null,null,null,null,"",0,0,0,0,0,""]
[null,null,null,null,null,null,null,null,null,null,null,null,"",0,0,0,0,0,""]
[null,null,null,null,null,null,null,null,null,null,null,null,"",0,0,0,0,0,""]
[null,null,null,null,null,null,null,null,null,null,null,null,"",0,0,0,0,0,""]
[null,null,null,null,null,null,null,null,null,null,null,null,"",0,0,0,0,0,""]
[null,null,null,null,null,null,null,null,null,null,null,null,"",0,0,0,0,0,""]
[null,null,null,null,null,null,null,null,null,null,null,null,"",0,0,0,0,0,""]
[null,null,null,null,null,null,null,null,null,null,null,null,"",0,0,0,0,0,""]
[null,null,null,null,null,null,null,null,null,null,null,null,"",0,0,0,0,0,""]
[null,null,null,null,null,null,null,null,null,null,null,null,"",0,0,0,0,0,""]
[null,null,null,null,null,null,null,null,null,null,null,null,"",0,0,0,0,0,""]
[null,null,null,null,null,null,null,null,null,null,null,null,"",0,0,0,0,0,""]
[null,null,null,null,null,null,null,null,null,null,null,null,"",0,0,0,0,0,""]
[null,null,null,null,null,null,null,null,null,null,null,null,"",0,0,0,0,0,""]
[null,null,null,null,null,null,null,null,null,null,null,null,"",0,0,0,0,0,""]
[null,null,null,null,null,null,null,null,null,null,null,null,"",0,0,0,0,0,""]
[null,null,null,null,null,null,null,null,null,null,null,null,"",0,0,0,0,0,""]
[null,null,null,null,null,null,null,null,null,null,null,null,"",0,0,0,0,0,""]
[null,null,null,null,null,null,null,null,null,null,null,null,"",0,0,0,0,0,""]
[null,null,null,null,null,null,null,null,null,null,null,null,"",0,0,0,0,0,""]
[null,null,null,null,null,null,null,null,null,null,null,null,"",0,0,0,0,0,""]
[null,null,null,null,null,null,null,null,null,null,null,null,"",0,0,0,0,0,""]
[null,null,null,null,null,null,null,null,null,null,null,null,"",0,0,0,0,0,""]
[null,null,null,null,null,null,null,null,null,null,null,null,"",0,0,0,0,0,""]
[null,null,null,null,null,null,null,null,null,null,null,null,"",0,0,0,0,0,""]
[null,null,null,null,null,null,null,null,null,null,null,null,"",0,0,0,0,0,""]
[null,null,null,null,null,null,null,null,null,null,null,null,"",0,0,0,0,0,""]
[null,null,null,null,null,null,null,null,null,null,null,null,"",0,0,0,0,0,""]
[null,null,null,null,null,null,null,null,null,null,null,null,"",0,0,0,0,0,""]
[null,null,null,null,null,null,null,null,null,null,null,null,"",0,0,0,0,0,""]
[null,null,null,null,null,null,null,null,null,null,null,null,"",0,0,0,0,0,""]
[null,null,null,null,null,null,null,null,null,null,null,null,"",0,0,0,0,0,""]
[null,null,null,null,null,null,null,null,null,null,null,null,"",0,0,0,0,0,""]
[null,null,null,null,null,null,null,null,null,null,null,null,"",0,0,0,0,0,""]
[null,null,null,null,null,null,null,null,null,null,null,null,"",0,0,0,0,0,""]
[null,null,null,null,null,null,null,null,null,null,null,null,"",0,0,0,0,0,""]
[null,null,null,null,null,null,null,null,null,null,null,null,"",0,0,0,0,0,""]
[null,null,null,null,null,null,null,null,null,null,null,null,"",0,0,0,0,0,""]
[null,null,null,null,null,null,null,null,null,null,null,null,"",0,0,0,0,0,""]
[null,null,null,null,null,null,null,null,null,null,null,null,"",0,0,0,0,0,""]
[null,null,null,null,null,null,null,null,null,null,null,null,"",0,0,0,0,0,""]
[null,null,null,null,null,null,null,null,null,null,null,null,"",0,0,0,0,0,""]
[null,null,null,null,null,null,null,null,null,null,null,null,"",0,0,0,0,0,""]
[null,null,null,null,null,null,null,null,null,null,null,null,"",0,0,0,0,0,""]
[null,null,null,null,null,null,null,null,null,null,null,null,"",0,0,0,0,0,""]
[null,null,null,null,null,null,null,null,null,null,null,null,"",0,0,0,0,0,""]
[null,null,null,null,null,null,null,null,null,null,null,null,"",0,0,0,0,0,""]
[null,null,null,null,null,null,null,null,null,null,null,null,"",0,0,0,0,0,""]
[null,null,null,null,null,null,null,null,null,null,null,null,"",0,0,0,0,0,""]
[null,null,null,null,null,null,null,null,null,null,null,null,"",0,0,0,0,0,""]
[null,null,null,null,null,null,null,null,null,null,null,null,{"$f":"IF(ISBLANK(H2257),\"\",SUM(H2257:L2257))","v":""},{"$f":"IF(ISBLANK(H2257),0,IF(H2257=0,1,0))","v":0},{"$f":"IF(ISBLANK(I2257),0,IF(I2257=0,1,0))","v":0},{"$f":"IF(ISBLANK(J2257),0,IF(J2257=0,1,0))","v":0},{"$f":"IF(ISBLANK(K2257),0,IF(K2257=0,1,0))","v":0},{"$f":"IF(ISBLANK(L2257),0,IF(L2257=0,1,0))","v":0},{"$f":"IF(SUM(N2257:R2257)<>0,\"Zero!\",\"\")","v":""}]
[null,null,null,null,null,null,null,null,null,null,null,null,"",0,0,0,0,0,""]
[null,null,null,null,null,null,null,null,null,null,null,null,"",0,0,0,0,0,""]
[null,null,null,null,null,null,null,null,null,null,null,null,"",0,0,0,0,0,""]
[null,null,null,null,null,null,null,null,null,null,null,null,"",0,0,0,0,0,""]
[null,null,null,null,null,null,null,null,null,null,null,null,"",0,0,0,0,0,""]
[null,null,null,null,null,null,null,null,null,null,null,null,"",0,0,0,0,0,""]
[null,null,null,null,null,null,null,null,null,null,null,null,"",0,0,0,0,0,""]
[null,null,null,null,null,null,null,null,null,null,null,null,"",0,0,0,0,0,""]
[null,null,null,null,null,null,null,null,null,null,null,null,"",0,0,0,0,0,""]
[null,null,null,null,null,null,null,null,null,null,null,null,"",0,0,0,0,0,""]
[null,null,null,null,null,null,null,null,null,null,null,null,"",0,0,0,0,0,""]
[null,null,null,null,null,null,null,null,null,null,null,null,"",0,0,0,0,0,""]
[null,null,null,null,null,null,null,null,null,null,null,null,"",0,0,0,0,0,""]
[null,null,null,null,null,null,null,null,null,null,null,null,"",0,0,0,0,0,""]
[null,null,null,null,null,null,null,null,null,null,null,null,"",0,0,0,0,0,""]
[null,null,null,null,null,null,null,null,null,null,null,null,"",0,0,0,0,0,""]
[null,null,null,null,null,null,null,null,null,null,null,null,"",0,0,0,0,0,""]
[null,null,null,null,null,null,null,null,null,null,null,null,"",0,0,0,0,0,""]
[null,null,null,null,null,null,null,null,null,null,null,null,"",0,0,0,0,0,""]
[null,null,null,null,null,null,null,null,null,null,null,null,"",0,0,0,0,0,""]
[null,null,null,null,null,null,null,null,null,null,null,null,"",0,0,0,0,0,""]
[null,null,null,null,null,null,null,null,null,null,null,null,"",0,0,0,0,0,""]
[null,null,null,null,null,null,null,null,null,null,null,null,"",0,0,0,0,0,""]
[null,null,null,null,null,null,null,null,null,null,null,null,"",0,0,0,0,0,""]
[null,null,null,null,null,null,null,null,null,null,null,null,"",0,0,0,0,0,""]
[null,null,null,null,null,null,null,null,null,null,null,null,"",0,0,0,0,0,""]
[null,null,null,null,null,null,null,null,null,null,null,null,"",0,0,0,0,0,""]
[null,null,null,null,null,null,null,null,null,null,null,null,"",0,0,0,0,0,""]
[null,null,null,null,null,null,null,null,null,null,null,null,"",0,0,0,0,0,""]
[null,null,null,null,null,null,null,null,null,null,null,null,"",0,0,0,0,0,""]
[null,null,null,null,null,null,null,null,null,null,null,null,"",0,0,0,0,0,""]
[null,null,null,null,null,null,null,null,null,null,null,null,"",0,0,0,0,0,""]
[null,null,null,null,null,null,null,null,null,null,null,null,"",0,0,0,0,0,""]
[null,null,null,null,null,null,null,null,null,null,null,null,"",0,0,0,0,0,""]
[null,null,null,null,null,null,null,null,null,null,null,null,"",0,0,0,0,0,""]
[null,null,null,null,null,null,null,null,null,null,null,null,"",0,0,0,0,0,""]
[null,null,null,null,null,null,null,null,null,null,null,null,{"$f":"IF(ISBLANK(H2321),\"\",SUM(H2321:L2321))","v":""},{"$f":"IF(ISBLANK(H2321),0,IF(H2321=0,1,0))","v":0},{"$f":"IF(ISBLANK(I2321),0,IF(I2321=0,1,0))","v":0},{"$f":"IF(ISBLANK(J2321),0,IF(J2321=0,1,0))","v":0},{"$f":"IF(ISBLANK(K2321),0,IF(K2321=0,1,0))","v":0},{"$f":"IF(ISBLANK(L2321),0,IF(L2321=0,1,0))","v":0},{"$f":"IF(SUM(N2321:R2321)<>0,\"Zero!\",\"\")","v":""}]
[null,null,null,null,null,null,null,null,null,null,null,null,"",0,0,0,0,0,""]
[null,null,null,null,null,null,null,null,null,null,null,null,"",0,0,0,0,0,""]
[null,null,null,null,null,null,null,null,null,null,null,null,"",0,0,0,0,0,""]
[null,null,null,null,null,null,null,null,null,null,null,null,"",0,0,0,0,0,""]
[null,null,null,null,null,null,null,null,null,null,null,null,"",0,0,0,0,0,""]
[null,null,null,null,null,null,null,null,null,null,null,null,"",0,0,0,0,0,""]
[null,null,null,null,null,null,null,null,null,null,null,null,"",0,0,0,0,0,""]
[null,null,null,null,null,null,null,null,null,null,null,null,"",0,0,0,0,0,""]
[null,null,null,null,null,null,null,null,null,null,null,null,"",0,0,0,0,0,""]
[null,null,null,null,null,null,null,null,null,null,null,null,"",0,0,0,0,0,""]
[null,null,null,null,null,null,null,null,null,null,null,null,"",0,0,0,0,0,""]
[null,null,null,null,null,null,null,null,null,null,null,null,"",0,0,0,0,0,""]
[null,null,null,null,null,null,null,null,null,null,null,null,"",0,0,0,0,0,""]
[null,null,null,null,null,null,null,null,null,null,null,null,"",0,0,0,0,0,""]
[null,null,null,null,null,null,null,null,null,null,null,null,"",0,0,0,0,0,""]
[null,null,null,null,null,null,null,null,null,null,null,null,"",0,0,0,0,0,""]
[null,null,null,null,null,null,null,null,null,null,null,null,"",0,0,0,0,0,""]
[null,null,null,null,null,null,null,null,null,null,null,null,"",0,0,0,0,0,""]
[null,null,null,null,null,null,null,null,null,null,null,null,"",0,0,0,0,0,""]
[null,null,null,null,null,null,null,null,null,null,null,null,"",0,0,0,0,0,""]
[null,null,null,null,null,null,null,null,null,null,null,null,"",0,0,0,0,0,""]
[null,null,null,null,null,null,null,null,null,null,null,null,"",0,0,0,0,0,""]
[null,null,null,null,null,null,null,null,null,null,null,null,"",0,0,0,0,0,""]
[null,null,null,null,null,null,null,null,null,null,null,null,"",0,0,0,0,0,""]
[null,null,null,null,null,null,null,null,null,null,null,null,"",0,0,0,0,0,""]
[null,null,null,null,null,null,null,null,null,null,null,null,"",0,0,0,0,0,""]
[null,null,null,null,null,null,null,null,null,null,null,null,"",0,0,0,0,0,""]
[null,null,null,null,null,null,null,null,null,null,null,null,"",0,0,0,0,0,""]
[null,null,null,null,null,null,null,null,null,null,null,null,"",0,0,0,0,0,""]
[null,null,null,null,null,null,null,null,null,null,null,null,"",0,0,0,0,0,""]
[null,null,null,null,null,null,null,null,null,null,null,null,"",0,0,0,0,0,""]
[null,null,null,null,null,null,null,null,null,null,null,null,"",0,0,0,0,0,""]
[null,null,null,null,null,null,null,null,null,null,null,null,"",0,0,0,0,0,""]
[null,null,null,null,null,null,null,null,null,null,null,null,"",0,0,0,0,0,""]
[null,null,null,null,null,null,null,null,null,null,null,null,"",0,0,0,0,0,""]
[null,null,null,null,null,null,null,null,null,null,null,null,"",0,0,0,0,0,""]
[null,null,null,null,null,null,null,null,null,null,null,null,"",0,0,0,0,0,""]
[null,null,null,null,null,null,null,null,null,null,null,null,"",0,0,0,0,0,""]
[null,null,null,null,null,null,null,null,null,null,null,null,"",0,0,0,0,0,""]
[null,null,null,null,null,null,null,null,null,null,null,null,"",0,0,0,0,0,""]
[null,null,null,null,null,null,null,null,null,null,null,null,"",0,0,0,0,0,""]
[null,null,null,null,null,null,null,null,null,null,null,null,"",0,0,0,0,0,""]
[null,null,null,null,null,null,null,null,null,null,null,null,"",0,0,0,0,0,""]
[null,null,null,null,null,null,null,null,null,null,null,null,"",0,0,0,0,0,""]
[null,null,null,null,null,null,null,null,null,null,null,null,"",0,0,0,0,0,""]
[null,null,null,null,null,null,null,null,null,null,null,null,"",0,0,0,0,0,""]
[null,null,null,null,null,null,null,null,null,null,null,null,"",0,0,0,0,0,""]
[null,null,null,null,null,null,null,null,null,null,null,null,"",0,0,0,0,0,""]
[null,null,null,null,null,null,null,null,null,null,null,null,"",0,0,0,0,0,""]
[null,null,null,null,null,null,null,null,null,null,null,null,"",0,0,0,0,0,""]
[null,null,null,null,null,null,null,null,null,null,null,null,"",0,0,0,0,0,""]
[null,null,null,null,null,null,null,null,null,null,null,null,"",0,0,0,0,0,""]
[null,null,null,null,null,null,null,null,null,null,null,null,"",0,0,0,0,0,""]
[null,null,null,null,null,null,null,null,null,null,null,null,"",0,0,0,0,0,""]
[null,null,null,null,null,null,null,null,null,null,null,null,"",0,0,0,0,0,""]
[null,null,null,null,null,null,null,null,null,null,null,null,"",0,0,0,0,0,""]
[null,null,null,null,null,null,null,null,null,null,null,null,"",0,0,0,0,0,""]
[null,null,null,null,null,null,null,null,null,null,null,null,"",0,0,0,0,0,""]
[null,null,null,null,null,null,null,null,null,null,null,null,"",0,0,0,0,0,""]
[null,null,null,null,null,null,null,null,null,null,null,null,"",0,0,0,0,0,""]
[null,null,null,null,null,null,null,null,null,null,null,null,"",0,0,0,0,0,""]
[null,null,null,null,null,null,null,null,null,null,null,null,"",0,0,0,0,0,""]
[null,null,null,null,null,null,null,null,null,null,null,null,"",0,0,0,0,0,""]
[null,null,null,null,null,null,null,null,null,null,null,null,"",0,0,0,0,0,""]
[null,null,null,null,null,null,null,null,null,null,null,null,"",0,0,0,0,0,""]
[null,null,null,null,null,null,null,null,null,null,null,null,"",0,0,0,0,0,""]
[null,null,null,null,null,null,null,null,null,null,null,null,"",0,0,0,0,0,""]
[null,null,null,null,null,null,null,null,null,null,null,null,"",0,0,0,0,0,""]
[null,null,null,null,null,null,null,null,null,null,null,null,"",0,0,0,0,0,""]
[null,null,null,null,null,null,null,null,null,null,null,null,"",0,0,0,0,0,""]
[null,null,null,null,null,null,null,null,null,null,null,null,"",0,0,0,0,0,""]
[null,null,null,null,null,null,null,null,null,null,null,null,"",0,0,0,0,0,""]
[null,null,null,null,null,null,null,null,null,null,null,null,"",0,0,0,0,0,""]
[null,null,null,null,null,null,null,null,null,null,null,null,"",0,0,0,0,0,""]
[null,null,null,null,null,null,null,null,null,null,null,null,"",0,0,0,0,0,""]
[null,null,null,null,null,null,null,null,null,null,null,null,"",0,0,0,0,0,""]
[null,null,null,null,null,null,null,null,null,null,null,null,"",0,0,0,0,0,""]
[null,null,null,null,null,null,null,null,null,null,null,null,"",0,0,0,0,0,""]
[null,null,null,null,null,null,null,null,null,null,null,null,"",0,0,0,0,0,""]
[null,null,null,null,null,null,null,null,null,null,null,null,"",0,0,0,0,0,""]
[null,null,null,null,null,null,null,null,null,null,null,null,"",0,0,0,0,0,""]
[null,null,null,null,null,null,null,null,null,null,null,null,"",0,0,0,0,0,""]
[null,null,null,null,null,null,null,null,null,null,null,null,"",0,0,0,0,0,""]
[null,null,null,null,null,null,null,null,null,null,null,null,"",0,0,0,0,0,""]
[null,null,null,null,null,null,null,null,null,null,null,null,"",0,0,0,0,0,""]
[null,null,null,null,null,null,null,null,null,null,null,null,"",0,0,0,0,0,""]
[null,null,null,null,null,null,null,null,null,null,null,null,"",0,0,0,0,0,""]
[null,null,null,null,null,null,null,null,null,null,null,null,"",0,0,0,0,0,""]
[null,null,null,null,null,null,null,null,null,null,null,null,"",0,0,0,0,0,""]
[null,null,null,null,null,null,null,null,null,null,null,null,"",0,0,0,0,0,""]
[null,null,null,null,null,null,null,null,null,null,null,null,"",0,0,0,0,0,""]
[null,null,null,null,null,null,null,null,null,null,null,null,"",0,0,0,0,0,""]
[null,null,null,null,null,null,null,null,null,null,null,null,"",0,0,0,0,0,""]
[null,null,null,null,null,null,null,null,null,null,null,null,"",0,0,0,0,0,""]
[null,null,null,null,null,null,null,null,null,null,null,null,"",0,0,0,0,0,""]
[null,null,null,null,null,null,null,null,null,null,null,null,"",0,0,0,0,0,""]
[null,null,null,null,null,null,null,null,null,null,null,null,"",0,0,0,0,0,""]
[null,null,null,null,null,null,null,null,null,null,null,null,"",0,0,0,0,0,""]
[null,null,null,null,null,null,null,null,null,null,null,null,"",0,0,0,0,0,""]
[null,null,null,null,null,null,null,null,null,null,null,null,"",0,0,0,0,0,""]
[null,null,null,null,null,null,null,null,null,null,null,null,"",0,0,0,0,0,""]
[null,null,null,null,null,null,null,null,null,null,null,null,"",0,0,0,0,0,""]
[null,null,null,null,null,null,null,null,null,null,null,null,"",0,0,0,0,0,""]
[null,null,null,null,null,null,null,null,null,null,null,null,"",0,0,0,0,0,""]
[null,null,null,null,null,null,null,null,null,null,null,null,"",0,0,0,0,0,""]
[null,null,null,null,null,null,null,null,null,null,null,null,"",0,0,0,0,0,""]
[null,null,null,null,null,null,null,null,null,null,null,null,"",0,0,0,0,0,""]
[null,null,null,null,null,null,null,null,null,null,null,null,"",0,0,0,0,0,""]
[null,null,null,null,null,null,null,null,null,null,null,null,{"$f":"IF(ISBLANK(H2513),\"\",SUM(H2513:L2513))","v":""},{"$f":"IF(ISBLANK(H2513),0,IF(H2513=0,1,0))","v":0},{"$f":"IF(ISBLANK(I2513),0,IF(I2513=0,1,0))","v":0},{"$f":"IF(ISBLANK(J2513),0,IF(J2513=0,1,0))","v":0},{"$f":"IF(ISBLANK(K2513),0,IF(K2513=0,1,0))","v":0},{"$f":"IF(ISBLANK(L2513),0,IF(L2513=0,1,0))","v":0},{"$f":"IF(SUM(N2513:R2513)<>0,\"Zero!\",\"\")","v":""}]
[null,null,null,null,null,null,null,null,null,null,null,null,"",0,0,0,0,0,""]
[null,null,null,null,null,null,null,null,null,null,null,null,"",0,0,0,0,0,""]
[null,null,null,null,null,null,null,null,null,null,null,null,"",0,0,0,0,0,""]
[null,null,null,null,null,null,null,null,null,null,null,null,"",0,0,0,0,0,""]
[null,null,null,null,null,null,null,null,null,null,null,null,"",0,0,0,0,0,""]
[null,null,null,null,null,null,null,null,null,null,null,null,"",0,0,0,0,0,""]
[null,null,null,null,null,null,null,null,null,null,null,null,"",0,0,0,0,0,""]
[null,null,null,null,null,null,null,null,null,null,null,null,"",0,0,0,0,0,""]
[null,null,null,null,null,null,null,null,null,null,null,null,"",0,0,0,0,0,""]
[null,null,null,null,null,null,null,null,null,null,null,null,"",0,0,0,0,0,""]
[null,null,null,null,null,null,null,null,null,null,null,null,"",0,0,0,0,0,""]
[null,null,null,null,null,null,null,null,null,null,null,null,"",0,0,0,0,0,""]
[null,null,null,null,null,null,null,null,null,null,null,null,"",0,0,0,0,0,""]
[null,null,null,null,null,null,null,null,null,null,null,null,"",0,0,0,0,0,""]
[null,null,null,null,null,null,null,null,null,null,null,null,"",0,0,0,0,0,""]
[null,null,null,null,null,null,null,null,null,null,null,null,"",0,0,0,0,0,""]
[null,null,null,null,null,null,null,null,null,null,null,null,"",0,0,0,0,0,""]
[null,null,null,null,null,null,null,null,null,null,null,null,"",0,0,0,0,0,""]
[null,null,null,null,null,null,null,null,null,null,null,null,"",0,0,0,0,0,""]
[null,null,null,null,null,null,null,null,null,null,null,null,"",0,0,0,0,0,""]
[null,null,null,null,null,null,null,null,null,null,null,null,"",0,0,0,0,0,""]
[null,null,null,null,null,null,null,null,null,null,null,null,"",0,0,0,0,0,""]
[null,null,null,null,null,null,null,null,null,null,null,null,"",0,0,0,0,0,""]
[null,null,null,null,null,null,null,null,null,null,null,null,"",0,0,0,0,0,""]
[null,null,null,null,null,null,null,null,null,null,null,null,"",0,0,0,0,0,""]
[null,null,null,null,null,null,null,null,null,null,null,null,"",0,0,0,0,0,""]
[null,null,null,null,null,null,null,null,null,null,null,null,"",0,0,0,0,0,""]
[null,null,null,null,null,null,null,null,null,null,null,null,"",0,0,0,0,0,""]
[null,null,null,null,null,null,null,null,null,null,null,null,"",0,0,0,0,0,""]
[null,null,null,null,null,null,null,null,null,null,null,null,"",0,0,0,0,0,""]
[null,null,null,null,null,null,null,null,null,null,null,null,"",0,0,0,0,0,""]
[null,null,null,null,null,null,null,null,null,null,null,null,"",0,0,0,0,0,""]
[null,null,null,null,null,null,null,null,null,null,null,null,"",0,0,0,0,0,""]
[null,null,null,null,null,null,null,null,null,null,null,null,"",0,0,0,0,0,""]
[null,null,null,null,null,null,null,null,null,null,null,null,"",0,0,0,0,0,""]
[null,null,null,null,null,null,null,null,null,null,null,null,"",0,0,0,0,0,""]
[null,null,null,null,null,null,null,null,null,null,null,null,{"$f":"IF(ISBLANK(H2577),\"\",SUM(H2577:L2577))","v":""},{"$f":"IF(ISBLANK(H2577),0,IF(H2577=0,1,0))","v":0},{"$f":"IF(ISBLANK(I2577),0,IF(I2577=0,1,0))","v":0},{"$f":"IF(ISBLANK(J2577),0,IF(J2577=0,1,0))","v":0},{"$f":"IF(ISBLANK(K2577),0,IF(K2577=0,1,0))","v":0},{"$f":"IF(ISBLANK(L2577),0,IF(L2577=0,1,0))","v":0},{"$f":"IF(SUM(N2577:R2577)<>0,\"Zero!\",\"\")","v":""}]
[null,null,null,null,null,null,null,null,null,null,null,null,"",0,0,0,0,0,""]
[null,null,null,null,null,null,null,null,null,null,null,null,"",0,0,0,0,0,""]
[null,null,null,null,null,null,null,null,null,null,null,null,"",0,0,0,0,0,""]
[null,null,null,null,null,null,null,null,null,null,null,null,"",0,0,0,0,0,""]
[null,null,null,null,null,null,null,null,null,null,null,null,"",0,0,0,0,0,""]
[null,null,null,null,null,null,null,null,null,null,null,null,"",0,0,0,0,0,""]
[null,null,null,null,null,null,null,null,null,null,null,null,"",0,0,0,0,0,""]
[null,null,null,null,null,null,null,null,null,null,null,null,"",0,0,0,0,0,""]
[null,null,null,null,null,null,null,null,null,null,null,null,"",0,0,0,0,0,""]
[null,null,null,null,null,null,null,null,null,null,null,null,"",0,0,0,0,0,""]
[null,null,null,null,null,null,null,null,null,null,null,null,"",0,0,0,0,0,""]
[null,null,null,null,null,null,null,null,null,null,null,null,"",0,0,0,0,0,""]
[null,null,null,null,null,null,null,null,null,null,null,null,"",0,0,0,0,0,""]
[null,null,null,null,null,null,null,null,null,null,null,null,"",0,0,0,0,0,""]
[null,null,null,null,null,null,null,null,null,null,null,null,"",0,0,0,0,0,""]
[null,null,null,null,null,null,null,null,null,null,null,null,"",0,0,0,0,0,""]
[null,null,null,null,null,null,null,null,null,null,null,null,"",0,0,0,0,0,""]
[null,null,null,null,null,null,null,null,null,null,null,null,"",0,0,0,0,0,""]
[null,null,null,null,null,null,null,null,null,null,null,null,"",0,0,0,0,0,""]
[null,null,null,null,null,null,null,null,null,null,null,null,"",0,0,0,0,0,""]
[null,null,null,null,null,null,null,null,null,null,null,null,"",0,0,0,0,0,""]
[null,null,null,null,null,null,null,null,null,null,null,null,"",0,0,0,0,0,""]
[null,null,null,null,null,null,null,null,null,null,null,null,"",0,0,0,0,0,""]
[null,null,null,null,null,null,null,null,null,null,null,null,"",0,0,0,0,0,""]
[null,null,null,null,null,null,null,null,null,null,null,null,"",0,0,0,0,0,""]
[null,null,null,null,null,null,null,null,null,null,null,null,"",0,0,0,0,0,""]
[null,null,null,null,null,null,null,null,null,null,null,null,"",0,0,0,0,0,""]
[null,null,null,null,null,null,null,null,null,null,null,null,"",0,0,0,0,0,""]
[null,null,null,null,null,null,null,null,null,null,null,null,"",0,0,0,0,0,""]
[null,null,null,null,null,null,null,null,null,null,null,null,"",0,0,0,0,0,""]
[null,null,null,null,null,null,null,null,null,null,null,null,"",0,0,0,0,0,""]
[null,null,null,null,null,null,null,null,null,null,null,null,"",0,0,0,0,0,""]
[null,null,null,null,null,null,null,null,null,null,null,null,"",0,0,0,0,0,""]
[null,null,null,null,null,null,null,null,null,null,null,null,"",0,0,0,0,0,""]
[null,null,null,null,null,null,null,null,null,null,null,null,"",0,0,0,0,0,""]
[null,null,null,null,null,null,null,null,null,null,null,null,"",0,0,0,0,0,""]
[null,null,null,null,null,null,null,null,null,null,null,null,"",0,0,0,0,0,""]
[null,null,null,null,null,null,null,null,null,null,null,null,"",0,0,0,0,0,""]
[null,null,null,null,null,null,null,null,null,null,null,null,"",0,0,0,0,0,""]
[null,null,null,null,null,null,null,null,null,null,null,null,"",0,0,0,0,0,""]
[null,null,null,null,null,null,null,null,null,null,null,null,"",0,0,0,0,0,""]
[null,null,null,null,null,null,null,null,null,null,null,null,"",0,0,0,0,0,""]
[null,null,null,null,null,null,null,null,null,null,null,null,"",0,0,0,0,0,""]
[null,null,null,null,null,null,null,null,null,null,null,null,"",0,0,0,0,0,""]
[null,null,null,null,null,null,null,null,null,null,null,null,"",0,0,0,0,0,""]
[null,null,null,null,null,null,null,null,null,null,null,null,"",0,0,0,0,0,""]
[null,null,null,null,null,null,null,null,null,null,null,null,"",0,0,0,0,0,""]
[null,null,null,null,null,null,null,null,null,null,null,null,"",0,0,0,0,0,""]
[null,null,null,null,null,null,null,null,null,null,null,null,"",0,0,0,0,0,""]
[null,null,null,null,null,null,null,null,null,null,null,null,"",0,0,0,0,0,""]
[null,null,null,null,null,null,null,null,null,null,null,null,"",0,0,0,0,0,""]
[null,null,null,null,null,null,null,null,null,null,null,null,"",0,0,0,0,0,""]
[null,null,null,null,null,null,null,null,null,null,null,null,"",0,0,0,0,0,""]
[null,null,null,null,null,null,null,null,null,null,null,null,"",0,0,0,0,0,""]
[null,null,null,null,null,null,null,null,null,null,null,null,"",0,0,0,0,0,""]
[null,null,null,null,null,null,null,null,null,null,null,null,"",0,0,0,0,0,""]
[null,null,null,null,null,null,null,null,null,null,null,null,"",0,0,0,0,0,""]
[null,null,null,null,null,null,null,null,null,null,null,null,"",0,0,0,0,0,""]
[null,null,null,null,null,null,null,null,null,null,null,null,"",0,0,0,0,0,""]
[null,null,null,null,null,null,null,null,null,null,null,null,"",0,0,0,0,0,""]
[null,null,null,null,null,null,null,null,null,null,null,null,"",0,0,0,0,0,""]
[null,null,null,null,null,null,null,null,null,null,null,null,"",0,0,0,0,0,""]
[null,null,null,null,null,null,null,null,null,null,null,null,"",0,0,0,0,0,""]
[null,null,null,null,null,null,null,null,null,null,null,null,"",0,0,0,0,0,""]
[null,null,null,null,null,null,null,null,null,null,null,null,"",0,0,0,0,0,""]
[null,null,null,null,null,null,null,null,null,null,null,null,"",0,0,0,0,0,""]
[null,null,null,null,null,null,null,null,null,null,null,null,"",0,0,0,0,0,""]
[null,null,null,null,null,null,null,null,null,null,null,null,"",0,0,0,0,0,""]
[null,null,null,null,null,null,null,null,null,null,null,null,"",0,0,0,0,0,""]
[null,null,null,null,null,null,null,null,null,null,null,null,"",0,0,0,0,0,""]
[null,null,null,null,null,null,null,null,null,null,null,null,"",0,0,0,0,0,""]
[null,null,null,null,null,null,null,null,null,null,null,null,"",0,0,0,0,0,""]
[null,null,null,null,null,null,null,null,null,null,null,null,{"$f":"IF(ISBLANK(H2705),\"\",SUM(H2705:L2705))","v":""},{"$f":"IF(ISBLANK(H2705),0,IF(H2705=0,1,0))","v":0},{"$f":"IF(ISBLANK(I2705),0,IF(I2705=0,1,0))","v":0},{"$f":"IF(ISBLANK(J2705),0,IF(J2705=0,1,0))","v":0},{"$f":"IF(ISBLANK(K2705),0,IF(K2705=0,1,0))","v":0},{"$f":"IF(ISBLANK(L2705),0,IF(L2705=0,1,0))","v":0},{"$f":"IF(SUM(N2705:R2705)<>0,\"Zero!\",\"\")","v":""}]
[null,null,null,null,null,null,null,null,null,null,null,null,"",0,0,0,0,0,""]
[null,null,null,null,null,null,null,null,null,null,null,null,"",0,0,0,0,0,""]
[null,null,null,null,null,null,null,null,null,null,null,null,"",0,0,0,0,0,""]
[null,null,null,null,null,null,null,null,null,null,null,null,"",0,0,0,0,0,""]
[null,null,null,null,null,null,null,null,null,null,null,null,"",0,0,0,0,0,""]
[null,null,null,null,null,null,null,null,null,null,null,null,"",0,0,0,0,0,""]
[null,null,null,null,null,null,null,null,null,null,null,null,"",0,0,0,0,0,""]
[null,null,null,null,null,null,null,null,null,null,null,null,"",0,0,0,0,0,""]
[null,null,null,null,null,null,null,null,null,null,null,null,"",0,0,0,0,0,""]
[null,null,null,null,null,null,null,null,null,null,null,null,"",0,0,0,0,0,""]
[null,null,null,null,null,null,null,null,null,null,null,null,"",0,0,0,0,0,""]
[null,null,null,null,null,null,null,null,null,null,null,null,"",0,0,0,0,0,""]
[null,null,null,null,null,null,null,null,null,null,null,null,"",0,0,0,0,0,""]
[null,null,null,null,null,null,null,null,null,null,null,null,"",0,0,0,0,0,""]
[null,null,null,null,null,null,null,null,null,null,null,null,"",0,0,0,0,0,""]
[null,null,null,null,null,null,null,null,null,null,null,null,"",0,0,0,0,0,""]
[null,null,null,null,null,null,null,null,null,null,null,null,"",0,0,0,0,0,""]
[null,null,null,null,null,null,null,null,null,null,null,null,"",0,0,0,0,0,""]
[null,null,null,null,null,null,null,null,null,null,null,null,"",0,0,0,0,0,""]
[null,null,null,null,null,null,null,null,null,null,null,null,"",0,0,0,0,0,""]
[null,null,null,null,null,null,null,null,null,null,null,null,"",0,0,0,0,0,""]
[null,null,null,null,null,null,null,null,null,null,null,null,"",0,0,0,0,0,""]
[null,null,null,null,null,null,null,null,null,null,null,null,"",0,0,0,0,0,""]
[null,null,null,null,null,null,null,null,null,null,null,null,"",0,0,0,0,0,""]
[null,null,null,null,null,null,null,null,null,null,null,null,"",0,0,0,0,0,""]
[null,null,null,null,null,null,null,null,null,null,null,null,"",0,0,0,0,0,""]
[null,null,null,null,null,null,null,null,null,null,null,null,"",0,0,0,0,0,""]
[null,null,null,null,null,null,null,null,null,null,null,null,"",0,0,0,0,0,""]
[null,null,null,null,null,null,null,null,null,null,null,null,"",0,0,0,0,0,""]
[null,null,null,null,null,null,null,null,null,null,null,null,"",0,0,0,0,0,""]
[null,null,null,null,null,null,null,null,null,null,null,null,"",0,0,0,0,0,""]
[null,null,null,null,null,null,null,null,null,null,null,null,"",0,0,0,0,0,""]
[null,null,null,null,null,null,null,null,null,null,null,null,"",0,0,0,0,0,""]
[null,null,null,null,null,null,null,null,null,null,null,null,"",0,0,0,0,0,""]
[null,null,null,null,null,null,null,null,null,null,null,null,"",0,0,0,0,0,""]
[null,null,null,null,null,null,null,null,null,null,null,null,"",0,0,0,0,0,""]
[null,null,null,null,null,null,null,null,null,null,null,null,{"$f":"IF(ISBLANK(H2769),\"\",SUM(H2769:L2769))","v":""},{"$f":"IF(ISBLANK(H2769),0,IF(H2769=0,1,0))","v":0},{"$f":"IF(ISBLANK(I2769),0,IF(I2769=0,1,0))","v":0},{"$f":"IF(ISBLANK(J2769),0,IF(J2769=0,1,0))","v":0},{"$f":"IF(ISBLANK(K2769),0,IF(K2769=0,1,0))","v":0},{"$f":"IF(ISBLANK(L2769),0,IF(L2769=0,1,0))","v":0},{"$f":"IF(SUM(N2769:R2769)<>0,\"Zero!\",\"\")","v":""}]
[null,null,null,null,null,null,null,null,null,null,null,null,"",0,0,0,0,0,""]
[null,null,null,null,null,null,null,null,null,null,null,null,"",0,0,0,0,0,""]
[null,null,null,null,null,null,null,null,null,null,null,null,"",0,0,0,0,0,""]
[null,null,null,null,null,null,null,null,null,null,null,null,"",0,0,0,0,0,""]
[null,null,null,null,null,null,null,null,null,null,null,null,"",0,0,0,0,0,""]
[null,null,null,null,null,null,null,null,null,null,null,null,"",0,0,0,0,0,""]
[null,null,null,null,null,null,null,null,null,null,null,null,"",0,0,0,0,0,""]
[null,null,null,null,null,null,null,null,null,null,null,null,"",0,0,0,0,0,""]
[null,null,null,null,null,null,null,null,null,null,null,null,"",0,0,0,0,0,""]
[null,null,null,null,null,null,null,null,null,null,null,null,"",0,0,0,0,0,""]
[null,null,null,null,null,null,null,null,null,null,null,null,"",0,0,0,0,0,""]
[null,null,null,null,null,null,null,null,null,null,null,null,"",0,0,0,0,0,""]
[null,null,null,null,null,null,null,null,null,null,null,null,"",0,0,0,0,0,""]
[null,null,null,null,null,null,null,null,null,null,null,null,"",0,0,0,0,0,""]
[null,null,null,null,null,null,null,null,null,null,null,null,"",0,0,0,0,0,""]
[null,null,null,null,null,null,null,null,null,null,null,null,"",0,0,0,0,0,""]
[null,null,null,null,null,null,null,null,null,null,null,null,"",0,0,0,0,0,""]
[null,null,null,null,null,null,null,null,null,null,null,null,"",0,0,0,0,0,""]
[null,null,null,null,null,null,null,null,null,null,null,null,"",0,0,0,0,0,""]
[null,null,null,null,null,null,null,null,null,null,null,null,"",0,0,0,0,0,""]
[null,null,null,null,null,null,null,null,null,null,null,null,"",0,0,0,0,0,""]
[null,null,null,null,null,null,null,null,null,null,null,null,"",0,0,0,0,0,""]
[null,null,null,null,null,null,null,null,null,null,null,null,"",0,0,0,0,0,""]
[null,null,null,null,null,null,null,null,null,null,null,null,"",0,0,0,0,0,""]
[null,null,null,null,null,null,null,null,null,null,null,null,"",0,0,0,0,0,""]
[null,null,null,null,null,null,null,null,null,null,null,null,"",0,0,0,0,0,""]
[null,null,null,null,null,null,null,null,null,null,null,null,"",0,0,0,0,0,""]
[null,null,null,null,null,null,null,null,null,null,null,null,"",0,0,0,0,0,""]
[null,null,null,null,null,null,null,null,null,null,null,null,"",0,0,0,0,0,""]
[null,null,null,null,null,null,null,null,null,null,null,null,"",0,0,0,0,0,""]
[null,null,null,null,null,null,null,null,null,null,null,null,"",0,0,0,0,0,""]
[null,null,null,null,null,null,null,null,null,null,null,null,"",0,0,0,0,0,""]
[null,null,null,null,null,null,null,null,null,null,null,null,"",0,0,0,0,0,""]
[null,null,null,null,null,null,null,null,null,null,null,null,"",0,0,0,0,0,""]
[null,null,null,null,null,null,null,null,null,null,null,null,"",0,0,0,0,0,""]
[null,null,null,null,null,null,null,null,null,null,null,null,"",0,0,0,0,0,""]
[null,null,null,null,null,null,null,null,null,null,null,null,"",0,0,0,0,0,""]
[null,null,null,null,null,null,null,null,null,null,null,null,"",0,0,0,0,0,""]
[null,null,null,null,null,null,null,null,null,null,null,null,"",0,0,0,0,0,""]
[null,null,null,null,null,null,null,null,null,null,null,null,"",0,0,0,0,0,""]
[null,null,null,null,null,null,null,null,null,null,null,null,"",0,0,0,0,0,""]
[null,null,null,null,null,null,null,null,null,null,null,null,"",0,0,0,0,0,""]
[null,null,null,null,null,null,null,null,null,null,null,null,"",0,0,0,0,0,""]
[null,null,null,null,null,null,null,null,null,null,null,null,"",0,0,0,0,0,""]
[null,null,null,null,null,null,null,null,null,null,null,null,"",0,0,0,0,0,""]
[null,null,null,null,null,null,null,null,null,null,null,null,"",0,0,0,0,0,""]
[null,null,null,null,null,null,null,null,null,null,null,null,"",0,0,0,0,0,""]
[null,null,null,null,null,null,null,null,null,null,null,null,"",0,0,0,0,0,""]
[null,null,null,null,null,null,null,null,null,null,null,null,"",0,0,0,0,0,""]
[null,null,null,null,null,null,null,null,null,null,null,null,"",0,0,0,0,0,""]
[null,null,null,null,null,null,null,null,null,null,null,null,"",0,0,0,0,0,""]
[null,null,null,null,null,null,null,null,null,null,null,null,"",0,0,0,0,0,""]
[null,null,null,null,null,null,null,null,null,null,null,null,"",0,0,0,0,0,""]
[null,null,null,null,null,null,null,null,null,null,null,null,"",0,0,0,0,0,""]
[null,null,null,null,null,null,null,null,null,null,null,null,"",0,0,0,0,0,""]
[null,null,null,null,null,null,null,null,null,null,null,null,"",0,0,0,0,0,""]
[null,null,null,null,null,null,null,null,null,null,null,null,"",0,0,0,0,0,""]
[null,null,null,null,null,null,null,null,null,null,null,null,"",0,0,0,0,0,""]
[null,null,null,null,null,null,null,null,null,null,null,null,"",0,0,0,0,0,""]
[null,null,null,null,null,null,null,null,null,null,null,null,"",0,0,0,0,0,""]
[null,null,null,null,null,null,null,null,null,null,null,null,"",0,0,0,0,0,""]
[null,null,null,null,null,null,null,null,null,null,null,null,"",0,0,0,0,0,""]
[null,null,null,null,null,null,null,null,null,null,null,null,"",0,0,0,0,0,""]
[null,null,null,null,null,null,null,null,null,null,null,null,"",0,0,0,0,0,""]
[null,null,null,null,null,null,null,null,null,null,null,null,"",0,0,0,0,0,""]
[null,null,null,null,null,null,null,null,null,null,null,null,"",0,0,0,0,0,""]
[null,null,null,null,null,null,null,null,null,null,null,null,"",0,0,0,0,0,""]
[null,null,null,null,null,null,null,null,null,null,null,null,"",0,0,0,0,0,""]
[null,null,null,null,null,null,null,null,null,null,null,null,"",0,0,0,0,0,""]
[null,null,null,null,null,null,null,null,null,null,null,null,"",0,0,0,0,0,""]
[null,null,null,null,null,null,null,null,null,null,null,null,"",0,0,0,0,0,""]
[null,null,null,null,null,null,null,null,null,null,null,null,"",0,0,0,0,0,""]
[null,null,null,null,null,null,null,null,null,null,null,null,"",0,0,0,0,0,""]
[null,null,null,null,null,null,null,null,null,null,null,null,"",0,0,0,0,0,""]
[null,null,null,null,null,null,null,null,null,null,null,null,"",0,0,0,0,0,""]
[null,null,null,null,null,null,null,null,null,null,null,null,"",0,0,0,0,0,""]
[null,null,null,null,null,null,null,null,null,null,null,null,"",0,0,0,0,0,""]
[null,null,null,null,null,null,null,null,null,null,null,null,"",0,0,0,0,0,""]
[null,null,null,null,null,null,null,null,null,null,null,null,"",0,0,0,0,0,""]
[null,null,null,null,null,null,null,null,null,null,null,null,"",0,0,0,0,0,""]
[null,null,null,null,null,null,null,null,null,null,null,null,"",0,0,0,0,0,""]
[null,null,null,null,null,null,null,null,null,null,null,null,"",0,0,0,0,0,""]
[null,null,null,null,null,null,null,null,null,null,null,null,"",0,0,0,0,0,""]
[null,null,null,null,null,null,null,null,null,null,null,null,"",0,0,0,0,0,""]
[null,null,null,null,null,null,null,null,null,null,null,null,"",0,0,0,0,0,""]
[null,null,null,null,null,null,null,null,null,null,null,null,"",0,0,0,0,0,""]
[null,null,null,null,null,null,null,null,null,null,null,null,"",0,0,0,0,0,""]
[null,null,null,null,null,null,null,null,null,null,null,null,"",0,0,0,0,0,""]
[null,null,null,null,null,null,null,null,null,null,null,null,"",0,0,0,0,0,""]
[null,null,null,null,null,null,null,null,null,null,null,null,"",0,0,0,0,0,""]
[null,null,null,null,null,null,null,null,null,null,null,null,"",0,0,0,0,0,""]
[null,null,null,null,null,null,null,null,null,null,null,null,"",0,0,0,0,0,""]
[null,null,null,null,null,null,null,null,null,null,null,null,"",0,0,0,0,0,""]
[null,null,null,null,null,null,null,null,null,null,null,null,"",0,0,0,0,0,""]
[null,null,null,null,null,null,null,null,null,null,null,null,"",0,0,0,0,0,""]
[null,null,null,null,null,null,null,null,null,null,null,null,"",0,0,0,0,0,""]
[null,null,null,null,null,null,null,null,null,null,null,null,"",0,0,0,0,0,""]
[null,null,null,null,null,null,null,null,null,null,null,null,"",0,0,0,0,0,""]
[null,null,null,null,null,null,null,null,null,null,null,null,"",0,0,0,0,0,""]
[null,null,null,null,null,null,null,null,null,null,null,null,"",0,0,0,0,0,""]
[null,null,null,null,null,null,null,null,null,null,null,null,"",0,0,0,0,0,""]
[null,null,null,null,null,null,null,null,null,null,null,null,"",0,0,0,0,0,""]
[null,null,null,null,null,null,null,null,null,null,null,null,"",0,0,0,0,0,""]
[null,null,null,null,null,null,null,null,null,null,null,null,"",0,0,0,0,0,""]
[null,null,null,null,null,null,null,null,null,null,null,null,"",0,0,0,0,0,""]
[null,null,null,null,null,null,null,null,null,null,null,null,"",0,0,0,0,0,""]
[null,null,null,null,null,null,null,null,null,null,null,null,"",0,0,0,0,0,""]
[null,null,null,null,null,null,null,null,null,null,null,null,"",0,0,0,0,0,""]
[null,null,null,null,null,null,null,null,null,null,null,null,{"$f":"IF(ISBLANK(H2961),\"\",SUM(H2961:L2961))","v":""},{"$f":"IF(ISBLANK(H2961),0,IF(H2961=0,1,0))","v":0},{"$f":"IF(ISBLANK(I2961),0,IF(I2961=0,1,0))","v":0},{"$f":"IF(ISBLANK(J2961),0,IF(J2961=0,1,0))","v":0},{"$f":"IF(ISBLANK(K2961),0,IF(K2961=0,1,0))","v":0},{"$f":"IF(ISBLANK(L2961),0,IF(L2961=0,1,0))","v":0},{"$f":"IF(SUM(N2961:R2961)<>0,\"Zero!\",\"\")","v":""}]
[null,null,null,null,null,null,null,null,null,null,null,null,"",0,0,0,0,0,""]
[null,null,null,null,null,null,null,null,null,null,null,null,"",0,0,0,0,0,""]
[null,null,null,null,null,null,null,null,null,null,null,null,"",0,0,0,0,0,""]
[null,null,null,null,null,null,null,null,null,null,null,null,"",0,0,0,0,0,""]
[null,null,null,null,null,null,null,null,null,null,null,null,"",0,0,0,0,0,""]
[null,null,null,null,null,null,null,null,null,null,null,null,"",0,0,0,0,0,""]
[null,null,null,null,null,null,null,null,null,null,null,null,"",0,0,0,0,0,""]
[null,null,null,null,null,null,null,null,null,null,null,null,"",0,0,0,0,0,""]
[null,null,null,null,null,null,null,null,null,null,null,null,"",0,0,0,0,0,""]
[null,null,null,null,null,null,null,null,null,null,null,null,"",0,0,0,0,0,""]
[null,null,null,null,null,null,null,null,null,null,null,null,"",0,0,0,0,0,""]
[null,null,null,null,null,null,null,null,null,null,null,null,"",0,0,0,0,0,""]
[null,null,null,null,null,null,null,null,null,null,null,null,"",0,0,0,0,0,""]
[null,null,null,null,null,null,null,null,null,null,null,null,"",0,0,0,0,0,""]
[null,null,null,null,null,null,null,null,null,null,null,null,"",0,0,0,0,0,""]
[null,null,null,null,null,null,null,null,null,null,null,null,"",0,0,0,0,0,""]
[null,null,null,null,null,null,null,null,null,null,null,null,"",0,0,0,0,0,""]
[null,null,null,null,null,null,null,null,null,null,null,null,"",0,0,0,0,0,""]
[null,null,null,null,null,null,null,null,null,null,null,null,"",0,0,0,0,0,""]
[null,null,null,null,null,null,null,null,null,null,null,null,"",0,0,0,0,0,""]
[null,null,null,null,null,null,null,null,null,null,null,null,"",0,0,0,0,0,""]
[null,null,null,null,null,null,null,null,null,null,null,null,"",0,0,0,0,0,""]
[null,null,null,null,null,null,null,null,null,null,null,null,"",0,0,0,0,0,""]
[null,null,null,null,null,null,null,null,null,null,null,null,"",0,0,0,0,0,""]
[null,null,null,null,null,null,null,null,null,null,null,null,"",0,0,0,0,0,""]
[null,null,null,null,null,null,null,null,null,null,null,null,"",0,0,0,0,0,""]
[null,null,null,null,null,null,null,null,null,null,null,null,"",0,0,0,0,0,""]
[null,null,null,null,null,null,null,null,null,null,null,null,"",0,0,0,0,0,""]
[null,null,null,null,null,null,null,null,null,null,null,null,"",0,0,0,0,0,""]
[null,null,null,null,null,null,null,null,null,null,null,null,"",0,0,0,0,0,""]
[null,null,null,null,null,null,null,null,null,null,null,null,"",0,0,0,0,0,""]
[null,null,null,null,null,null,null,null,null,null,null,null,"",0,0,0,0,0,""]
[null,null,null,null,null,null,null,null,null,null,null,null,"",0,0,0,0,0,""]
[null,null,null,null,null,null,null,null,null,null,null,null,"",0,0,0,0,0,""]
[null,null,null,null,null,null,null,null,null,null,null,null,"",0,0,0,0,0,""]
[null,null,null,null,null,null,null,null,null,null,null,null,"",0,0,0,0,0,""]
[null,null,null,null,null,null,null,null,null,null,null,null,{"$f":"IF(ISBLANK(H3025),\"\",SUM(H3025:L3025))","v":""},{"$f":"IF(ISBLANK(H3025),0,IF(H3025=0,1,0))","v":0},{"$f":"IF(ISBLANK(I3025),0,IF(I3025=0,1,0))","v":0},{"$f":"IF(ISBLANK(J3025),0,IF(J3025=0,1,0))","v":0},{"$f":"IF(ISBLANK(K3025),0,IF(K3025=0,1,0))","v":0},{"$f":"IF(ISBLANK(L3025),0,IF(L3025=0,1,0))","v":0},{"$f":"IF(SUM(N3025:R3025)<>0,\"Zero!\",\"\")","v":""}]
[null,null,null,null,null,null,null,null,null,null,null,null,"",0,0,0,0,0,""]
[null,null,null,null,null,null,null,null,null,null,null,null,"",0,0,0,0,0,""]
[null,null,null,null,null,null,null,null,null,null,null,null,"",0,0,0,0,0,""]
[null,null,null,null,null,null,null,null,null,null,null,null,"",0,0,0,0,0,""]
[null,null,null,null,null,null,null,null,null,null,null,null,"",0,0,0,0,0,""]
[null,null,null,null,null,null,null,null,null,null,null,null,"",0,0,0,0,0,""]
[null,null,null,null,null,null,null,null,null,null,null,null,"",0,0,0,0,0,""]
[null,null,null,null,null,null,null,null,null,null,null,null,"",0,0,0,0,0,""]
[null,null,null,null,null,null,null,null,null,null,null,null,"",0,0,0,0,0,""]
[null,null,null,null,null,null,null,null,null,null,null,null,"",0,0,0,0,0,""]
[null,null,null,null,null,null,null,null,null,null,null,null,"",0,0,0,0,0,""]
[null,null,null,null,null,null,null,null,null,null,null,null,"",0,0,0,0,0,""]
[null,null,null,null,null,null,null,null,null,null,null,null,"",0,0,0,0,0,""]
[null,null,null,null,null,null,null,null,null,null,null,null,"",0,0,0,0,0,""]
[null,null,null,null,null,null,null,null,null,null,null,null,"",0,0,0,0,0,""]
[null,null,null,null,null,null,null,null,null,null,null,null,"",0,0,0,0,0,""]
[null,null,null,null,null,null,null,null,null,null,null,null,"",0,0,0,0,0,""]
[null,null,null,null,null,null,null,null,null,null,null,null,"",0,0,0,0,0,""]
[null,null,null,null,null,null,null,null,null,null,null,null,"",0,0,0,0,0,""]
[null,null,null,null,null,null,null,null,null,null,null,null,"",0,0,0,0,0,""]
[null,null,null,null,null,null,null,null,null,null,null,null,"",0,0,0,0,0,""]
[null,null,null,null,null,null,null,null,null,null,null,null,"",0,0,0,0,0,""]
[null,null,null,null,null,null,null,null,null,null,null,null,"",0,0,0,0,0,""]
[null,null,null,null,null,null,null,null,null,null,null,null,"",0,0,0,0,0,""]
[null,null,null,null,null,null,null,null,null,null,null,null,"",0,0,0,0,0,""]
[null,null,null,null,null,null,null,null,null,null,null,null,"",0,0,0,0,0,""]
[null,null,null,null,null,null,null,null,null,null,null,null,"",0,0,0,0,0,""]
[null,null,null,null,null,null,null,null,null,null,null,null,"",0,0,0,0,0,""]
[null,null,null,null,null,null,null,null,null,null,null,null,"",0,0,0,0,0,""]
[null,null,null,null,null,null,null,null,null,null,null,null,"",0,0,0,0,0,""]
[null,null,null,null,null,null,null,null,null,null,null,null,"",0,0,0,0,0,""]
[null,null,null,null,null,null,null,null,null,null,null,null,"",0,0,0,0,0,""]
[null,null,null,null,null,null,null,null,null,null,null,null,"",0,0,0,0,0,""]
[null,null,null,null,null,null,null,null,null,null,null,null,"",0,0,0,0,0,""]
[null,null,null,null,null,null,null,null,null,null,null,null,"",0,0,0,0,0,""]
[null,null,null,null,null,null,null,null,null,null,null,null,"",0,0,0,0,0,""]
[null,null,null,null,null,null,null,null,null,null,null,null,"",0,0,0,0,0,""]
[null,null,null,null,null,null,null,null,null,null,null,null,"",0,0,0,0,0,""]
[null,null,null,null,null,null,null,null,null,null,null,null,"",0,0,0,0,0,""]
[null,null,null,null,null,null,null,null,null,null,null,null,"",0,0,0,0,0,""]
[null,null,null,null,null,null,null,null,null,null,null,null,"",0,0,0,0,0,""]
[null,null,null,null,null,null,null,null,null,null,null,null,"",0,0,0,0,0,""]
[null,null,null,null,null,null,null,null,null,null,null,null,"",0,0,0,0,0,""]
[null,null,null,null,null,null,null,null,null,null,null,null,"",0,0,0,0,0,""]
[null,null,null,null,null,null,null,null,null,null,null,null,"",0,0,0,0,0,""]
[null,null,null,null,null,null,null,null,null,null,null,null,"",0,0,0,0,0,""]
[null,null,null,null,null,null,null,null,null,null,null,null,"",0,0,0,0,0,""]
[null,null,null,null,null,null,null,null,null,null,null,null,"",0,0,0,0,0,""]
[null,null,null,null,null,null,null,null,null,null,null,null,"",0,0,0,0,0,""]
[null,null,null,null,null,null,null,null,null,null,null,null,"",0,0,0,0,0,""]
[null,null,null,null,null,null,null,null,null,null,null,null,"",0,0,0,0,0,""]
[null,null,null,null,null,null,null,null,null,null,null,null,"",0,0,0,0,0,""]
[null,null,null,null,null,null,null,null,null,null,null,null,"",0,0,0,0,0,""]
[null,null,null,null,null,null,null,null,null,null,null,null,"",0,0,0,0,0,""]
[null,null,null,null,null,null,null,null,null,null,null,null,"",0,0,0,0,0,""]
[null,null,null,null,null,null,null,null,null,null,null,null,"",0,0,0,0,0,""]
[null,null,null,null,null,null,null,null,null,null,null,null,"",0,0,0,0,0,""]
[null,null,null,null,null,null,null,null,null,null,null,null,"",0,0,0,0,0,""]
[null,null,null,null,null,null,null,null,null,null,null,null,"",0,0,0,0,0,""]
[null,null,null,null,null,null,null,null,null,null,null,null,"",0,0,0,0,0,""]
[null,null,null,null,null,null,null,null,null,null,null,null,"",0,0,0,0,0,""]
[null,null,null,null,null,null,null,null,null,null,null,null,"",0,0,0,0,0,""]
[null,null,null,null,null,null,null,null,null,null,null,null,"",0,0,0,0,0,""]
[null,null,null,null,null,null,null,null,null,null,null,null,"",0,0,0,0,0,""]
[null,null,null,null,null,null,null,null,null,null,null,null,"",0,0,0,0,0,""]
[null,null,null,null,null,null,null,null,null,null,null,null,"",0,0,0,0,0,""]
[null,null,null,null,null,null,null,null,null,null,null,null,"",0,0,0,0,0,""]
[null,null,null,null,null,null,null,null,null,null,null,null,"",0,0,0,0,0,""]
[null,null,null,null,null,null,null,null,null,null,null,null,"",0,0,0,0,0,""]
[null,null,null,null,null,null,null,null,null,null,null,null,"",0,0,0,0,0,""]
[null,null,null,null,null,null,null,null,null,null,null,null,"",0,0,0,0,0,""]
[null,null,null,null,null,null,null,null,null,null,null,null,"",0,0,0,0,0,""]
[null,null,null,null,null,null,null,null,null,null,null,null,{"$f":"IF(ISBLANK(H3153),\"\",SUM(H3153:L3153))","v":""},{"$f":"IF(ISBLANK(H3153),0,IF(H3153=0,1,0))","v":0},{"$f":"IF(ISBLANK(I3153),0,IF(I3153=0,1,0))","v":0},{"$f":"IF(ISBLANK(J3153),0,IF(J3153=0,1,0))","v":0},{"$f":"IF(ISBLANK(K3153),0,IF(K3153=0,1,0))","v":0},{"$f":"IF(ISBLANK(L3153),0,IF(L3153=0,1,0))","v":0},{"$f":"IF(SUM(N3153:R3153)<>0,\"Zero!\",\"\")","v":""}]
[null,null,null,null,null,null,null,null,null,null,null,null,"",0,0,0,0,0,""]
[null,null,null,null,null,null,null,null,null,null,null,null,"",0,0,0,0,0,""]
[null,null,null,null,null,null,null,null,null,null,null,null,"",0,0,0,0,0,""]
[null,null,null,null,null,null,null,null,null,null,null,null,"",0,0,0,0,0,""]
[null,null,null,null,null,null,null,null,null,null,null,null,"",0,0,0,0,0,""]
[null,null,null,null,null,null,null,null,null,null,null,null,"",0,0,0,0,0,""]
[null,null,null,null,null,null,null,null,null,null,null,null,"",0,0,0,0,0,""]
[null,null,null,null,null,null,null,null,null,null,null,null,"",0,0,0,0,0,""]
[null,null,null,null,null,null,null,null,null,null,null,null,"",0,0,0,0,0,""]
[null,null,null,null,null,null,null,null,null,null,null,null,"",0,0,0,0,0,""]
[null,null,null,null,null,null,null,null,null,null,null,null,"",0,0,0,0,0,""]
[null,null,null,null,null,null,null,null,null,null,null,null,"",0,0,0,0,0,""]
[null,null,null,null,null,null,null,null,null,null,null,null,"",0,0,0,0,0,""]
[null,null,null,null,null,null,null,null,null,null,null,null,"",0,0,0,0,0,""]
[null,null,null,null,null,null,null,null,null,null,null,null,"",0,0,0,0,0,""]
[null,null,null,null,null,null,null,null,null,null,null,null,"",0,0,0,0,0,""]
[null,null,null,null,null,null,null,null,null,null,null,null,"",0,0,0,0,0,""]
[null,null,null,null,null,null,null,null,null,null,null,null,"",0,0,0,0,0,""]
[null,null,null,null,null,null,null,null,null,null,null,null,"",0,0,0,0,0,""]
[null,null,null,null,null,null,null,null,null,null,null,null,"",0,0,0,0,0,""]
[null,null,null,null,null,null,null,null,null,null,null,null,"",0,0,0,0,0,""]
[null,null,null,null,null,null,null,null,null,null,null,null,"",0,0,0,0,0,""]
[null,null,null,null,null,null,null,null,null,null,null,null,"",0,0,0,0,0,""]
[null,null,null,null,null,null,null,null,null,null,null,null,"",0,0,0,0,0,""]
[null,null,null,null,null,null,null,null,null,null,null,null,"",0,0,0,0,0,""]
[null,null,null,null,null,null,null,null,null,null,null,null,"",0,0,0,0,0,""]
[null,null,null,null,null,null,null,null,null,null,null,null,"",0,0,0,0,0,""]
[null,null,null,null,null,null,null,null,null,null,null,null,"",0,0,0,0,0,""]
[null,null,null,null,null,null,null,null,null,null,null,null,"",0,0,0,0,0,""]
[null,null,null,null,null,null,null,null,null,null,null,null,"",0,0,0,0,0,""]
[null,null,null,null,null,null,null,null,null,null,null,null,"",0,0,0,0,0,""]
[null,null,null,null,null,null,null,null,null,null,null,null,"",0,0,0,0,0,""]
[null,null,null,null,null,null,null,null,null,null,null,null,"",0,0,0,0,0,""]
[null,null,null,null,null,null,null,null,null,null,null,null,"",0,0,0,0,0,""]
[null,null,null,null,null,null,null,null,null,null,null,null,"",0,0,0,0,0,""]
[null,null,null,null,null,null,null,null,null,null,null,null,"",0,0,0,0,0,""]
[null,null,null,null,null,null,null,null,null,null,null,null,{"$f":"IF(ISBLANK(H3217),\"\",SUM(H3217:L3217))","v":""},{"$f":"IF(ISBLANK(H3217),0,IF(H3217=0,1,0))","v":0},{"$f":"IF(ISBLANK(I3217),0,IF(I3217=0,1,0))","v":0},{"$f":"IF(ISBLANK(J3217),0,IF(J3217=0,1,0))","v":0},{"$f":"IF(ISBLANK(K3217),0,IF(K3217=0,1,0))","v":0},{"$f":"IF(ISBLANK(L3217),0,IF(L3217=0,1,0))","v":0},{"$f":"IF(SUM(N3217:R3217)<>0,\"Zero!\",\"\")","v":""}]
[null,null,null,null,null,null,null,null,null,null,null,null,"",0,0,0,0,0,""]
[null,null,null,null,null,null,null,null,null,null,null,null,"",0,0,0,0,0,""]
[null,null,null,null,null,null,null,null,null,null,null,null,"",0,0,0,0,0,""]
[null,null,null,null,null,null,null,null,null,null,null,null,"",0,0,0,0,0,""]
[null,null,null,null,null,null,null,null,null,null,null,null,"",0,0,0,0,0,""]
[null,null,null,null,null,null,null,null,null,null,null,null,"",0,0,0,0,0,""]
[null,null,null,null,null,null,null,null,null,null,null,null,"",0,0,0,0,0,""]
[null,null,null,null,null,null,null,null,null,null,null,null,"",0,0,0,0,0,""]
[null,null,null,null,null,null,null,null,null,null,null,null,"",0,0,0,0,0,""]
[null,null,null,null,null,null,null,null,null,null,null,null,"",0,0,0,0,0,""]
[null,null,null,null,null,null,null,null,null,null,null,null,"",0,0,0,0,0,""]
[null,null,null,null,null,null,null,null,null,null,null,null,"",0,0,0,0,0,""]
[null,null,null,null,null,null,null,null,null,null,null,null,"",0,0,0,0,0,""]
[null,null,null,null,null,null,null,null,null,null,null,null,"",0,0,0,0,0,""]
[null,null,null,null,null,null,null,null,null,null,null,null,"",0,0,0,0,0,""]
[null,null,null,null,null,null,null,null,null,null,null,null,"",0,0,0,0,0,""]
[null,null,null,null,null,null,null,null,null,null,null,null,"",0,0,0,0,0,""]
[null,null,null,null,null,null,null,null,null,null,null,null,"",0,0,0,0,0,""]
[null,null,null,null,null,null,null,null,null,null,null,null,"",0,0,0,0,0,""]
[null,null,null,null,null,null,null,null,null,null,null,null,"",0,0,0,0,0,""]
[null,null,null,null,null,null,null,null,null,null,null,null,"",0,0,0,0,0,""]
[null,null,null,null,null,null,null,null,null,null,null,null,"",0,0,0,0,0,""]
[null,null,null,null,null,null,null,null,null,null,null,null,"",0,0,0,0,0,""]
[null,null,null,null,null,null,null,null,null,null,null,null,"",0,0,0,0,0,""]
[null,null,null,null,null,null,null,null,null,null,null,null,"",0,0,0,0,0,""]
[null,null,null,null,null,null,null,null,null,null,null,null,"",0,0,0,0,0,""]
[null,null,null,null,null,null,null,null,null,null,null,null,"",0,0,0,0,0,""]
[null,null,null,null,null,null,null,null,null,null,null,null,"",0,0,0,0,0,""]
[null,null,null,null,null,null,null,null,null,null,null,null,"",0,0,0,0,0,""]
[null,null,null,null,null,null,null,null,null,null,null,null,"",0,0,0,0,0,""]
[null,null,null,null,null,null,null,null,null,null,null,null,"",0,0,0,0,0,""]
[null,null,null,null,null,null,null,null,null,null,null,null,"",0,0,0,0,0,""]
[null,null,null,null,null,null,null,null,null,null,null,null,"",0,0,0,0,0,""]
[null,null,null,null,null,null,null,null,null,null,null,null,"",0,0,0,0,0,""]
[null,null,null,null,null,null,null,null,null,null,null,null,"",0,0,0,0,0,""]
[null,null,null,null,null,null,null,null,null,null,null,null,"",0,0,0,0,0,""]
[null,null,null,null,null,null,null,null,null,null,null,null,"",0,0,0,0,0,""]
[null,null,null,null,null,null,null,null,null,null,null,null,"",0,0,0,0,0,""]
[null,null,null,null,null,null,null,null,null,null,null,null,"",0,0,0,0,0,""]
[null,null,null,null,null,null,null,null,null,null,null,null,"",0,0,0,0,0,""]
[null,null,null,null,null,null,null,null,null,null,null,null,"",0,0,0,0,0,""]
[null,null,null,null,null,null,null,null,null,null,null,null,"",0,0,0,0,0,""]
[null,null,null,null,null,null,null,null,null,null,null,null,"",0,0,0,0,0,""]
[null,null,null,null,null,null,null,null,null,null,null,null,"",0,0,0,0,0,""]
[null,null,null,null,null,null,null,null,null,null,null,null,"",0,0,0,0,0,""]
[null,null,null,null,null,null,null,null,null,null,null,null,"",0,0,0,0,0,""]
[null,null,null,null,null,null,null,null,null,null,null,null,"",0,0,0,0,0,""]
[null,null,null,null,null,null,null,null,null,null,null,null,"",0,0,0,0,0,""]
[null,null,null,null,null,null,null,null,null,null,null,null,"",0,0,0,0,0,""]
[null,null,null,null,null,null,null,null,null,null,null,null,"",0,0,0,0,0,""]
[null,null,null,null,null,null,null,null,null,null,null,null,"",0,0,0,0,0,""]
[null,null,null,null,null,null,null,null,null,null,null,null,"",0,0,0,0,0,""]
[null,null,null,null,null,null,null,null,null,null,null,null,"",0,0,0,0,0,""]
[null,null,null,null,null,null,null,null,null,null,null,null,"",0,0,0,0,0,""]
[null,null,null,null,null,null,null,null,null,null,null,null,"",0,0,0,0,0,""]
[null,null,null,null,null,null,null,null,null,null,null,null,"",0,0,0,0,0,""]
[null,null,null,null,null,null,null,null,null,null,null,null,"",0,0,0,0,0,""]
[null,null,null,null,null,null,null,null,null,null,null,null,"",0,0,0,0,0,""]
[null,null,null,null,null,null,null,null,null,null,null,null,"",0,0,0,0,0,""]
[null,null,null,null,null,null,null,null,null,null,null,null,"",0,0,0,0,0,""]
[null,null,null,null,null,null,null,null,null,null,null,null,"",0,0,0,0,0,""]
[null,null,null,null,null,null,null,null,null,null,null,null,"",0,0,0,0,0,""]
[null,null,null,null,null,null,null,null,null,null,null,null,"",0,0,0,0,0,""]
[null,null,null,null,null,null,null,null,null,null,null,null,"",0,0,0,0,0,""]
[null,null,null,null,null,null,null,null,null,null,null,null,"",0,0,0,0,0,""]
[null,null,null,null,null,null,null,null,null,null,null,null,"",0,0,0,0,0,""]
[null,null,null,null,null,null,null,null,null,null,null,null,"",0,0,0,0,0,""]
[null,null,null,null,null,null,null,null,null,null,null,null,"",0,0,0,0,0,""]
[null,null,null,null,null,null,null,null,null,null,null,null,"",0,0,0,0,0,""]
[null,null,null,null,null,null,null,null,null,null,null,null,"",0,0,0,0,0,""]
[null,null,null,null,null,null,null,null,null,null,null,null,"",0,0,0,0,0,""]
[null,null,null,null,null,null,null,null,null,null,null,null,"",0,0,0,0,0,""]
[null,null,null,null,null,null,null,null,null,null,null,null,"",0,0,0,0,0,""]
[null,null,null,null,null,null,null,null,null,null,null,null,"",0,0,0,0,0,""]
[null,null,null,null,null,null,null,null,null,null,null,null,"",0,0,0,0,0,""]
[null,null,null,null,null,null,null,null,null,null,null,null,"",0,0,0,0,0,""]
[null,null,null,null,null,null,null,null,null,null,null,null,"",0,0,0,0,0,""]
[null,null,null,null,null,null,null,null,null,null,null,null,"",0,0,0,0,0,""]
[null,null,null,null,null,null,null,null,null,null,null,null,"",0,0,0,0,0,""]
[null,null,null,null,null,null,null,null,null,null,null,null,"",0,0,0,0,0,""]
[null,null,null,null,null,null,null,null,null,null,null,null,"",0,0,0,0,0,""]
[null,null,null,null,null,null,null,null,null,null,null,null,"",0,0,0,0,0,""]
[null,null,null,null,null,null,null,null,null,null,null,null,"",0,0,0,0,0,""]
[null,null,null,null,null,null,null,null,null,null,null,null,"",0,0,0,0,0,""]
[null,null,null,null,null,null,null,null,null,null,null,null,"",0,0,0,0,0,""]
[null,null,null,null,null,null,null,null,null,null,null,null,"",0,0,0,0,0,""]
[null,null,null,null,null,null,null,null,null,null,null,null,"",0,0,0,0,0,""]
[null,null,null,null,null,null,null,null,null,null,null,null,"",0,0,0,0,0,""]
[null,null,null,null,null,null,null,null,null,null,null,null,"",0,0,0,0,0,""]
[null,null,null,null,null,null,null,null,null,null,null,null,"",0,0,0,0,0,""]
[null,null,null,null,null,null,null,null,null,null,null,null,"",0,0,0,0,0,""]
[null,null,null,null,null,null,null,null,null,null,null,null,"",0,0,0,0,0,""]
[null,null,null,null,null,null,null,null,null,null,null,null,"",0,0,0,0,0,""]
[null,null,null,null,null,null,null,null,null,null,null,null,"",0,0,0,0,0,""]
[null,null,null,null,null,null,null,null,null,null,null,null,"",0,0,0,0,0,""]
[null,null,null,null,null,null,null,null,null,null,null,null,"",0,0,0,0,0,""]
[null,null,null,null,null,null,null,null,null,null,null,null,"",0,0,0,0,0,""]
[null,null,null,null,null,null,null,null,null,null,null,null,"",0,0,0,0,0,""]
[null,null,null,null,null,null,null,null,null,null,null,null,"",0,0,0,0,0,""]
[null,null,null,null,null,null,null,null,null,null,null,null,"",0,0,0,0,0,""]
[null,null,null,null,null,null,null,null,null,null,null,null,"",0,0,0,0,0,""]
[null,null,null,null,null,null,null,null,null,null,null,null,"",0,0,0,0,0,""]
[null,null,null,null,null,null,null,null,null,null,null,null,"",0,0,0,0,0,""]
[null,null,null,null,null,null,null,null,null,null,null,null,"",0,0,0,0,0,""]
[null,null,null,null,null,null,null,null,null,null,null,null,"",0,0,0,0,0,""]
[null,null,null,null,null,null,null,null,null,null,null,null,"",0,0,0,0,0,""]
[null,null,null,null,null,null,null,null,null,null,null,null,"",0,0,0,0,0,""]
[null,null,null,null,null,null,null,null,null,null,null,null,"",0,0,0,0,0,""]
[null,null,null,null,null,null,null,null,null,null,null,null,{"$f":"IF(ISBLANK(H3409),\"\",SUM(H3409:L3409))","v":""},{"$f":"IF(ISBLANK(H3409),0,IF(H3409=0,1,0))","v":0},{"$f":"IF(ISBLANK(I3409),0,IF(I3409=0,1,0))","v":0},{"$f":"IF(ISBLANK(J3409),0,IF(J3409=0,1,0))","v":0},{"$f":"IF(ISBLANK(K3409),0,IF(K3409=0,1,0))","v":0},{"$f":"IF(ISBLANK(L3409),0,IF(L3409=0,1,0))","v":0},{"$f":"IF(SUM(N3409:R3409)<>0,\"Zero!\",\"\")","v":""}]
[null,null,null,null,null,null,null,null,null,null,null,null,"",0,0,0,0,0,""]
[null,null,null,null,null,null,null,null,null,null,null,null,"",0,0,0,0,0,""]
[null,null,null,null,null,null,null,null,null,null,null,null,"",0,0,0,0,0,""]
[null,null,null,null,null,null,null,null,null,null,null,null,"",0,0,0,0,0,""]
[null,null,null,null,null,null,null,null,null,null,null,null,"",0,0,0,0,0,""]
[null,null,null,null,null,null,null,null,null,null,null,null,"",0,0,0,0,0,""]
[null,null,null,null,null,null,null,null,null,null,null,null,"",0,0,0,0,0,""]
[null,null,null,null,null,null,null,null,null,null,null,null,"",0,0,0,0,0,""]
[null,null,null,null,null,null,null,null,null,null,null,null,"",0,0,0,0,0,""]
[null,null,null,null,null,null,null,null,null,null,null,null,"",0,0,0,0,0,""]
[null,null,null,null,null,null,null,null,null,null,null,null,"",0,0,0,0,0,""]
[null,null,null,null,null,null,null,null,null,null,null,null,"",0,0,0,0,0,""]
[null,null,null,null,null,null,null,null,null,null,null,null,"",0,0,0,0,0,""]
[null,null,null,null,null,null,null,null,null,null,null,null,"",0,0,0,0,0,""]
[null,null,null,null,null,null,null,null,null,null,null,null,"",0,0,0,0,0,""]
[null,null,null,null,null,null,null,null,null,null,null,null,"",0,0,0,0,0,""]
[null,null,null,null,null,null,null,null,null,null,null,null,"",0,0,0,0,0,""]
[null,null,null,null,null,null,null,null,null,null,null,null,"",0,0,0,0,0,""]
[null,null,null,null,null,null,null,null,null,null,null,null,"",0,0,0,0,0,""]
[null,null,null,null,null,null,null,null,null,null,null,null,"",0,0,0,0,0,""]
[null,null,null,null,null,null,null,null,null,null,null,null,"",0,0,0,0,0,""]
[null,null,null,null,null,null,null,null,null,null,null,null,"",0,0,0,0,0,""]
[null,null,null,null,null,null,null,null,null,null,null,null,"",0,0,0,0,0,""]
[null,null,null,null,null,null,null,null,null,null,null,null,"",0,0,0,0,0,""]
[null,null,null,null,null,null,null,null,null,null,null,null,"",0,0,0,0,0,""]
[null,null,null,null,null,null,null,null,null,null,null,null,"",0,0,0,0,0,""]
[null,null,null,null,null,null,null,null,null,null,null,null,"",0,0,0,0,0,""]
[null,null,null,null,null,null,null,null,null,null,null,null,"",0,0,0,0,0,""]
[null,null,null,null,null,null,null,null,null,null,null,null,"",0,0,0,0,0,""]
[null,null,null,null,null,null,null,null,null,null,null,null,"",0,0,0,0,0,""]
[null,null,null,null,null,null,null,null,null,null,null,null,"",0,0,0,0,0,""]
[null,null,null,null,null,null,null,null,null,null,null,null,"",0,0,0,0,0,""]
[null,null,null,null,null,null,null,null,null,null,null,null,"",0,0,0,0,0,""]
[null,null,null,null,null,null,null,null,null,null,null,null,"",0,0,0,0,0,""]
[null,null,null,null,null,null,null,null,null,null,null,null,"",0,0,0,0,0,""]
[null,null,null,null,null,null,null,null,null,null,null,null,"",0,0,0,0,0,""]
[null,null,null,null,null,null,null,null,null,null,null,null,{"$f":"IF(ISBLANK(H3473),\"\",SUM(H3473:L3473))","v":""},{"$f":"IF(ISBLANK(H3473),0,IF(H3473=0,1,0))","v":0},{"$f":"IF(ISBLANK(I3473),0,IF(I3473=0,1,0))","v":0},{"$f":"IF(ISBLANK(J3473),0,IF(J3473=0,1,0))","v":0},{"$f":"IF(ISBLANK(K3473),0,IF(K3473=0,1,0))","v":0},{"$f":"IF(ISBLANK(L3473),0,IF(L3473=0,1,0))","v":0},{"$f":"IF(SUM(N3473:R3473)<>0,\"Zero!\",\"\")","v":""}]
[null,null,null,null,null,null,null,null,null,null,null,null,"",0,0,0,0,0,""]
[null,null,null,null,null,null,null,null,null,null,null,null,"",0,0,0,0,0,""]
[null,null,null,null,null,null,null,null,null,null,null,null,"",0,0,0,0,0,""]
[null,null,null,null,null,null,null,null,null,null,null,null,"",0,0,0,0,0,""]
[null,null,null,null,null,null,null,null,null,null,null,null,"",0,0,0,0,0,""]
[null,null,null,null,null,null,null,null,null,null,null,null,"",0,0,0,0,0,""]
[null,null,null,null,null,null,null,null,null,null,null,null,"",0,0,0,0,0,""]
[null,null,null,null,null,null,null,null,null,null,null,null,"",0,0,0,0,0,""]
[null,null,null,null,null,null,null,null,null,null,null,null,"",0,0,0,0,0,""]
[null,null,null,null,null,null,null,null,null,null,null,null,"",0,0,0,0,0,""]
[null,null,null,null,null,null,null,null,null,null,null,null,"",0,0,0,0,0,""]
[null,null,null,null,null,null,null,null,null,null,null,null,"",0,0,0,0,0,""]
[null,null,null,null,null,null,null,null,null,null,null,null,"",0,0,0,0,0,""]
[null,null,null,null,null,null,null,null,null,null,null,null,"",0,0,0,0,0,""]
[null,null,null,null,null,null,null,null,null,null,null,null,"",0,0,0,0,0,""]
[null,null,null,null,null,null,null,null,null,null,null,null,"",0,0,0,0,0,""]
[null,null,null,null,null,null,null,null,null,null,null,null,"",0,0,0,0,0,""]
[null,null,null,null,null,null,null,null,null,null,null,null,"",0,0,0,0,0,""]
[null,null,null,null,null,null,null,null,null,null,null,null,"",0,0,0,0,0,""]
[null,null,null,null,null,null,null,null,null,null,null,null,"",0,0,0,0,0,""]
[null,null,null,null,null,null,null,null,null,null,null,null,"",0,0,0,0,0,""]
[null,null,null,null,null,null,null,null,null,null,null,null,"",0,0,0,0,0,""]
[null,null,null,null,null,null,null,null,null,null,null,null,"",0,0,0,0,0,""]
[null,null,null,null,null,null,null,null,null,null,null,null,"",0,0,0,0,0,""]
[null,null,null,null,null,null,null,null,null,null,null,null,"",0,0,0,0,0,""]
[null,null,null,null,null,null,null,null,null,null,null,null,"",0,0,0,0,0,""]
[null,null,null,null,null,null,null,null,null,null,null,null,"",0,0,0,0,0,""]
[null,null,null,null,null,null,null,null,null,null,null,null,"",0,0,0,0,0,""]
[null,null,null,null,null,null,null,null,null,null,null,null,"",0,0,0,0,0,""]
[null,null,null,null,null,null,null,null,null,null,null,null,"",0,0,0,0,0,""]
[null,null,null,null,null,null,null,null,null,null,null,null,"",0,0,0,0,0,""]
[null,null,null,null,null,null,null,null,null,null,null,null,"",0,0,0,0,0,""]
[null,null,null,null,null,null,null,null,null,null,null,null,"",0,0,0,0,0,""]
[null,null,null,null,null,null,null,null,null,null,null,null,"",0,0,0,0,0,""]
[null,null,null,null,null,null,null,null,null,null,null,null,"",0,0,0,0,0,""]
[null,null,null,null,null,null,null,null,null,null,null,null,"",0,0,0,0,0,""]
[null,null,null,null,null,null,null,null,null,null,null,null,"",0,0,0,0,0,""]
[null,null,null,null,null,null,null,null,null,null,null,null,"",0,0,0,0,0,""]
[null,null,null,null,null,null,null,null,null,null,null,null,"",0,0,0,0,0,""]
[null,null,null,null,null,null,null,null,null,null,null,null,"",0,0,0,0,0,""]
[null,null,null,null,null,null,null,null,null,null,null,null,"",0,0,0,0,0,""]
[null,null,null,null,null,null,null,null,null,null,null,null,"",0,0,0,0,0,""]
[null,null,null,null,null,null,null,null,null,null,null,null,"",0,0,0,0,0,""]
[null,null,null,null,null,null,null,null,null,null,null,null,"",0,0,0,0,0,""]
[null,null,null,null,null,null,null,null,null,null,null,null,"",0,0,0,0,0,""]
[null,null,null,null,null,null,null,null,null,null,null,null,"",0,0,0,0,0,""]
[null,null,null,null,null,null,null,null,null,null,null,null,"",0,0,0,0,0,""]
[null,null,null,null,null,null,null,null,null,null,null,null,"",0,0,0,0,0,""]
[null,null,null,null,null,null,null,null,null,null,null,null,"",0,0,0,0,0,""]
[null,null,null,null,null,null,null,null,null,null,null,null,"",0,0,0,0,0,""]
[null,null,null,null,null,null,null,null,null,null,null,null,"",0,0,0,0,0,""]
[null,null,null,null,null,null,null,null,null,null,null,null,"",0,0,0,0,0,""]
[null,null,null,null,null,null,null,null,null,null,null,null,"",0,0,0,0,0,""]
[null,null,null,null,null,null,null,null,null,null,null,null,"",0,0,0,0,0,""]
[null,null,null,null,null,null,null,null,null,null,null,null,"",0,0,0,0,0,""]
[null,null,null,null,null,null,null,null,null,null,null,null,"",0,0,0,0,0,""]
[null,null,null,null,null,null,null,null,null,null,null,null,"",0,0,0,0,0,""]
[null,null,null,null,null,null,null,null,null,null,null,null,"",0,0,0,0,0,""]
[null,null,null,null,null,null,null,null,null,null,null,null,"",0,0,0,0,0,""]
[null,null,null,null,null,null,null,null,null,null,null,null,"",0,0,0,0,0,""]
[null,null,null,null,null,null,null,null,null,null,null,null,"",0,0,0,0,0,""]
[null,null,null,null,null,null,null,null,null,null,null,null,"",0,0,0,0,0,""]
[null,null,null,null,null,null,null,null,null,null,null,null,"",0,0,0,0,0,""]
[null,null,null,null,null,null,null,null,null,null,null,null,"",0,0,0,0,0,""]
[null,null,null,null,null,null,null,null,null,null,null,null,"",0,0,0,0,0,""]
[null,null,null,null,null,null,null,null,null,null,null,null,"",0,0,0,0,0,""]
[null,null,null,null,null,null,null,null,null,null,null,null,"",0,0,0,0,0,""]
[null,null,null,null,null,null,null,null,null,null,null,null,"",0,0,0,0,0,""]
[null,null,null,null,null,null,null,null,null,null,null,null,"",0,0,0,0,0,""]
[null,null,null,null,null,null,null,null,null,null,null,null,"",0,0,0,0,0,""]
[null,null,null,null,null,null,null,null,null,null,null,null,"",0,0,0,0,0,""]
[null,null,null,null,null,null,null,null,null,null,null,null,"",0,0,0,0,0,""]
[null,null,null,null,null,null,null,null,null,null,null,null,"",0,0,0,0,0,""]
[null,null,null,null,null,null,null,null,null,null,null,null,"",0,0,0,0,0,""]
[null,null,null,null,null,null,null,null,null,null,null,null,"",0,0,0,0,0,""]
[null,null,null,null,null,null,null,null,null,null,null,null,"",0,0,0,0,0,""]
[null,null,null,null,null,null,null,null,null,null,null,null,"",0,0,0,0,0,""]
[null,null,null,null,null,null,null,null,null,null,null,null,"",0,0,0,0,0,""]
[null,null,null,null,null,null,null,null,null,null,null,null,"",0,0,0,0,0,""]
[null,null,null,null,null,null,null,null,null,null,null,null,"",0,0,0,0,0,""]
[null,null,null,null,null,null,null,null,null,null,null,null,"",0,0,0,0,0,""]
[null,null,null,null,null,null,null,null,null,null,null,null,"",0,0,0,0,0,""]
[null,null,null,null,null,null,null,null,null,null,null,null,"",0,0,0,0,0,""]
[null,null,null,null,null,null,null,null,null,null,null,null,"",0,0,0,0,0,""]
[null,null,null,null,null,null,null,null,null,null,null,null,"",0,0,0,0,0,""]
[null,null,null,null,null,null,null,null,null,null,null,null,"",0,0,0,0,0,""]
[null,null,null,null,null,null,null,null,null,null,null,null,"",0,0,0,0,0,""]
[null,null,null,null,null,null,null,null,null,null,null,null,"",0,0,0,0,0,""]
[null,null,null,null,null,null,null,null,null,null,null,null,"",0,0,0,0,0,""]
[null,null,null,null,null,null,null,null,null,null,null,null,"",0,0,0,0,0,""]
[null,null,null,null,null,null,null,null,null,null,null,null,"",0,0,0,0,0,""]
[null,null,null,null,null,null,null,null,null,null,null,null,"",0,0,0,0,0,""]
[null,null,null,null,null,null,null,null,null,null,null,null,"",0,0,0,0,0,""]
[null,null,null,null,null,null,null,null,null,null,null,null,"",0,0,0,0,0,""]
[null,null,null,null,null,null,null,null,null,null,null,null,"",0,0,0,0,0,""]
[null,null,null,null,null,null,null,null,null,null,null,null,"",0,0,0,0,0,""]
[null,null,null,null,null,null,null,null,null,null,null,null,"",0,0,0,0,0,""]
[null,null,null,null,null,null,null,null,null,null,null,null,"",0,0,0,0,0,""]
[null,null,null,null,null,null,null,null,null,null,null,null,"",0,0,0,0,0,""]
[null,null,null,null,null,null,null,null,null,null,null,null,"",0,0,0,0,0,""]
[null,null,null,null,null,null,null,null,null,null,null,null,"",0,0,0,0,0,""]
[null,null,null,null,null,null,null,null,null,null,null,null,"",0,0,0,0,0,""]
[null,null,null,null,null,null,null,null,null,null,null,null,"",0,0,0,0,0,""]
[null,null,null,null,null,null,null,null,null,null,null,null,"",0,0,0,0,0,""]
[null,null,null,null,null,null,null,null,null,null,null,null,"",0,0,0,0,0,""]
[null,null,null,null,null,null,null,null,null,null,null,null,"",0,0,0,0,0,""]
[null,null,null,null,null,null,null,null,null,null,null,null,"",0,0,0,0,0,""]
[null,null,null,null,null,null,null,null,null,null,null,null,"",0,0,0,0,0,""]
[null,null,null,null,null,null,null,null,null,null,null,null,{"$f":"IF(ISBLANK(H3665),\"\",SUM(H3665:L3665))","v":""},{"$f":"IF(ISBLANK(H3665),0,IF(H3665=0,1,0))","v":0},{"$f":"IF(ISBLANK(I3665),0,IF(I3665=0,1,0))","v":0},{"$f":"IF(ISBLANK(J3665),0,IF(J3665=0,1,0))","v":0},{"$f":"IF(ISBLANK(K3665),0,IF(K3665=0,1,0))","v":0},{"$f":"IF(ISBLANK(L3665),0,IF(L3665=0,1,0))","v":0},{"$f":"IF(SUM(N3665:R3665)<>0,\"Zero!\",\"\")","v":""}]
[null,null,null,null,null,null,null,null,null,null,null,null,"",0,0,0,0,0,""]
[null,null,null,null,null,null,null,null,null,null,null,null,"",0,0,0,0,0,""]
[null,null,null,null,null,null,null,null,null,null,null,null,"",0,0,0,0,0,""]
[null,null,null,null,null,null,null,null,null,null,null,null,"",0,0,0,0,0,""]
[null,null,null,null,null,null,null,null,null,null,null,null,"",0,0,0,0,0,""]
[null,null,null,null,null,null,null,null,null,null,null,null,"",0,0,0,0,0,""]
[null,null,null,null,null,null,null,null,null,null,null,null,"",0,0,0,0,0,""]
[null,null,null,null,null,null,null,null,null,null,null,null,"",0,0,0,0,0,""]
[null,null,null,null,null,null,null,null,null,null,null,null,"",0,0,0,0,0,""]
[null,null,null,null,null,null,null,null,null,null,null,null,"",0,0,0,0,0,""]
[null,null,null,null,null,null,null,null,null,null,null,null,"",0,0,0,0,0,""]
[null,null,null,null,null,null,null,null,null,null,null,null,"",0,0,0,0,0,""]
[null,null,null,null,null,null,null,null,null,null,null,null,"",0,0,0,0,0,""]
[null,null,null,null,null,null,null,null,null,null,null,null,"",0,0,0,0,0,""]
[null,null,null,null,null,null,null,null,null,null,null,null,"",0,0,0,0,0,""]
[null,null,null,null,null,null,null,null,null,null,null,null,"",0,0,0,0,0,""]
[null,null,null,null,null,null,null,null,null,null,null,null,"",0,0,0,0,0,""]
[null,null,null,null,null,null,null,null,null,null,null,null,"",0,0,0,0,0,""]
[null,null,null,null,null,null,null,null,null,null,null,null,"",0,0,0,0,0,""]
[null,null,null,null,null,null,null,null,null,null,null,null,"",0,0,0,0,0,""]
[null,null,null,null,null,null,null,null,null,null,null,null,"",0,0,0,0,0,""]
[null,null,null,null,null,null,null,null,null,null,null,null,"",0,0,0,0,0,""]
[null,null,null,null,null,null,null,null,null,null,null,null,"",0,0,0,0,0,""]
[null,null,null,null,null,null,null,null,null,null,null,null,"",0,0,0,0,0,""]
[null,null,null,null,null,null,null,null,null,null,null,null,"",0,0,0,0,0,""]
[null,null,null,null,null,null,null,null,null,null,null,null,"",0,0,0,0,0,""]
[null,null,null,null,null,null,null,null,null,null,null,null,"",0,0,0,0,0,""]
[null,null,null,null,null,null,null,null,null,null,null,null,"",0,0,0,0,0,""]
[null,null,null,null,null,null,null,null,null,null,null,null,"",0,0,0,0,0,""]
[null,null,null,null,null,null,null,null,null,null,null,null,"",0,0,0,0,0,""]
[null,null,null,null,null,null,null,null,null,null,null,null,"",0,0,0,0,0,""]
[null,null,null,null,null,null,null,null,null,null,null,null,"",0,0,0,0,0,""]
[null,null,null,null,null,null,null,null,null,null,null,null,"",0,0,0,0,0,""]
[null,null,null,null,null,null,null,null,null,null,null,null,"",0,0,0,0,0,""]
[null,null,null,null,null,null,null,null,null,null,null,null,"",0,0,0,0,0,""]
[null,null,null,null,null,null,null,null,null,null,null,null,"",0,0,0,0,0,""]
[null,null,null,null,null,null,null,null,null,null,null,null,{"$f":"IF(ISBLANK(H3729),\"\",SUM(H3729:L3729))","v":""},{"$f":"IF(ISBLANK(H3729),0,IF(H3729=0,1,0))","v":0},{"$f":"IF(ISBLANK(I3729),0,IF(I3729=0,1,0))","v":0},{"$f":"IF(ISBLANK(J3729),0,IF(J3729=0,1,0))","v":0},{"$f":"IF(ISBLANK(K3729),0,IF(K3729=0,1,0))","v":0},{"$f":"IF(ISBLANK(L3729),0,IF(L3729=0,1,0))","v":0},{"$f":"IF(SUM(N3729:R3729)<>0,\"Zero!\",\"\")","v":""}]
[null,null,null,null,null,null,null,null,null,null,null,null,"",0,0,0,0,0,""]
[null,null,null,null,null,null,null,null,null,null,null,null,"",0,0,0,0,0,""]
[null,null,null,null,null,null,null,null,null,null,null,null,"",0,0,0,0,0,""]
[null,null,null,null,null,null,null,null,null,null,null,null,"",0,0,0,0,0,""]
[null,null,null,null,null,null,null,null,null,null,null,null,"",0,0,0,0,0,""]
[null,null,null,null,null,null,null,null,null,null,null,null,"",0,0,0,0,0,""]
[null,null,null,null,null,null,null,null,null,null,null,null,"",0,0,0,0,0,""]
[null,null,null,null,null,null,null,null,null,null,null,null,"",0,0,0,0,0,""]
[null,null,null,null,null,null,null,null,null,null,null,null,"",0,0,0,0,0,""]
[null,null,null,null,null,null,null,null,null,null,null,null,"",0,0,0,0,0,""]
[null,null,null,null,null,null,null,null,null,null,null,null,"",0,0,0,0,0,""]
[null,null,null,null,null,null,null,null,null,null,null,null,"",0,0,0,0,0,""]
[null,null,null,null,null,null,null,null,null,null,null,null,"",0,0,0,0,0,""]
[null,null,null,null,null,null,null,null,null,null,null,null,"",0,0,0,0,0,""]
[null,null,null,null,null,null,null,null,null,null,null,null,"",0,0,0,0,0,""]
[null,null,null,null,null,null,null,null,null,null,null,null,"",0,0,0,0,0,""]
[null,null,null,null,null,null,null,null,null,null,null,null,"",0,0,0,0,0,""]
[null,null,null,null,null,null,null,null,null,null,null,null,"",0,0,0,0,0,""]
[null,null,null,null,null,null,null,null,null,null,null,null,"",0,0,0,0,0,""]
[null,null,null,null,null,null,null,null,null,null,null,null,"",0,0,0,0,0,""]
[null,null,null,null,null,null,null,null,null,null,null,null,"",0,0,0,0,0,""]
[null,null,null,null,null,null,null,null,null,null,null,null,"",0,0,0,0,0,""]
[null,null,null,null,null,null,null,null,null,null,null,null,"",0,0,0,0,0,""]
[null,null,null,null,null,null,null,null,null,null,null,null,"",0,0,0,0,0,""]
[null,null,null,null,null,null,null,null,null,null,null,null,"",0,0,0,0,0,""]
[null,null,null,null,null,null,null,null,null,null,null,null,"",0,0,0,0,0,""]
[null,null,null,null,null,null,null,null,null,null,null,null,"",0,0,0,0,0,""]
[null,null,null,null,null,null,null,null,null,null,null,null,"",0,0,0,0,0,""]
[null,null,null,null,null,null,null,null,null,null,null,null,"",0,0,0,0,0,""]
[null,null,null,null,null,null,null,null,null,null,null,null,"",0,0,0,0,0,""]
[null,null,null,null,null,null,null,null,null,null,null,null,"",0,0,0,0,0,""]
[null,null,null,null,null,null,null,null,null,null,null,null,"",0,0,0,0,0,""]
[null,null,null,null,null,null,null,null,null,null,null,null,"",0,0,0,0,0,""]
[null,null,null,null,null,null,null,null,null,null,null,null,"",0,0,0,0,0,""]
[null,null,null,null,null,null,null,null,null,null,null,null,"",0,0,0,0,0,""]
[null,null,null,null,null,null,null,null,null,null,null,null,"",0,0,0,0,0,""]
[null,null,null,null,null,null,null,null,null,null,null,null,"",0,0,0,0,0,""]
[null,null,null,null,null,null,null,null,null,null,null,null,"",0,0,0,0,0,""]
[null,null,null,null,null,null,null,null,null,null,null,null,"",0,0,0,0,0,""]
[null,null,null,null,null,null,null,null,null,null,null,null,"",0,0,0,0,0,""]
[null,null,null,null,null,null,null,null,null,null,null,null,"",0,0,0,0,0,""]
[null,null,null,null,null,null,null,null,null,null,null,null,"",0,0,0,0,0,""]
[null,null,null,null,null,null,null,null,null,null,null,null,"",0,0,0,0,0,""]
[null,null,null,null,null,null,null,null,null,null,null,null,"",0,0,0,0,0,""]
[null,null,null,null,null,null,null,null,null,null,null,null,"",0,0,0,0,0,""]
[null,null,null,null,null,null,null,null,null,null,null,null,"",0,0,0,0,0,""]
[null,null,null,null,null,null,null,null,null,null,null,null,"",0,0,0,0,0,""]
[null,null,null,null,null,null,null,null,null,null,null,null,"",0,0,0,0,0,""]
[null,null,null,null,null,null,null,null,null,null,null,null,"",0,0,0,0,0,""]
[null,null,null,null,null,null,null,null,null,null,null,null,"",0,0,0,0,0,""]
[null,null,null,null,null,null,null,null,null,null,null,null,"",0,0,0,0,0,""]
[null,null,null,null,null,null,null,null,null,null,null,null,"",0,0,0,0,0,""]
[null,null,null,null,null,null,null,null,null,null,null,null,"",0,0,0,0,0,""]
[null,null,null,null,null,null,null,null,null,null,null,null,"",0,0,0,0,0,""]
[null,null,null,null,null,null,null,null,null,null,null,null,"",0,0,0,0,0,""]
[null,null,null,null,null,null,null,null,null,null,null,null,"",0,0,0,0,0,""]
[null,null,null,null,null,null,null,null,null,null,null,null,"",0,0,0,0,0,""]
[null,null,null,null,null,null,null,null,null,null,null,null,"",0,0,0,0,0,""]
[null,null,null,null,null,null,null,null,null,null,null,null,"",0,0,0,0,0,""]
[null,null,null,null,null,null,null,null,null,null,null,null,"",0,0,0,0,0,""]
[null,null,null,null,null,null,null,null,null,null,null,null,"",0,0,0,0,0,""]
[null,null,null,null,null,null,null,null,null,null,null,null,"",0,0,0,0,0,""]
[null,null,null,null,null,null,null,null,null,null,null,null,"",0,0,0,0,0,""]
[null,null,null,null,null,null,null,null,null,null,null,null,"",0,0,0,0,0,""]
[null,null,null,null,null,null,null,null,null,null,null,null,"",0,0,0,0,0,""]
[null,null,null,null,null,null,null,null,null,null,null,null,"",0,0,0,0,0,""]
[null,null,null,null,null,null,null,null,null,null,null,null,"",0,0,0,0,0,""]
[null,null,null,null,null,null,null,null,null,null,null,null,"",0,0,0,0,0,""]
[null,null,null,null,null,null,null,null,null,null,null,null,"",0,0,0,0,0,""]
[null,null,null,null,null,null,null,null,null,null,null,null,"",0,0,0,0,0,""]
[null,null,null,null,null,null,null,null,null,null,null,null,"",0,0,0,0,0,""]
[null,null,null,null,null,null,null,null,null,null,null,null,"",0,0,0,0,0,""]
[null,null,null,null,null,null,null,null,null,null,null,null,{"$f":"IF(ISBLANK(H3857),\"\",SUM(H3857:L3857))","v":""},{"$f":"IF(ISBLANK(H3857),0,IF(H3857=0,1,0))","v":0},{"$f":"IF(ISBLANK(I3857),0,IF(I3857=0,1,0))","v":0},{"$f":"IF(ISBLANK(J3857),0,IF(J3857=0,1,0))","v":0},{"$f":"IF(ISBLANK(K3857),0,IF(K3857=0,1,0))","v":0},{"$f":"IF(ISBLANK(L3857),0,IF(L3857=0,1,0))","v":0},{"$f":"IF(SUM(N3857:R3857)<>0,\"Zero!\",\"\")","v":""}]
[null,null,null,null,null,null,null,null,null,null,null,null,"",0,0,0,0,0,""]
[null,null,null,null,null,null,null,null,null,null,null,null,"",0,0,0,0,0,""]
[null,null,null,null,null,null,null,null,null,null,null,null,"",0,0,0,0,0,""]
[null,null,null,null,null,null,null,null,null,null,null,null,"",0,0,0,0,0,""]
[null,null,null,null,null,null,null,null,null,null,null,null,"",0,0,0,0,0,""]
[null,null,null,null,null,null,null,null,null,null,null,null,"",0,0,0,0,0,""]
[null,null,null,null,null,null,null,null,null,null,null,null,"",0,0,0,0,0,""]
[null,null,null,null,null,null,null,null,null,null,null,null,"",0,0,0,0,0,""]
[null,null,null,null,null,null,null,null,null,null,null,null,"",0,0,0,0,0,""]
[null,null,null,null,null,null,null,null,null,null,null,null,"",0,0,0,0,0,""]
[null,null,null,null,null,null,null,null,null,null,null,null,"",0,0,0,0,0,""]
[null,null,null,null,null,null,null,null,null,null,null,null,"",0,0,0,0,0,""]
[null,null,null,null,null,null,null,null,null,null,null,null,"",0,0,0,0,0,""]
[null,null,null,null,null,null,null,null,null,null,null,null,"",0,0,0,0,0,""]
[null,null,null,null,null,null,null,null,null,null,null,null,"",0,0,0,0,0,""]
[null,null,null,null,null,null,null,null,null,null,null,null,"",0,0,0,0,0,""]
[null,null,null,null,null,null,null,null,null,null,null,null,"",0,0,0,0,0,""]
[null,null,null,null,null,null,null,null,null,null,null,null,"",0,0,0,0,0,""]
[null,null,null,null,null,null,null,null,null,null,null,null,"",0,0,0,0,0,""]
[null,null,null,null,null,null,null,null,null,null,null,null,"",0,0,0,0,0,""]
[null,null,null,null,null,null,null,null,null,null,null,null,"",0,0,0,0,0,""]
[null,null,null,null,null,null,null,null,null,null,null,null,"",0,0,0,0,0,""]
[null,null,null,null,null,null,null,null,null,null,null,null,"",0,0,0,0,0,""]
[null,null,null,null,null,null,null,null,null,null,null,null,"",0,0,0,0,0,""]
[null,null,null,null,null,null,null,null,null,null,null,null,"",0,0,0,0,0,""]
[null,null,null,null,null,null,null,null,null,null,null,null,"",0,0,0,0,0,""]
[null,null,null,null,null,null,null,null,null,null,null,null,"",0,0,0,0,0,""]
[null,null,null,null,null,null,null,null,null,null,null,null,"",0,0,0,0,0,""]
[null,null,null,null,null,null,null,null,null,null,null,null,"",0,0,0,0,0,""]
[null,null,null,null,null,null,null,null,null,null,null,null,"",0,0,0,0,0,""]
[null,null,null,null,null,null,null,null,null,null,null,null,"",0,0,0,0,0,""]
[null,null,null,null,null,null,null,null,null,null,null,null,"",0,0,0,0,0,""]
[null,null,null,null,null,null,null,null,null,null,null,null,"",0,0,0,0,0,""]
[null,null,null,null,null,null,null,null,null,null,null,null,"",0,0,0,0,0,""]
[null,null,null,null,null,null,null,null,null,null,null,null,"",0,0,0,0,0,""]
[null,null,null,null,null,null,null,null,null,null,null,null,"",0,0,0,0,0,""]
[null,null,null,null,null,null,null,null,null,null,null,null,{"$f":"IF(ISBLANK(H3921),\"\",SUM(H3921:L3921))","v":""},{"$f":"IF(ISBLANK(H3921),0,IF(H3921=0,1,0))","v":0},{"$f":"IF(ISBLANK(I3921),0,IF(I3921=0,1,0))","v":0},{"$f":"IF(ISBLANK(J3921),0,IF(J3921=0,1,0))","v":0},{"$f":"IF(ISBLANK(K3921),0,IF(K3921=0,1,0))","v":0},{"$f":"IF(ISBLANK(L3921),0,IF(L3921=0,1,0))","v":0},{"$f":"IF(SUM(N3921:R3921)<>0,\"Zero!\",\"\")","v":""}]
[null,null,null,null,null,null,null,null,null,null,null,null,"",0,0,0,0,0,""]
[null,null,null,null,null,null,null,null,null,null,null,null,"",0,0,0,0,0,""]
[null,null,null,null,null,null,null,null,null,null,null,null,"",0,0,0,0,0,""]
[null,null,null,null,null,null,null,null,null,null,null,null,"",0,0,0,0,0,""]
[null,null,null,null,null,null,null,null,null,null,null,null,"",0,0,0,0,0,""]
[null,null,null,null,null,null,null,null,null,null,null,null,"",0,0,0,0,0,""]
[null,null,null,null,null,null,null,null,null,null,null,null,"",0,0,0,0,0,""]
[null,null,null,null,null,null,null,null,null,null,null,null,"",0,0,0,0,0,""]
[null,null,null,null,null,null,null,null,null,null,null,null,"",0,0,0,0,0,""]
[null,null,null,null,null,null,null,null,null,null,null,null,"",0,0,0,0,0,""]
[null,null,null,null,null,null,null,null,null,null,null,null,"",0,0,0,0,0,""]
[null,null,null,null,null,null,null,null,null,null,null,null,"",0,0,0,0,0,""]
[null,null,null,null,null,null,null,null,null,null,null,null,"",0,0,0,0,0,""]
[null,null,null,null,null,null,null,null,null,null,null,null,"",0,0,0,0,0,""]
[null,null,null,null,null,null,null,null,null,null,null,null,"",0,0,0,0,0,""]
[null,null,null,null,null,null,null,null,null,null,null,null,"",0,0,0,0,0,""]
[null,null,null,null,null,null,null,null,null,null,null,null,"",0,0,0,0,0,""]
[null,null,null,null,null,null,null,null,null,null,null,null,"",0,0,0,0,0,""]
[null,null,null,null,null,null,null,null,null,null,null,null,"",0,0,0,0,0,""]
[null,null,null,null,null,null,null,null,null,null,null,null,"",0,0,0,0,0,""]
[null,null,null,null,null,null,null,null,null,null,null,null,"",0,0,0,0,0,""]
[null,null,null,null,null,null,null,null,null,null,null,null,"",0,0,0,0,0,""]
[null,null,null,null,null,null,null,null,null,null,null,null,"",0,0,0,0,0,""]
[null,null,null,null,null,null,null,null,null,null,null,null,"",0,0,0,0,0,""]
[null,null,null,null,null,null,null,null,null,null,null,null,"",0,0,0,0,0,""]
[null,null,null,null,null,null,null,null,null,null,null,null,"",0,0,0,0,0,""]
[null,null,null,null,null,null,null,null,null,null,null,null,"",0,0,0,0,0,""]
[null,null,null,null,null,null,null,null,null,null,null,null,"",0,0,0,0,0,""]
[null,null,null,null,null,null,null,null,null,null,null,null,"",0,0,0,0,0,""]
[null,null,null,null,null,null,null,null,null,null,null,null,"",0,0,0,0,0,""]
[null,null,null,null,null,null,null,null,null,null,null,null,"",0,0,0,0,0,""]
[null,null,null,null,null,null,null,null,null,null,null,null,"",0,0,0,0,0,""]
[null,null,null,null,null,null,null,null,null,null,null,null,"",0,0,0,0,0,""]
[null,null,null,null,null,null,null,null,null,null,null,null,"",0,0,0,0,0,""]
[null,null,null,null,null,null,null,null,null,null,null,null,"",0,0,0,0,0,""]
[null,null,null,null,null,null,null,null,null,null,null,null,"",0,0,0,0,0,""]
[null,null,null,null,null,null,null,null,null,null,null,null,"",0,0,0,0,0,""]
[null,null,null,null,null,null,null,null,null,null,null,null,"",0,0,0,0,0,""]
[null,null,null,null,null,null,null,null,null,null,null,null,"",0,0,0,0,0,""]
[null,null,null,null,null,null,null,null,null,null,null,null,"",0,0,0,0,0,""]
[null,null,null,null,null,null,null,null,null,null,null,null,"",0,0,0,0,0,""]
[null,null,null,null,null,null,null,null,null,null,null,null,"",0,0,0,0,0,""]
[null,null,null,null,null,null,null,null,null,null,null,null,"",0,0,0,0,0,""]
[null,null,null,null,null,null,null,null,null,null,null,null,"",0,0,0,0,0,""]
[null,null,null,null,null,null,null,null,null,null,null,null,"",0,0,0,0,0,""]
[null,null,null,null,null,null,null,null,null,null,null,null,"",0,0,0,0,0,""]
[null,null,null,null,null,null,null,null,null,null,null,null,"",0,0,0,0,0,""]
[null,null,null,null,null,null,null,null,null,null,null,null,"",0,0,0,0,0,""]
[null,null,null,null,null,null,null,null,null,null,null,null,"",0,0,0,0,0,""]
[null,null,null,null,null,null,null,null,null,null,null,null,"",0,0,0,0,0,""]
[null,null,null,null,null,null,null,null,null,null,null,null,"",0,0,0,0,0,""]
[null,null,null,null,null,null,null,null,null,null,null,null,"",0,0,0,0,0,""]
[null,null,null,null,null,null,null,null,null,null,null,null,"",0,0,0,0,0,""]
[null,null,null,null,null,null,null,null,null,null,null,null,"",0,0,0,0,0,""]
[null,null,null,null,null,null,null,null,null,null,null,null,"",0,0,0,0,0,""]
[null,null,null,null,null,null,null,null,null,null,null,null,"",0,0,0,0,0,""]
[null,null,null,null,null,null,null,null,null,null,null,null,"",0,0,0,0,0,""]
[null,null,null,null,null,null,null,null,null,null,null,null,"",0,0,0,0,0,""]
[null,null,null,null,null,null,null,null,null,null,null,null,"",0,0,0,0,0,""]
[null,null,null,null,null,null,null,null,null,null,null,null,"",0,0,0,0,0,""]
[null,null,null,null,null,null,null,null,null,null,null,null,"",0,0,0,0,0,""]
[null,null,null,null,null,null,null,null,null,null,null,null,"",0,0,0,0,0,""]
[null,null,null,null,null,null,null,null,null,null,null,null,"",0,0,0,0,0,""]
[null,null,null,null,null,null,null,null,null,null,null,null,"",0,0,0,0,0,""]
[null,null,null,null,null,null,null,null,null,null,null,null,"",0,0,0,0,0,""]
[null,null,null,null,null,null,null,null,null,null,null,null,"",0,0,0,0,0,""]
[null,null,null,null,null,null,null,null,null,null,null,null,"",0,0,0,0,0,""]
[null,null,null,null,null,null,null,null,null,null,null,null,"",0,0,0,0,0,""]
[null,null,null,null,null,null,null,null,null,null,null,null,"",0,0,0,0,0,""]
[null,null,null,null,null,null,null,null,null,null,null,null,"",0,0,0,0,0,""]
[null,null,null,null,null,null,null,null,null,null,null,null,"",0,0,0,0,0,""]
[null,null,null,null,null,null,null,null,null,null,null,null,"",0,0,0,0,0,""]
[null,null,null,null,null,null,null,null,null,null,null,null,"",0,0,0,0,0,""]
[null,null,null,null,null,null,null,null,null,null,null,null,"",0,0,0,0,0,""]
[null,null,null,null,null,null,null,null,null,null,null,null,"",0,0,0,0,0,""]
[null,null,null,null,null,null,null,null,null,null,null,null,"",0,0,0,0,0,""]
[null,null,null,null,null,null,null,null,null,null,null,null,"",0,0,0,0,0,""]
[null,null,null,null,null,null,null,null,null,null,null,null,"",0,0,0,0,0,""]
[null,null,null,null,null,null,null,null,null,null,null,null,"",0,0,0,0,0,""]
[null,null,null,null,null,null,null,null,null,null,null,null,"",0,0,0,0,0,""]
[null,null,null,null,null,null,null,null,null,null,null,null,"",0,0,0,0,0,""]
[null,null,null,null,null,null,null,null,null,null,null,null,"",0,0,0,0,0,""]
[null,null,null,null,null,null,null,null,null,null,null,null,"",0,0,0,0,0,""]
[null,null,null,null,null,null,null,null,null,null,null,null,"",0,0,0,0,0,""]
[null,null,null,null,null,null,null,null,null,null,null,null,"",0,0,0,0,0,""]
[null,null,null,null,null,null,null,null,null,null,null,null,"",0,0,0,0,0,""]
[null,null,null,null,null,null,null,null,null,null,null,null,"",0,0,0,0,0,""]
[null,null,null,null,null,null,null,null,null,null,null,null,"",0,0,0,0,0,""]
[null,null,null,null,null,null,null,null,null,null,null,null,"",0,0,0,0,0,""]
[null,null,null,null,null,null,null,null,null,null,null,null,"",0,0,0,0,0,""]
[null,null,null,null,null,null,null,null,null,null,null,null,"",0,0,0,0,0,""]
[null,null,null,null,null,null,null,null,null,null,null,null,"",0,0,0,0,0,""]
[null,null,null,null,null,null,null,null,null,null,null,null,"",0,0,0,0,0,""]
[null,null,null,null,null,null,null,null,null,null,null,null,"",0,0,0,0,0,""]
[null,null,null,null,null,null,null,null,null,null,null,null,"",0,0,0,0,0,""]
[null,null,null,null,null,null,null,null,null,null,null,null,"",0,0,0,0,0,""]
[null,null,null,null,null,null,null,null,null,null,null,null,"",0,0,0,0,0,""]
[null,null,null,null,null,null,null,null,null,null,null,null,"",0,0,0,0,0,""]
[null,null,null,null,null,null,null,null,null,null,null,null,"",0,0,0,0,0,""]
[null,null,null,null,null,null,null,null,null,null,null,null,"",0,0,0,0,0,""]
[null,null,null,null,null,null,null,null,null,null,null,null,"",0,0,0,0,0,""]
[null,null,null,null,null,null,null,null,null,null,null,null,"",0,0,0,0,0,""]
[null,null,null,null,null,null,null,null,null,null,null,null,"",0,0,0,0,0,""]
[null,null,null,null,null,null,null,null,null,null,null,null,"",0,0,0,0,0,""]
[null,null,null,null,null,null,null,null,null,null,null,null,"",0,0,0,0,0,""]
[null,null,null,null,null,null,null,null,null,null,null,null,"",0,0,0,0,0,""]
[null,null,null,null,null,null,null,null,null,null,null,null,"",0,0,0,0,0,""]
[null,null,null,null,null,null,null,null,null,null,null,null,"",0,0,0,0,0,""]
[null,null,null,null,null,null,null,null,null,null,null,null,{"$f":"IF(ISBLANK(H4113),\"\",SUM(H4113:L4113))","v":""},{"$f":"IF(ISBLANK(H4113),0,IF(H4113=0,1,0))","v":0},{"$f":"IF(ISBLANK(I4113),0,IF(I4113=0,1,0))","v":0},{"$f":"IF(ISBLANK(J4113),0,IF(J4113=0,1,0))","v":0},{"$f":"IF(ISBLANK(K4113),0,IF(K4113=0,1,0))","v":0},{"$f":"IF(ISBLANK(L4113),0,IF(L4113=0,1,0))","v":0},{"$f":"IF(SUM(N4113:R4113)<>0,\"Zero!\",\"\")","v":""}]
[null,null,null,null,null,null,null,null,null,null,null,null,"",0,0,0,0,0,""]
[null,null,null,null,null,null,null,null,null,null,null,null,"",0,0,0,0,0,""]
[null,null,null,null,null,null,null,null,null,null,null,null,"",0,0,0,0,0,""]
[null,null,null,null,null,null,null,null,null,null,null,null,"",0,0,0,0,0,""]
[null,null,null,null,null,null,null,null,null,null,null,null,"",0,0,0,0,0,""]
[null,null,null,null,null,null,null,null,null,null,null,null,"",0,0,0,0,0,""]
[null,null,null,null,null,null,null,null,null,null,null,null,"",0,0,0,0,0,""]
[null,null,null,null,null,null,null,null,null,null,null,null,"",0,0,0,0,0,""]
[null,null,null,null,null,null,null,null,null,null,null,null,"",0,0,0,0,0,""]
[null,null,null,null,null,null,null,null,null,null,null,null,"",0,0,0,0,0,""]
[null,null,null,null,null,null,null,null,null,null,null,null,"",0,0,0,0,0,""]
[null,null,null,null,null,null,null,null,null,null,null,null,"",0,0,0,0,0,""]
[null,null,null,null,null,null,null,null,null,null,null,null,"",0,0,0,0,0,""]
[null,null,null,null,null,null,null,null,null,null,null,null,"",0,0,0,0,0,""]
[null,null,null,null,null,null,null,null,null,null,null,null,"",0,0,0,0,0,""]
[null,null,null,null,null,null,null,null,null,null,null,null,"",0,0,0,0,0,""]
[null,null,null,null,null,null,null,null,null,null,null,null,"",0,0,0,0,0,""]
[null,null,null,null,null,null,null,null,null,null,null,null,"",0,0,0,0,0,""]
[null,null,null,null,null,null,null,null,null,null,null,null,"",0,0,0,0,0,""]
[null,null,null,null,null,null,null,null,null,null,null,null,"",0,0,0,0,0,""]
[null,null,null,null,null,null,null,null,null,null,null,null,"",0,0,0,0,0,""]
[null,null,null,null,null,null,null,null,null,null,null,null,"",0,0,0,0,0,""]
[null,null,null,null,null,null,null,null,null,null,null,null,"",0,0,0,0,0,""]
[null,null,null,null,null,null,null,null,null,null,null,null,"",0,0,0,0,0,""]
[null,null,null,null,null,null,null,null,null,null,null,null,"",0,0,0,0,0,""]
[null,null,null,null,null,null,null,null,null,null,null,null,"",0,0,0,0,0,""]
[null,null,null,null,null,null,null,null,null,null,null,null,"",0,0,0,0,0,""]
[null,null,null,null,null,null,null,null,null,null,null,null,"",0,0,0,0,0,""]
[null,null,null,null,null,null,null,null,null,null,null,null,"",0,0,0,0,0,""]
[null,null,null,null,null,null,null,null,null,null,null,null,"",0,0,0,0,0,""]
[null,null,null,null,null,null,null,null,null,null,null,null,"",0,0,0,0,0,""]
[null,null,null,null,null,null,null,null,null,null,null,null,"",0,0,0,0,0,""]
[null,null,null,null,null,null,null,null,null,null,null,null,"",0,0,0,0,0,""]
[null,null,null,null,null,null,null,null,null,null,null,null,"",0,0,0,0,0,""]
[null,null,null,null,null,null,null,null,null,null,null,null,"",0,0,0,0,0,""]
[null,null,null,null,null,null,null,null,null,null,null,null,"",0,0,0,0,0,""]
[null,null,null,null,null,null,null,null,null,null,null,null,{"$f":"IF(ISBLANK(H4177),\"\",SUM(H4177:L4177))","v":""},{"$f":"IF(ISBLANK(H4177),0,IF(H4177=0,1,0))","v":0},{"$f":"IF(ISBLANK(I4177),0,IF(I4177=0,1,0))","v":0},{"$f":"IF(ISBLANK(J4177),0,IF(J4177=0,1,0))","v":0},{"$f":"IF(ISBLANK(K4177),0,IF(K4177=0,1,0))","v":0},{"$f":"IF(ISBLANK(L4177),0,IF(L4177=0,1,0))","v":0},{"$f":"IF(SUM(N4177:R4177)<>0,\"Zero!\",\"\")","v":""}]
[null,null,null,null,null,null,null,null,null,null,null,null,"",0,0,0,0,0,""]
[null,null,null,null,null,null,null,null,null,null,null,null,"",0,0,0,0,0,""]
[null,null,null,null,null,null,null,null,null,null,null,null,"",0,0,0,0,0,""]
[null,null,null,null,null,null,null,null,null,null,null,null,"",0,0,0,0,0,""]
[null,null,null,null,null,null,null,null,null,null,null,null,"",0,0,0,0,0,""]
[null,null,null,null,null,null,null,null,null,null,null,null,"",0,0,0,0,0,""]
[null,null,null,null,null,null,null,null,null,null,null,null,"",0,0,0,0,0,""]
[null,null,null,null,null,null,null,null,null,null,null,null,"",0,0,0,0,0,""]
[null,null,null,null,null,null,null,null,null,null,null,null,"",0,0,0,0,0,""]
[null,null,null,null,null,null,null,null,null,null,null,null,"",0,0,0,0,0,""]
[null,null,null,null,null,null,null,null,null,null,null,null,"",0,0,0,0,0,""]
[null,null,null,null,null,null,null,null,null,null,null,null,"",0,0,0,0,0,""]
[null,null,null,null,null,null,null,null,null,null,null,null,"",0,0,0,0,0,""]
[null,null,null,null,null,null,null,null,null,null,null,null,"",0,0,0,0,0,""]
[null,null,null,null,null,null,null,null,null,null,null,null,"",0,0,0,0,0,""]
[null,null,null,null,null,null,null,null,null,null,null,null,"",0,0,0,0,0,""]
[null,null,null,null,null,null,null,null,null,null,null,null,"",0,0,0,0,0,""]
[null,null,null,null,null,null,null,null,null,null,null,null,"",0,0,0,0,0,""]
[null,null,null,null,null,null,null,null,null,null,null,null,"",0,0,0,0,0,""]
[null,null,null,null,null,null,null,null,null,null,null,null,"",0,0,0,0,0,""]
[null,null,null,null,null,null,null,null,null,null,null,null,"",0,0,0,0,0,""]
[null,null,null,null,null,null,null,null,null,null,null,null,"",0,0,0,0,0,""]
[null,null,null,null,null,null,null,null,null,null,null,null,"",0,0,0,0,0,""]
[null,null,null,null,null,null,null,null,null,null,null,null,"",0,0,0,0,0,""]
[null,null,null,null,null,null,null,null,null,null,null,null,"",0,0,0,0,0,""]
[null,null,null,null,null,null,null,null,null,null,null,null,"",0,0,0,0,0,""]
[null,null,null,null,null,null,null,null,null,null,null,null,"",0,0,0,0,0,""]
[null,null,null,null,null,null,null,null,null,null,null,null,"",0,0,0,0,0,""]
[null,null,null,null,null,null,null,null,null,null,null,null,"",0,0,0,0,0,""]
[null,null,null,null,null,null,null,null,null,null,null,null,"",0,0,0,0,0,""]
[null,null,null,null,null,null,null,null,null,null,null,null,"",0,0,0,0,0,""]
[null,null,null,null,null,null,null,null,null,null,null,null,"",0,0,0,0,0,""]
[null,null,null,null,null,null,null,null,null,null,null,null,"",0,0,0,0,0,""]
[null,null,null,null,null,null,null,null,null,null,null,null,"",0,0,0,0,0,""]
[null,null,null,null,null,null,null,null,null,null,null,null,"",0,0,0,0,0,""]
[null,null,null,null,null,null,null,null,null,null,null,null,"",0,0,0,0,0,""]
[null,null,null,null,null,null,null,null,null,null,null,null,"",0,0,0,0,0,""]
[null,null,null,null,null,null,null,null,null,null,null,null,"",0,0,0,0,0,""]
[null,null,null,null,null,null,null,null,null,null,null,null,"",0,0,0,0,0,""]
[null,null,null,null,null,null,null,null,null,null,null,null,"",0,0,0,0,0,""]
[null,null,null,null,null,null,null,null,null,null,null,null,"",0,0,0,0,0,""]
[null,null,null,null,null,null,null,null,null,null,null,null,"",0,0,0,0,0,""]
[null,null,null,null,null,null,null,null,null,null,null,null,"",0,0,0,0,0,""]
[null,null,null,null,null,null,null,null,null,null,null,null,"",0,0,0,0,0,""]
[null,null,null,null,null,null,null,null,null,null,null,null,"",0,0,0,0,0,""]
[null,null,null,null,null,null,null,null,null,null,null,null,"",0,0,0,0,0,""]
[null,null,null,null,null,null,null,null,null,null,null,null,"",0,0,0,0,0,""]
[null,null,null,null,null,null,null,null,null,null,null,null,"",0,0,0,0,0,""]
[null,null,null,null,null,null,null,null,null,null,null,null,"",0,0,0,0,0,""]
[null,null,null,null,null,null,null,null,null,null,null,null,"",0,0,0,0,0,""]
[null,null,null,null,null,null,null,null,null,null,null,null,"",0,0,0,0,0,""]
[null,null,null,null,null,null,null,null,null,null,null,null,"",0,0,0,0,0,""]
[null,null,null,null,null,null,null,null,null,null,null,null,"",0,0,0,0,0,""]
[null,null,null,null,null,null,null,null,null,null,null,null,"",0,0,0,0,0,""]
[null,null,null,null,null,null,null,null,null,null,null,null,"",0,0,0,0,0,""]
[null,null,null,null,null,null,null,null,null,null,null,null,"",0,0,0,0,0,""]
[null,null,null,null,null,null,null,null,null,null,null,null,"",0,0,0,0,0,""]
[null,null,null,null,null,null,null,null,null,null,null,null,"",0,0,0,0,0,""]
[null,null,null,null,null,null,null,null,null,null,null,null,"",0,0,0,0,0,""]
[null,null,null,null,null,null,null,null,null,null,null,null,"",0,0,0,0,0,""]
[null,null,null,null,null,null,null,null,null,null,null,null,"",0,0,0,0,0,""]
[null,null,null,null,null,null,null,null,null,null,null,null,"",0,0,0,0,0,""]
[null,null,null,null,null,null,null,null,null,null,null,null,"",0,0,0,0,0,""]
[null,null,null,null,null,null,null,null,null,null,null,null,"",0,0,0,0,0,""]
[null,null,null,null,null,null,null,null,null,null,null,null,"",0,0,0,0,0,""]
[null,null,null,null,null,null,null,null,null,null,null,null,"",0,0,0,0,0,""]
[null,null,null,null,null,null,null,null,null,null,null,null,"",0,0,0,0,0,""]
[null,null,null,null,null,null,null,null,null,null,null,null,"",0,0,0,0,0,""]
[null,null,null,null,null,null,null,null,null,null,null,null,"",0,0,0,0,0,""]
[null,null,null,null,null,null,null,null,null,null,null,null,"",0,0,0,0,0,""]
[null,null,null,null,null,null,null,null,null,null,null,null,"",0,0,0,0,0,""]
[null,null,null,null,null,null,null,null,null,null,null,null,"",0,0,0,0,0,""]
[null,null,null,null,null,null,null,null,null,null,null,null,"",0,0,0,0,0,""]
[null,null,null,null,null,null,null,null,null,null,null,null,"",0,0,0,0,0,""]
[null,null,null,null,null,null,null,null,null,null,null,null,"",0,0,0,0,0,""]
[null,null,null,null,null,null,null,null,null,null,null,null,"",0,0,0,0,0,""]
[null,null,null,null,null,null,null,null,null,null,null,null,"",0,0,0,0,0,""]
[null,null,null,null,null,null,null,null,null,null,null,null,"",0,0,0,0,0,""]
[null,null,null,null,null,null,null,null,null,null,null,null,"",0,0,0,0,0,""]
[null,null,null,null,null,null,null,null,null,null,null,null,"",0,0,0,0,0,""]
[null,null,null,null,null,null,null,null,null,null,null,null,"",0,0,0,0,0,""]
[null,null,null,null,null,null,null,null,null,null,null,null,"",0,0,0,0,0,""]
[null,null,null,null,null,null,null,null,null,null,null,null,"",0,0,0,0,0,""]
[null,null,null,null,null,null,null,null,null,null,null,null,"",0,0,0,0,0,""]
[null,null,null,null,null,null,null,null,null,null,null,null,"",0,0,0,0,0,""]
[null,null,null,null,null,null,null,null,null,null,null,null,"",0,0,0,0,0,""]
[null,null,null,null,null,null,null,null,null,null,null,null,"",0,0,0,0,0,""]
[null,null,null,null,null,null,null,null,null,null,null,null,"",0,0,0,0,0,""]
[null,null,null,null,null,null,null,null,null,null,null,null,"",0,0,0,0,0,""]
[null,null,null,null,null,null,null,null,null,null,null,null,"",0,0,0,0,0,""]
[null,null,null,null,null,null,null,null,null,null,null,null,"",0,0,0,0,0,""]
[null,null,null,null,null,null,null,null,null,null,null,null,"",0,0,0,0,0,""]
[null,null,null,null,null,null,null,null,null,null,null,null,"",0,0,0,0,0,""]
[null,null,null,null,null,null,null,null,null,null,null,null,"",0,0,0,0,0,""]
[null,null,null,null,null,null,null,null,null,null,null,null,"",0,0,0,0,0,""]
[null,null,null,null,null,null,null,null,null,null,null,null,"",0,0,0,0,0,""]
[null,null,null,null,null,null,null,null,null,null,null,null,"",0,0,0,0,0,""]
[null,null,null,null,null,null,null,null,null,null,null,null,"",0,0,0,0,0,""]
[null,null,null,null,null,null,null,null,null,null,null,null,"",0,0,0,0,0,""]
[null,null,null,null,null,null,null,null,null,null,null,null,"",0,0,0,0,0,""]
[null,null,null,null,null,null,null,null,null,null,null,null,"",0,0,0,0,0,""]
[null,null,null,null,null,null,null,null,null,null,null,null,"",0,0,0,0,0,""]
[null,null,null,null,null,null,null,null,null,null,null,null,"",0,0,0,0,0,""]
[null,null,null,null,null,null,null,null,null,null,null,null,"",0,0,0,0,0,""]
[null,null,null,null,null,null,null,null,null,null,null,null,"",0,0,0,0,0,""]
[null,null,null,null,null,null,null,null,null,null,null,null,"",0,0,0,0,0,""]
[null,null,null,null,null,null,null,null,null,null,null,null,"",0,0,0,0,0,""]
[null,null,null,null,null,null,null,null,null,null,null,null,"",0,0,0,0,0,""]
[null,null,null,null,null,null,null,null,null,null,null,null,{"$f":"IF(ISBLANK(H4369),\"\",SUM(H4369:L4369))","v":""},{"$f":"IF(ISBLANK(H4369),0,IF(H4369=0,1,0))","v":0},{"$f":"IF(ISBLANK(I4369),0,IF(I4369=0,1,0))","v":0},{"$f":"IF(ISBLANK(J4369),0,IF(J4369=0,1,0))","v":0},{"$f":"IF(ISBLANK(K4369),0,IF(K4369=0,1,0))","v":0},{"$f":"IF(ISBLANK(L4369),0,IF(L4369=0,1,0))","v":0},{"$f":"IF(SUM(N4369:R4369)<>0,\"Zero!\",\"\")","v":""}]
[null,null,null,null,null,null,null,null,null,null,null,null,"",0,0,0,0,0,""]
[null,null,null,null,null,null,null,null,null,null,null,null,"",0,0,0,0,0,""]
[null,null,null,null,null,null,null,null,null,null,null,null,"",0,0,0,0,0,""]
[null,null,null,null,null,null,null,null,null,null,null,null,"",0,0,0,0,0,""]
[null,null,null,null,null,null,null,null,null,null,null,null,"",0,0,0,0,0,""]
[null,null,null,null,null,null,null,null,null,null,null,null,"",0,0,0,0,0,""]
[null,null,null,null,null,null,null,null,null,null,null,null,"",0,0,0,0,0,""]
[null,null,null,null,null,null,null,null,null,null,null,null,"",0,0,0,0,0,""]
[null,null,null,null,null,null,null,null,null,null,null,null,"",0,0,0,0,0,""]
[null,null,null,null,null,null,null,null,null,null,null,null,"",0,0,0,0,0,""]
[null,null,null,null,null,null,null,null,null,null,null,null,"",0,0,0,0,0,""]
[null,null,null,null,null,null,null,null,null,null,null,null,"",0,0,0,0,0,""]
[null,null,null,null,null,null,null,null,null,null,null,null,"",0,0,0,0,0,""]
[null,null,null,null,null,null,null,null,null,null,null,null,"",0,0,0,0,0,""]
[null,null,null,null,null,null,null,null,null,null,null,null,"",0,0,0,0,0,""]
[null,null,null,null,null,null,null,null,null,null,null,null,"",0,0,0,0,0,""]
[null,null,null,null,null,null,null,null,null,null,null,null,"",0,0,0,0,0,""]
[null,null,null,null,null,null,null,null,null,null,null,null,"",0,0,0,0,0,""]
[null,null,null,null,null,null,null,null,null,null,null,null,"",0,0,0,0,0,""]
[null,null,null,null,null,null,null,null,null,null,null,null,"",0,0,0,0,0,""]
[null,null,null,null,null,null,null,null,null,null,null,null,"",0,0,0,0,0,""]
[null,null,null,null,null,null,null,null,null,null,null,null,"",0,0,0,0,0,""]
[null,null,null,null,null,null,null,null,null,null,null,null,"",0,0,0,0,0,""]
[null,null,null,null,null,null,null,null,null,null,null,null,"",0,0,0,0,0,""]
[null,null,null,null,null,null,null,null,null,null,null,null,"",0,0,0,0,0,""]
[null,null,null,null,null,null,null,null,null,null,null,null,"",0,0,0,0,0,""]
[null,null,null,null,null,null,null,null,null,null,null,null,"",0,0,0,0,0,""]
[null,null,null,null,null,null,null,null,null,null,null,null,"",0,0,0,0,0,""]
[null,null,null,null,null,null,null,null,null,null,null,null,"",0,0,0,0,0,""]
[null,null,null,null,null,null,null,null,null,null,null,null,"",0,0,0,0,0,""]
[null,null,null,null,null,null,null,null,null,null,null,null,"",0,0,0,0,0,""]
[null,null,null,null,null,null,null,null,null,null,null,null,"",0,0,0,0,0,""]
[null,null,null,null,null,null,null,null,null,null,null,null,"",0,0,0,0,0,""]
[null,null,null,null,null,null,null,null,null,null,null,null,"",0,0,0,0,0,""]
[null,null,null,null,null,null,null,null,null,null,null,null,"",0,0,0,0,0,""]
[null,null,null,null,null,null,null,null,null,null,null,null,"",0,0,0,0,0,""]
[null,null,null,null,null,null,null,null,null,null,null,null,{"$f":"IF(ISBLANK(H4433),\"\",SUM(H4433:L4433))","v":""},{"$f":"IF(ISBLANK(H4433),0,IF(H4433=0,1,0))","v":0},{"$f":"IF(ISBLANK(I4433),0,IF(I4433=0,1,0))","v":0},{"$f":"IF(ISBLANK(J4433),0,IF(J4433=0,1,0))","v":0},{"$f":"IF(ISBLANK(K4433),0,IF(K4433=0,1,0))","v":0},{"$f":"IF(ISBLANK(L4433),0,IF(L4433=0,1,0))","v":0},{"$f":"IF(SUM(N4433:R4433)<>0,\"Zero!\",\"\")","v":""}]
[null,null,null,null,null,null,null,null,null,null,null,null,"",0,0,0,0,0,""]
[null,null,null,null,null,null,null,null,null,null,null,null,"",0,0,0,0,0,""]
[null,null,null,null,null,null,null,null,null,null,null,null,"",0,0,0,0,0,""]
[null,null,null,null,null,null,null,null,null,null,null,null,"",0,0,0,0,0,""]
[null,null,null,null,null,null,null,null,null,null,null,null,"",0,0,0,0,0,""]
[null,null,null,null,null,null,null,null,null,null,null,null,"",0,0,0,0,0,""]
[null,null,null,null,null,null,null,null,null,null,null,null,"",0,0,0,0,0,""]
[null,null,null,null,null,null,null,null,null,null,null,null,"",0,0,0,0,0,""]
[null,null,null,null,null,null,null,null,null,null,null,null,"",0,0,0,0,0,""]
[null,null,null,null,null,null,null,null,null,null,null,null,"",0,0,0,0,0,""]
[null,null,null,null,null,null,null,null,null,null,null,null,"",0,0,0,0,0,""]
[null,null,null,null,null,null,null,null,null,null,null,null,"",0,0,0,0,0,""]
[null,null,null,null,null,null,null,null,null,null,null,null,"",0,0,0,0,0,""]
[null,null,null,null,null,null,null,null,null,null,null,null,"",0,0,0,0,0,""]
[null,null,null,null,null,null,null,null,null,null,null,null,"",0,0,0,0,0,""]
[null,null,null,null,null,null,null,null,null,null,null,null,"",0,0,0,0,0,""]
[null,null,null,null,null,null,null,null,null,null,null,null,"",0,0,0,0,0,""]
[null,null,null,null,null,null,null,null,null,null,null,null,"",0,0,0,0,0,""]
[null,null,null,null,null,null,null,null,null,null,null,null,"",0,0,0,0,0,""]
[null,null,null,null,null,null,null,null,null,null,null,null,"",0,0,0,0,0,""]
[null,null,null,null,null,null,null,null,null,null,null,null,"",0,0,0,0,0,""]
[null,null,null,null,null,null,null,null,null,null,null,null,"",0,0,0,0,0,""]
[null,null,null,null,null,null,null,null,null,null,null,null,"",0,0,0,0,0,""]
[null,null,null,null,null,null,null,null,null,null,null,null,"",0,0,0,0,0,""]
[null,null,null,null,null,null,null,null,null,null,null,null,"",0,0,0,0,0,""]
[null,null,null,null,null,null,null,null,null,null,null,null,"",0,0,0,0,0,""]
[null,null,null,null,null,null,null,null,null,null,null,null,"",0,0,0,0,0,""]
[null,null,null,null,null,null,null,null,null,null,null,null,"",0,0,0,0,0,""]
[null,null,null,null,null,null,null,null,null,null,null,null,"",0,0,0,0,0,""]
[null,null,null,null,null,null,null,null,null,null,null,null,"",0,0,0,0,0,""]
[null,null,null,null,null,null,null,null,null,null,null,null,"",0,0,0,0,0,""]
[null,null,null,null,null,null,null,null,null,null,null,null,"",0,0,0,0,0,""]
[null,null,null,null,null,null,null,null,null,null,null,null,"",0,0,0,0,0,""]
[null,null,null,null,null,null,null,null,null,null,null,null,"",0,0,0,0,0,""]
[null,null,null,null,null,null,null,null,null,null,null,null,"",0,0,0,0,0,""]
[null,null,null,null,null,null,null,null,null,null,null,null,"",0,0,0,0,0,""]
[null,null,null,null,null,null,null,null,null,null,null,null,"",0,0,0,0,0,""]
[null,null,null,null,null,null,null,null,null,null,null,null,"",0,0,0,0,0,""]
[null,null,null,null,null,null,null,null,null,null,null,null,"",0,0,0,0,0,""]
[null,null,null,null,null,null,null,null,null,null,null,null,"",0,0,0,0,0,""]
[null,null,null,null,null,null,null,null,null,null,null,null,"",0,0,0,0,0,""]
[null,null,null,null,null,null,null,null,null,null,null,null,"",0,0,0,0,0,""]
[null,null,null,null,null,null,null,null,null,null,null,null,"",0,0,0,0,0,""]
[null,null,null,null,null,null,null,null,null,null,null,null,"",0,0,0,0,0,""]
[null,null,null,null,null,null,null,null,null,null,null,null,"",0,0,0,0,0,""]
[null,null,null,null,null,null,null,null,null,null,null,null,"",0,0,0,0,0,""]
[null,null,null,null,null,null,null,null,null,null,null,null,"",0,0,0,0,0,""]
[null,null,null,null,null,null,null,null,null,null,null,null,"",0,0,0,0,0,""]
[null,null,null,null,null,null,null,null,null,null,null,null,"",0,0,0,0,0,""]
[null,null,null,null,null,null,null,null,null,null,null,null,"",0,0,0,0,0,""]
[null,null,null,null,null,null,null,null,null,null,null,null,"",0,0,0,0,0,""]
[null,null,null,null,null,null,null,null,null,null,null,null,"",0,0,0,0,0,""]
[null,null,null,null,null,null,null,null,null,null,null,null,"",0,0,0,0,0,""]
[null,null,null,null,null,null,null,null,null,null,null,null,"",0,0,0,0,0,""]
[null,null,null,null,null,null,null,null,null,null,null,null,"",0,0,0,0,0,""]
[null,null,null,null,null,null,null,null,null,null,null,null,"",0,0,0,0,0,""]
[null,null,null,null,null,null,null,null,null,null,null,null,"",0,0,0,0,0,""]
[null,null,null,null,null,null,null,null,null,null,null,null,"",0,0,0,0,0,""]
[null,null,null,null,null,null,null,null,null,null,null,null,"",0,0,0,0,0,""]
[null,null,null,null,null,null,null,null,null,null,null,null,"",0,0,0,0,0,""]
[null,null,null,null,null,null,null,null,null,null,null,null,"",0,0,0,0,0,""]
[null,null,null,null,null,null,null,null,null,null,null,null,"",0,0,0,0,0,""]
[null,null,null,null,null,null,null,null,null,null,null,null,"",0,0,0,0,0,""]
[null,null,null,null,null,null,null,null,null,null,null,null,"",0,0,0,0,0,""]
[null,null,null,null,null,null,null,null,null,null,null,null,"",0,0,0,0,0,""]
[null,null,null,null,null,null,null,null,null,null,null,null,"",0,0,0,0,0,""]
[null,null,null,null,null,null,null,null,null,null,null,null,"",0,0,0,0,0,""]
[null,null,null,null,null,null,null,null,null,null,null,null,"",0,0,0,0,0,""]
[null,null,null,null,null,null,null,null,null,null,null,null,"",0,0,0,0,0,""]
[null,null,null,null,null,null,null,null,null,null,null,null,"",0,0,0,0,0,""]
[null,null,null,null,null,null,null,null,null,null,null,null,"",0,0,0,0,0,""]
[null,null,null,null,null,null,null,null,null,null,null,null,"",0,0,0,0,0,""]
[null,null,null,null,null,null,null,null,null,null,null,null,{"$f":"IF(ISBLANK(H4561),\"\",SUM(H4561:L4561))","v":""},{"$f":"IF(ISBLANK(H4561),0,IF(H4561=0,1,0))","v":0},{"$f":"IF(ISBLANK(I4561),0,IF(I4561=0,1,0))","v":0},{"$f":"IF(ISBLANK(J4561),0,IF(J4561=0,1,0))","v":0},{"$f":"IF(ISBLANK(K4561),0,IF(K4561=0,1,0))","v":0},{"$f":"IF(ISBLANK(L4561),0,IF(L4561=0,1,0))","v":0},{"$f":"IF(SUM(N4561:R4561)<>0,\"Zero!\",\"\")","v":""}]
[null,null,null,null,null,null,null,null,null,null,null,null,"",0,0,0,0,0,""]
[null,null,null,null,null,null,null,null,null,null,null,null,"",0,0,0,0,0,""]
[null,null,null,null,null,null,null,null,null,null,null,null,"",0,0,0,0,0,""]
[null,null,null,null,null,null,null,null,null,null,null,null,"",0,0,0,0,0,""]
[null,null,null,null,null,null,null,null,null,null,null,null,"",0,0,0,0,0,""]
[null,null,null,null,null,null,null,null,null,null,null,null,"",0,0,0,0,0,""]
[null,null,null,null,null,null,null,null,null,null,null,null,"",0,0,0,0,0,""]
[null,null,null,null,null,null,null,null,null,null,null,null,"",0,0,0,0,0,""]
[null,null,null,null,null,null,null,null,null,null,null,null,"",0,0,0,0,0,""]
[null,null,null,null,null,null,null,null,null,null,null,null,"",0,0,0,0,0,""]
[null,null,null,null,null,null,null,null,null,null,null,null,"",0,0,0,0,0,""]
[null,null,null,null,null,null,null,null,null,null,null,null,"",0,0,0,0,0,""]
[null,null,null,null,null,null,null,null,null,null,null,null,"",0,0,0,0,0,""]
[null,null,null,null,null,null,null,null,null,null,null,null,"",0,0,0,0,0,""]
[null,null,null,null,null,null,null,null,null,null,null,null,"",0,0,0,0,0,""]
[null,null,null,null,null,null,null,null,null,null,null,null,"",0,0,0,0,0,""]
[null,null,null,null,null,null,null,null,null,null,null,null,"",0,0,0,0,0,""]
[null,null,null,null,null,null,null,null,null,null,null,null,"",0,0,0,0,0,""]
[null,null,null,null,null,null,null,null,null,null,null,null,"",0,0,0,0,0,""]
[null,null,null,null,null,null,null,null,null,null,null,null,"",0,0,0,0,0,""]
[null,null,null,null,null,null,null,null,null,null,null,null,"",0,0,0,0,0,""]
[null,null,null,null,null,null,null,null,null,null,null,null,"",0,0,0,0,0,""]
[null,null,null,null,null,null,null,null,null,null,null,null,"",0,0,0,0,0,""]
[null,null,null,null,null,null,null,null,null,null,null,null,"",0,0,0,0,0,""]
[null,null,null,null,null,null,null,null,null,null,null,null,"",0,0,0,0,0,""]
[null,null,null,null,null,null,null,null,null,null,null,null,"",0,0,0,0,0,""]
[null,null,null,null,null,null,null,null,null,null,null,null,"",0,0,0,0,0,""]
[null,null,null,null,null,null,null,null,null,null,null,null,"",0,0,0,0,0,""]
[null,null,null,null,null,null,null,null,null,null,null,null,"",0,0,0,0,0,""]
[null,null,null,null,null,null,null,null,null,null,null,null,"",0,0,0,0,0,""]
[null,null,null,null,null,null,null,null,null,null,null,null,"",0,0,0,0,0,""]
[null,null,null,null,null,null,null,null,null,null,null,null,"",0,0,0,0,0,""]
[null,null,null,null,null,null,null,null,null,null,null,null,"",0,0,0,0,0,""]
[null,null,null,null,null,null,null,null,null,null,null,null,"",0,0,0,0,0,""]
[null,null,null,null,null,null,null,null,null,null,null,null,"",0,0,0,0,0,""]
[null,null,null,null,null,null,null,null,null,null,null,null,"",0,0,0,0,0,""]
[null,null,null,null,null,null,null,null,null,null,null,null,{"$f":"IF(ISBLANK(H4625),\"\",SUM(H4625:L4625))","v":""},{"$f":"IF(ISBLANK(H4625),0,IF(H4625=0,1,0))","v":0},{"$f":"IF(ISBLANK(I4625),0,IF(I4625=0,1,0))","v":0},{"$f":"IF(ISBLANK(J4625),0,IF(J4625=0,1,0))","v":0},{"$f":"IF(ISBLANK(K4625),0,IF(K4625=0,1,0))","v":0},{"$f":"IF(ISBLANK(L4625),0,IF(L4625=0,1,0))","v":0},{"$f":"IF(SUM(N4625:R4625)<>0,\"Zero!\",\"\")","v":""}]
[null,null,null,null,null,null,null,null,null,null,null,null,"",0,0,0,0,0,""]
[null,null,null,null,null,null,null,null,null,null,null,null,"",0,0,0,0,0,""]
[null,null,null,null,null,null,null,null,null,null,null,null,"",0,0,0,0,0,""]
[null,null,null,null,null,null,null,null,null,null,null,null,"",0,0,0,0,0,""]
[null,null,null,null,null,null,null,null,null,null,null,null,"",0,0,0,0,0,""]
[null,null,null,null,null,null,null,null,null,null,null,null,"",0,0,0,0,0,""]
[null,null,null,null,null,null,null,null,null,null,null,null,"",0,0,0,0,0,""]
[null,null,null,null,null,null,null,null,null,null,null,null,"",0,0,0,0,0,""]
[null,null,null,null,null,null,null,null,null,null,null,null,"",0,0,0,0,0,""]
[null,null,null,null,null,null,null,null,null,null,null,null,"",0,0,0,0,0,""]
[null,null,null,null,null,null,null,null,null,null,null,null,"",0,0,0,0,0,""]
[null,null,null,null,null,null,null,null,null,null,null,null,"",0,0,0,0,0,""]
[null,null,null,null,null,null,null,null,null,null,null,null,"",0,0,0,0,0,""]
[null,null,null,null,null,null,null,null,null,null,null,null,"",0,0,0,0,0,""]
[null,null,null,null,null,null,null,null,null,null,null,null,"",0,0,0,0,0,""]
[null,null,null,null,null,null,null,null,null,null,null,null,"",0,0,0,0,0,""]
[null,null,null,null,null,null,null,null,null,null,null,null,"",0,0,0,0,0,""]
[null,null,null,null,null,null,null,null,null,null,null,null,"",0,0,0,0,0,""]
[null,null,null,null,null,null,null,null,null,null,null,null,"",0,0,0,0,0,""]
[null,null,null,null,null,null,null,null,null,null,null,null,"",0,0,0,0,0,""]
[null,null,null,null,null,null,null,null,null,null,null,null,"",0,0,0,0,0,""]
[null,null,null,null,null,null,null,null,null,null,null,null,"",0,0,0,0,0,""]
[null,null,null,null,null,null,null,null,null,null,null,null,"",0,0,0,0,0,""]
[null,null,null,null,null,null,null,null,null,null,null,null,"",0,0,0,0,0,""]
[null,null,null,null,null,null,null,null,null,null,null,null,"",0,0,0,0,0,""]
[null,null,null,null,null,null,null,null,null,null,null,null,"",0,0,0,0,0,""]
[null,null,null,null,null,null,null,null,null,null,null,null,"",0,0,0,0,0,""]
[null,null,null,null,null,null,null,null,null,null,null,null,"",0,0,0,0,0,""]
[null,null,null,null,null,null,null,null,null,null,null,null,"",0,0,0,0,0,""]
[null,null,null,null,null,null,null,null,null,null,null,null,"",0,0,0,0,0,""]
[null,null,null,null,null,null,null,null,null,null,null,null,"",0,0,0,0,0,""]
[null,null,null,null,null,null,null,null,null,null,null,null,"",0,0,0,0,0,""]
[null,null,null,null,null,null,null,null,null,null,null,null,"",0,0,0,0,0,""]
[null,null,null,null,null,null,null,null,null,null,null,null,"",0,0,0,0,0,""]
[null,null,null,null,null,null,null,null,null,null,null,null,"",0,0,0,0,0,""]
[null,null,null,null,null,null,null,null,null,null,null,null,"",0,0,0,0,0,""]
[null,null,null,null,null,null,null,null,null,null,null,null,"",0,0,0,0,0,""]
[null,null,null,null,null,null,null,null,null,null,null,null,"",0,0,0,0,0,""]
[null,null,null,null,null,null,null,null,null,null,null,null,"",0,0,0,0,0,""]
[null,null,null,null,null,null,null,null,null,null,null,null,"",0,0,0,0,0,""]
[null,null,null,null,null,null,null,null,null,null,null,null,"",0,0,0,0,0,""]
[null,null,null,null,null,null,null,null,null,null,null,null,"",0,0,0,0,0,""]
[null,null,null,null,null,null,null,null,null,null,null,null,"",0,0,0,0,0,""]
[null,null,null,null,null,null,null,null,null,null,null,null,"",0,0,0,0,0,""]
[null,null,null,null,null,null,null,null,null,null,null,null,"",0,0,0,0,0,""]
[null,null,null,null,null,null,null,null,null,null,null,null,"",0,0,0,0,0,""]
[null,null,null,null,null,null,null,null,null,null,null,null,"",0,0,0,0,0,""]
[null,null,null,null,null,null,null,null,null,null,null,null,"",0,0,0,0,0,""]
[null,null,null,null,null,null,null,null,null,null,null,null,"",0,0,0,0,0,""]
[null,null,null,null,null,null,null,null,null,null,null,null,"",0,0,0,0,0,""]
[null,null,null,null,null,null,null,null,null,null,null,null,"",0,0,0,0,0,""]
[null,null,null,null,null,null,null,null,null,null,null,null,"",0,0,0,0,0,""]
[null,null,null,null,null,null,null,null,null,null,null,null,"",0,0,0,0,0,""]
[null,null,null,null,null,null,null,null,null,null,null,null,"",0,0,0,0,0,""]
[null,null,null,null,null,null,null,null,null,null,null,null,"",0,0,0,0,0,""]
[null,null,null,null,null,null,null,null,null,null,null,null,"",0,0,0,0,0,""]
[null,null,null,null,null,null,null,null,null,null,null,null,"",0,0,0,0,0,""]
[null,null,null,null,null,null,null,null,null,null,null,null,"",0,0,0,0,0,""]
[null,null,null,null,null,null,null,null,null,null,null,null,"",0,0,0,0,0,""]
[null,null,null,null,null,null,null,null,null,null,null,null,"",0,0,0,0,0,""]
[null,null,null,null,null,null,null,null,null,null,null,null,"",0,0,0,0,0,""]
[null,null,null,null,null,null,null,null,null,null,null,null,"",0,0,0,0,0,""]
[null,null,null,null,null,null,null,null,null,null,null,null,"",0,0,0,0,0,""]
[null,null,null,null,null,null,null,null,null,null,null,null,"",0,0,0,0,0,""]
[null,null,null,null,null,null,null,null,null,null,null,null,"",0,0,0,0,0,""]
[null,null,null,null,null,null,null,null,null,null,null,null,"",0,0,0,0,0,""]
[null,null,null,null,null,null,null,null,null,null,null,null,"",0,0,0,0,0,""]
[null,null,null,null,null,null,null,null,null,null,null,null,"",0,0,0,0,0,""]
[null,null,null,null,null,null,null,null,null,null,null,null,"",0,0,0,0,0,""]
[null,null,null,null,null,null,null,null,null,null,null,null,"",0,0,0,0,0,""]
[null,null,null,null,null,null,null,null,null,null,null,null,"",0,0,0,0,0,""]
[null,null,null,null,null,null,null,null,null,null,null,null,"",0,0,0,0,0,""]
[null,null,null,null,null,null,null,null,null,null,null,null,"",0,0,0,0,0,""]
[null,null,null,null,null,null,null,null,null,null,null,null,"",0,0,0,0,0,""]
[null,null,null,null,null,null,null,null,null,null,null,null,"",0,0,0,0,0,""]
[null,null,null,null,null,null,null,null,null,null,null,null,"",0,0,0,0,0,""]
[null,null,null,null,null,null,null,null,null,null,null,null,"",0,0,0,0,0,""]
[null,null,null,null,null,null,null,null,null,null,null,null,"",0,0,0,0,0,""]
[null,null,null,null,null,null,null,null,null,null,null,null,"",0,0,0,0,0,""]
[null,null,null,null,null,null,null,null,null,null,null,null,"",0,0,0,0,0,""]
[null,null,null,null,null,null,null,null,null,null,null,null,"",0,0,0,0,0,""]
[null,null,null,null,null,null,null,null,null,null,null,null,"",0,0,0,0,0,""]
[null,null,null,null,null,null,null,null,null,null,null,null,"",0,0,0,0,0,""]
[null,null,null,null,null,null,null,null,null,null,null,null,"",0,0,0,0,0,""]
[null,null,null,null,null,null,null,null,null,null,null,null,"",0,0,0,0,0,""]
[null,null,null,null,null,null,null,null,null,null,null,null,"",0,0,0,0,0,""]
[null,null,null,null,null,null,null,null,null,null,null,null,"",0,0,0,0,0,""]
[null,null,null,null,null,null,null,null,null,null,null,null,"",0,0,0,0,0,""]
[null,null,null,null,null,null,null,null,null,null,null,null,"",0,0,0,0,0,""]
[null,null,null,null,null,null,null,null,null,null,null,null,"",0,0,0,0,0,""]
[null,null,null,null,null,null,null,null,null,null,null,null,"",0,0,0,0,0,""]
[null,null,null,null,null,null,null,null,null,null,null,null,"",0,0,0,0,0,""]
[null,null,null,null,null,null,null,null,null,null,null,null,"",0,0,0,0,0,""]
[null,null,null,null,null,null,null,null,null,null,null,null,"",0,0,0,0,0,""]
[null,null,null,null,null,null,null,null,null,null,null,null,"",0,0,0,0,0,""]
[null,null,null,null,null,null,null,null,null,null,null,null,"",0,0,0,0,0,""]
[null,null,null,null,null,null,null,null,null,null,null,null,"",0,0,0,0,0,""]
[null,null,null,null,null,null,null,null,null,null,null,null,"",0,0,0,0,0,""]
[null,null,null,null,null,null,null,null,null,null,null,null,"",0,0,0,0,0,""]
[null,null,null,null,null,null,null,null,null,null,null,null,"",0,0,0,0,0,""]
[null,null,null,null,null,null,null,null,null,null,null,null,"",0,0,0,0,0,""]
[null,null,null,null,null,null,null,null,null,null,null,null,"",0,0,0,0,0,""]
[null,null,null,null,null,null,null,null,null,null,null,null,"",0,0,0,0,0,""]
[null,null,null,null,null,null,null,null,null,null,null,null,"",0,0,0,0,0,""]
[null,null,null,null,null,null,null,null,null,null,null,null,"",0,0,0,0,0,""]
[null,null,null,null,null,null,null,null,null,null,null,null,"",0,0,0,0,0,""]
[null,null,null,null,null,null,null,null,null,null,null,null,"",0,0,0,0,0,""]
[null,null,null,null,null,null,null,null,null,null,null,null,"",0,0,0,0,0,""]
[null,null,null,null,null,null,null,null,null,null,null,null,{"$f":"IF(ISBLANK(H4817),\"\",SUM(H4817:L4817))","v":""},{"$f":"IF(ISBLANK(H4817),0,IF(H4817=0,1,0))","v":0},{"$f":"IF(ISBLANK(I4817),0,IF(I4817=0,1,0))","v":0},{"$f":"IF(ISBLANK(J4817),0,IF(J4817=0,1,0))","v":0},{"$f":"IF(ISBLANK(K4817),0,IF(K4817=0,1,0))","v":0},{"$f":"IF(ISBLANK(L4817),0,IF(L4817=0,1,0))","v":0},{"$f":"IF(SUM(N4817:R4817)<>0,\"Zero!\",\"\")","v":""}]
[null,null,null,null,null,null,null,null,null,null,null,null,"",0,0,0,0,0,""]
[null,null,null,null,null,null,null,null,null,null,null,null,"",0,0,0,0,0,""]
[null,null,null,null,null,null,null,null,null,null,null,null,"",0,0,0,0,0,""]
[null,null,null,null,null,null,null,null,null,null,null,null,"",0,0,0,0,0,""]
[null,null,null,null,null,null,null,null,null,null,null,null,"",0,0,0,0,0,""]
[null,null,null,null,null,null,null,null,null,null,null,null,"",0,0,0,0,0,""]
[null,null,null,null,null,null,null,null,null,null,null,null,"",0,0,0,0,0,""]
[null,null,null,null,null,null,null,null,null,null,null,null,"",0,0,0,0,0,""]
[null,null,null,null,null,null,null,null,null,null,null,null,"",0,0,0,0,0,""]
[null,null,null,null,null,null,null,null,null,null,null,null,"",0,0,0,0,0,""]
[null,null,null,null,null,null,null,null,null,null,null,null,"",0,0,0,0,0,""]
[null,null,null,null,null,null,null,null,null,null,null,null,"",0,0,0,0,0,""]
[null,null,null,null,null,null,null,null,null,null,null,null,"",0,0,0,0,0,""]
[null,null,null,null,null,null,null,null,null,null,null,null,"",0,0,0,0,0,""]
[null,null,null,null,null,null,null,null,null,null,null,null,"",0,0,0,0,0,""]
[null,null,null,null,null,null,null,null,null,null,null,null,"",0,0,0,0,0,""]
[null,null,null,null,null,null,null,null,null,null,null,null,"",0,0,0,0,0,""]
[null,null,null,null,null,null,null,null,null,null,null,null,"",0,0,0,0,0,""]
[null,null,null,null,null,null,null,null,null,null,null,null,"",0,0,0,0,0,""]
[null,null,null,null,null,null,null,null,null,null,null,null,"",0,0,0,0,0,""]
[null,null,null,null,null,null,null,null,null,null,null,null,"",0,0,0,0,0,""]
[null,null,null,null,null,null,null,null,null,null,null,null,"",0,0,0,0,0,""]
[null,null,null,null,null,null,null,null,null,null,null,null,"",0,0,0,0,0,""]
[null,null,null,null,null,null,null,null,null,null,null,null,"",0,0,0,0,0,""]
[null,null,null,null,null,null,null,null,null,null,null,null,"",0,0,0,0,0,""]
[null,null,null,null,null,null,null,null,null,null,null,null,"",0,0,0,0,0,""]
[null,null,null,null,null,null,null,null,null,null,null,null,"",0,0,0,0,0,""]
[null,null,null,null,null,null,null,null,null,null,null,null,"",0,0,0,0,0,""]
[null,null,null,null,null,null,null,null,null,null,null,null,"",0,0,0,0,0,""]
[null,null,null,null,null,null,null,null,null,null,null,null,"",0,0,0,0,0,""]
[null,null,null,null,null,null,null,null,null,null,null,null,"",0,0,0,0,0,""]
[null,null,null,null,null,null,null,null,null,null,null,null,"",0,0,0,0,0,""]
[null,null,null,null,null,null,null,null,null,null,null,null,"",0,0,0,0,0,""]
[null,null,null,null,null,null,null,null,null,null,null,null,"",0,0,0,0,0,""]
[null,null,null,null,null,null,null,null,null,null,null,null,"",0,0,0,0,0,""]
[null,null,null,null,null,null,null,null,null,null,null,null,"",0,0,0,0,0,""]
[null,null,null,null,null,null,null,null,null,null,null,null,{"$f":"IF(ISBLANK(H4881),\"\",SUM(H4881:L4881))","v":""},{"$f":"IF(ISBLANK(H4881),0,IF(H4881=0,1,0))","v":0},{"$f":"IF(ISBLANK(I4881),0,IF(I4881=0,1,0))","v":0},{"$f":"IF(ISBLANK(J4881),0,IF(J4881=0,1,0))","v":0},{"$f":"IF(ISBLANK(K4881),0,IF(K4881=0,1,0))","v":0},{"$f":"IF(ISBLANK(L4881),0,IF(L4881=0,1,0))","v":0},{"$f":"IF(SUM(N4881:R4881)<>0,\"Zero!\",\"\")","v":""}]
[null,null,null,null,null,null,null,null,null,null,null,null,"",0,0,0,0,0,""]
[null,null,null,null,null,null,null,null,null,null,null,null,"",0,0,0,0,0,""]
[null,null,null,null,null,null,null,null,null,null,null,null,"",0,0,0,0,0,""]
[null,null,null,null,null,null,null,null,null,null,null,null,"",0,0,0,0,0,""]
[null,null,null,null,null,null,null,null,null,null,null,null,"",0,0,0,0,0,""]
[null,null,null,null,null,null,null,null,null,null,null,null,"",0,0,0,0,0,""]
[null,null,null,null,null,null,null,null,null,null,null,null,"",0,0,0,0,0,""]
[null,null,null,null,null,null,null,null,null,null,null,null,"",0,0,0,0,0,""]
[null,null,null,null,null,null,null,null,null,null,null,null,"",0,0,0,0,0,""]
[null,null,null,null,null,null,null,null,null,null,null,null,"",0,0,0,0,0,""]
[null,null,null,null,null,null,null,null,null,null,null,null,"",0,0,0,0,0,""]
[null,null,null,null,null,null,null,null,null,null,null,null,"",0,0,0,0,0,""]
[null,null,null,null,null,null,null,null,null,null,null,null,"",0,0,0,0,0,""]
[null,null,null,null,null,null,null,null,null,null,null,null,"",0,0,0,0,0,""]
[null,null,null,null,null,null,null,null,null,null,null,null,"",0,0,0,0,0,""]
[null,null,null,null,null,null,null,null,null,null,null,null,"",0,0,0,0,0,""]
[null,null,null,null,null,null,null,null,null,null,null,null,"",0,0,0,0,0,""]
[null,null,null,null,null,null,null,null,null,null,null,null,"",0,0,0,0,0,""]
[null,null,null,null,null,null,null,null,null,null,null,null,"",0,0,0,0,0,""]
[null,null,null,null,null,null,null,null,null,null,null,null,"",0,0,0,0,0,""]
[null,null,null,null,null,null,null,null,null,null,null,null,"",0,0,0,0,0,""]
[null,null,null,null,null,null,null,null,null,null,null,null,"",0,0,0,0,0,""]
[null,null,null,null,null,null,null,null,null,null,null,null,"",0,0,0,0,0,""]
[null,null,null,null,null,null,null,null,null,null,null,null,"",0,0,0,0,0,""]
[null,null,null,null,null,null,null,null,null,null,null,null,"",0,0,0,0,0,""]
[null,null,null,null,null,null,null,null,null,null,null,null,"",0,0,0,0,0,""]
[null,null,null,null,null,null,null,null,null,null,null,null,"",0,0,0,0,0,""]
[null,null,null,null,null,null,null,null,null,null,null,null,"",0,0,0,0,0,""]
[null,null,null,null,null,null,null,null,null,null,null,null,"",0,0,0,0,0,""]
[null,null,null,null,null,null,null,null,null,null,null,null,"",0,0,0,0,0,""]
[null,null,null,null,null,null,null,null,null,null,null,null,"",0,0,0,0,0,""]
[null,null,null,null,null,null,null,null,null,null,null,null,"",0,0,0,0,0,""]
[null,null,null,null,null,null,null,null,null,null,null,null,"",0,0,0,0,0,""]
[null,null,null,null,null,null,null,null,null,null,null,null,"",0,0,0,0,0,""]
[null,null,null,null,null,null,null,null,null,null,null,null,"",0,0,0,0,0,""]
[null,null,null,null,null,null,null,null,null,null,null,null,"",0,0,0,0,0,""]
[null,null,null,null,null,null,null,null,null,null,null,null,"",0,0,0,0,0,""]
[null,null,null,null,null,null,null,null,null,null,null,null,"",0,0,0,0,0,""]
[null,null,null,null,null,null,null,null,null,null,null,null,"",0,0,0,0,0,""]
[null,null,null,null,null,null,null,null,null,null,null,null,"",0,0,0,0,0,""]
[null,null,null,null,null,null,null,null,null,null,null,null,"",0,0,0,0,0,""]
[null,null,null,null,null,null,null,null,null,null,null,null,"",0,0,0,0,0,""]
[null,null,null,null,null,null,null,null,null,null,null,null,"",0,0,0,0,0,""]
[null,null,null,null,null,null,null,null,null,null,null,null,"",0,0,0,0,0,""]
[null,null,null,null,null,null,null,null,null,null,null,null,"",0,0,0,0,0,""]
[null,null,null,null,null,null,null,null,null,null,null,null,"",0,0,0,0,0,""]
[null,null,null,null,null,null,null,null,null,null,null,null,"",0,0,0,0,0,""]
[null,null,null,null,null,null,null,null,null,null,null,null,"",0,0,0,0,0,""]
[null,null,null,null,null,null,null,null,null,null,null,null,"",0,0,0,0,0,""]
[null,null,null,null,null,null,null,null,null,null,null,null,"",0,0,0,0,0,""]
[null,null,null,null,null,null,null,null,null,null,null,null,"",0,0,0,0,0,""]
[null,null,null,null,null,null,null,null,null,null,null,null,"",0,0,0,0,0,""]
[null,null,null,null,null,null,null,null,null,null,null,null,"",0,0,0,0,0,""]
[null,null,null,null,null,null,null,null,null,null,null,null,"",0,0,0,0,0,""]
[null,null,null,null,null,null,null,null,null,null,null,null,"",0,0,0,0,0,""]
[null,null,null,null,null,null,null,null,null,null,null,null,"",0,0,0,0,0,""]
[null,null,null,null,null,null,null,null,null,null,null,null,"",0,0,0,0,0,""]
[null,null,null,null,null,null,null,null,null,null,null,null,"",0,0,0,0,0,""]
[null,null,null,null,null,null,null,null,null,null,null,null,"",0,0,0,0,0,""]
[null,null,null,null,null,null,null,null,null,null,null,null,"",0,0,0,0,0,""]
[null,null,null,null,null,null,null,null,null,null,null,null,"",0,0,0,0,0,""]
[null,null,null,null,null,null,null,null,null,null,null,null,"",0,0,0,0,0,""]
[null,null,null,null,null,null,null,null,null,null,null,null,"",0,0,0,0,0,""]
[null,null,null,null,null,null,null,null,null,null,null,null,"",0,0,0,0,0,""]
[null,null,null,null,null,null,null,null,null,null,null,null,"",0,0,0,0,0,""]
[null,null,null,null,null,null,null,null,null,null,null,null,"",0,0,0,0,0,""]
[null,null,null,null,null,null,null,null,null,null,null,null,"",0,0,0,0,0,""]
[null,null,null,null,null,null,null,null,null,null,null,null,"",0,0,0,0,0,""]
[null,null,null,null,null,null,null,null,null,null,null,null,"",0,0,0,0,0,""]
[null,null,null,null,null,null,null,null,null,null,null,null,"",0,0,0,0,0,""]
[null,null,null,null,null,null,null,null,null,null,null,null,"",0,0,0,0,0,""]
[null,null,null,null,null,null,null,null,null,null,null,null,"",0,0,0,0,0,""]
[null,null,null,null,null,null,null,null,null,null,null,null,{"$f":"IF(ISBLANK(H5009),\"\",SUM(H5009:L5009))","v":""},{"$f":"IF(ISBLANK(H5009),0,IF(H5009=0,1,0))","v":0},{"$f":"IF(ISBLANK(I5009),0,IF(I5009=0,1,0))","v":0},{"$f":"IF(ISBLANK(J5009),0,IF(J5009=0,1,0))","v":0},{"$f":"IF(ISBLANK(K5009),0,IF(K5009=0,1,0))","v":0},{"$f":"IF(ISBLANK(L5009),0,IF(L5009=0,1,0))","v":0},{"$f":"IF(SUM(N5009:R5009)<>0,\"Zero!\",\"\")","v":""}]
[null,null,null,null,null,null,null,null,null,null,null,null,"",0,0,0,0,0,""]
[null,null,null,null,null,null,null,null,null,null,null,null,"",0,0,0,0,0,""]
[null,null,null,null,null,null,null,null,null,null,null,null,"",0,0,0,0,0,""]
[null,null,null,null,null,null,null,null,null,null,null,null,"",0,0,0,0,0,""]
[null,null,null,null,null,null,null,null,null,null,null,null,"",0,0,0,0,0,""]
[null,null,null,null,null,null,null,null,null,null,null,null,"",0,0,0,0,0,""]
[null,null,null,null,null,null,null,null,null,null,null,null,"",0,0,0,0,0,""]
[null,null,null,null,null,null,null,null,null,null,null,null,"",0,0,0,0,0,""]
[null,null,null,null,null,null,null,null,null,null,null,null,"",0,0,0,0,0,""]
[null,null,null,null,null,null,null,null,null,null,null,null,"",0,0,0,0,0,""]
[null,null,null,null,null,null,null,null,null,null,null,null,"",0,0,0,0,0,""]
[null,null,null,null,null,null,null,null,null,null,null,null,"",0,0,0,0,0,""]
[null,null,null,null,null,null,null,null,null,null,null,null,"",0,0,0,0,0,""]
[null,null,null,null,null,null,null,null,null,null,null,null,"",0,0,0,0,0,""]
[null,null,null,null,null,null,null,null,null,null,null,null,"",0,0,0,0,0,""]
[null,null,null,null,null,null,null,null,null,null,null,null,"",0,0,0,0,0,""]
[null,null,null,null,null,null,null,null,null,null,null,null,"",0,0,0,0,0,""]
[null,null,null,null,null,null,null,null,null,null,null,null,"",0,0,0,0,0,""]
[null,null,null,null,null,null,null,null,null,null,null,null,"",0,0,0,0,0,""]
[null,null,null,null,null,null,null,null,null,null,null,null,"",0,0,0,0,0,""]
[null,null,null,null,null,null,null,null,null,null,null,null,"",0,0,0,0,0,""]
[null,null,null,null,null,null,null,null,null,null,null,null,"",0,0,0,0,0,""]
[null,null,null,null,null,null,null,null,null,null,null,null,"",0,0,0,0,0,""]
[null,null,null,null,null,null,null,null,null,null,null,null,"",0,0,0,0,0,""]
[null,null,null,null,null,null,null,null,null,null,null,null,"",0,0,0,0,0,""]
[null,null,null,null,null,null,null,null,null,null,null,null,"",0,0,0,0,0,""]
[null,null,null,null,null,null,null,null,null,null,null,null,"",0,0,0,0,0,""]
[null,null,null,null,null,null,null,null,null,null,null,null,"",0,0,0,0,0,""]
[null,null,null,null,null,null,null,null,null,null,null,null,"",0,0,0,0,0,""]
[null,null,null,null,null,null,null,null,null,null,null,null,"",0,0,0,0,0,""]
[null,null,null,null,null,null,null,null,null,null,null,null,"",0,0,0,0,0,""]
[null,null,null,null,null,null,null,null,null,null,null,null,"",0,0,0,0,0,""]
[null,null,null,null,null,null,null,null,null,null,null,null,"",0,0,0,0,0,""]
[null,null,null,null,null,null,null,null,null,null,null,null,"",0,0,0,0,0,""]
[null,null,null,null,null,null,null,null,null,null,null,null,"",0,0,0,0,0,""]
[null,null,null,null,null,null,null,null,null,null,null,null,{"$f":"IF(ISBLANK(H5073),\"\",SUM(H5073:L5073))","v":""},{"$f":"IF(ISBLANK(H5073),0,IF(H5073=0,1,0))","v":0},{"$f":"IF(ISBLANK(I5073),0,IF(I5073=0,1,0))","v":0},{"$f":"IF(ISBLANK(J5073),0,IF(J5073=0,1,0))","v":0},{"$f":"IF(ISBLANK(K5073),0,IF(K5073=0,1,0))","v":0},{"$f":"IF(ISBLANK(L5073),0,IF(L5073=0,1,0))","v":0},{"$f":"IF(SUM(N5073:R5073)<>0,\"Zero!\",\"\")","v":""}]
[null,null,null,null,null,null,null,null,null,null,null,null,"",0,0,0,0,0,""]
[null,null,null,null,null,null,null,null,null,null,null,null,"",0,0,0,0,0,""]
[null,null,null,null,null,null,null,null,null,null,null,null,"",0,0,0,0,0,""]
[null,null,null,null,null,null,null,null,null,null,null,null,"",0,0,0,0,0,""]
[null,null,null,null,null,null,null,null,null,null,null,null,"",0,0,0,0,0,""]
[null,null,null,null,null,null,null,null,null,null,null,null,"",0,0,0,0,0,""]
[null,null,null,null,null,null,null,null,null,null,null,null,"",0,0,0,0,0,""]
[null,null,null,null,null,null,null,null,null,null,null,null,"",0,0,0,0,0,""]
[null,null,null,null,null,null,null,null,null,null,null,null,"",0,0,0,0,0,""]
[null,null,null,null,null,null,null,null,null,null,null,null,"",0,0,0,0,0,""]
[null,null,null,null,null,null,null,null,null,null,null,null,"",0,0,0,0,0,""]
[null,null,null,null,null,null,null,null,null,null,null,null,"",0,0,0,0,0,""]
[null,null,null,null,null,null,null,null,null,null,null,null,"",0,0,0,0,0,""]
[null,null,null,null,null,null,null,null,null,null,null,null,"",0,0,0,0,0,""]
[null,null,null,null,null,null,null,null,null,null,null,null,"",0,0,0,0,0,""]
[null,null,null,null,null,null,null,null,null,null,null,null,"",0,0,0,0,0,""]
[null,null,null,null,null,null,null,null,null,null,null,null,"",0,0,0,0,0,""]
[null,null,null,null,null,null,null,null,null,null,null,null,"",0,0,0,0,0,""]
[null,null,null,null,null,null,null,null,null,null,null,null,"",0,0,0,0,0,""]
[null,null,null,null,null,null,null,null,null,null,null,null,"",0,0,0,0,0,""]
[null,null,null,null,null,null,null,null,null,null,null,null,"",0,0,0,0,0,""]
[null,null,null,null,null,null,null,null,null,null,null,null,"",0,0,0,0,0,""]
[null,null,null,null,null,null,null,null,null,null,null,null,"",0,0,0,0,0,""]
[null,null,null,null,null,null,null,null,null,null,null,null,"",0,0,0,0,0,""]
[null,null,null,null,null,null,null,null,null,null,null,null,"",0,0,0,0,0,""]
[null,null,null,null,null,null,null,null,null,null,null,null,"",0,0,0,0,0,""]
[null,null,null,null,null,null,null,null,null,null,null,null,"",0,0,0,0,0,""]
[null,null,null,null,null,null,null,null,null,null,null,null,"",0,0,0,0,0,""]
[null,null,null,null,null,null,null,null,null,null,null,null,"",0,0,0,0,0,""]
[null,null,null,null,null,null,null,null,null,null,null,null,"",0,0,0,0,0,""]
[null,null,null,null,null,null,null,null,null,null,null,null,"",0,0,0,0,0,""]
[null,null,null,null,null,null,null,null,null,null,null,null,"",0,0,0,0,0,""]
[null,null,null,null,null,null,null,null,null,null,null,null,"",0,0,0,0,0,""]
[null,null,null,null,null,null,null,null,null,null,null,null,"",0,0,0,0,0,""]
[null,null,null,null,null,null,null,null,null,null,null,null,"",0,0,0,0,0,""]
[null,null,null,null,null,null,null,null,null,null,null,null,"",0,0,0,0,0,""]
[null,null,null,null,null,null,null,null,null,null,null,null,{"$f":"IF(ISBLANK(H5137),\"\",SUM(H5137:L5137))","v":""},{"$f":"IF(ISBLANK(H5137),0,IF(H5137=0,1,0))","v":0},{"$f":"IF(ISBLANK(I5137),0,IF(I5137=0,1,0))","v":0},{"$f":"IF(ISBLANK(J5137),0,IF(J5137=0,1,0))","v":0},{"$f":"IF(ISBLANK(K5137),0,IF(K5137=0,1,0))","v":0},{"$f":"IF(ISBLANK(L5137),0,IF(L5137=0,1,0))","v":0},{"$f":"IF(SUM(N5137:R5137)<>0,\"Zero!\",\"\")","v":""}]
[null,null,null,null,null,null,null,null,null,null,null,null,"",0,0,0,0,0,""]
[null,null,null,null,null,null,null,null,null,null,null,null,"",0,0,0,0,0,""]
[null,null,null,null,null,null,null,null,null,null,null,null,"",0,0,0,0,0,""]
[null,null,null,null,null,null,null,null,null,null,null,null,"",0,0,0,0,0,""]
[null,null,null,null,null,null,null,null,null,null,null,null,"",0,0,0,0,0,""]
[null,null,null,null,null,null,null,null,null,null,null,null,"",0,0,0,0,0,""]
[null,null,null,null,null,null,null,null,null,null,null,null,"",0,0,0,0,0,""]
[null,null,null,null,null,null,null,null,null,null,null,null,"",0,0,0,0,0,""]
[null,null,null,null,null,null,null,null,null,null,null,null,"",0,0,0,0,0,""]
[null,null,null,null,null,null,null,null,null,null,null,null,"",0,0,0,0,0,""]
[null,null,null,null,null,null,null,null,null,null,null,null,"",0,0,0,0,0,""]
[null,null,null,null,null,null,null,null,null,null,null,null,"",0,0,0,0,0,""]
[null,null,null,null,null,null,null,null,null,null,null,null,"",0,0,0,0,0,""]
[null,null,null,null,null,null,null,null,null,null,null,null,"",0,0,0,0,0,""]
[null,null,null,null,null,null,null,null,null,null,null,null,"",0,0,0,0,0,""]
[null,null,null,null,null,null,null,null,null,null,null,null,"",0,0,0,0,0,""]
[null,null,null,null,null,null,null,null,null,null,null,null,"",0,0,0,0,0,""]
[null,null,null,null,null,null,null,null,null,null,null,null,"",0,0,0,0,0,""]
[null,null,null,null,null,null,null,null,null,null,null,null,"",0,0,0,0,0,""]
[null,null,null,null,null,null,null,null,null,null,null,null,"",0,0,0,0,0,""]
[null,null,null,null,null,null,null,null,null,null,null,null,"",0,0,0,0,0,""]
[null,null,null,null,null,null,null,null,null,null,null,null,"",0,0,0,0,0,""]
[null,null,null,null,null,null,null,null,null,null,null,null,"",0,0,0,0,0,""]
[null,null,null,null,null,null,null,null,null,null,null,null,"",0,0,0,0,0,""]
[null,null,null,null,null,null,null,null,null,null,null,null,"",0,0,0,0,0,""]
[null,null,null,null,null,null,null,null,null,null,null,null,"",0,0,0,0,0,""]
[null,null,null,null,null,null,null,null,null,null,null,null,"",0,0,0,0,0,""]
[null,null,null,null,null,null,null,null,null,null,null,null,"",0,0,0,0,0,""]
[null,null,null,null,null,null,null,null,null,null,null,null,"",0,0,0,0,0,""]
[null,null,null,null,null,null,null,null,null,null,null,null,"",0,0,0,0,0,""]
[null,null,null,null,null,null,null,null,null,null,null,null,"",0,0,0,0,0,""]
[null,null,null,null,null,null,null,null,null,null,null,null,"",0,0,0,0,0,""]
[null,null,null,null,null,null,null,null,null,null,null,null,"",0,0,0,0,0,""]
[null,null,null,null,null,null,null,null,null,null,null,null,"",0,0,0,0,0,""]
[null,null,null,null,null,null,null,null,null,null,null,null,"",0,0,0,0,0,""]
[null,null,null,null,null,null,null,null,null,null,null,null,"",0,0,0,0,0,""]
[null,null,null,null,null,null,null,null,null,null,null,null,"",0,0,0,0,0,""]
[null,null,null,null,null,null,null,null,null,null,null,null,"",0,0,0,0,0,""]
[null,null,null,null,null,null,null,null,null,null,null,null,"",0,0,0,0,0,""]
[null,null,null,null,null,null,null,null,null,null,null,null,"",0,0,0,0,0,""]
[null,null,null,null,null,null,null,null,null,null,null,null,"",0,0,0,0,0,""]
[null,null,null,null,null,null,null,null,null,null,null,null,"",0,0,0,0,0,""]
[null,null,null,null,null,null,null,null,null,null,null,null,"",0,0,0,0,0,""]
[null,null,null,null,null,null,null,null,null,null,null,null,"",0,0,0,0,0,""]
[null,null,null,null,null,null,null,null,null,null,null,null,"",0,0,0,0,0,""]
[null,null,null,null,null,null,null,null,null,null,null,null,"",0,0,0,0,0,""]
[null,null,null,null,null,null,null,null,null,null,null,null,"",0,0,0,0,0,""]
[null,null,null,null,null,null,null,null,null,null,null,null,"",0,0,0,0,0,""]
[null,null,null,null,null,null,null,null,null,null,null,null,"",0,0,0,0,0,""]
[null,null,null,null,null,null,null,null,null,null,null,null,"",0,0,0,0,0,""]
[null,null,null,null,null,null,null,null,null,null,null,null,"",0,0,0,0,0,""]
[null,null,null,null,null,null,null,null,null,null,null,null,"",0,0,0,0,0,""]
[null,null,null,null,null,null,null,null,null,null,null,null,"",0,0,0,0,0,""]
[null,null,null,null,null,null,null,null,null,null,null,null,"",0,0,0,0,0,""]
[null,null,null,null,null,null,null,null,null,null,null,null,"",0,0,0,0,0,""]
[null,null,null,null,null,null,null,null,null,null,null,null,"",0,0,0,0,0,""]
[null,null,null,null,null,null,null,null,null,null,null,null,"",0,0,0,0,0,""]
[null,null,null,null,null,null,null,null,null,null,null,null,"",0,0,0,0,0,""]
[null,null,null,null,null,null,null,null,null,null,null,null,"",0,0,0,0,0,""]
[null,null,null,null,null,null,null,null,null,null,null,null,"",0,0,0,0,0,""]
[null,null,null,null,null,null,null,null,null,null,null,null,"",0,0,0,0,0,""]
[null,null,null,null,null,null,null,null,null,null,null,null,"",0,0,0,0,0,""]
[null,null,null,null,null,null,null,null,null,null,null,null,"",0,0,0,0,0,""]
[null,null,null,null,null,null,null,null,null,null,null,null,"",0,0,0,0,0,""]
[null,null,null,null,null,null,null,null,null,null,null,null,"",0,0,0,0,0,""]
[null,null,null,null,null,null,null,null,null,null,null,null,"",0,0,0,0,0,""]
[null,null,null,null,null,null,null,null,null,null,null,null,"",0,0,0,0,0,""]
[null,null,null,null,null,null,null,null,null,null,null,null,"",0,0,0,0,0,""]
[null,null,null,null,null,null,null,null,null,null,null,null,"",0,0,0,0,0,""]
[null,null,null,null,null,null,null,null,null,null,null,null,"",0,0,0,0,0,""]
[null,null,null,null,null,null,null,null,null,null,null,null,"",0,0,0,0,0,""]
[null,null,null,null,null,null,null,null,null,null,null,null,"",0,0,0,0,0,""]
[null,null,null,null,null,null,null,null,null,null,null,null,{"$f":"IF(ISBLANK(H5265),\"\",SUM(H5265:L5265))","v":""},{"$f":"IF(ISBLANK(H5265),0,IF(H5265=0,1,0))","v":0},{"$f":"IF(ISBLANK(I5265),0,IF(I5265=0,1,0))","v":0},{"$f":"IF(ISBLANK(J5265),0,IF(J5265=0,1,0))","v":0},{"$f":"IF(ISBLANK(K5265),0,IF(K5265=0,1,0))","v":0},{"$f":"IF(ISBLANK(L5265),0,IF(L5265=0,1,0))","v":0},{"$f":"IF(SUM(N5265:R5265)<>0,\"Zero!\",\"\")","v":""}]
[null,null,null,null,null,null,null,null,null,null,null,null,"",0,0,0,0,0,""]
[null,null,null,null,null,null,null,null,null,null,null,null,"",0,0,0,0,0,""]
[null,null,null,null,null,null,null,null,null,null,null,null,"",0,0,0,0,0,""]
[null,null,null,null,null,null,null,null,null,null,null,null,"",0,0,0,0,0,""]
[null,null,null,null,null,null,null,null,null,null,null,null,"",0,0,0,0,0,""]
[null,null,null,null,null,null,null,null,null,null,null,null,"",0,0,0,0,0,""]
[null,null,null,null,null,null,null,null,null,null,null,null,"",0,0,0,0,0,""]
[null,null,null,null,null,null,null,null,null,null,null,null,"",0,0,0,0,0,""]
[null,null,null,null,null,null,null,null,null,null,null,null,"",0,0,0,0,0,""]
[null,null,null,null,null,null,null,null,null,null,null,null,"",0,0,0,0,0,""]
[null,null,null,null,null,null,null,null,null,null,null,null,"",0,0,0,0,0,""]
[null,null,null,null,null,null,null,null,null,null,null,null,"",0,0,0,0,0,""]
[null,null,null,null,null,null,null,null,null,null,null,null,"",0,0,0,0,0,""]
[null,null,null,null,null,null,null,null,null,null,null,null,"",0,0,0,0,0,""]
[null,null,null,null,null,null,null,null,null,null,null,null,"",0,0,0,0,0,""]
[null,null,null,null,null,null,null,null,null,null,null,null,"",0,0,0,0,0,""]
[null,null,null,null,null,null,null,null,null,null,null,null,"",0,0,0,0,0,""]
[null,null,null,null,null,null,null,null,null,null,null,null,"",0,0,0,0,0,""]
[null,null,null,null,null,null,null,null,null,null,null,null,"",0,0,0,0,0,""]
[null,null,null,null,null,null,null,null,null,null,null,null,"",0,0,0,0,0,""]
[null,null,null,null,null,null,null,null,null,null,null,null,"",0,0,0,0,0,""]
[null,null,null,null,null,null,null,null,null,null,null,null,"",0,0,0,0,0,""]
[null,null,null,null,null,null,null,null,null,null,null,null,"",0,0,0,0,0,""]
[null,null,null,null,null,null,null,null,null,null,null,null,"",0,0,0,0,0,""]
[null,null,null,null,null,null,null,null,null,null,null,null,"",0,0,0,0,0,""]
[null,null,null,null,null,null,null,null,null,null,null,null,"",0,0,0,0,0,""]
[null,null,null,null,null,null,null,null,null,null,null,null,"",0,0,0,0,0,""]
[null,null,null,null,null,null,null,null,null,null,null,null,"",0,0,0,0,0,""]
[null,null,null,null,null,null,null,null,null,null,null,null,"",0,0,0,0,0,""]
[null,null,null,null,null,null,null,null,null,null,null,null,"",0,0,0,0,0,""]
[null,null,null,null,null,null,null,null,null,null,null,null,"",0,0,0,0,0,""]
[null,null,null,null,null,null,null,null,null,null,null,null,"",0,0,0,0,0,""]
[null,null,null,null,null,null,null,null,null,null,null,null,"",0,0,0,0,0,""]
[null,null,null,null,null,null,null,null,null,null,null,null,"",0,0,0,0,0,""]
[null,null,null,null,null,null,null,null,null,null,null,null,"",0,0,0,0,0,""]
[null,null,null,null,null,null,null,null,null,null,null,null,"",0,0,0,0,0,""]
[null,null,null,null,null,null,null,null,null,null,null,null,{"$f":"IF(ISBLANK(H5329),\"\",SUM(H5329:L5329))","v":""},{"$f":"IF(ISBLANK(H5329),0,IF(H5329=0,1,0))","v":0},{"$f":"IF(ISBLANK(I5329),0,IF(I5329=0,1,0))","v":0},{"$f":"IF(ISBLANK(J5329),0,IF(J5329=0,1,0))","v":0},{"$f":"IF(ISBLANK(K5329),0,IF(K5329=0,1,0))","v":0},{"$f":"IF(ISBLANK(L5329),0,IF(L5329=0,1,0))","v":0},{"$f":"IF(SUM(N5329:R5329)<>0,\"Zero!\",\"\")","v":""}]
[null,null,null,null,null,null,null,null,null,null,null,null,"",0,0,0,0,0,""]
[null,null,null,null,null,null,null,null,null,null,null,null,"",0,0,0,0,0,""]
[null,null,null,null,null,null,null,null,null,null,null,null,"",0,0,0,0,0,""]
[null,null,null,null,null,null,null,null,null,null,null,null,"",0,0,0,0,0,""]
[null,null,null,null,null,null,null,null,null,null,null,null,"",0,0,0,0,0,""]
[null,null,null,null,null,null,null,null,null,null,null,null,"",0,0,0,0,0,""]
[null,null,null,null,null,null,null,null,null,null,null,null,"",0,0,0,0,0,""]
[null,null,null,null,null,null,null,null,null,null,null,null,"",0,0,0,0,0,""]
[null,null,null,null,null,null,null,null,null,null,null,null,"",0,0,0,0,0,""]
[null,null,null,null,null,null,null,null,null,null,null,null,"",0,0,0,0,0,""]
[null,null,null,null,null,null,null,null,null,null,null,null,"",0,0,0,0,0,""]
[null,null,null,null,null,null,null,null,null,null,null,null,"",0,0,0,0,0,""]
[null,null,null,null,null,null,null,null,null,null,null,null,"",0,0,0,0,0,""]
[null,null,null,null,null,null,null,null,null,null,null,null,"",0,0,0,0,0,""]
[null,null,null,null,null,null,null,null,null,null,null,null,"",0,0,0,0,0,""]
[null,null,null,null,null,null,null,null,null,null,null,null,"",0,0,0,0,0,""]
[null,null,null,null,null,null,null,null,null,null,null,null,"",0,0,0,0,0,""]
[null,null,null,null,null,null,null,null,null,null,null,null,"",0,0,0,0,0,""]
[null,null,null,null,null,null,null,null,null,null,null,null,"",0,0,0,0,0,""]
[null,null,null,null,null,null,null,null,null,null,null,null,"",0,0,0,0,0,""]
[null,null,null,null,null,null,null,null,null,null,null,null,"",0,0,0,0,0,""]
[null,null,null,null,null,null,null,null,null,null,null,null,"",0,0,0,0,0,""]
[null,null,null,null,null,null,null,null,null,null,null,null,"",0,0,0,0,0,""]
[null,null,null,null,null,null,null,null,null,null,null,null,"",0,0,0,0,0,""]
[null,null,null,null,null,null,null,null,null,null,null,null,"",0,0,0,0,0,""]
[null,null,null,null,null,null,null,null,null,null,null,null,"",0,0,0,0,0,""]
[null,null,null,null,null,null,null,null,null,null,null,null,"",0,0,0,0,0,""]
[null,null,null,null,null,null,null,null,null,null,null,null,"",0,0,0,0,0,""]
[null,null,null,null,null,null,null,null,null,null,null,null,"",0,0,0,0,0,""]
[null,null,null,null,null,null,null,null,null,null,null,null,"",0,0,0,0,0,""]
[null,null,null,null,null,null,null,null,null,null,null,null,"",0,0,0,0,0,""]
[null,null,null,null,null,null,null,null,null,null,null,null,"",0,0,0,0,0,""]
[null,null,null,null,null,null,null,null,null,null,null,null,"",0,0,0,0,0,""]
[null,null,null,null,null,null,null,null,null,null,null,null,"",0,0,0,0,0,""]
[null,null,null,null,null,null,null,null,null,null,null,null,"",0,0,0,0,0,""]
[null,null,null,null,null,null,null,null,null,null,null,null,"",0,0,0,0,0,""]
[null,null,null,null,null,null,null,null,null,null,null,null,"",0,0,0,0,0,""]
[null,null,null,null,null,null,null,null,null,null,null,null,"",0,0,0,0,0,""]
[null,null,null,null,null,null,null,null,null,null,null,null,"",0,0,0,0,0,""]
[null,null,null,null,null,null,null,null,null,null,null,null,"",0,0,0,0,0,""]
[null,null,null,null,null,null,null,null,null,null,null,null,"",0,0,0,0,0,""]
[null,null,null,null,null,null,null,null,null,null,null,null,"",0,0,0,0,0,""]
[null,null,null,null,null,null,null,null,null,null,null,null,"",0,0,0,0,0,""]
[null,null,null,null,null,null,null,null,null,null,null,null,"",0,0,0,0,0,""]
[null,null,null,null,null,null,null,null,null,null,null,null,"",0,0,0,0,0,""]
[null,null,null,null,null,null,null,null,null,null,null,null,"",0,0,0,0,0,""]
[null,null,null,null,null,null,null,null,null,null,null,null,"",0,0,0,0,0,""]
[null,null,null,null,null,null,null,null,null,null,null,null,"",0,0,0,0,0,""]
[null,null,null,null,null,null,null,null,null,null,null,null,"",0,0,0,0,0,""]
[null,null,null,null,null,null,null,null,null,null,null,null,"",0,0,0,0,0,""]
[null,null,null,null,null,null,null,null,null,null,null,null,"",0,0,0,0,0,""]
[null,null,null,null,null,null,null,null,null,null,null,null,"",0,0,0,0,0,""]
[null,null,null,null,null,null,null,null,null,null,null,null,"",0,0,0,0,0,""]
[null,null,null,null,null,null,null,null,null,null,null,null,"",0,0,0,0,0,""]
[null,null,null,null,null,null,null,null,null,null,null,null,"",0,0,0,0,0,""]
[null,null,null,null,null,null,null,null,null,null,null,null,"",0,0,0,0,0,""]
[null,null,null,null,null,null,null,null,null,null,null,null,"",0,0,0,0,0,""]
[null,null,null,null,null,null,null,null,null,null,null,null,"",0,0,0,0,0,""]
[null,null,null,null,null,null,null,null,null,null,null,null,"",0,0,0,0,0,""]
[null,null,null,null,null,null,null,null,null,null,null,null,"",0,0,0,0,0,""]
[null,null,null,null,null,null,null,null,null,null,null,null,"",0,0,0,0,0,""]
[null,null,null,null,null,null,null,null,null,null,null,null,"",0,0,0,0,0,""]
[null,null,null,null,null,null,null,null,null,null,null,null,"",0,0,0,0,0,""]
[null,null,null,null,null,null,null,null,null,null,null,null,"",0,0,0,0,0,""]
[null,null,null,null,null,null,null,null,null,null,null,null,"",0,0,0,0,0,""]
[null,null,null,null,null,null,null,null,null,null,null,null,"",0,0,0,0,0,""]
[null,null,null,null,null,null,null,null,null,null,null,null,"",0,0,0,0,0,""]
[null,null,null,null,null,null,null,null,null,null,null,null,"",0,0,0,0,0,""]
[null,null,null,null,null,null,null,null,null,null,null,null,"",0,0,0,0,0,""]
[null,null,null,null,null,null,null,null,null,null,null,null,"",0,0,0,0,0,""]
[null,null,null,null,null,null,null,null,null,null,null,null,"",0,0,0,0,0,""]
[null,null,null,null,null,null,null,null,null,null,null,null,"",0,0,0,0,0,""]
[null,null,null,null,null,null,null,null,null,null,null,null,"",0,0,0,0,0,""]
[null,null,null,null,null,null,null,null,null,null,null,null,"",0,0,0,0,0,""]
[null,null,null,null,null,null,null,null,null,null,null,null,"",0,0,0,0,0,""]
[null,null,null,null,null,null,null,null,null,null,null,null,"",0,0,0,0,0,""]
[null,null,null,null,null,null,null,null,null,null,null,null,"",0,0,0,0,0,""]
[null,null,null,null,null,null,null,null,null,null,null,null,"",0,0,0,0,0,""]
[null,null,null,null,null,null,null,null,null,null,null,null,"",0,0,0,0,0,""]
[null,null,null,null,null,null,null,null,null,null,null,null,"",0,0,0,0,0,""]
[null,null,null,null,null,null,null,null,null,null,null,null,"",0,0,0,0,0,""]
[null,null,null,null,null,null,null,null,null,null,null,null,"",0,0,0,0,0,""]
[null,null,null,null,null,null,null,null,null,null,null,null,"",0,0,0,0,0,""]
[null,null,null,null,null,null,null,null,null,null,null,null,"",0,0,0,0,0,""]
[null,null,null,null,null,null,null,null,null,null,null,null,"",0,0,0,0,0,""]
[null,null,null,null,null,null,null,null,null,null,null,null,"",0,0,0,0,0,""]
[null,null,null,null,null,null,null,null,null,null,null,null,"",0,0,0,0,0,""]
[null,null,null,null,null,null,null,null,null,null,null,null,"",0,0,0,0,0,""]
[null,null,null,null,null,null,null,null,null,null,null,null,"",0,0,0,0,0,""]
[null,null,null,null,null,null,null,null,null,null,null,null,"",0,0,0,0,0,""]
[null,null,null,null,null,null,null,null,null,null,null,null,"",0,0,0,0,0,""]
[null,null,null,null,null,null,null,null,null,null,null,null,"",0,0,0,0,0,""]
[null,null,null,null,null,null,null,null,null,null,null,null,"",0,0,0,0,0,""]
[null,null,null,null,null,null,null,null,null,null,null,null,"",0,0,0,0,0,""]
[null,null,null,null,null,null,null,null,null,null,null,null,"",0,0,0,0,0,""]
[null,null,null,null,null,null,null,null,null,null,null,null,"",0,0,0,0,0,""]
[null,null,null,null,null,null,null,null,null,null,null,null,"",0,0,0,0,0,""]
[null,null,null,null,null,null,null,null,null,null,null,null,"",0,0,0,0,0,""]
[null,null,null,null,null,null,null,null,null,null,null,null,"",0,0,0,0,0,""]
[null,null,null,null,null,null,null,null,null,null,null,null,"",0,0,0,0,0,""]
[null,null,null,null,null,null,null,null,null,null,null,null,"",0,0,0,0,0,""]
[null,null,null,null,null,null,null,null,null,null,null,null,"",0,0,0,0,0,""]
[null,null,null,null,null,null,null,null,null,null,null,null,"",0,0,0,0,0,""]
[null,null,null,null,null,null,null,null,null,null,null,null,"",0,0,0,0,0,""]
[null,null,null,null,null,null,null,null,null,null,null,null,"",0,0,0,0,0,""]
[null,null,null,null,null,null,null,null,null,null,null,null,"",0,0,0,0,0,""]
[null,null,null,null,null,null,null,null,null,null,null,null,"",0,0,0,0,0,""]
[null,null,null,null,null,null,null,null,null,null,null,null,"",0,0,0,0,0,""]
[null,null,null,null,null,null,null,null,null,null,null,null,"",0,0,0,0,0,""]
[null,null,null,null,null,null,null,null,null,null,null,null,"",0,0,0,0,0,""]
[null,null,null,null,null,null,null,null,null,null,null,null,"",0,0,0,0,0,""]
[null,null,null,null,null,null,null,null,null,null,null,null,"",0,0,0,0,0,""]
[null,null,null,null,null,null,null,null,null,null,null,null,"",0,0,0,0,0,""]
[null,null,null,null,null,null,null,null,null,null,null,null,"",0,0,0,0,0,""]
[null,null,null,null,null,null,null,null,null,null,null,null,"",0,0,0,0,0,""]
[null,null,null,null,null,null,null,null,null,null,null,null,"",0,0,0,0,0,""]
[null,null,null,null,null,null,null,null,null,null,null,null,{"$f":"IF(ISBLANK(H5521),\"\",SUM(H5521:L5521))","v":""},{"$f":"IF(ISBLANK(H5521),0,IF(H5521=0,1,0))","v":0},{"$f":"IF(ISBLANK(I5521),0,IF(I5521=0,1,0))","v":0},{"$f":"IF(ISBLANK(J5521),0,IF(J5521=0,1,0))","v":0},{"$f":"IF(ISBLANK(K5521),0,IF(K5521=0,1,0))","v":0},{"$f":"IF(ISBLANK(L5521),0,IF(L5521=0,1,0))","v":0},{"$f":"IF(SUM(N5521:R5521)<>0,\"Zero!\",\"\")","v":""}]
[null,null,null,null,null,null,null,null,null,null,null,null,"",0,0,0,0,0,""]
[null,null,null,null,null,null,null,null,null,null,null,null,"",0,0,0,0,0,""]
[null,null,null,null,null,null,null,null,null,null,null,null,"",0,0,0,0,0,""]
[null,null,null,null,null,null,null,null,null,null,null,null,"",0,0,0,0,0,""]
[null,null,null,null,null,null,null,null,null,null,null,null,"",0,0,0,0,0,""]
[null,null,null,null,null,null,null,null,null,null,null,null,"",0,0,0,0,0,""]
[null,null,null,null,null,null,null,null,null,null,null,null,"",0,0,0,0,0,""]
[null,null,null,null,null,null,null,null,null,null,null,null,"",0,0,0,0,0,""]
[null,null,null,null,null,null,null,null,null,null,null,null,"",0,0,0,0,0,""]
[null,null,null,null,null,null,null,null,null,null,null,null,"",0,0,0,0,0,""]
[null,null,null,null,null,null,null,null,null,null,null,null,"",0,0,0,0,0,""]
[null,null,null,null,null,null,null,null,null,null,null,null,"",0,0,0,0,0,""]
[null,null,null,null,null,null,null,null,null,null,null,null,"",0,0,0,0,0,""]
[null,null,null,null,null,null,null,null,null,null,null,null,"",0,0,0,0,0,""]
[null,null,null,null,null,null,null,null,null,null,null,null,"",0,0,0,0,0,""]
[null,null,null,null,null,null,null,null,null,null,null,null,"",0,0,0,0,0,""]
[null,null,null,null,null,null,null,null,null,null,null,null,"",0,0,0,0,0,""]
[null,null,null,null,null,null,null,null,null,null,null,null,"",0,0,0,0,0,""]
[null,null,null,null,null,null,null,null,null,null,null,null,"",0,0,0,0,0,""]
[null,null,null,null,null,null,null,null,null,null,null,null,"",0,0,0,0,0,""]
[null,null,null,null,null,null,null,null,null,null,null,null,"",0,0,0,0,0,""]
[null,null,null,null,null,null,null,null,null,null,null,null,"",0,0,0,0,0,""]
[null,null,null,null,null,null,null,null,null,null,null,null,"",0,0,0,0,0,""]
[null,null,null,null,null,null,null,null,null,null,null,null,"",0,0,0,0,0,""]
[null,null,null,null,null,null,null,null,null,null,null,null,"",0,0,0,0,0,""]
[null,null,null,null,null,null,null,null,null,null,null,null,"",0,0,0,0,0,""]
[null,null,null,null,null,null,null,null,null,null,null,null,"",0,0,0,0,0,""]
[null,null,null,null,null,null,null,null,null,null,null,null,"",0,0,0,0,0,""]
[null,null,null,null,null,null,null,null,null,null,null,null,"",0,0,0,0,0,""]
[null,null,null,null,null,null,null,null,null,null,null,null,"",0,0,0,0,0,""]
[null,null,null,null,null,null,null,null,null,null,null,null,"",0,0,0,0,0,""]
[null,null,null,null,null,null,null,null,null,null,null,null,"",0,0,0,0,0,""]
[null,null,null,null,null,null,null,null,null,null,null,null,"",0,0,0,0,0,""]
[null,null,null,null,null,null,null,null,null,null,null,null,"",0,0,0,0,0,""]
[null,null,null,null,null,null,null,null,null,null,null,null,"",0,0,0,0,0,""]
[null,null,null,null,null,null,null,null,null,null,null,null,"",0,0,0,0,0,""]
[null,null,null,null,null,null,null,null,null,null,null,null,"",0,0,0,0,0,""]
[null,null,null,null,null,null,null,null,null,null,null,null,"",0,0,0,0,0,""]
[null,null,null,null,null,null,null,null,null,null,null,null,"",0,0,0,0,0,""]
[null,null,null,null,null,null,null,null,null,null,null,null,"",0,0,0,0,0,""]
[null,null,null,null,null,null,null,null,null,null,null,null,"",0,0,0,0,0,""]
[null,null,null,null,null,null,null,null,null,null,null,null,"",0,0,0,0,0,""]
[null,null,null,null,null,null,null,null,null,null,null,null,"",0,0,0,0,0,""]
[null,null,null,null,null,null,null,null,null,null,null,null,"",0,0,0,0,0,""]
[null,null,null,null,null,null,null,null,null,null,null,null,"",0,0,0,0,0,""]
[null,null,null,null,null,null,null,null,null,null,null,null,"",0,0,0,0,0,""]
[null,null,null,null,null,null,null,null,null,null,null,null,"",0,0,0,0,0,""]
[null,null,null,null,null,null,null,null,null,null,null,null,"",0,0,0,0,0,""]
[null,null,null,null,null,null,null,null,null,null,null,null,"",0,0,0,0,0,""]
[null,null,null,null,null,null,null,null,null,null,null,null,"",0,0,0,0,0,""]
[null,null,null,null,null,null,null,null,null,null,null,null,"",0,0,0,0,0,""]
[null,null,null,null,null,null,null,null,null,null,null,null,"",0,0,0,0,0,""]
[null,null,null,null,null,null,null,null,null,null,null,null,"",0,0,0,0,0,""]
[null,null,null,null,null,null,null,null,null,null,null,null,"",0,0,0,0,0,""]
[null,null,null,null,null,null,null,null,null,null,null,null,"",0,0,0,0,0,""]
[null,null,null,null,null,null,null,null,null,null,null,null,"",0,0,0,0,0,""]
[null,null,null,null,null,null,null,null,null,null,null,null,"",0,0,0,0,0,""]
[null,null,null,null,null,null,null,null,null,null,null,null,"",0,0,0,0,0,""]
[null,null,null,null,null,null,null,null,null,null,null,null,"",0,0,0,0,0,""]
[null,null,null,null,null,null,null,null,null,null,null,null,"",0,0,0,0,0,""]
[null,null,null,null,null,null,null,null,null,null,null,null,"",0,0,0,0,0,""]
[null,null,null,null,null,null,null,null,null,null,null,null,"",0,0,0,0,0,""]
[null,null,null,null,null,null,null,null,null,null,null,null,"",0,0,0,0,0,""]
[null,null,null,null,null,null,null,null,null,null,null,null,{"$f":"IF(ISBLANK(H5585),\"\",SUM(H5585:L5585))","v":""},{"$f":"IF(ISBLANK(H5585),0,IF(H5585=0,1,0))","v":0},{"$f":"IF(ISBLANK(I5585),0,IF(I5585=0,1,0))","v":0},{"$f":"IF(ISBLANK(J5585),0,IF(J5585=0,1,0))","v":0},{"$f":"IF(ISBLANK(K5585),0,IF(K5585=0,1,0))","v":0},{"$f":"IF(ISBLANK(L5585),0,IF(L5585=0,1,0))","v":0},{"$f":"IF(SUM(N5585:R5585)<>0,\"Zero!\",\"\")","v":""}]
[null,null,null,null,null,null,null,null,null,null,null,null,"",0,0,0,0,0,""]
[null,null,null,null,null,null,null,null,null,null,null,null,"",0,0,0,0,0,""]
[null,null,null,null,null,null,null,null,null,null,null,null,"",0,0,0,0,0,""]
[null,null,null,null,null,null,null,null,null,null,null,null,"",0,0,0,0,0,""]
[null,null,null,null,null,null,null,null,null,null,null,null,"",0,0,0,0,0,""]
[null,null,null,null,null,null,null,null,null,null,null,null,"",0,0,0,0,0,""]
[null,null,null,null,null,null,null,null,null,null,null,null,"",0,0,0,0,0,""]
[null,null,null,null,null,null,null,null,null,null,null,null,"",0,0,0,0,0,""]
[null,null,null,null,null,null,null,null,null,null,null,null,"",0,0,0,0,0,""]
[null,null,null,null,null,null,null,null,null,null,null,null,"",0,0,0,0,0,""]
[null,null,null,null,null,null,null,null,null,null,null,null,"",0,0,0,0,0,""]
[null,null,null,null,null,null,null,null,null,null,null,null,"",0,0,0,0,0,""]
[null,null,null,null,null,null,null,null,null,null,null,null,"",0,0,0,0,0,""]
[null,null,null,null,null,null,null,null,null,null,null,null,"",0,0,0,0,0,""]
[null,null,null,null,null,null,null,null,null,null,null,null,"",0,0,0,0,0,""]
[null,null,null,null,null,null,null,null,null,null,null,null,"",0,0,0,0,0,""]
[null,null,null,null,null,null,null,null,null,null,null,null,"",0,0,0,0,0,""]
[null,null,null,null,null,null,null,null,null,null,null,null,"",0,0,0,0,0,""]
[null,null,null,null,null,null,null,null,null,null,null,null,"",0,0,0,0,0,""]
[null,null,null,null,null,null,null,null,null,null,null,null,"",0,0,0,0,0,""]
[null,null,null,null,null,null,null,null,null,null,null,null,"",0,0,0,0,0,""]
[null,null,null,null,null,null,null,null,null,null,null,null,"",0,0,0,0,0,""]
[null,null,null,null,null,null,null,null,null,null,null,null,"",0,0,0,0,0,""]
[null,null,null,null,null,null,null,null,null,null,null,null,"",0,0,0,0,0,""]
[null,null,null,null,null,null,null,null,null,null,null,null,"",0,0,0,0,0,""]
[null,null,null,null,null,null,null,null,null,null,null,null,"",0,0,0,0,0,""]
[null,null,null,null,null,null,null,null,null,null,null,null,"",0,0,0,0,0,""]
[null,null,null,null,null,null,null,null,null,null,null,null,"",0,0,0,0,0,""]
[null,null,null,null,null,null,null,null,null,null,null,null,"",0,0,0,0,0,""]
[null,null,null,null,null,null,null,null,null,null,null,null,"",0,0,0,0,0,""]
[null,null,null,null,null,null,null,null,null,null,null,null,"",0,0,0,0,0,""]
[null,null,null,null,null,null,null,null,null,null,null,null,"",0,0,0,0,0,""]
[null,null,null,null,null,null,null,null,null,null,null,null,"",0,0,0,0,0,""]
[null,null,null,null,null,null,null,null,null,null,null,null,"",0,0,0,0,0,""]
[null,null,null,null,null,null,null,null,null,null,null,null,"",0,0,0,0,0,""]
[null,null,null,null,null,null,null,null,null,null,null,null,"",0,0,0,0,0,""]
[null,null,null,null,null,null,null,null,null,null,null,null,"",0,0,0,0,0,""]
[null,null,null,null,null,null,null,null,null,null,null,null,"",0,0,0,0,0,""]
[null,null,null,null,null,null,null,null,null,null,null,null,"",0,0,0,0,0,""]
[null,null,null,null,null,null,null,null,null,null,null,null,"",0,0,0,0,0,""]
[null,null,null,null,null,null,null,null,null,null,null,null,"",0,0,0,0,0,""]
[null,null,null,null,null,null,null,null,null,null,null,null,"",0,0,0,0,0,""]
[null,null,null,null,null,null,null,null,null,null,null,null,"",0,0,0,0,0,""]
[null,null,null,null,null,null,null,null,null,null,null,null,"",0,0,0,0,0,""]
[null,null,null,null,null,null,null,null,null,null,null,null,"",0,0,0,0,0,""]
[null,null,null,null,null,null,null,null,null,null,null,null,"",0,0,0,0,0,""]
[null,null,null,null,null,null,null,null,null,null,null,null,"",0,0,0,0,0,""]
[null,null,null,null,null,null,null,null,null,null,null,null,"",0,0,0,0,0,""]
[null,null,null,null,null,null,null,null,null,null,null,null,"",0,0,0,0,0,""]
[null,null,null,null,null,null,null,null,null,null,null,null,"",0,0,0,0,0,""]
[null,null,null,null,null,null,null,null,null,null,null,null,"",0,0,0,0,0,""]
[null,null,null,null,null,null,null,null,null,null,null,null,"",0,0,0,0,0,""]
[null,null,null,null,null,null,null,null,null,null,null,null,"",0,0,0,0,0,""]
[null,null,null,null,null,null,null,null,null,null,null,null,"",0,0,0,0,0,""]
[null,null,null,null,null,null,null,null,null,null,null,null,"",0,0,0,0,0,""]
[null,null,null,null,null,null,null,null,null,null,null,null,"",0,0,0,0,0,""]
[null,null,null,null,null,null,null,null,null,null,null,null,"",0,0,0,0,0,""]
[null,null,null,null,null,null,null,null,null,null,null,null,"",0,0,0,0,0,""]
[null,null,null,null,null,null,null,null,null,null,null,null,"",0,0,0,0,0,""]
[null,null,null,null,null,null,null,null,null,null,null,null,"",0,0,0,0,0,""]
[null,null,null,null,null,null,null,null,null,null,null,null,"",0,0,0,0,0,""]
[null,null,null,null,null,null,null,null,null,null,null,null,"",0,0,0,0,0,""]
[null,null,null,null,null,null,null,null,null,null,null,null,"",0,0,0,0,0,""]
[null,null,null,null,null,null,null,null,null,null,null,null,{"$f":"IF(ISBLANK(H5649),\"\",SUM(H5649:L5649))","v":""},{"$f":"IF(ISBLANK(H5649),0,IF(H5649=0,1,0))","v":0},{"$f":"IF(ISBLANK(I5649),0,IF(I5649=0,1,0))","v":0},{"$f":"IF(ISBLANK(J5649),0,IF(J5649=0,1,0))","v":0},{"$f":"IF(ISBLANK(K5649),0,IF(K5649=0,1,0))","v":0},{"$f":"IF(ISBLANK(L5649),0,IF(L5649=0,1,0))","v":0},{"$f":"IF(SUM(N5649:R5649)<>0,\"Zero!\",\"\")","v":""}]
[null,null,null,null,null,null,null,null,null,null,null,null,"",0,0,0,0,0,""]
[null,null,null,null,null,null,null,null,null,null,null,null,"",0,0,0,0,0,""]
[null,null,null,null,null,null,null,null,null,null,null,null,"",0,0,0,0,0,""]
[null,null,null,null,null,null,null,null,null,null,null,null,"",0,0,0,0,0,""]
[null,null,null,null,null,null,null,null,null,null,null,null,"",0,0,0,0,0,""]
[null,null,null,null,null,null,null,null,null,null,null,null,"",0,0,0,0,0,""]
[null,null,null,null,null,null,null,null,null,null,null,null,"",0,0,0,0,0,""]
[null,null,null,null,null,null,null,null,null,null,null,null,"",0,0,0,0,0,""]
[null,null,null,null,null,null,null,null,null,null,null,null,"",0,0,0,0,0,""]
[null,null,null,null,null,null,null,null,null,null,null,null,"",0,0,0,0,0,""]
[null,null,null,null,null,null,null,null,null,null,null,null,"",0,0,0,0,0,""]
[null,null,null,null,null,null,null,null,null,null,null,null,"",0,0,0,0,0,""]
[null,null,null,null,null,null,null,null,null,null,null,null,"",0,0,0,0,0,""]
[null,null,null,null,null,null,null,null,null,null,null,null,"",0,0,0,0,0,""]
[null,null,null,null,null,null,null,null,null,null,null,null,"",0,0,0,0,0,""]
[null,null,null,null,null,null,null,null,null,null,null,null,"",0,0,0,0,0,""]
[null,null,null,null,null,null,null,null,null,null,null,null,"",0,0,0,0,0,""]
[null,null,null,null,null,null,null,null,null,null,null,null,"",0,0,0,0,0,""]
[null,null,null,null,null,null,null,null,null,null,null,null,"",0,0,0,0,0,""]
[null,null,null,null,null,null,null,null,null,null,null,null,"",0,0,0,0,0,""]
[null,null,null,null,null,null,null,null,null,null,null,null,"",0,0,0,0,0,""]
[null,null,null,null,null,null,null,null,null,null,null,null,"",0,0,0,0,0,""]
[null,null,null,null,null,null,null,null,null,null,null,null,"",0,0,0,0,0,""]
[null,null,null,null,null,null,null,null,null,null,null,null,"",0,0,0,0,0,""]
[null,null,null,null,null,null,null,null,null,null,null,null,"",0,0,0,0,0,""]
[null,null,null,null,null,null,null,null,null,null,null,null,"",0,0,0,0,0,""]
[null,null,null,null,null,null,null,null,null,null,null,null,"",0,0,0,0,0,""]
[null,null,null,null,null,null,null,null,null,null,null,null,"",0,0,0,0,0,""]
[null,null,null,null,null,null,null,null,null,null,null,null,"",0,0,0,0,0,""]
[null,null,null,null,null,null,null,null,null,null,null,null,"",0,0,0,0,0,""]
[null,null,null,null,null,null,null,null,null,null,null,null,"",0,0,0,0,0,""]
[null,null,null,null,null,null,null,null,null,null,null,null,"",0,0,0,0,0,""]
[null,null,null,null,null,null,null,null,null,null,null,null,"",0,0,0,0,0,""]
[null,null,null,null,null,null,null,null,null,null,null,null,"",0,0,0,0,0,""]
[null,null,null,null,null,null,null,null,null,null,null,null,"",0,0,0,0,0,""]
[null,null,null,null,null,null,null,null,null,null,null,null,"",0,0,0,0,0,""]
[null,null,null,null,null,null,null,null,null,null,null,null,"",0,0,0,0,0,""]
[null,null,null,null,null,null,null,null,null,null,null,null,"",0,0,0,0,0,""]
[null,null,null,null,null,null,null,null,null,null,null,null,"",0,0,0,0,0,""]
[null,null,null,null,null,null,null,null,null,null,null,null,"",0,0,0,0,0,""]
[null,null,null,null,null,null,null,null,null,null,null,null,"",0,0,0,0,0,""]
[null,null,null,null,null,null,null,null,null,null,null,null,"",0,0,0,0,0,""]
[null,null,null,null,null,null,null,null,null,null,null,null,"",0,0,0,0,0,""]
[null,null,null,null,null,null,null,null,null,null,null,null,"",0,0,0,0,0,""]
[null,null,null,null,null,null,null,null,null,null,null,null,"",0,0,0,0,0,""]
[null,null,null,null,null,null,null,null,null,null,null,null,"",0,0,0,0,0,""]
[null,null,null,null,null,null,null,null,null,null,null,null,"",0,0,0,0,0,""]
[null,null,null,null,null,null,null,null,null,null,null,null,"",0,0,0,0,0,""]
[null,null,null,null,null,null,null,null,null,null,null,null,"",0,0,0,0,0,""]
[null,null,null,null,null,null,null,null,null,null,null,null,"",0,0,0,0,0,""]
[null,null,null,null,null,null,null,null,null,null,null,null,"",0,0,0,0,0,""]
[null,null,null,null,null,null,null,null,null,null,null,null,"",0,0,0,0,0,""]
[null,null,null,null,null,null,null,null,null,null,null,null,"",0,0,0,0,0,""]
[null,null,null,null,null,null,null,null,null,null,null,null,"",0,0,0,0,0,""]
[null,null,null,null,null,null,null,null,null,null,null,null,"",0,0,0,0,0,""]
[null,null,null,null,null,null,null,null,null,null,null,null,"",0,0,0,0,0,""]
[null,null,null,null,null,null,null,null,null,null,null,null,"",0,0,0,0,0,""]
[null,null,null,null,null,null,null,null,null,null,null,null,"",0,0,0,0,0,""]
[null,null,null,null,null,null,null,null,null,null,null,null,"",0,0,0,0,0,""]
[null,null,null,null,null,null,null,null,null,null,null,null,"",0,0,0,0,0,""]
[null,null,null,null,null,null,null,null,null,null,null,null,"",0,0,0,0,0,""]
[null,null,null,null,null,null,null,null,null,null,null,null,"",0,0,0,0,0,""]
[null,null,null,null,null,null,null,null,null,null,null,null,"",0,0,0,0,0,""]
[null,null,null,null,null,null,null,null,null,null,null,null,{"$f":"IF(ISBLANK(H5713),\"\",SUM(H5713:L5713))","v":""},{"$f":"IF(ISBLANK(H5713),0,IF(H5713=0,1,0))","v":0},{"$f":"IF(ISBLANK(I5713),0,IF(I5713=0,1,0))","v":0},{"$f":"IF(ISBLANK(J5713),0,IF(J5713=0,1,0))","v":0},{"$f":"IF(ISBLANK(K5713),0,IF(K5713=0,1,0))","v":0},{"$f":"IF(ISBLANK(L5713),0,IF(L5713=0,1,0))","v":0},{"$f":"IF(SUM(N5713:R5713)<>0,\"Zero!\",\"\")","v":""}]
[null,null,null,null,null,null,null,null,null,null,null,null,"",0,0,0,0,0,""]
[null,null,null,null,null,null,null,null,null,null,null,null,"",0,0,0,0,0,""]
[null,null,null,null,null,null,null,null,null,null,null,null,"",0,0,0,0,0,""]
[null,null,null,null,null,null,null,null,null,null,null,null,"",0,0,0,0,0,""]
[null,null,null,null,null,null,null,null,null,null,null,null,"",0,0,0,0,0,""]
[null,null,null,null,null,null,null,null,null,null,null,null,"",0,0,0,0,0,""]
[null,null,null,null,null,null,null,null,null,null,null,null,"",0,0,0,0,0,""]
[null,null,null,null,null,null,null,null,null,null,null,null,"",0,0,0,0,0,""]
[null,null,null,null,null,null,null,null,null,null,null,null,"",0,0,0,0,0,""]
[null,null,null,null,null,null,null,null,null,null,null,null,"",0,0,0,0,0,""]
[null,null,null,null,null,null,null,null,null,null,null,null,"",0,0,0,0,0,""]
[null,null,null,null,null,null,null,null,null,null,null,null,"",0,0,0,0,0,""]
[null,null,null,null,null,null,null,null,null,null,null,null,"",0,0,0,0,0,""]
[null,null,null,null,null,null,null,null,null,null,null,null,"",0,0,0,0,0,""]
[null,null,null,null,null,null,null,null,null,null,null,null,"",0,0,0,0,0,""]
[null,null,null,null,null,null,null,null,null,null,null,null,"",0,0,0,0,0,""]
[null,null,null,null,null,null,null,null,null,null,null,null,"",0,0,0,0,0,""]
[null,null,null,null,null,null,null,null,null,null,null,null,"",0,0,0,0,0,""]
[null,null,null,null,null,null,null,null,null,null,null,null,"",0,0,0,0,0,""]
[null,null,null,null,null,null,null,null,null,null,null,null,"",0,0,0,0,0,""]
[null,null,null,null,null,null,null,null,null,null,null,null,"",0,0,0,0,0,""]
[null,null,null,null,null,null,null,null,null,null,null,null,"",0,0,0,0,0,""]
[null,null,null,null,null,null,null,null,null,null,null,null,"",0,0,0,0,0,""]
[null,null,null,null,null,null,null,null,null,null,null,null,"",0,0,0,0,0,""]
[null,null,null,null,null,null,null,null,null,null,null,null,"",0,0,0,0,0,""]
[null,null,null,null,null,null,null,null,null,null,null,null,"",0,0,0,0,0,""]
[null,null,null,null,null,null,null,null,null,null,null,null,"",0,0,0,0,0,""]
[null,null,null,null,null,null,null,null,null,null,null,null,"",0,0,0,0,0,""]
[null,null,null,null,null,null,null,null,null,null,null,null,"",0,0,0,0,0,""]
[null,null,null,null,null,null,null,null,null,null,null,null,"",0,0,0,0,0,""]
[null,null,null,null,null,null,null,null,null,null,null,null,"",0,0,0,0,0,""]
[null,null,null,null,null,null,null,null,null,null,null,null,"",0,0,0,0,0,""]
[null,null,null,null,null,null,null,null,null,null,null,null,"",0,0,0,0,0,""]
[null,null,null,null,null,null,null,null,null,null,null,null,"",0,0,0,0,0,""]
[null,null,null,null,null,null,null,null,null,null,null,null,"",0,0,0,0,0,""]
[null,null,null,null,null,null,null,null,null,null,null,null,"",0,0,0,0,0,""]
[null,null,null,null,null,null,null,null,null,null,null,null,"",0,0,0,0,0,""]
[null,null,null,null,null,null,null,null,null,null,null,null,"",0,0,0,0,0,""]
[null,null,null,null,null,null,null,null,null,null,null,null,"",0,0,0,0,0,""]
[null,null,null,null,null,null,null,null,null,null,null,null,"",0,0,0,0,0,""]
[null,null,null,null,null,null,null,null,null,null,null,null,"",0,0,0,0,0,""]
[null,null,null,null,null,null,null,null,null,null,null,null,"",0,0,0,0,0,""]
[null,null,null,null,null,null,null,null,null,null,null,null,"",0,0,0,0,0,""]
[null,null,null,null,null,null,null,null,null,null,null,null,"",0,0,0,0,0,""]
[null,null,null,null,null,null,null,null,null,null,null,null,"",0,0,0,0,0,""]
[null,null,null,null,null,null,null,null,null,null,null,null,"",0,0,0,0,0,""]
[null,null,null,null,null,null,null,null,null,null,null,null,"",0,0,0,0,0,""]
[null,null,null,null,null,null,null,null,null,null,null,null,"",0,0,0,0,0,""]
[null,null,null,null,null,null,null,null,null,null,null,null,"",0,0,0,0,0,""]
[null,null,null,null,null,null,null,null,null,null,null,null,"",0,0,0,0,0,""]
[null,null,null,null,null,null,null,null,null,null,null,null,"",0,0,0,0,0,""]
[null,null,null,null,null,null,null,null,null,null,null,null,"",0,0,0,0,0,""]
[null,null,null,null,null,null,null,null,null,null,null,null,"",0,0,0,0,0,""]
[null,null,null,null,null,null,null,null,null,null,null,null,"",0,0,0,0,0,""]
[null,null,null,null,null,null,null,null,null,null,null,null,"",0,0,0,0,0,""]
[null,null,null,null,null,null,null,null,null,null,null,null,"",0,0,0,0,0,""]
[null,null,null,null,null,null,null,null,null,null,null,null,"",0,0,0,0,0,""]
[null,null,null,null,null,null,null,null,null,null,null,null,"",0,0,0,0,0,""]
[null,null,null,null,null,null,null,null,null,null,null,null,"",0,0,0,0,0,""]
[null,null,null,null,null,null,null,null,null,null,null,null,"",0,0,0,0,0,""]
[null,null,null,null,null,null,null,null,null,null,null,null,"",0,0,0,0,0,""]
[null,null,null,null,null,null,null,null,null,null,null,null,"",0,0,0,0,0,""]
[null,null,null,null,null,null,null,null,null,null,null,null,"",0,0,0,0,0,""]
[null,null,null,null,null,null,null,null,null,null,null,null,{"$f":"IF(ISBLANK(H5777),\"\",SUM(H5777:L5777))","v":""},{"$f":"IF(ISBLANK(H5777),0,IF(H5777=0,1,0))","v":0},{"$f":"IF(ISBLANK(I5777),0,IF(I5777=0,1,0))","v":0},{"$f":"IF(ISBLANK(J5777),0,IF(J5777=0,1,0))","v":0},{"$f":"IF(ISBLANK(K5777),0,IF(K5777=0,1,0))","v":0},{"$f":"IF(ISBLANK(L5777),0,IF(L5777=0,1,0))","v":0},{"$f":"IF(SUM(N5777:R5777)<>0,\"Zero!\",\"\")","v":""}]
[null,null,null,null,null,null,null,null,null,null,null,null,"",0,0,0,0,0,""]
[null,null,null,null,null,null,null,null,null,null,null,null,"",0,0,0,0,0,""]
[null,null,null,null,null,null,null,null,null,null,null,null,"",0,0,0,0,0,""]
[null,null,null,null,null,null,null,null,null,null,null,null,"",0,0,0,0,0,""]
[null,null,null,null,null,null,null,null,null,null,null,null,"",0,0,0,0,0,""]
[null,null,null,null,null,null,null,null,null,null,null,null,"",0,0,0,0,0,""]
[null,null,null,null,null,null,null,null,null,null,null,null,"",0,0,0,0,0,""]
[null,null,null,null,null,null,null,null,null,null,null,null,"",0,0,0,0,0,""]
[null,null,null,null,null,null,null,null,null,null,null,null,"",0,0,0,0,0,""]
[null,null,null,null,null,null,null,null,null,null,null,null,"",0,0,0,0,0,""]
[null,null,null,null,null,null,null,null,null,null,null,null,"",0,0,0,0,0,""]
[null,null,null,null,null,null,null,null,null,null,null,null,"",0,0,0,0,0,""]
[null,null,null,null,null,null,null,null,null,null,null,null,"",0,0,0,0,0,""]
[null,null,null,null,null,null,null,null,null,null,null,null,"",0,0,0,0,0,""]
[null,null,null,null,null,null,null,null,null,null,null,null,"",0,0,0,0,0,""]
[null,null,null,null,null,null,null,null,null,null,null,null,"",0,0,0,0,0,""]
[null,null,null,null,null,null,null,null,null,null,null,null,"",0,0,0,0,0,""]
[null,null,null,null,null,null,null,null,null,null,null,null,"",0,0,0,0,0,""]
[null,null,null,null,null,null,null,null,null,null,null,null,"",0,0,0,0,0,""]
[null,null,null,null,null,null,null,null,null,null,null,null,"",0,0,0,0,0,""]
[null,null,null,null,null,null,null,null,null,null,null,null,"",0,0,0,0,0,""]
[null,null,null,null,null,null,null,null,null,null,null,null,"",0,0,0,0,0,""]
[null,null,null,null,null,null,null,null,null,null,null,null,"",0,0,0,0,0,""]
[null,null,null,null,null,null,null,null,null,null,null,null,"",0,0,0,0,0,""]
[null,null,null,null,null,null,null,null,null,null,null,null,"",0,0,0,0,0,""]
[null,null,null,null,null,null,null,null,null,null,null,null,"",0,0,0,0,0,""]
[null,null,null,null,null,null,null,null,null,null,null,null,"",0,0,0,0,0,""]
[null,null,null,null,null,null,null,null,null,null,null,null,"",0,0,0,0,0,""]
[null,null,null,null,null,null,null,null,null,null,null,null,"",0,0,0,0,0,""]
[null,null,null,null,null,null,null,null,null,null,null,null,"",0,0,0,0,0,""]
[null,null,null,null,null,null,null,null,null,null,null,null,"",0,0,0,0,0,""]
[null,null,null,null,null,null,null,null,null,null,null,null,"",0,0,0,0,0,""]
[null,null,null,null,null,null,null,null,null,null,null,null,"",0,0,0,0,0,""]
[null,null,null,null,null,null,null,null,null,null,null,null,"",0,0,0,0,0,""]
[null,null,null,null,null,null,null,null,null,null,null,null,"",0,0,0,0,0,""]
[null,null,null,null,null,null,null,null,null,null,null,null,"",0,0,0,0,0,""]
[null,null,null,null,null,null,null,null,null,null,null,null,"",0,0,0,0,0,""]
[null,null,null,null,null,null,null,null,null,null,null,null,"",0,0,0,0,0,""]
[null,null,null,null,null,null,null,null,null,null,null,null,"",0,0,0,0,0,""]
[null,null,null,null,null,null,null,null,null,null,null,null,"",0,0,0,0,0,""]
[null,null,null,null,null,null,null,null,null,null,null,null,"",0,0,0,0,0,""]
[null,null,null,null,null,null,null,null,null,null,null,null,"",0,0,0,0,0,""]
[null,null,null,null,null,null,null,null,null,null,null,null,"",0,0,0,0,0,""]
[null,null,null,null,null,null,null,null,null,null,null,null,"",0,0,0,0,0,""]
[null,null,null,null,null,null,null,null,null,null,null,null,"",0,0,0,0,0,""]
[null,null,null,null,null,null,null,null,null,null,null,null,"",0,0,0,0,0,""]
[null,null,null,null,null,null,null,null,null,null,null,null,"",0,0,0,0,0,""]
[null,null,null,null,null,null,null,null,null,null,null,null,"",0,0,0,0,0,""]
[null,null,null,null,null,null,null,null,null,null,null,null,"",0,0,0,0,0,""]
[null,null,null,null,null,null,null,null,null,null,null,null,"",0,0,0,0,0,""]
[null,null,null,null,null,null,null,null,null,null,null,null,"",0,0,0,0,0,""]
[null,null,null,null,null,null,null,null,null,null,null,null,"",0,0,0,0,0,""]
[null,null,null,null,null,null,null,null,null,null,null,null,"",0,0,0,0,0,""]
[null,null,null,null,null,null,null,null,null,null,null,null,"",0,0,0,0,0,""]
[null,null,null,null,null,null,null,null,null,null,null,null,"",0,0,0,0,0,""]
[null,null,null,null,null,null,null,null,null,null,null,null,"",0,0,0,0,0,""]
[null,null,null,null,null,null,null,null,null,null,null,null,"",0,0,0,0,0,""]
[null,null,null,null,null,null,null,null,null,null,null,null,"",0,0,0,0,0,""]
[null,null,null,null,null,null,null,null,null,null,null,null,"",0,0,0,0,0,""]
[null,null,null,null,null,null,null,null,null,null,null,null,"",0,0,0,0,0,""]
[null,null,null,null,null,null,null,null,null,null,null,null,"",0,0,0,0,0,""]
[null,null,null,null,null,null,null,null,null,null,null,null,"",0,0,0,0,0,""]
[null,null,null,null,null,null,null,null,null,null,null,null,"",0,0,0,0,0,""]
[null,null,null,null,null,null,null,null,null,null,null,null,{"$f":"IF(ISBLANK(H5841),\"\",SUM(H5841:L5841))","v":""},{"$f":"IF(ISBLANK(H5841),0,IF(H5841=0,1,0))","v":0},{"$f":"IF(ISBLANK(I5841),0,IF(I5841=0,1,0))","v":0},{"$f":"IF(ISBLANK(J5841),0,IF(J5841=0,1,0))","v":0},{"$f":"IF(ISBLANK(K5841),0,IF(K5841=0,1,0))","v":0},{"$f":"IF(ISBLANK(L5841),0,IF(L5841=0,1,0))","v":0},{"$f":"IF(SUM(N5841:R5841)<>0,\"Zero!\",\"\")","v":""}]
[null,null,null,null,null,null,null,null,null,null,null,null,"",0,0,0,0,0,""]
[null,null,null,null,null,null,null,null,null,null,null,null,"",0,0,0,0,0,""]
[null,null,null,null,null,null,null,null,null,null,null,null,"",0,0,0,0,0,""]
[null,null,null,null,null,null,null,null,null,null,null,null,"",0,0,0,0,0,""]
[null,null,null,null,null,null,null,null,null,null,null,null,"",0,0,0,0,0,""]
[null,null,null,null,null,null,null,null,null,null,null,null,"",0,0,0,0,0,""]
[null,null,null,null,null,null,null,null,null,null,null,null,"",0,0,0,0,0,""]
[null,null,null,null,null,null,null,null,null,null,null,null,"",0,0,0,0,0,""]
[null,null,null,null,null,null,null,null,null,null,null,null,"",0,0,0,0,0,""]
[null,null,null,null,null,null,null,null,null,null,null,null,"",0,0,0,0,0,""]
[null,null,null,null,null,null,null,null,null,null,null,null,"",0,0,0,0,0,""]
[null,null,null,null,null,null,null,null,null,null,null,null,"",0,0,0,0,0,""]
[null,null,null,null,null,null,null,null,null,null,null,null,"",0,0,0,0,0,""]
[null,null,null,null,null,null,null,null,null,null,null,null,"",0,0,0,0,0,""]
[null,null,null,null,null,null,null,null,null,null,null,null,"",0,0,0,0,0,""]
[null,null,null,null,null,null,null,null,null,null,null,null,"",0,0,0,0,0,""]
[null,null,null,null,null,null,null,null,null,null,null,null,"",0,0,0,0,0,""]
[null,null,null,null,null,null,null,null,null,null,null,null,"",0,0,0,0,0,""]
[null,null,null,null,null,null,null,null,null,null,null,null,"",0,0,0,0,0,""]
[null,null,null,null,null,null,null,null,null,null,null,null,"",0,0,0,0,0,""]
[null,null,null,null,null,null,null,null,null,null,null,null,"",0,0,0,0,0,""]
[null,null,null,null,null,null,null,null,null,null,null,null,"",0,0,0,0,0,""]
[null,null,null,null,null,null,null,null,null,null,null,null,"",0,0,0,0,0,""]
[null,null,null,null,null,null,null,null,null,null,null,null,"",0,0,0,0,0,""]
[null,null,null,null,null,null,null,null,null,null,null,null,"",0,0,0,0,0,""]
[null,null,null,null,null,null,null,null,null,null,null,null,"",0,0,0,0,0,""]
[null,null,null,null,null,null,null,null,null,null,null,null,"",0,0,0,0,0,""]
[null,null,null,null,null,null,null,null,null,null,null,null,"",0,0,0,0,0,""]
[null,null,null,null,null,null,null,null,null,null,null,null,"",0,0,0,0,0,""]
[null,null,null,null,null,null,null,null,null,null,null,null,"",0,0,0,0,0,""]
[null,null,null,null,null,null,null,null,null,null,null,null,"",0,0,0,0,0,""]
[null,null,null,null,null,null,null,null,null,null,null,null,"",0,0,0,0,0,""]
[null,null,null,null,null,null,null,null,null,null,null,null,"",0,0,0,0,0,""]
[null,null,null,null,null,null,null,null,null,null,null,null,"",0,0,0,0,0,""]
[null,null,null,null,null,null,null,null,null,null,null,null,"",0,0,0,0,0,""]
[null,null,null,null,null,null,null,null,null,null,null,null,"",0,0,0,0,0,""]
[null,null,null,null,null,null,null,null,null,null,null,null,"",0,0,0,0,0,""]
[null,null,null,null,null,null,null,null,null,null,null,null,"",0,0,0,0,0,""]
[null,null,null,null,null,null,null,null,null,null,null,null,"",0,0,0,0,0,""]
[null,null,null,null,null,null,null,null,null,null,null,null,"",0,0,0,0,0,""]
[null,null,null,null,null,null,null,null,null,null,null,null,"",0,0,0,0,0,""]
[null,null,null,null,null,null,null,null,null,null,null,null,"",0,0,0,0,0,""]
[null,null,null,null,null,null,null,null,null,null,null,null,"",0,0,0,0,0,""]
[null,null,null,null,null,null,null,null,null,null,null,null,"",0,0,0,0,0,""]
[null,null,null,null,null,null,null,null,null,null,null,null,"",0,0,0,0,0,""]
[null,null,null,null,null,null,null,null,null,null,null,null,"",0,0,0,0,0,""]
[null,null,null,null,null,null,null,null,null,null,null,null,"",0,0,0,0,0,""]
[null,null,null,null,null,null,null,null,null,null,null,null,"",0,0,0,0,0,""]
[null,null,null,null,null,null,null,null,null,null,null,null,"",0,0,0,0,0,""]
[null,null,null,null,null,null,null,null,null,null,null,null,"",0,0,0,0,0,""]
[null,null,null,null,null,null,null,null,null,null,null,null,"",0,0,0,0,0,""]
[null,null,null,null,null,null,null,null,null,null,null,null,"",0,0,0,0,0,""]
[null,null,null,null,null,null,null,null,null,null,null,null,"",0,0,0,0,0,""]
[null,null,null,null,null,null,null,null,null,null,null,null,"",0,0,0,0,0,""]
[null,null,null,null,null,null,null,null,null,null,null,null,"",0,0,0,0,0,""]
[null,null,null,null,null,null,null,null,null,null,null,null,"",0,0,0,0,0,""]
[null,null,null,null,null,null,null,null,null,null,null,null,"",0,0,0,0,0,""]
[null,null,null,null,null,null,null,null,null,null,null,null,"",0,0,0,0,0,""]
[null,null,null,null,null,null,null,null,null,null,null,null,"",0,0,0,0,0,""]
[null,null,null,null,null,null,null,null,null,null,null,null,"",0,0,0,0,0,""]
[null,null,null,null,null,null,null,null,null,null,null,null,"",0,0,0,0,0,""]
[null,null,null,null,null,null,null,null,null,null,null,null,"",0,0,0,0,0,""]
[null,null,null,null,null,null,null,null,null,null,null,null,"",0,0,0,0,0,""]
[null,null,null,null,null,null,null,null,null,null,null,null,{"$f":"IF(ISBLANK(H5905),\"\",SUM(H5905:L5905))","v":""},{"$f":"IF(ISBLANK(H5905),0,IF(H5905=0,1,0))","v":0},{"$f":"IF(ISBLANK(I5905),0,IF(I5905=0,1,0))","v":0},{"$f":"IF(ISBLANK(J5905),0,IF(J5905=0,1,0))","v":0},{"$f":"IF(ISBLANK(K5905),0,IF(K5905=0,1,0))","v":0},{"$f":"IF(ISBLANK(L5905),0,IF(L5905=0,1,0))","v":0},{"$f":"IF(SUM(N5905:R5905)<>0,\"Zero!\",\"\")","v":""}]
[null,null,null,null,null,null,null,null,null,null,null,null,"",0,0,0,0,0,""]
[null,null,null,null,null,null,null,null,null,null,null,null,"",0,0,0,0,0,""]
[null,null,null,null,null,null,null,null,null,null,null,null,"",0,0,0,0,0,""]
[null,null,null,null,null,null,null,null,null,null,null,null,"",0,0,0,0,0,""]
[null,null,null,null,null,null,null,null,null,null,null,null,"",0,0,0,0,0,""]
[null,null,null,null,null,null,null,null,null,null,null,null,"",0,0,0,0,0,""]
[null,null,null,null,null,null,null,null,null,null,null,null,"",0,0,0,0,0,""]
[null,null,null,null,null,null,null,null,null,null,null,null,"",0,0,0,0,0,""]
[null,null,null,null,null,null,null,null,null,null,null,null,"",0,0,0,0,0,""]
[null,null,null,null,null,null,null,null,null,null,null,null,"",0,0,0,0,0,""]
[null,null,null,null,null,null,null,null,null,null,null,null,"",0,0,0,0,0,""]
[null,null,null,null,null,null,null,null,null,null,null,null,"",0,0,0,0,0,""]
[null,null,null,null,null,null,null,null,null,null,null,null,"",0,0,0,0,0,""]
[null,null,null,null,null,null,null,null,null,null,null,null,"",0,0,0,0,0,""]
[null,null,null,null,null,null,null,null,null,null,null,null,"",0,0,0,0,0,""]
[null,null,null,null,null,null,null,null,null,null,null,null,"",0,0,0,0,0,""]
[null,null,null,null,null,null,null,null,null,null,null,null,"",0,0,0,0,0,""]
[null,null,null,null,null,null,null,null,null,null,null,null,"",0,0,0,0,0,""]
[null,null,null,null,null,null,null,null,null,null,null,null,"",0,0,0,0,0,""]
[null,null,null,null,null,null,null,null,null,null,null,null,"",0,0,0,0,0,""]
[null,null,null,null,null,null,null,null,null,null,null,null,"",0,0,0,0,0,""]
[null,null,null,null,null,null,null,null,null,null,null,null,"",0,0,0,0,0,""]
[null,null,null,null,null,null,null,null,null,null,null,null,"",0,0,0,0,0,""]
[null,null,null,null,null,null,null,null,null,null,null,null,"",0,0,0,0,0,""]
[null,null,null,null,null,null,null,null,null,null,null,null,"",0,0,0,0,0,""]
[null,null,null,null,null,null,null,null,null,null,null,null,"",0,0,0,0,0,""]
[null,null,null,null,null,null,null,null,null,null,null,null,"",0,0,0,0,0,""]
[null,null,null,null,null,null,null,null,null,null,null,null,"",0,0,0,0,0,""]
[null,null,null,null,null,null,null,null,null,null,null,null,"",0,0,0,0,0,""]
[null,null,null,null,null,null,null,null,null,null,null,null,"",0,0,0,0,0,""]
[null,null,null,null,null,null,null,null,null,null,null,null,"",0,0,0,0,0,""]
[null,null,null,null,null,null,null,null,null,null,null,null,"",0,0,0,0,0,""]
[null,null,null,null,null,null,null,null,null,null,null,null,"",0,0,0,0,0,""]
[null,null,null,null,null,null,null,null,null,null,null,null,"",0,0,0,0,0,""]
[null,null,null,null,null,null,null,null,null,null,null,null,"",0,0,0,0,0,""]
[null,null,null,null,null,null,null,null,null,null,null,null,"",0,0,0,0,0,""]
[null,null,null,null,null,null,null,null,null,null,null,null,"",0,0,0,0,0,""]
[null,null,null,null,null,null,null,null,null,null,null,null,"",0,0,0,0,0,""]
[null,null,null,null,null,null,null,null,null,null,null,null,"",0,0,0,0,0,""]
[null,null,null,null,null,null,null,null,null,null,null,null,"",0,0,0,0,0,""]
[null,null,null,null,null,null,null,null,null,null,null,null,"",0,0,0,0,0,""]
[null,null,null,null,null,null,null,null,null,null,null,null,"",0,0,0,0,0,""]
[null,null,null,null,null,null,null,null,null,null,null,null,"",0,0,0,0,0,""]
[null,null,null,null,null,null,null,null,null,null,null,null,"",0,0,0,0,0,""]
[null,null,null,null,null,null,null,null,null,null,null,null,"",0,0,0,0,0,""]
[null,null,null,null,null,null,null,null,null,null,null,null,"",0,0,0,0,0,""]
[null,null,null,null,null,null,null,null,null,null,null,null,"",0,0,0,0,0,""]
[null,null,null,null,null,null,null,null,null,null,null,null,"",0,0,0,0,0,""]
[null,null,null,null,null,null,null,null,null,null,null,null,"",0,0,0,0,0,""]
[null,null,null,null,null,null,null,null,null,null,null,null,"",0,0,0,0,0,""]
[null,null,null,null,null,null,null,null,null,null,null,null,"",0,0,0,0,0,""]
[null,null,null,null,null,null,null,null,null,null,null,null,"",0,0,0,0,0,""]
[null,null,null,null,null,null,null,null,null,null,null,null,"",0,0,0,0,0,""]
[null,null,null,null,null,null,null,null,null,null,null,null,"",0,0,0,0,0,""]
[null,null,null,null,null,null,null,null,null,null,null,null,"",0,0,0,0,0,""]
[null,null,null,null,null,null,null,null,null,null,null,null,"",0,0,0,0,0,""]
[null,null,null,null,null,null,null,null,null,null,null,null,"",0,0,0,0,0,""]
[null,null,null,null,null,null,null,null,null,null,null,null,"",0,0,0,0,0,""]
[null,null,null,null,null,null,null,null,null,null,null,null,"",0,0,0,0,0,""]
[null,null,null,null,null,null,null,null,null,null,null,null,"",0,0,0,0,0,""]
[null,null,null,null,null,null,null,null,null,null,null,null,"",0,0,0,0,0,""]
[null,null,null,null,null,null,null,null,null,null,null,null,"",0,0,0,0,0,""]
[null,null,null,null,null,null,null,null,null,null,null,null,"",0,0,0,0,0,""]
[null,null,null,null,null,null,null,null,null,null,null,null,{"$f":"IF(ISBLANK(H5969),\"\",SUM(H5969:L5969))","v":""},{"$f":"IF(ISBLANK(H5969),0,IF(H5969=0,1,0))","v":0},{"$f":"IF(ISBLANK(I5969),0,IF(I5969=0,1,0))","v":0},{"$f":"IF(ISBLANK(J5969),0,IF(J5969=0,1,0))","v":0},{"$f":"IF(ISBLANK(K5969),0,IF(K5969=0,1,0))","v":0},{"$f":"IF(ISBLANK(L5969),0,IF(L5969=0,1,0))","v":0},{"$f":"IF(SUM(N5969:R5969)<>0,\"Zero!\",\"\")","v":""}]
[null,null,null,null,null,null,null,null,null,null,null,null,"",0,0,0,0,0,""]
[null,null,null,null,null,null,null,null,null,null,null,null,"",0,0,0,0,0,""]
[null,null,null,null,null,null,null,null,null,null,null,null,"",0,0,0,0,0,""]
[null,null,null,null,null,null,null,null,null,null,null,null,"",0,0,0,0,0,""]
[null,null,null,null,null,null,null,null,null,null,null,null,"",0,0,0,0,0,""]
[null,null,null,null,null,null,null,null,null,null,null,null,"",0,0,0,0,0,""]
[null,null,null,null,null,null,null,null,null,null,null,null,"",0,0,0,0,0,""]
[null,null,null,null,null,null,null,null,null,null,null,null,"",0,0,0,0,0,""]
[null,null,null,null,null,null,null,null,null,null,null,null,"",0,0,0,0,0,""]
[null,null,null,null,null,null,null,null,null,null,null,null,"",0,0,0,0,0,""]
[null,null,null,null,null,null,null,null,null,null,null,null,"",0,0,0,0,0,""]
[null,null,null,null,null,null,null,null,null,null,null,null,"",0,0,0,0,0,""]
[null,null,null,null,null,null,null,null,null,null,null,null,"",0,0,0,0,0,""]
[null,null,null,null,null,null,null,null,null,null,null,null,"",0,0,0,0,0,""]
[null,null,null,null,null,null,null,null,null,null,null,null,"",0,0,0,0,0,""]
[null,null,null,null,null,null,null,null,null,null,null,null,"",0,0,0,0,0,""]
[null,null,null,null,null,null,null,null,null,null,null,null,"",0,0,0,0,0,""]
[null,null,null,null,null,null,null,null,null,null,null,null,"",0,0,0,0,0,""]
[null,null,null,null,null,null,null,null,null,null,null,null,"",0,0,0,0,0,""]
[null,null,null,null,null,null,null,null,null,null,null,null,"",0,0,0,0,0,""]
[null,null,null,null,null,null,null,null,null,null,null,null,"",0,0,0,0,0,""]
[null,null,null,null,null,null,null,null,null,null,null,null,"",0,0,0,0,0,""]
[null,null,null,null,null,null,null,null,null,null,null,null,"",0,0,0,0,0,""]
[null,null,null,null,null,null,null,null,null,null,null,null,"",0,0,0,0,0,""]
[null,null,null,null,null,null,null,null,null,null,null,null,"",0,0,0,0,0,""]
[null,null,null,null,null,null,null,null,null,null,null,null,"",0,0,0,0,0,""]
[null,null,null,null,null,null,null,null,null,null,null,null,"",0,0,0,0,0,""]
[null,null,null,null,null,null,null,null,null,null,null,null,"",0,0,0,0,0,""]
[null,null,null,null,null,null,null,null,null,null,null,null,"",0,0,0,0,0,""]
[null,null,null,null,null,null,null,null,null,null,null,null,"",0,0,0,0,0,""]
[]
[null,null,null,null,null,null,null,null,null,null,null,null,{"$f":"IF(ISBLANK(H6001),\"\",SUM(H6001:L6001))","v":""},{"$f":"IF(ISBLANK(H6001),0,IF(H6001=0,1,0))","v":0},{"$f":"IF(ISBLANK(I6001),0,IF(I6001=0,1,0))","v":0},{"$f":"IF(ISBLANK(J6001),0,IF(J6001=0,1,0))","v":0},{"$f":"IF(ISBLANK(K6001),0,IF(K6001=0,1,0))","v":0},{"$f":"IF(ISBLANK(L6001),0,IF(L6001=0,1,0))","v":0},{"$f":"IF(SUM(N6001:R6001)<>0,\"Zero!\",\"\")","v":""}]
["!!! NO DATA INPUT AFTER THIS LINE !!! IT WILL NOT BE INCLUDED ON THE PIVOT TABLES !!! NO DATA INPUT AFTER THIS LINE !!! "]

{"sheet":"WOMEN","index":2,"n_rows":11,"n_cols":8,"rows_kept":11,"cut":false,"hidden":false,"merged":[]}
[]
[]
[]
[null,"Значения"]
["Team/Country","Среднее по полю Rules","Среднее по полю Fouls","Среднее по полю Fair","Среднее по полю Positive","Среднее по полю Com","Среднее по полю TOTAL","Количество по полю Rules"]
["Элвис Пресли",1.8333333333333333,1.8333333333333333,1.5,1.8333333333333333,1.8333333333333333,8.8333333333333339,6]
["СаусВест",2,2,1.8333333333333333,2.3333333333333335,2,10.166666666666666,6]
["Бриллианс",2,2,2.2000000000000002,1.8,2.2000000000000002,10.199999999999999,5]
["Лемон Грасс",2,1.6666666666666667,2.1666666666666665,2.5,2,10.333333333333334,6]
["Космик Гёрлс",2,1.8,1.8,2.6,2.2000000000000002,10.4,5]
["Grand Total",1.9642857142857142,1.8571428571428572,1.8928571428571428,2.2142857142857144,2.0357142857142856,9.9642857142857135,28]

{"sheet":"OPEN","index":3,"n_rows":18,"n_cols":8,"rows_kept":18,"cut":false,"hidden":false,"merged":[]}
[]
[]
[]
[null,"Значения"]
["Team/Country","Среднее по полю Rules","Среднее по полю Fouls","Среднее по полю Fair","Среднее по полю Positive","Среднее по полю Com","Среднее по полю TOTAL","Количество по полю Rules"]
["АтомСвифт",1.7142857142857142,1.8571428571428572,2,1.2857142857142858,2.2857142857142856,9.1428571428571423,7]
["Сани",1.8333333333333333,2.3333333333333335,1.8333333333333333,1.8333333333333333,2,9.8333333333333339,6]
["ЮПитер-2",2,1.8333333333333333,2,2,2.1666666666666665,10,6]
["ФлайнгСтепс",2.1428571428571428,2.1428571428571428,2,2.2857142857142856,2,10.571428571428571,7]
["ЮПитер",2,1.8571428571428572,2,2.5714285714285716,2.1428571428571428,10.571428571428571,7]
["Сокол",2,1.75,2.375,2.125,2.375,10.625,8]
["Нижний Новгород",2.1428571428571428,2,2.4285714285714284,2,2.1428571428571428,10.714285714285714,7]
["Рэмпейдж",1.8571428571428572,1.8571428571428572,2.2857142857142856,2.1428571428571428,2.5714285714285716,10.714285714285714,7]
["Ми энд май манки",1.8571428571428572,2.1428571428571428,2.1428571428571428,2.2857142857142856,2.4285714285714284,10.857142857142858,7]
["РеалФайв",2,2.25,2.375,2.375,2.125,11.125,8]
["Тени",2.1428571428571428,1.5714285714285714,2.5714285714285716,2.5714285714285716,2.4285714285714284,11.285714285714286,7]
["Саласпилс",2.2857142857142856,2.2857142857142856,2,2.4285714285714284,2.4285714285714284,11.428571428571429,7]
["Grand Total",2,1.9880952380952381,2.1785714285714284,2.1666666666666665,2.2619047619047619,10.595238095238095,84]

{"sheet":"Global by division","index":4,"n_rows":23,"n_cols":13,"rows_kept":23,"cut":false,"hidden":true,"merged":[]}
[null,null,null,"average scores & nb of 0/category received by the teams"]
[null,null,null,"Feedback for the teams"]
[]
[null,"Valeurs"]
["Division"," Rules avg","NB 0 @ Rules"," Fouls Avg","NB 0 @ fouls","Fair avg","NB 0 @ Fair","Positive avg","NB 0 @ Positive","Com avg","NB 0 @ Com"," TOTAL","Nb of Games"]
["АтомСвифт",1.7142857142857142,0,1.8571428571428572,0,2,0,1.2857142857142858,0,2.2857142857142856,0,9.1428571428571423,7]
["Бриллианс",2,0,2,0,2.2000000000000002,0,1.8,0,2.2000000000000002,0,10.199999999999999,5]
["Космик Гёрлс",2,0,1.8,0,1.8,0,2.6,0,2.2000000000000002,0,10.4,5]
["Лемон Грасс",2,0,1.6666666666666667,0,2.1666666666666665,0,2.5,0,2,0,10.333333333333334,6]
["Ми энд май манки",1.8571428571428572,0,2.1428571428571428,0,2.1428571428571428,0,2.2857142857142856,0,2.4285714285714284,0,10.857142857142858,7]
["Нижний Новгород",2.1428571428571428,0,2,0,2.4285714285714284,0,2,0,2.1428571428571428,1,10.714285714285714,7]
["РеалФайв",2,0,2.25,0,2.375,0,2.375,0,2.125,0,11.125,8]
["Рэмпейдж",1.8571428571428572,0,1.8571428571428572,0,2.2857142857142856,0,2.1428571428571428,0,2.5714285714285716,0,10.714285714285714,7]
["Саласпилс",2.2857142857142856,0,2.2857142857142856,0,2,0,2.4285714285714284,0,2.4285714285714284,0,11.428571428571429,7]
["Сани",1.8333333333333333,0,2.3333333333333335,0,1.8333333333333333,0,1.8333333333333333,0,2,0,9.8333333333333339,6]
["СаусВест",2,0,2,0,1.8333333333333333,0,2.3333333333333335,0,2,0,10.166666666666666,6]
["Сокол",2,0,1.75,0,2.375,0,2.125,0,2.375,0,10.625,8]
["Тени",2.1428571428571428,0,1.5714285714285714,0,2.5714285714285716,0,2.5714285714285716,0,2.4285714285714284,0,11.285714285714286,7]
["ФлайнгСтепс",2.1428571428571428,0,2.1428571428571428,0,2,0,2.2857142857142856,0,2,0,10.571428571428571,7]
["Элвис Пресли",1.8333333333333333,0,1.8333333333333333,0,1.5,0,1.8333333333333333,0,1.8333333333333333,0,8.8333333333333339,6]
["ЮПитер",2,0,1.8571428571428572,0,2,0,2.5714285714285716,0,2.1428571428571428,0,10.571428571428571,7]
["ЮПитер-2",2,0,1.8333333333333333,0,2,0,2,0,2.1666666666666665,0,10,6]
["Grand Total",1.9910714285714286,0,1.9553571428571428,0,2.1071428571428572,0,2.1785714285714284,0,2.2053571428571428,1,10.4375,112]

{"sheet":"Global by country","index":5,"n_rows":23,"n_cols":13,"rows_kept":23,"cut":false,"hidden":true,"merged":[]}
[null,null,null,"average scores & nb of 0/category received by the teams"]
[null,null,null,"Feedback for the teams"]
[]
[null,"Valeurs"]
["Country / Team","Rules avg","NB 0 @ Rules","Fouls Avg","NB 0 @ fouls","Fair avg","NB 0 @ Fair","Positive avg","NB 0 @ Positive","Com Avg","NB 0 @ Com"," TOTAL","Nb of Games"]
["АтомСвифт",1.7142857142857142,0,1.8571428571428572,0,2,0,1.2857142857142858,0,2.2857142857142856,0,9.1428571428571423,7]
["Бриллианс",2,0,2,0,2.2000000000000002,0,1.8,0,2.2000000000000002,0,10.199999999999999,5]
["Космик Гёрлс",2,0,1.8,0,1.8,0,2.6,0,2.2000000000000002,0,10.4,5]
["Лемон Грасс",2,0,1.6666666666666667,0,2.1666666666666665,0,2.5,0,2,0,10.333333333333334,6]
["Ми энд май манки",1.8571428571428572,0,2.1428571428571428,0,2.1428571428571428,0,2.2857142857142856,0,2.4285714285714284,0,10.857142857142858,7]
["Нижний Новгород",2.1428571428571428,0,2,0,2.4285714285714284,0,2,0,2.1428571428571428,1,10.714285714285714,7]
["РеалФайв",2,0,2.25,0,2.375,0,2.375,0,2.125,0,11.125,8]
["Рэмпейдж",1.8571428571428572,0,1.8571428571428572,0,2.2857142857142856,0,2.1428571428571428,0,2.5714285714285716,0,10.714285714285714,7]
["Саласпилс",2.2857142857142856,0,2.2857142857142856,0,2,0,2.4285714285714284,0,2.4285714285714284,0,11.428571428571429,7]
["Сани",1.8333333333333333,0,2.3333333333333335,0,1.8333333333333333,0,1.8333333333333333,0,2,0,9.8333333333333339,6]
["СаусВест",2,0,2,0,1.8333333333333333,0,2.3333333333333335,0,2,0,10.166666666666666,6]
["Сокол",2,0,1.75,0,2.375,0,2.125,0,2.375,0,10.625,8]
["Тени",2.1428571428571428,0,1.5714285714285714,0,2.5714285714285716,0,2.5714285714285716,0,2.4285714285714284,0,11.285714285714286,7]
["ФлайнгСтепс",2.1428571428571428,0,2.1428571428571428,0,2,0,2.2857142857142856,0,2,0,10.571428571428571,7]
["Элвис Пресли",1.8333333333333333,0,1.8333333333333333,0,1.5,0,1.8333333333333333,0,1.8333333333333333,0,8.8333333333333339,6]
["ЮПитер",2,0,1.8571428571428572,0,2,0,2.5714285714285716,0,2.1428571428571428,0,10.571428571428571,7]
["ЮПитер-2",2,0,1.8333333333333333,0,2,0,2,0,2.1666666666666665,0,10,6]
["Grand Total",1.9910714285714286,0,1.9553571428571428,0,2.1071428571428572,0,2.1785714285714284,0,2.2053571428571428,1,10.4375,112]

{"sheet":"BY","index":6,"n_rows":23,"n_cols":13,"rows_kept":23,"cut":false,"hidden":false,"merged":[]}
[null,null,null,"average scores & nb of 0/category given by the teams"]
[null,null,null,"Helps finding team giving always high or low scores"]
[]
[null,"Valeurs"]
["Division","Rules avg","NB 0 @ rules","Fouls Avg","NB 0 @ fouls","Fair avg","NB 0 @ Fair","Positive avg","NB 0 @ Positive","Com avg","NB 0 @ Com"," TOTAL","NB of Games"]
["РеалФайв",2.375,0,2.375,0,2.125,0,2.5,0,2.625,0,12,8]
["Саласпилс",2,0,2.1428571428571428,0,2.7142857142857144,0,2.1428571428571428,0,2.5714285714285716,0,11.571428571428571,7]
["ЮПитер",2,0,2,0,2,0,2.7142857142857144,0,2.2857142857142856,0,11,7]
["Тени",2,0,2.2857142857142856,0,2.4285714285714284,0,1.7142857142857142,0,2.5714285714285716,0,11,7]
["Нижний Новгород",2,0,1.8571428571428572,0,2.2857142857142856,0,2.1428571428571428,0,2.5714285714285716,0,10.857142857142858,7]
["АтомСвифт",2.1428571428571428,0,2,0,2.2857142857142856,0,2.4285714285714284,0,2,0,10.857142857142858,7]
["Лемон Грасс",1.8333333333333333,0,2,0,2.1666666666666665,0,2.5,0,2,0,10.5,6]
["Ми энд май манки",2,0,1.8571428571428572,0,2.1428571428571428,0,2.1428571428571428,0,2.2857142857142856,1,10.428571428571429,7]
["Космик Гёрлс",2,0,1.4,0,2.2000000000000002,0,2.8,0,2,0,10.4,5]
["Сани",1.8333333333333333,0,1.6666666666666667,0,2.1666666666666665,0,2.3333333333333335,0,2.3333333333333335,0,10.333333333333334,6]
["Бриллианс",2,0,2,0,1.6,0,2.4,0,2,0,10,5]
["ЮПитер-2",2,0,1.8333333333333333,0,2,0,2,0,2.1666666666666665,0,10,6]
["СаусВест",2,0,2,0,2,0,1.8333333333333333,0,2,0,9.8333333333333339,6]
["Сокол",1.875,0,2,0,2,0,2,0,1.875,0,9.75,8]
["Рэмпейдж",1.8571428571428572,0,2.1428571428571428,0,1.8571428571428572,0,2,0,1.7142857142857142,0,9.5714285714285712,7]
["ФлайнгСтепс",1.8571428571428572,0,1.5714285714285714,0,2.1428571428571428,0,1.8571428571428572,0,2.1428571428571428,0,9.5714285714285712,7]
["Элвис Пресли",2,0,1.8333333333333333,0,1.5,0,1.6666666666666667,0,2.1666666666666665,0,9.1666666666666661,6]
["Grand Total",1.9910714285714286,0,1.9553571428571428,0,2.1071428571428572,0,2.1785714285714284,0,2.2053571428571428,1,10.4375,112]

{"sheet":"FeedBack Template","index":7,"n_rows":18,"n_cols":4,"rows_kept":18,"cut":false,"hidden":true,"merged":[[1,1,1,3],[4,2,4,3],[5,2,5,3]]}
[]
[null,"SOTG Feedback"]
[]
[]
[null,"DIVISION : "]
[null,"TEAM : "]
[]
[]
[null,"This is the notes your team was given from your opponents."]
[null,"This information is based on ",null,"games."]
[]
[null,"Category","Average","# of zeros"]
[null," 1. Rules Knowledge and Use"]
[null,"2. Fouls and Body Contact"]
[null," 3. Fair-Mindedness"]
[null," 4. Positive Attitude and Self-Control"]
[null," 5. Communication"]
[null,"TOTAL : ",{"$f":"SUM(C13:C17)","v":0},{"$f":"SUM(D13:D17)","v":0}]

{"sheet":"Ranking Template","index":8,"n_rows":4,"n_cols":1,"rows_kept":4,"cut":false,"hidden":true,"merged":[]}
[]
[]
[]
["Ranking table will come here"]

{"sheet":"Lists","index":9,"n_rows":18,"n_cols":6,"rows_kept":18,"cut":false,"hidden":true,"merged":[]}
["DAYS",null,"DIVISIONS",null,"DIVISION","TEAMS (countries or clubs)"]
["Friday",null,"OPEN",null,"OPEN","АтомСвифт"]
["Saturday",null,"WOMEN",null,"OPEN","Ми энд май манки"]
["Sunday",null,null,null,"OPEN","Нижний Новгород"]
[null,null,null,null,"OPEN","РеалФайв"]
[null,null,null,null,"OPEN","Рэмпейдж"]
[null,null,null,null,"OPEN","Саласпилс"]
[null,null,null,null,"OPEN","Сани"]
[null,null,null,null,"OPEN","Сокол"]
[null,null,null,null,"OPEN","Тени"]
[null,null,null,null,"OPEN","ФлайнгСтепс"]
[null,null,null,null,"OPEN","ЮПитер"]
[null,null,null,null,"OPEN","ЮПитер-2"]
[null,null,null,null,"WOMEN","Бриллианс"]
[null,null,null,null,"WOMEN","Космик Гёрлс"]
[null,null,null,null,"WOMEN","Лемон Грасс"]
[null,null,null,null,"WOMEN","СаусВест"]
[null,null,null,null,"WOMEN","Элвис Пресли"]